Workbook

Sheet Introductie
C2: Assetmanagement Risico Register (ARR)
H3: Een Lean inzicht van uw assetmanagement risicopositie
B5: INTRODUCTIE LEAM Advies, kortweg LEAM, is een zelfstandig organisatie adviesbureau. LEAM staat voor de integratie van de filosofie van Lean met de wereld van Asset Management. LEAM heeft o.a. als doel om Asset Management zo praktisch mogelijk handen en voeten te geven op een wijze die past binnen uw organisatie. Dit op een manier zonder de bestaande richtlijnen uit het oog te verliezen. LEAM zorgt voor verandering door het ontwikkelen van het leervermogen in uw organisatie toepasbaar te maken. Daarbij kunnen instrumenten ondersteunend zijn, zoals dit Assetmanagement Risico Register. Dit register helpt bij het vastleggen van uw risico's. Van elk ingevoerde gebeurtenis kan het risico worden bepaald aan de hand van een bedrijfswaardentabel. De risicopositie wordt weergegeven, evenals het "monetair equivalent". Dit is het risico uitgedrukt in geld. Het risicoregister (of deze ARR) wordt gebruikt in stap 2 van de zeven assetmanagement stappen. Deze stappen staan beschreven op de website van LEAM. Klik op het logo om hier naartoe te gaan. De ARR levert naast een overzicht van het totaal aan risico's ook een beeld van alle risico's op. Dit kan eenvoudig worden geprint. In dit register kunnen ook maatregelen ingevuld worden en het verwachte risiconiveau na het nemen van de maatregelen.
B22: INSTRUCTIE Doorloop de 3 stappen. Een verantwoording over de uitkomsten is op het tabblad verantwoording zo goed mogelijk weergegeven. Bij stap 1 wordt in de kolom financieel, de waarde uit uw eigen risicomatrix ingevuld op één plaats. Tevens kunt u hier uw eigen bedrijfswaarden invullen, m.u.v. de bedrijfswaarde "financieel". Deze is nodig voor de werking van dit register. Maximaal kunnen er zes bedrijfswaarden worden ingevuld. Minder kan altijd. De schaling van de matrix kan niet worden aangepast in deze versie. Bij stap 2 kunnen de risico's worden ingevuld. Enkel de geel gekleurde velden zijn in te vullen. Bij stap 3 kunnen de maatregelen worden ingevuld voor de risico's uit stap 2. Dit is nodig zodra bij stap 2 is aangegeven dat er voor enkele risico's maatregelen worden genomen. Ook hier geldt dat enkel de gele velden ingevuld kunnen worden. Het tabblad dashboard is een overzichtelijke weergave van de risico's per risicopositie. Ook staan hier de Monetaire waarden per bedrijfswaarde benoemd. Zowel voor de huidige situatie, als de situatie na het nemen van maatregelen. Met de schuifknop ziet u de verschillen in risicopositie ontstaan van de huidige en nieuwe situatie. Met de knop "verversen grafiek" worden risico's en maatregelen tov geplot. In combinatie met een budgetgrens maakt dat overgebleven risico's zichtbaar
Q34: Voorbeeld van het dashboard
B37: COLOFON Uitgegeven door: LEAM Advies, Bergen op Zoom Beschikbaar sinds: januari 2019 Illustraties: R.A. Boer Versie: 3.0 (januari 2024) Contact Roland Boer LEAM Advies E info@leam.nu T 06 19645905 Copyright R.A. Boer - LEAM Advies Dit Excelmodel kan voor eigen doeleinden worden gebruikt, mits voorzien van bronvermelding. Commerciële doeleinden zijn niet toegestaan zonder overleg met LEAM. Het (intellectueel) eigendom van dit model blijft altijd van LEAM.
B53: Disclaimer Het Assetmanagement Risico Register (ARR) is met uiterste zorg ontwikkeld, opgesteld, getest en gecontroleerd. De ARR is een verzameling risico's en geeft een indicatie van de risicopositie en wat deze kan worden na het nemen van maatregelen. Consequenties volgend uit het gebruik ervan zijn voor eigen rekening en risico. Uitgangspunten van de gebruikte matrix zijn vast.

Sheet Stap 1 Risicomatrix
C2: Risicomatrix
J3: Kans van voorkomen
J5: A | K5: B | L5: C | M5: D | N5: E | O5: F
C6: Bedrijfswaarden / Organisatiewaarden | J6: Zeer laag | K6: Laag | L6: Beperkt | M6: Geregeld | N6: Vaak | O6: Zeer vaak
C7: Financieel | D7: Doelmatig | E7: Kwantiteit/Veilig | F7: Kwal leefomgeving | G7: Imago | H7: Circulair | J7: > 0,001 / jr | K7: > 0,01 / jr | L7: > 0,1 /jr | M7: > 1 / jr | N7: > 10 / jr | O7: > 100 / jr
A8: Effecten / gevolgen | B8: Catastrofaal | C8: >= | I8: 6 | J8: M | K8: H | L8: ZH | M8: O | N8: O | O8: O
C9: =C11*10 -> 10000000
B10: Ernstig | C10: >= | I10: 5 | J10: L | K10: M | L10: H | M10: ZH | N10: O | O10: O
C11: 1000000 | E11: Instructie In dit risicoregister wordt gebruik gemaakt van een 6x6 risicomatrix en een logaritmische schaling. Dit zijn randvoorwaarden voor een betrouwbare uitkomst. Indien er in jouw organisatie nog geen risicomatrix is, dan heeft het gebruik van dit risicoregister weinig nut. Het is dan beter om eerst een matrix op te stellen. De gekleurde velden kunnen worden aangepast. Deze zijn van belang voor de uitkomsten in dit risicoregister. Vul de eigen bedrijfswaarden in. Dit is gemaximaliseerd tot 6 waarden. De financiële kolom kan zo gelaten worden of eveneens aangepast aan de financiële kolom in de eigen risicomatrix.
B12: Groot | C12: >= | I12: 4 | J12: V | K12: L | L12: M | M12: H | N12: ZH | O12: O
C13: =C11/10 -> 100000
B14: Middelmatig | C14: >= | I14: 3 | J14: V | K14: V | L14: L | M14: M | N14: H | O14: ZH
C15: =C13/10 -> 10000
B16: Klein | C16: >= | I16: 2 | J16: V | K16: V | L16: V | M16: L | N16: M | O16: H
C17: =C15/10 -> 1000
B18: Verwaarloosbaar | C18: >= | I18: 1 | J18: V | K18: V | L18: V | M18: V | N18: L | O18: M
C19: =C17/10 -> 100
O20: LEAM © 2024

Sheet Stap 2 Register
C3: Stap 2: Risicoregister
B6: Risico-nummer | C6: Beschrijving van het risico Asset + faalmode | D6: Oorzaak / invloed van | E6: Omschrijving van het effect | F6: Kans | G6: per jaar | H6: Risico coördinaten per bedrijfswaarde | N6: Risico | O6: Risico uitgedrukt in Monetair Equivalent | P6: risicogetal | W6: Monetair | AC6: Risico per bedrijfswaarde | AI6: Beheersmaat-regel nodig? 1=ja leeg=nee | AK6: Opmerkingen | AM6: . | AS6: mon eq totaal
A7: mon eq voor vert zoeken | H7: ='Stap 1 Risicomatrix'!C7 -> Financieel | I7: ='Stap 1 Risicomatrix'!D7 -> Doelmatig | J7: ='Stap 1 Risicomatrix'!E7 -> Kwantiteit/Veilig | K7: ='Stap 1 Risicomatrix'!F7 -> Kwal leefomgeving | L7: ='Stap 1 Risicomatrix'!G7 -> Imago | M7: ='Stap 1 Risicomatrix'!H7 -> Circulair | P7: eur | Q7: com | R7: kwan | S7: kwal | T7: im | U7: con | V7: hoogste | W7: eur | X7: com | Y7: kwan | Z7: kwal | AA7: im | AB7: con | AC7: =H7 -> Financieel | AD7: Doelmatig | AE7: Kwantiteit/Veilig | AF7: Kwal leefomgeving | AG7: Imago | AH7: Circulair | AJ7: rekenkolom | AM7: O | AN7: ZH | AO7: H | AP7: M | AQ7: L | AR7: V | AS7: O | AT7: ZH | AU7: H | AV7: M | AW7: L | AX7: V
A8: =O8+B8 -> 1 | B8: 1 | F8: =IF(H8="","",VLOOKUP(H8,matrixtest,6,FALSE)) ->  | G8: =IF(H8="","",VLOOKUP(H8,matrixtest,5,FALSE)) ->  | N8: =IF(V8=0,"",VLOOKUP(V8,risico,2,FALSE)) ->  | O8: =SUM(W8:AB8) -> 0 | P8: =IF(H8="",0,VLOOKUP(H8,matrixtest,4,FALSE)) -> 0 | Q8: =IF(I8="",0,VLOOKUP(I8,matrixtest,4,FALSE)) -> 0 | R8: =IF(J8="",0,VLOOKUP(J8,matrixtest,4,FALSE)) -> 0 | S8: =IF(K8="",0,VLOOKUP(K8,matrixtest,4,FALSE)) -> 0 | T8: =IF(L8="",0,VLOOKUP(L8,matrixtest,4,FALSE)) -> 0 | U8: =IF(M8="",0,VLOOKUP(M8,matrixtest,4,FALSE)) -> 0 | V8: =MAX(P8:U8) -> 0 | W8: =IF(H8="",0,VLOOKUP(H8,matrixtest,2,FALSE)) -> 0 | X8: =IF(I8="",0,VLOOKUP(I8,matrixtest,2,FALSE)) -> 0 | Y8: =IF(J8="",0,VLOOKUP(J8,matrixtest,2,FALSE)) -> 0 | Z8: =IF(K8="",0,VLOOKUP(K8,matrixtest,2,FALSE)) -> 0 | AA8: =IF(L8="",0,VLOOKUP(L8,matrixtest,2,FALSE)) -> 0 | AB8: =IF(M8="",0,VLOOKUP(M8,matrixtest,2,FALSE)) -> 0 | AC8: =IF(H8="","",VLOOKUP(H8,matrixtest,3,FALSE)) ->  | AD8: =IF(I8="","",VLOOKUP(I8,matrixtest,3,FALSE)) ->  | AE8: =IF(J8="","",VLOOKUP(J8,matrixtest,3,FALSE)) ->  | AF8: =IF(K8="","",VLOOKUP(K8,matrixtest,3,FALSE)) ->  | AG8: =IF(L8="","",VLOOKUP(L8,matrixtest,3,FALSE)) ->  | AH8: =IF(M8="","",VLOOKUP(M8,matrixtest,3,FALSE)) ->  | AJ8: =AI8 -> 0 | AM8: =IF($N8=$AM$7,_xlfn.TEXTJOIN($AM$6,,$B8,$C8),"") ->  | AN8: =IF($N8=$AN$7,_xlfn.TEXTJOIN($AM$6,,$B8,$C8),"") ->  | AO8: =IF($N8=$AO$7,_xlfn.TEXTJOIN($AM$6,,$B8,$C8),"") ->  | AP8: =IF($N8=$AP$7,_xlfn.TEXTJOIN($AM$6,,$B8,$C8),"") ->  | AQ8: =IF($N8=$AQ$7,_xlfn.TEXTJOIN($AM$6,,$B8,$C8),"") ->  | AR8: =IF($N8=$AR$7,_xlfn.TEXTJOIN($AM$6,,$B8,$C8),"") ->  | AS8: =SUMIF($N$8:$N$107,AS7,$O$8:$O$107) -> 0 | AT8: 0 | AU8: 0 | AV8: 0 | AW8: 0 | AX8: 0
A9: =O9+B9 -> 2 | B9: 2 | O9: =SUM(W9:AB9) -> 0 | P9: 0 | Q9: 0 | R9: 0 | S9: 0 | T9: 0 | U9: 0 | V9: =MAX(P9:U9) -> 0 | W9: 0 | X9: 0 | Y9: 0 | Z9: 0 | AA9: 0 | AB9: 0 | AJ9: =AJ8+AI9 -> 0
A10: 3 | B10: 3 | O10: 0 | P10: 0 | Q10: 0 | R10: 0 | S10: 0 | T10: 0 | U10: 0 | V10: 0 | W10: 0 | X10: 0 | Y10: 0 | Z10: 0 | AA10: 0 | AB10: 0 | AJ10: =AJ9+AI10 -> 0
A11: 4 | B11: 4 | O11: 0 | P11: 0 | Q11: 0 | R11: 0 | S11: 0 | T11: 0 | U11: 0 | V11: =MAX(P11:U11) -> 0 | W11: 0 | X11: 0 | Y11: 0 | Z11: 0 | AA11: 0 | AB11: 0 | AJ11: 0
A12: 5 | B12: 5 | O12: 0 | P12: 0 | Q12: 0 | R12: 0 | S12: 0 | T12: 0 | U12: 0 | V12: 0 | W12: 0 | X12: 0 | Y12: 0 | Z12: 0 | AA12: 0 | AB12: 0 | AJ12: 0
A13: 6 | B13: 6 | O13: 0 | P13: 0 | Q13: 0 | R13: 0 | S13: 0 | T13: 0 | U13: 0 | V13: 0 | W13: 0 | X13: 0 | Y13: 0 | Z13: 0 | AA13: 0 | AB13: 0 | AJ13: 0
A14: 7 | B14: 7 | O14: 0 | P14: 0 | Q14: 0 | R14: 0 | S14: 0 | T14: 0 | U14: 0 | V14: 0 | W14: 0 | X14: 0 | Y14: 0 | Z14: 0 | AA14: 0 | AB14: 0 | AJ14: 0
A15: 8 | B15: 8 | O15: 0 | P15: 0 | Q15: 0 | R15: 0 | S15: 0 | T15: 0 | U15: 0 | V15: 0 | W15: 0 | X15: 0 | Y15: 0 | Z15: 0 | AA15: 0 | AB15: 0 | AJ15: 0
A16: 9 | B16: 9 | O16: =SUM(W16:AB16) -> 0 | P16: 0 | Q16: 0 | R16: 0 | S16: 0 | T16: 0 | U16: 0 | V16: 0 | W16: 0 | X16: 0 | Y16: 0 | Z16: 0 | AA16: 0 | AB16: 0 | AJ16: 0
A17: 10 | B17: 10 | O17: 0 | P17: 0 | Q17: 0 | R17: 0 | S17: 0 | T17: 0 | U17: 0 | V17: 0 | W17: 0 | X17: 0 | Y17: 0 | Z17: 0 | AA17: 0 | AB17: 0 | AJ17: 0
A18: 11 | B18: 11 | O18: 0 | P18: 0 | Q18: 0 | R18: 0 | S18: 0 | T18: 0 | U18: 0 | V18: 0 | W18: 0 | X18: 0 | Y18: 0 | Z18: 0 | AA18: 0 | AB18: 0 | AJ18: 0
A19: 12 | B19: 12 | O19: 0 | P19: 0 | Q19: 0 | R19: 0 | S19: 0 | T19: 0 | U19: 0 | V19: 0 | W19: 0 | X19: 0 | Y19: 0 | Z19: 0 | AA19: 0 | AB19: 0 | AJ19: 0
A20: 13 | B20: 13 | O20: 0 | P20: 0 | Q20: 0 | R20: 0 | S20: 0 | T20: 0 | U20: 0 | V20: 0 | W20: 0 | X20: 0 | Y20: 0 | Z20: 0 | AA20: 0 | AB20: 0 | AJ20: 0
A21: 14 | B21: 14 | O21: 0 | P21: 0 | Q21: 0 | R21: 0 | S21: 0 | T21: 0 | U21: 0 | V21: 0 | W21: 0 | X21: 0 | Y21: 0 | Z21: 0 | AA21: 0 | AB21: 0 | AJ21: 0
A22: 15 | B22: 15 | O22: 0 | P22: 0 | Q22: 0 | R22: 0 | S22: 0 | T22: 0 | U22: 0 | V22: 0 | W22: 0 | X22: 0 | Y22: 0 | Z22: 0 | AA22: 0 | AB22: 0 | AJ22: 0
A23: 16 | B23: 16 | O23: 0 | P23: 0 | Q23: 0 | R23: 0 | S23: 0 | T23: 0 | U23: 0 | V23: 0 | W23: 0 | X23: 0 | Y23: 0 | Z23: 0 | AA23: 0 | AB23: 0 | AJ23: 0
A24: 17 | B24: 17 | O24: 0 | P24: 0 | Q24: 0 | R24: 0 | S24: 0 | T24: 0 | U24: 0 | V24: 0 | W24: 0 | X24: 0 | Y24: 0 | Z24: 0 | AA24: 0 | AB24: 0 | AJ24: 0
A25: 18 | B25: 18 | O25: =SUM(W25:AB25) -> 0 | P25: 0 | Q25: 0 | R25: 0 | S25: 0 | T25: 0 | U25: 0 | V25: =MAX(P25:U25) -> 0 | W25: 0 | X25: 0 | Y25: 0 | Z25: 0 | AA25: 0 | AB25: 0 | AJ25: 0
A26: 19 | B26: 19 | O26: 0 | P26: 0 | Q26: 0 | R26: 0 | S26: 0 | T26: 0 | U26: 0 | V26: 0 | W26: 0 | X26: 0 | Y26: 0 | Z26: 0 | AA26: 0 | AB26: 0 | AJ26: 0
A27: 20 | B27: 20 | O27: 0 | P27: 0 | Q27: 0 | R27: 0 | S27: 0 | T27: 0 | U27: 0 | V27: 0 | W27: 0 | X27: 0 | Y27: 0 | Z27: 0 | AA27: 0 | AB27: 0 | AJ27: 0
A28: 21 | B28: 21 | O28: 0 | P28: 0 | Q28: 0 | R28: 0 | S28: 0 | T28: 0 | U28: 0 | V28: 0 | W28: 0 | X28: 0 | Y28: 0 | Z28: 0 | AA28: 0 | AB28: 0 | AJ28: 0
A29: 22 | B29: 22 | O29: 0 | P29: 0 | Q29: 0 | R29: 0 | S29: 0 | T29: 0 | U29: 0 | V29: 0 | W29: 0 | X29: 0 | Y29: 0 | Z29: 0 | AA29: 0 | AB29: 0 | AJ29: 0
A30: 23 | B30: 23 | O30: 0 | P30: 0 | Q30: 0 | R30: 0 | S30: 0 | T30: 0 | U30: 0 | V30: 0 | W30: 0 | X30: 0 | Y30: 0 | Z30: 0 | AA30: 0 | AB30: 0 | AJ30: 0
A31: 24 | B31: 24 | O31: 0 | P31: 0 | Q31: 0 | R31: 0 | S31: 0 | T31: 0 | U31: 0 | V31: 0 | W31: 0 | X31: 0 | Y31: 0 | Z31: 0 | AA31: 0 | AB31: 0 | AJ31: 0
A32: 25 | B32: 25 | O32: 0 | P32: 0 | Q32: 0 | R32: 0 | S32: 0 | T32: 0 | U32: 0 | V32: 0 | W32: 0 | X32: 0 | Y32: 0 | Z32: 0 | AA32: 0 | AB32: 0 | AJ32: 0
A33: 26 | B33: 26 | O33: 0 | P33: 0 | Q33: 0 | R33: 0 | S33: 0 | T33: 0 | U33: 0 | V33: 0 | W33: 0 | X33: 0 | Y33: 0 | Z33: 0 | AA33: 0 | AB33: 0 | AJ33: 0
A34: 27 | B34: 27 | O34: 0 | P34: 0 | Q34: 0 | R34: 0 | S34: 0 | T34: 0 | U34: 0 | V34: 0 | W34: 0 | X34: 0 | Y34: 0 | Z34: 0 | AA34: 0 | AB34: 0 | AJ34: 0
A35: 28 | B35: 28 | O35: 0 | P35: 0 | Q35: 0 | R35: 0 | S35: 0 | T35: 0 | U35: 0 | V35: 0 | W35: 0 | X35: 0 | Y35: 0 | Z35: 0 | AA35: 0 | AB35: 0 | AJ35: 0
A36: 29 | B36: 29 | O36: 0 | P36: 0 | Q36: 0 | R36: 0 | S36: 0 | T36: 0 | U36: 0 | V36: 0 | W36: 0 | X36: 0 | Y36: 0 | Z36: 0 | AA36: 0 | AB36: 0 | AJ36: 0
A37: 30 | B37: 30 | O37: 0 | P37: 0 | Q37: 0 | R37: 0 | S37: 0 | T37: 0 | U37: 0 | V37: 0 | W37: 0 | X37: 0 | Y37: 0 | Z37: 0 | AA37: 0 | AB37: 0 | AJ37: 0
A38: 31 | B38: 31 | O38: 0 | P38: 0 | Q38: 0 | R38: 0 | S38: 0 | T38: 0 | U38: 0 | V38: 0 | W38: 0 | X38: 0 | Y38: 0 | Z38: 0 | AA38: 0 | AB38: 0 | AJ38: 0
A39: 32 | B39: 32 | O39: 0 | P39: 0 | Q39: 0 | R39: 0 | S39: 0 | T39: 0 | U39: 0 | V39: 0 | W39: 0 | X39: 0 | Y39: 0 | Z39: 0 | AA39: 0 | AB39: 0 | AJ39: 0
A40: 33 | B40: 33 | F40: =IF(H40="","",VLOOKUP(H40,matrixtest,6,FALSE)) ->  | G40: =IF(H40="","",VLOOKUP(H40,matrixtest,5,FALSE)) ->  | N40: =IF(V40=0,"",VLOOKUP(V40,risico,2,FALSE)) ->  | O40: 0 | P40: =IF(H40="",0,VLOOKUP(H40,matrixtest,4,FALSE)) -> 0 | Q40: =IF(I40="",0,VLOOKUP(I40,matrixtest,4,FALSE)) -> 0 | R40: =IF(J40="",0,VLOOKUP(J40,matrixtest,4,FALSE)) -> 0 | S40: =IF(K40="",0,VLOOKUP(K40,matrixtest,4,FALSE)) -> 0 | T40: =IF(L40="",0,VLOOKUP(L40,matrixtest,4,FALSE)) -> 0 | U40: =IF(M40="",0,VLOOKUP(M40,matrixtest,4,FALSE)) -> 0 | V40: 0 | W40: =IF(H40="",0,VLOOKUP(H40,matrixtest,2,FALSE)) -> 0 | X40: =IF(I40="",0,VLOOKUP(I40,matrixtest,2,FALSE)) -> 0 | Y40: =IF(J40="",0,VLOOKUP(J40,matrixtest,2,FALSE)) -> 0 | Z40: =IF(K40="",0,VLOOKUP(K40,matrixtest,2,FALSE)) -> 0 | AA40: =IF(L40="",0,VLOOKUP(L40,matrixtest,2,FALSE)) -> 0 | AB40: =IF(M40="",0,VLOOKUP(M40,matrixtest,2,FALSE)) -> 0 | AC40: =IF(H40="","",VLOOKUP(H40,matrixtest,3,FALSE)) ->  | AD40: =IF(I40="","",VLOOKUP(I40,matrixtest,3,FALSE)) ->  | AE40: =IF(J40="","",VLOOKUP(J40,matrixtest,3,FALSE)) ->  | AF40: =IF(K40="","",VLOOKUP(K40,matrixtest,3,FALSE)) ->  | AG40: =IF(L40="","",VLOOKUP(L40,matrixtest,3,FALSE)) ->  | AH40: =IF(M40="","",VLOOKUP(M40,matrixtest,3,FALSE)) ->  | AJ40: 0 | AM40: =IF($N40=$AM$7,_xlfn.TEXTJOIN($AM$6,,$B40,$C40),"") ->  | AN40: =IF($N40=$AN$7,_xlfn.TEXTJOIN($AM$6,,$B40,$C40),"") ->  | AO40: =IF($N40=$AO$7,_xlfn.TEXTJOIN($AM$6,,$B40,$C40),"") ->  | AP40: =IF($N40=$AP$7,_xlfn.TEXTJOIN($AM$6,,$B40,$C40),"") ->  | AQ40: =IF($N40=$AQ$7,_xlfn.TEXTJOIN($AM$6,,$B40,$C40),"") ->  | AR40: =IF($N40=$AR$7,_xlfn.TEXTJOIN($AM$6,,$B40,$C40),"") -> 
A41: 34 | B41: 34 | O41: 0 | P41: 0 | Q41: 0 | R41: 0 | S41: 0 | T41: 0 | U41: 0 | V41: 0 | W41: 0 | X41: 0 | Y41: 0 | Z41: 0 | AA41: 0 | AB41: 0 | AJ41: 0
A42: 35 | B42: 35 | O42: 0 | P42: 0 | Q42: 0 | R42: 0 | S42: 0 | T42: 0 | U42: 0 | V42: 0 | W42: 0 | X42: 0 | Y42: 0 | Z42: 0 | AA42: 0 | AB42: 0 | AJ42: 0
A43: 36 | B43: 36 | O43: 0 | P43: 0 | Q43: 0 | R43: 0 | S43: 0 | T43: 0 | U43: 0 | V43: 0 | W43: 0 | X43: 0 | Y43: 0 | Z43: 0 | AA43: 0 | AB43: 0 | AJ43: 0
A44: 37 | B44: 37 | O44: 0 | P44: 0 | Q44: 0 | R44: 0 | S44: 0 | T44: 0 | U44: 0 | V44: 0 | W44: 0 | X44: 0 | Y44: 0 | Z44: 0 | AA44: 0 | AB44: 0 | AJ44: 0
A45: 38 | B45: 38 | O45: 0 | P45: 0 | Q45: 0 | R45: 0 | S45: 0 | T45: 0 | U45: 0 | V45: 0 | W45: 0 | X45: 0 | Y45: 0 | Z45: 0 | AA45: 0 | AB45: 0 | AJ45: 0
A46: 39 | B46: 39 | O46: 0 | P46: 0 | Q46: 0 | R46: 0 | S46: 0 | T46: 0 | U46: 0 | V46: 0 | W46: 0 | X46: 0 | Y46: 0 | Z46: 0 | AA46: 0 | AB46: 0 | AJ46: 0
A47: 40 | B47: 40 | O47: 0 | P47: 0 | Q47: 0 | R47: 0 | S47: 0 | T47: 0 | U47: 0 | V47: 0 | W47: 0 | X47: 0 | Y47: 0 | Z47: 0 | AA47: 0 | AB47: 0 | AJ47: 0
A48: 41 | B48: 41 | O48: 0 | P48: 0 | Q48: 0 | R48: 0 | S48: 0 | T48: 0 | U48: 0 | V48: 0 | W48: 0 | X48: 0 | Y48: 0 | Z48: 0 | AA48: 0 | AB48: 0 | AJ48: 0
A49: 42 | B49: 42 | O49: 0 | P49: 0 | Q49: 0 | R49: 0 | S49: 0 | T49: 0 | U49: 0 | V49: 0 | W49: 0 | X49: 0 | Y49: 0 | Z49: 0 | AA49: 0 | AB49: 0 | AJ49: 0
A50: 43 | B50: 43 | O50: 0 | P50: 0 | Q50: 0 | R50: 0 | S50: 0 | T50: 0 | U50: 0 | V50: 0 | W50: 0 | X50: 0 | Y50: 0 | Z50: 0 | AA50: 0 | AB50: 0 | AJ50: 0
A51: 44 | B51: 44 | O51: 0 | P51: 0 | Q51: 0 | R51: 0 | S51: 0 | T51: 0 | U51: 0 | V51: 0 | W51: 0 | X51: 0 | Y51: 0 | Z51: 0 | AA51: 0 | AB51: 0 | AJ51: 0
A52: 45 | B52: 45 | O52: 0 | P52: 0 | Q52: 0 | R52: 0 | S52: 0 | T52: 0 | U52: 0 | V52: 0 | W52: 0 | X52: 0 | Y52: 0 | Z52: 0 | AA52: 0 | AB52: 0 | AJ52: 0
A53: 46 | B53: 46 | O53: 0 | P53: 0 | Q53: 0 | R53: 0 | S53: 0 | T53: 0 | U53: 0 | V53: 0 | W53: 0 | X53: 0 | Y53: 0 | Z53: 0 | AA53: 0 | AB53: 0 | AJ53: 0
A54: 47 | B54: 47 | O54: 0 | P54: 0 | Q54: 0 | R54: 0 | S54: 0 | T54: 0 | U54: 0 | V54: 0 | W54: 0 | X54: 0 | Y54: 0 | Z54: 0 | AA54: 0 | AB54: 0 | AJ54: 0
A55: 48 | B55: 48 | O55: 0 | P55: 0 | Q55: 0 | R55: 0 | S55: 0 | T55: 0 | U55: 0 | V55: 0 | W55: 0 | X55: 0 | Y55: 0 | Z55: 0 | AA55: 0 | AB55: 0 | AJ55: 0
A56: 49 | B56: 49 | O56: 0 | P56: 0 | Q56: 0 | R56: 0 | S56: 0 | T56: 0 | U56: 0 | V56: 0 | W56: 0 | X56: 0 | Y56: 0 | Z56: 0 | AA56: 0 | AB56: 0 | AJ56: 0
A57: 50 | B57: 50 | O57: 0 | P57: 0 | Q57: 0 | R57: 0 | S57: 0 | T57: 0 | U57: 0 | V57: 0 | W57: 0 | X57: 0 | Y57: 0 | Z57: 0 | AA57: 0 | AB57: 0 | AJ57: 0
A58: 51 | B58: 51 | O58: 0 | P58: 0 | Q58: 0 | R58: 0 | S58: 0 | T58: 0 | U58: 0 | V58: 0 | W58: 0 | X58: 0 | Y58: 0 | Z58: 0 | AA58: 0 | AB58: 0 | AJ58: 0
A59: 52 | B59: 52 | O59: 0 | P59: 0 | Q59: 0 | R59: 0 | S59: 0 | T59: 0 | U59: 0 | V59: 0 | W59: 0 | X59: 0 | Y59: 0 | Z59: 0 | AA59: 0 | AB59: 0 | AJ59: 0
A60: 53 | B60: 53 | O60: 0 | P60: 0 | Q60: 0 | R60: 0 | S60: 0 | T60: 0 | U60: 0 | V60: 0 | W60: 0 | X60: 0 | Y60: 0 | Z60: 0 | AA60: 0 | AB60: 0 | AJ60: 0
A61: 54 | B61: 54 | O61: 0 | P61: 0 | Q61: 0 | R61: 0 | S61: 0 | T61: 0 | U61: 0 | V61: 0 | W61: 0 | X61: 0 | Y61: 0 | Z61: 0 | AA61: 0 | AB61: 0 | AJ61: 0
A62: 55 | B62: 55 | O62: 0 | P62: 0 | Q62: 0 | R62: 0 | S62: 0 | T62: 0 | U62: 0 | V62: 0 | W62: 0 | X62: 0 | Y62: 0 | Z62: 0 | AA62: 0 | AB62: 0 | AJ62: 0
A63: 56 | B63: 56 | O63: 0 | P63: 0 | Q63: 0 | R63: 0 | S63: 0 | T63: 0 | U63: 0 | V63: 0 | W63: 0 | X63: 0 | Y63: 0 | Z63: 0 | AA63: 0 | AB63: 0 | AJ63: 0
A64: 57 | B64: 57 | O64: 0 | P64: 0 | Q64: 0 | R64: 0 | S64: 0 | T64: 0 | U64: 0 | V64: 0 | W64: 0 | X64: 0 | Y64: 0 | Z64: 0 | AA64: 0 | AB64: 0 | AJ64: 0
A65: 58 | B65: 58 | O65: 0 | P65: 0 | Q65: 0 | R65: 0 | S65: 0 | T65: 0 | U65: 0 | V65: 0 | W65: 0 | X65: 0 | Y65: 0 | Z65: 0 | AA65: 0 | AB65: 0 | AJ65: 0
A66: 59 | B66: 59 | O66: 0 | P66: 0 | Q66: 0 | R66: 0 | S66: 0 | T66: 0 | U66: 0 | V66: 0 | W66: 0 | X66: 0 | Y66: 0 | Z66: 0 | AA66: 0 | AB66: 0 | AJ66: 0
A67: 60 | B67: 60 | O67: 0 | P67: 0 | Q67: 0 | R67: 0 | S67: 0 | T67: 0 | U67: 0 | V67: 0 | W67: 0 | X67: 0 | Y67: 0 | Z67: 0 | AA67: 0 | AB67: 0 | AJ67: 0
A68: 61 | B68: 61 | O68: 0 | P68: 0 | Q68: 0 | R68: 0 | S68: 0 | T68: 0 | U68: 0 | V68: 0 | W68: 0 | X68: 0 | Y68: 0 | Z68: 0 | AA68: 0 | AB68: 0 | AJ68: 0
A69: 62 | B69: 62 | O69: 0 | P69: 0 | Q69: 0 | R69: 0 | S69: 0 | T69: 0 | U69: 0 | V69: 0 | W69: 0 | X69: 0 | Y69: 0 | Z69: 0 | AA69: 0 | AB69: 0 | AJ69: 0
A70: 63 | B70: 63 | O70: 0 | P70: 0 | Q70: 0 | R70: 0 | S70: 0 | T70: 0 | U70: 0 | V70: 0 | W70: 0 | X70: 0 | Y70: 0 | Z70: 0 | AA70: 0 | AB70: 0 | AJ70: 0
A71: 64 | B71: 64 | O71: 0 | P71: 0 | Q71: 0 | R71: 0 | S71: 0 | T71: 0 | U71: 0 | V71: 0 | W71: 0 | X71: 0 | Y71: 0 | Z71: 0 | AA71: 0 | AB71: 0 | AJ71: 0
A72: 65 | B72: 65 | F72: =IF(H72="","",VLOOKUP(H72,matrixtest,6,FALSE)) ->  | G72: =IF(H72="","",VLOOKUP(H72,matrixtest,5,FALSE)) ->  | N72: =IF(V72=0,"",VLOOKUP(V72,risico,2,FALSE)) ->  | O72: 0 | P72: =IF(H72="",0,VLOOKUP(H72,matrixtest,4,FALSE)) -> 0 | Q72: =IF(I72="",0,VLOOKUP(I72,matrixtest,4,FALSE)) -> 0 | R72: =IF(J72="",0,VLOOKUP(J72,matrixtest,4,FALSE)) -> 0 | S72: =IF(K72="",0,VLOOKUP(K72,matrixtest,4,FALSE)) -> 0 | T72: =IF(L72="",0,VLOOKUP(L72,matrixtest,4,FALSE)) -> 0 | U72: =IF(M72="",0,VLOOKUP(M72,matrixtest,4,FALSE)) -> 0 | V72: 0 | W72: =IF(H72="",0,VLOOKUP(H72,matrixtest,2,FALSE)) -> 0 | X72: =IF(I72="",0,VLOOKUP(I72,matrixtest,2,FALSE)) -> 0 | Y72: =IF(J72="",0,VLOOKUP(J72,matrixtest,2,FALSE)) -> 0 | Z72: =IF(K72="",0,VLOOKUP(K72,matrixtest,2,FALSE)) -> 0 | AA72: =IF(L72="",0,VLOOKUP(L72,matrixtest,2,FALSE)) -> 0 | AB72: =IF(M72="",0,VLOOKUP(M72,matrixtest,2,FALSE)) -> 0 | AC72: =IF(H72="","",VLOOKUP(H72,matrixtest,3,FALSE)) ->  | AD72: =IF(I72="","",VLOOKUP(I72,matrixtest,3,FALSE)) ->  | AE72: =IF(J72="","",VLOOKUP(J72,matrixtest,3,FALSE)) ->  | AF72: =IF(K72="","",VLOOKUP(K72,matrixtest,3,FALSE)) ->  | AG72: =IF(L72="","",VLOOKUP(L72,matrixtest,3,FALSE)) ->  | AH72: =IF(M72="","",VLOOKUP(M72,matrixtest,3,FALSE)) ->  | AJ72: 0 | AM72: =IF($N72=$AM$7,_xlfn.TEXTJOIN($AM$6,,$B72,$C72),"") ->  | AN72: =IF($N72=$AN$7,_xlfn.TEXTJOIN($AM$6,,$B72,$C72),"") ->  | AO72: =IF($N72=$AO$7,_xlfn.TEXTJOIN($AM$6,,$B72,$C72),"") ->  | AP72: =IF($N72=$AP$7,_xlfn.TEXTJOIN($AM$6,,$B72,$C72),"") ->  | AQ72: =IF($N72=$AQ$7,_xlfn.TEXTJOIN($AM$6,,$B72,$C72),"") ->  | AR72: =IF($N72=$AR$7,_xlfn.TEXTJOIN($AM$6,,$B72,$C72),"") -> 
A73: =O73+B73 -> 66 | B73: 66 | O73: 0 | P73: 0 | Q73: 0 | R73: 0 | S73: 0 | T73: 0 | U73: 0 | V73: 0 | W73: 0 | X73: 0 | Y73: 0 | Z73: 0 | AA73: 0 | AB73: 0 | AJ73: 0
A74: 67 | B74: 67 | O74: 0 | P74: 0 | Q74: 0 | R74: 0 | S74: 0 | T74: 0 | U74: 0 | V74: 0 | W74: 0 | X74: 0 | Y74: 0 | Z74: 0 | AA74: 0 | AB74: 0 | AJ74: =AJ73+AI74 -> 0
A75: 68 | B75: 68 | O75: 0 | P75: 0 | Q75: 0 | R75: 0 | S75: 0 | T75: 0 | U75: 0 | V75: 0 | W75: 0 | X75: 0 | Y75: 0 | Z75: 0 | AA75: 0 | AB75: 0 | AJ75: 0
A76: 69 | B76: 69 | O76: 0 | P76: 0 | Q76: 0 | R76: 0 | S76: 0 | T76: 0 | U76: 0 | V76: 0 | W76: 0 | X76: 0 | Y76: 0 | Z76: 0 | AA76: 0 | AB76: 0 | AJ76: 0
A77: 70 | B77: 70 | O77: 0 | P77: 0 | Q77: 0 | R77: 0 | S77: 0 | T77: 0 | U77: 0 | V77: 0 | W77: 0 | X77: 0 | Y77: 0 | Z77: 0 | AA77: 0 | AB77: 0 | AJ77: 0
A78: 71 | B78: 71 | O78: 0 | P78: 0 | Q78: 0 | R78: 0 | S78: 0 | T78: 0 | U78: 0 | V78: 0 | W78: 0 | X78: 0 | Y78: 0 | Z78: 0 | AA78: 0 | AB78: 0 | AJ78: 0
A79: 72 | B79: 72 | O79: 0 | P79: 0 | Q79: 0 | R79: 0 | S79: 0 | T79: 0 | U79: 0 | V79: 0 | W79: 0 | X79: 0 | Y79: 0 | Z79: 0 | AA79: 0 | AB79: 0 | AJ79: 0
A80: 73 | B80: 73 | O80: 0 | P80: 0 | Q80: 0 | R80: 0 | S80: 0 | T80: 0 | U80: 0 | V80: 0 | W80: 0 | X80: 0 | Y80: 0 | Z80: 0 | AA80: 0 | AB80: 0 | AJ80: 0
A81: 74 | B81: 74 | O81: 0 | P81: 0 | Q81: 0 | R81: 0 | S81: 0 | T81: 0 | U81: 0 | V81: 0 | W81: 0 | X81: 0 | Y81: 0 | Z81: 0 | AA81: 0 | AB81: 0 | AJ81: 0
A82: 75 | B82: 75 | O82: 0 | P82: 0 | Q82: 0 | R82: 0 | S82: 0 | T82: 0 | U82: 0 | V82: 0 | W82: 0 | X82: 0 | Y82: 0 | Z82: 0 | AA82: 0 | AB82: 0 | AJ82: 0
A83: 76 | B83: 76 | O83: 0 | P83: 0 | Q83: 0 | R83: 0 | S83: 0 | T83: 0 | U83: 0 | V83: 0 | W83: 0 | X83: 0 | Y83: 0 | Z83: 0 | AA83: 0 | AB83: 0 | AJ83: 0
A84: 77 | B84: 77 | O84: 0 | P84: 0 | Q84: 0 | R84: 0 | S84: 0 | T84: 0 | U84: 0 | V84: 0 | W84: 0 | X84: 0 | Y84: 0 | Z84: 0 | AA84: 0 | AB84: 0 | AJ84: 0
A85: 78 | B85: 78 | O85: 0 | P85: 0 | Q85: 0 | R85: 0 | S85: 0 | T85: 0 | U85: 0 | V85: 0 | W85: 0 | X85: 0 | Y85: 0 | Z85: 0 | AA85: 0 | AB85: 0 | AJ85: 0
A86: 79 | B86: 79 | O86: 0 | P86: 0 | Q86: 0 | R86: 0 | S86: 0 | T86: 0 | U86: 0 | V86: 0 | W86: 0 | X86: 0 | Y86: 0 | Z86: 0 | AA86: 0 | AB86: 0 | AJ86: 0
A87: 80 | B87: 80 | O87: 0 | P87: 0 | Q87: 0 | R87: 0 | S87: 0 | T87: 0 | U87: 0 | V87: 0 | W87: 0 | X87: 0 | Y87: 0 | Z87: 0 | AA87: 0 | AB87: 0 | AJ87: 0
A88: 81 | B88: 81 | O88: 0 | P88: 0 | Q88: 0 | R88: 0 | S88: 0 | T88: 0 | U88: 0 | V88: 0 | W88: 0 | X88: 0 | Y88: 0 | Z88: 0 | AA88: 0 | AB88: 0 | AJ88: 0
A89: 82 | B89: 82 | O89: =SUM(W89:AB89) -> 0 | P89: 0 | Q89: 0 | R89: 0 | S89: 0 | T89: 0 | U89: 0 | V89: =MAX(P89:U89) -> 0 | W89: 0 | X89: 0 | Y89: 0 | Z89: 0 | AA89: 0 | AB89: 0 | AJ89: 0
A90: 83 | B90: 83 | O90: 0 | P90: 0 | Q90: 0 | R90: 0 | S90: 0 | T90: 0 | U90: 0 | V90: 0 | W90: 0 | X90: 0 | Y90: 0 | Z90: 0 | AA90: 0 | AB90: 0 | AJ90: 0
A91: 84 | B91: 84 | O91: 0 | P91: 0 | Q91: 0 | R91: 0 | S91: 0 | T91: 0 | U91: 0 | V91: 0 | W91: 0 | X91: 0 | Y91: 0 | Z91: 0 | AA91: 0 | AB91: 0 | AJ91: 0
A92: 85 | B92: 85 | O92: 0 | P92: 0 | Q92: 0 | R92: 0 | S92: 0 | T92: 0 | U92: 0 | V92: 0 | W92: 0 | X92: 0 | Y92: 0 | Z92: 0 | AA92: 0 | AB92: 0 | AJ92: 0
A93: 86 | B93: 86 | O93: 0 | P93: 0 | Q93: 0 | R93: 0 | S93: 0 | T93: 0 | U93: 0 | V93: 0 | W93: 0 | X93: 0 | Y93: 0 | Z93: 0 | AA93: 0 | AB93: 0 | AJ93: 0
A94: 87 | B94: 87 | O94: 0 | P94: 0 | Q94: 0 | R94: 0 | S94: 0 | T94: 0 | U94: 0 | V94: 0 | W94: 0 | X94: 0 | Y94: 0 | Z94: 0 | AA94: 0 | AB94: 0 | AJ94: 0
A95: 88 | B95: 88 | O95: 0 | P95: 0 | Q95: 0 | R95: 0 | S95: 0 | T95: 0 | U95: 0 | V95: 0 | W95: 0 | X95: 0 | Y95: 0 | Z95: 0 | AA95: 0 | AB95: 0 | AJ95: 0
A96: 89 | B96: 89 | O96: 0 | P96: 0 | Q96: 0 | R96: 0 | S96: 0 | T96: 0 | U96: 0 | V96: 0 | W96: 0 | X96: 0 | Y96: 0 | Z96: 0 | AA96: 0 | AB96: 0 | AJ96: 0
A97: 90 | B97: 90 | O97: 0 | P97: 0 | Q97: 0 | R97: 0 | S97: 0 | T97: 0 | U97: 0 | V97: 0 | W97: 0 | X97: 0 | Y97: 0 | Z97: 0 | AA97: 0 | AB97: 0 | AJ97: 0
A98: 91 | B98: 91 | O98: 0 | P98: 0 | Q98: 0 | R98: 0 | S98: 0 | T98: 0 | U98: 0 | V98: 0 | W98: 0 | X98: 0 | Y98: 0 | Z98: 0 | AA98: 0 | AB98: 0 | AJ98: 0
A99: 92 | B99: 92 | O99: 0 | P99: 0 | Q99: 0 | R99: 0 | S99: 0 | T99: 0 | U99: 0 | V99: 0 | W99: 0 | X99: 0 | Y99: 0 | Z99: 0 | AA99: 0 | AB99: 0 | AJ99: 0
A100: 93 | B100: 93 | O100: 0 | P100: 0 | Q100: 0 | R100: 0 | S100: 0 | T100: 0 | U100: 0 | V100: 0 | W100: 0 | X100: 0 | Y100: 0 | Z100: 0 | AA100: 0 | AB100: 0 | AJ100: 0
A101: 94 | B101: 94 | O101: 0 | P101: 0 | Q101: 0 | R101: 0 | S101: 0 | T101: 0 | U101: 0 | V101: 0 | W101: 0 | X101: 0 | Y101: 0 | Z101: 0 | AA101: 0 | AB101: 0 | AJ101: 0
A102: 95 | B102: 95 | O102: 0 | P102: 0 | Q102: 0 | R102: 0 | S102: 0 | T102: 0 | U102: 0 | V102: 0 | W102: 0 | X102: 0 | Y102: 0 | Z102: 0 | AA102: 0 | AB102: 0 | AJ102: 0
A103: 96 | B103: 96 | O103: 0 | P103: 0 | Q103: 0 | R103: 0 | S103: 0 | T103: 0 | U103: 0 | V103: 0 | W103: 0 | X103: 0 | Y103: 0 | Z103: 0 | AA103: 0 | AB103: 0 | AJ103: 0
A104: 97 | B104: 97 | G104: =IF(H104="","",VLOOKUP(H104,matrixtest,5,FALSE)) ->  | O104: 0 | P104: 0 | Q104: 0 | R104: 0 | S104: 0 | T104: 0 | U104: 0 | V104: 0 | W104: 0 | X104: 0 | Y104: 0 | Z104: 0 | AA104: 0 | AB104: 0 | AJ104: 0
A105: 98 | B105: 98 | O105: 0 | P105: 0 | Q105: 0 | R105: 0 | S105: 0 | T105: 0 | U105: 0 | V105: 0 | W105: 0 | X105: 0 | Y105: 0 | Z105: 0 | AA105: 0 | AB105: 0 | AJ105: 0
A106: 99 | B106: 99 | O106: 0 | P106: 0 | Q106: 0 | R106: 0 | S106: 0 | T106: 0 | U106: 0 | V106: 0 | W106: 0 | X106: 0 | Y106: 0 | Z106: 0 | AA106: 0 | AB106: 0 | AJ106: 0
A107: 100 | B107: 100 | O107: 0 | P107: 0 | Q107: 0 | R107: 0 | S107: 0 | T107: 0 | U107: 0 | V107: 0 | W107: 0 | X107: 0 | Y107: 0 | Z107: 0 | AA107: 0 | AB107: 0 | AJ107: 0
AK108: LEAM © 2024
W109: =SUM(W8:W107) -> 0 | X109: 0 | Y109: 0 | Z109: 0 | AA109: 0 | AB109: 0 | AH109: aantal maatregeln | AI109: =100-COUNTBLANK(AI8:AI107) -> 0 | AL109: aantal | AM109: =100-COUNTBLANK(AM8:AM107) -> 0 | AN109: 0 | AO109: 0 | AP109: 0 | AQ109: 0 | AR109: 0

Sheet Stap 3 Maatregelen
D3: Stap 3: Maatregelen
C6: Risico-nummer | D6: Risico | F6: Omschrijving van de maatregel | H6: Kans | I6: per jaar | J6: Risico coördinaten per bedrijfswaarde NA het nemen van de maatregel | P6: Risico | Q6: Toegevoegde waarde per Euro | S6: Nieuwe risico uitgedrukt in Monetair Equivalent | T6: risicogetal | AA6: Monetair | AG6: Risico per bedrijfswaarde NA het nemen van maatregelen | AM6: Wat verandert de maatregel aan het huidige risico? | AN6: .
A7: rekenkolom | B7: mon equ | E7: Effect van het risico | G7: Kosten van de maatregel | J7: ='Stap 1 Risicomatrix'!C7 -> Financieel | K7: ='Stap 1 Risicomatrix'!D7 -> Doelmatig | L7: ='Stap 1 Risicomatrix'!E7 -> Kwantiteit/Veilig | M7: ='Stap 1 Risicomatrix'!F7 -> Kwal leefomgeving | N7: ='Stap 1 Risicomatrix'!G7 -> Imago | O7: ='Stap 1 Risicomatrix'!H7 -> Circulair | R7: Oude ME | T7: eur | U7: com | V7: kwan | W7: kwal | X7: im | Y7: con | Z7: hoogste | AA7: eur | AB7: com | AC7: kwan | AD7: kwal | AE7: im | AF7: con | AG7: =J7 -> Financieel | AH7: Doelmatig | AI7: Kwantiteit/Veilig | AJ7: Kwal leefomgeving | AK7: Imago | AL7: Circulair | AO7: O | AP7: ZH | AQ7: H | AR7: M | AS7: L | AT7: V | AU7: O | AV7: ZH | AW7: H | AX7: M | AY7: L | AZ7: V
A8: 1 | B8: =_xlfn.XLOOKUP(A8,'Stap 2 Register'!$AJ$8:$AJ$107,'Stap 2 Register'!$A$8:$A$107) ->  | C8: =_xlfn.IFNA(_xlfn.XLOOKUP(B8,'Stap 2 Register'!$A$8:$A$107,'Stap 2 Register'!$B$8:$B$107),"") ->  | D8: =_xlfn.IFNA(_xlfn.XLOOKUP(B8,'Stap 2 Register'!$A$8:$A$107,'Stap 2 Register'!$C$8:$C$107),"") ->  | E8: =_xlfn.IFNA(_xlfn.XLOOKUP(B8,'Stap 2 Register'!$A$8:$A$107,'Stap 2 Register'!$E$8:$E$107),"") ->  | G8: 0 | H8: =IF(J8="","",VLOOKUP(J8,matrixtest,6,FALSE)) ->  | I8: =IF(J8="","",VLOOKUP(J8,matrixtest,5,FALSE)) ->  | P8: =IF(Z8=0,"",VLOOKUP(Z8,risico,2,FALSE)) ->  | Q8: =IF(G8=0,"",IF((R8-S8)<0,(G8/(R8-S8)),((R8-S8)/G8))) ->  | R8: =VLOOKUP($B8,'Stap 2 Register'!$A$8:$AK$107,15,0) ->  | S8: =SUM(AA8:AF8) -> 0 | T8: =IF(J8="",0,VLOOKUP(J8,matrixtest,4,FALSE)) -> 0 | U8: =IF(K8="",0,VLOOKUP(K8,matrixtest,4,FALSE)) -> 0 | V8: =IF(L8="",0,VLOOKUP(L8,matrixtest,4,FALSE)) -> 0 | W8: =IF(M8="",0,VLOOKUP(M8,matrixtest,4,FALSE)) -> 0 | X8: =IF(N8="",0,VLOOKUP(N8,matrixtest,4,FALSE)) -> 0 | Y8: =IF(O8="",0,VLOOKUP(O8,matrixtest,4,FALSE)) -> 0 | Z8: =MAX(T8:Y8) -> 0 | AA8: =IF(J8="",0,VLOOKUP(J8,matrixtest,2,FALSE)) -> 0 | AB8: =IF(K8="",0,VLOOKUP(K8,matrixtest,2,FALSE)) -> 0 | AC8: =IF(L8="",0,VLOOKUP(L8,matrixtest,2,FALSE)) -> 0 | AD8: =IF(M8="",0,VLOOKUP(M8,matrixtest,2,FALSE)) -> 0 | AE8: =IF(N8="",0,VLOOKUP(N8,matrixtest,2,FALSE)) -> 0 | AF8: =IF(O8="",0,VLOOKUP(O8,matrixtest,2,FALSE)) -> 0 | AG8: =IF(J8="","",VLOOKUP(J8,matrixtest,3,FALSE)) ->  | AH8: =IF(K8="","",VLOOKUP(K8,matrixtest,3,FALSE)) ->  | AI8: =IF(L8="","",VLOOKUP(L8,matrixtest,3,FALSE)) ->  | AJ8: =IF(M8="","",VLOOKUP(M8,matrixtest,3,FALSE)) ->  | AK8: =IF(N8="","",VLOOKUP(N8,matrixtest,3,FALSE)) ->  | AL8: =IF(O8="","",VLOOKUP(O8,matrixtest,3,FALSE)) ->  | AO8: =IF($P8=$AO$7,_xlfn.TEXTJOIN($AN$6,,$C8,$D8),"") ->  | AP8: =IF($P8=$AP$7,_xlfn.TEXTJOIN($AN$6,,$C8,$D8),"") ->  | AQ8: =IF($P8=$AQ$7,_xlfn.TEXTJOIN($AN$6,,$C8,$D8),"") ->  | AR8: =IF($P8=$AR$7,_xlfn.TEXTJOIN($AN$6,,$C8,$D8),"") ->  | AS8: =IF($P8=$AS$7,_xlfn.TEXTJOIN($AN$6,,$C8,$D8),"") ->  | AT8: =IF($P8=$AT$7,_xlfn.TEXTJOIN($AN$6,,$C8,$D8),"") ->  | AU8: =SUMIF($P$8:$P$107,AU7,$S$8:$S$107) -> 0 | AV8: 0 | AW8: 0 | AX8: 0 | AY8: 0 | AZ8: 0
A9: 2 | B9: =_xlfn.XLOOKUP(A9,'Stap 2 Register'!$AJ$8:$AJ$107,'Stap 2 Register'!$A$8:$A$107) ->  | C9: =_xlfn.IFNA(_xlfn.XLOOKUP(B9,'Stap 2 Register'!$A$8:$A$107,'Stap 2 Register'!$B$8:$B$107),"") ->  | D9: =_xlfn.IFNA(_xlfn.XLOOKUP(B9,'Stap 2 Register'!$A$8:$A$107,'Stap 2 Register'!$C$8:$C$107),"") ->  | E9: =_xlfn.IFNA(_xlfn.XLOOKUP(B9,'Stap 2 Register'!$A$8:$A$107,'Stap 2 Register'!$E$8:$E$107),"") ->  | G9: 0 | Q9: =IF(G9=0,"",IF((R9-S9)<0,(G9/(R9-S9)),((R9-S9)/G9))) ->  | R9: =VLOOKUP($B9,'Stap 2 Register'!$A$8:$AK$107,15,0) ->  | S9: =SUM(AA9:AF9) -> 0 | T9: 0 | U9: 0 | V9: 0 | W9: 0 | X9: 0 | Y9: 0 | Z9: =MAX(T9:Y9) -> 0 | AA9: 0 | AB9: 0 | AC9: 0 | AD9: 0 | AE9: 0 | AF9: 0 | AO9: =IF($P9=$AO$7,_xlfn.TEXTJOIN($AN$6,,$C9,$D9),"") ->  | AP9: =IF($P9=$AP$7,_xlfn.TEXTJOIN($AN$6,,$C9,$D9),"") ->  | AQ9: =IF($P9=$AQ$7,_xlfn.TEXTJOIN($AN$6,,$C9,$D9),"") ->  | AR9: =IF($P9=$AR$7,_xlfn.TEXTJOIN($AN$6,,$C9,$D9),"") ->  | AS9: =IF($P9=$AS$7,_xlfn.TEXTJOIN($AN$6,,$C9,$D9),"") ->  | AT9: =IF($P9=$AT$7,_xlfn.TEXTJOIN($AN$6,,$C9,$D9),"") -> 
A10: 3 | B10: =_xlfn.XLOOKUP(A10,'Stap 2 Register'!$AJ$8:$AJ$107,'Stap 2 Register'!$A$8:$A$107) ->  | C10: =_xlfn.IFNA(_xlfn.XLOOKUP(B10,'Stap 2 Register'!$A$8:$A$107,'Stap 2 Register'!$B$8:$B$107),"") ->  | D10: =_xlfn.IFNA(_xlfn.XLOOKUP(B10,'Stap 2 Register'!$A$8:$A$107,'Stap 2 Register'!$C$8:$C$107),"") ->  | E10: =_xlfn.IFNA(_xlfn.XLOOKUP(B10,'Stap 2 Register'!$A$8:$A$107,'Stap 2 Register'!$E$8:$E$107),"") ->  | G10: 0 | R10: =VLOOKUP($B10,'Stap 2 Register'!$A$8:$AK$107,15,0) ->  | S10: 0 | T10: 0 | U10: 0 | V10: 0 | W10: 0 | X10: 0 | Y10: 0 | Z10: 0 | AA10: 0 | AB10: 0 | AC10: 0 | AD10: 0 | AE10: 0 | AF10: 0
A11: 4 | B11: =_xlfn.XLOOKUP(A11,'Stap 2 Register'!$AJ$8:$AJ$107,'Stap 2 Register'!$A$8:$A$107) ->  | C11: =_xlfn.IFNA(_xlfn.XLOOKUP(B11,'Stap 2 Register'!$A$8:$A$107,'Stap 2 Register'!$B$8:$B$107),"") ->  | D11: =_xlfn.IFNA(_xlfn.XLOOKUP(B11,'Stap 2 Register'!$A$8:$A$107,'Stap 2 Register'!$C$8:$C$107),"") ->  | E11: =_xlfn.IFNA(_xlfn.XLOOKUP(B11,'Stap 2 Register'!$A$8:$A$107,'Stap 2 Register'!$E$8:$E$107),"") ->  | G11: 0 | R11: =VLOOKUP($B11,'Stap 2 Register'!$A$8:$AK$107,15,0) ->  | S11: 0 | T11: 0 | U11: 0 | V11: 0 | W11: 0 | X11: 0 | Y11: 0 | Z11: 0 | AA11: 0 | AB11: 0 | AC11: 0 | AD11: 0 | AE11: 0 | AF11: 0
A12: 5 | B12: =_xlfn.XLOOKUP(A12,'Stap 2 Register'!$AJ$8:$AJ$107,'Stap 2 Register'!$A$8:$A$107) ->  | C12: =_xlfn.IFNA(_xlfn.XLOOKUP(B12,'Stap 2 Register'!$A$8:$A$107,'Stap 2 Register'!$B$8:$B$107),"") ->  | D12: =_xlfn.IFNA(_xlfn.XLOOKUP(B12,'Stap 2 Register'!$A$8:$A$107,'Stap 2 Register'!$C$8:$C$107),"") ->  | E12: =_xlfn.IFNA(_xlfn.XLOOKUP(B12,'Stap 2 Register'!$A$8:$A$107,'Stap 2 Register'!$E$8:$E$107),"") ->  | G12: 0 | R12: =VLOOKUP($B12,'Stap 2 Register'!$A$8:$AK$107,15,0) ->  | S12: 0 | T12: 0 | U12: 0 | V12: 0 | W12: 0 | X12: 0 | Y12: 0 | Z12: 0 | AA12: 0 | AB12: 0 | AC12: 0 | AD12: 0 | AE12: 0 | AF12: 0
A13: 6 | B13: =_xlfn.XLOOKUP(A13,'Stap 2 Register'!$AJ$8:$AJ$107,'Stap 2 Register'!$A$8:$A$107) ->  | C13: =_xlfn.IFNA(_xlfn.XLOOKUP(B13,'Stap 2 Register'!$A$8:$A$107,'Stap 2 Register'!$B$8:$B$107),"") ->  | D13: =_xlfn.IFNA(_xlfn.XLOOKUP(B13,'Stap 2 Register'!$A$8:$A$107,'Stap 2 Register'!$C$8:$C$107),"") ->  | E13: =_xlfn.IFNA(_xlfn.XLOOKUP(B13,'Stap 2 Register'!$A$8:$A$107,'Stap 2 Register'!$E$8:$E$107),"") ->  | G13: 0 | R13: =VLOOKUP($B13,'Stap 2 Register'!$A$8:$AK$107,15,0) ->  | S13: 0 | T13: 0 | U13: 0 | V13: 0 | W13: 0 | X13: 0 | Y13: 0 | Z13: 0 | AA13: 0 | AB13: 0 | AC13: 0 | AD13: 0 | AE13: 0 | AF13: 0
A14: 7 | B14: =_xlfn.XLOOKUP(A14,'Stap 2 Register'!$AJ$8:$AJ$107,'Stap 2 Register'!$A$8:$A$107) ->  | C14: =_xlfn.IFNA(_xlfn.XLOOKUP(B14,'Stap 2 Register'!$A$8:$A$107,'Stap 2 Register'!$B$8:$B$107),"") ->  | D14: =_xlfn.IFNA(_xlfn.XLOOKUP(B14,'Stap 2 Register'!$A$8:$A$107,'Stap 2 Register'!$C$8:$C$107),"") ->  | E14: =_xlfn.IFNA(_xlfn.XLOOKUP(B14,'Stap 2 Register'!$A$8:$A$107,'Stap 2 Register'!$E$8:$E$107),"") ->  | G14: 0 | R14: =VLOOKUP($B14,'Stap 2 Register'!$A$8:$AK$107,15,0) ->  | S14: 0 | T14: 0 | U14: 0 | V14: 0 | W14: 0 | X14: 0 | Y14: 0 | Z14: 0 | AA14: 0 | AB14: 0 | AC14: 0 | AD14: 0 | AE14: 0 | AF14: 0
A15: 8 | B15: =_xlfn.XLOOKUP(A15,'Stap 2 Register'!$AJ$8:$AJ$107,'Stap 2 Register'!$A$8:$A$107) ->  | C15: =_xlfn.IFNA(_xlfn.XLOOKUP(B15,'Stap 2 Register'!$A$8:$A$107,'Stap 2 Register'!$B$8:$B$107),"") ->  | D15: =_xlfn.IFNA(_xlfn.XLOOKUP(B15,'Stap 2 Register'!$A$8:$A$107,'Stap 2 Register'!$C$8:$C$107),"") ->  | E15: =_xlfn.IFNA(_xlfn.XLOOKUP(B15,'Stap 2 Register'!$A$8:$A$107,'Stap 2 Register'!$E$8:$E$107),"") ->  | G15: 0 | R15: =VLOOKUP($B15,'Stap 2 Register'!$A$8:$AK$107,15,0) ->  | S15: 0 | T15: 0 | U15: 0 | V15: 0 | W15: 0 | X15: 0 | Y15: 0 | Z15: 0 | AA15: 0 | AB15: 0 | AC15: 0 | AD15: 0 | AE15: 0 | AF15: 0
A16: 9 | B16: =_xlfn.XLOOKUP(A16,'Stap 2 Register'!$AJ$8:$AJ$107,'Stap 2 Register'!$A$8:$A$107) ->  | C16: =_xlfn.IFNA(_xlfn.XLOOKUP(B16,'Stap 2 Register'!$A$8:$A$107,'Stap 2 Register'!$B$8:$B$107),"") ->  | D16: =_xlfn.IFNA(_xlfn.XLOOKUP(B16,'Stap 2 Register'!$A$8:$A$107,'Stap 2 Register'!$C$8:$C$107),"") ->  | E16: =_xlfn.IFNA(_xlfn.XLOOKUP(B16,'Stap 2 Register'!$A$8:$A$107,'Stap 2 Register'!$E$8:$E$107),"") ->  | G16: 0 | R16: =VLOOKUP($B16,'Stap 2 Register'!$A$8:$AK$107,15,0) ->  | S16: 0 | T16: 0 | U16: 0 | V16: 0 | W16: 0 | X16: 0 | Y16: 0 | Z16: 0 | AA16: 0 | AB16: 0 | AC16: 0 | AD16: 0 | AE16: 0 | AF16: 0
A17: 10 | B17: =_xlfn.XLOOKUP(A17,'Stap 2 Register'!$AJ$8:$AJ$107,'Stap 2 Register'!$A$8:$A$107) ->  | C17: =_xlfn.IFNA(_xlfn.XLOOKUP(B17,'Stap 2 Register'!$A$8:$A$107,'Stap 2 Register'!$B$8:$B$107),"") ->  | D17: =_xlfn.IFNA(_xlfn.XLOOKUP(B17,'Stap 2 Register'!$A$8:$A$107,'Stap 2 Register'!$C$8:$C$107),"") ->  | E17: =_xlfn.IFNA(_xlfn.XLOOKUP(B17,'Stap 2 Register'!$A$8:$A$107,'Stap 2 Register'!$E$8:$E$107),"") ->  | G17: 0 | R17: =VLOOKUP($B17,'Stap 2 Register'!$A$8:$AK$107,15,0) ->  | S17: 0 | T17: 0 | U17: 0 | V17: 0 | W17: 0 | X17: 0 | Y17: 0 | Z17: 0 | AA17: 0 | AB17: 0 | AC17: 0 | AD17: 0 | AE17: 0 | AF17: 0
A18: 11 | B18: =_xlfn.XLOOKUP(A18,'Stap 2 Register'!$AJ$8:$AJ$107,'Stap 2 Register'!$A$8:$A$107) ->  | C18: =_xlfn.IFNA(_xlfn.XLOOKUP(B18,'Stap 2 Register'!$A$8:$A$107,'Stap 2 Register'!$B$8:$B$107),"") ->  | D18: =_xlfn.IFNA(_xlfn.XLOOKUP(B18,'Stap 2 Register'!$A$8:$A$107,'Stap 2 Register'!$C$8:$C$107),"") ->  | E18: =_xlfn.IFNA(_xlfn.XLOOKUP(B18,'Stap 2 Register'!$A$8:$A$107,'Stap 2 Register'!$E$8:$E$107),"") ->  | G18: 0 | R18: =VLOOKUP($B18,'Stap 2 Register'!$A$8:$AK$107,15,0) ->  | S18: 0 | T18: 0 | U18: 0 | V18: 0 | W18: 0 | X18: 0 | Y18: 0 | Z18: 0 | AA18: 0 | AB18: 0 | AC18: 0 | AD18: 0 | AE18: 0 | AF18: 0
A19: 12 | B19: =_xlfn.XLOOKUP(A19,'Stap 2 Register'!$AJ$8:$AJ$107,'Stap 2 Register'!$A$8:$A$107) ->  | C19: =_xlfn.IFNA(_xlfn.XLOOKUP(B19,'Stap 2 Register'!$A$8:$A$107,'Stap 2 Register'!$B$8:$B$107),"") ->  | D19: =_xlfn.IFNA(_xlfn.XLOOKUP(B19,'Stap 2 Register'!$A$8:$A$107,'Stap 2 Register'!$C$8:$C$107),"") ->  | E19: =_xlfn.IFNA(_xlfn.XLOOKUP(B19,'Stap 2 Register'!$A$8:$A$107,'Stap 2 Register'!$E$8:$E$107),"") ->  | G19: 0 | R19: =VLOOKUP($B19,'Stap 2 Register'!$A$8:$AK$107,15,0) ->  | S19: 0 | T19: 0 | U19: 0 | V19: 0 | W19: 0 | X19: 0 | Y19: 0 | Z19: 0 | AA19: 0 | AB19: 0 | AC19: 0 | AD19: 0 | AE19: 0 | AF19: 0
A20: 13 | B20: =_xlfn.XLOOKUP(A20,'Stap 2 Register'!$AJ$8:$AJ$107,'Stap 2 Register'!$A$8:$A$107) ->  | C20: =_xlfn.IFNA(_xlfn.XLOOKUP(B20,'Stap 2 Register'!$A$8:$A$107,'Stap 2 Register'!$B$8:$B$107),"") ->  | D20: =_xlfn.IFNA(_xlfn.XLOOKUP(B20,'Stap 2 Register'!$A$8:$A$107,'Stap 2 Register'!$C$8:$C$107),"") ->  | E20: =_xlfn.IFNA(_xlfn.XLOOKUP(B20,'Stap 2 Register'!$A$8:$A$107,'Stap 2 Register'!$E$8:$E$107),"") ->  | G20: 0 | R20: =VLOOKUP($B20,'Stap 2 Register'!$A$8:$AK$107,15,0) ->  | S20: 0 | T20: 0 | U20: 0 | V20: 0 | W20: 0 | X20: 0 | Y20: 0 | Z20: 0 | AA20: 0 | AB20: 0 | AC20: 0 | AD20: 0 | AE20: 0 | AF20: 0
A21: 14 | B21: =_xlfn.XLOOKUP(A21,'Stap 2 Register'!$AJ$8:$AJ$107,'Stap 2 Register'!$A$8:$A$107) ->  | C21: =_xlfn.IFNA(_xlfn.XLOOKUP(B21,'Stap 2 Register'!$A$8:$A$107,'Stap 2 Register'!$B$8:$B$107),"") ->  | D21: =_xlfn.IFNA(_xlfn.XLOOKUP(B21,'Stap 2 Register'!$A$8:$A$107,'Stap 2 Register'!$C$8:$C$107),"") ->  | E21: =_xlfn.IFNA(_xlfn.XLOOKUP(B21,'Stap 2 Register'!$A$8:$A$107,'Stap 2 Register'!$E$8:$E$107),"") ->  | G21: 0 | R21: =VLOOKUP($B21,'Stap 2 Register'!$A$8:$AK$107,15,0) ->  | S21: 0 | T21: 0 | U21: 0 | V21: 0 | W21: 0 | X21: 0 | Y21: 0 | Z21: 0 | AA21: 0 | AB21: 0 | AC21: 0 | AD21: 0 | AE21: 0 | AF21: 0
A22: 15 | B22: =_xlfn.XLOOKUP(A22,'Stap 2 Register'!$AJ$8:$AJ$107,'Stap 2 Register'!$A$8:$A$107) ->  | C22: =_xlfn.IFNA(_xlfn.XLOOKUP(B22,'Stap 2 Register'!$A$8:$A$107,'Stap 2 Register'!$B$8:$B$107),"") ->  | D22: =_xlfn.IFNA(_xlfn.XLOOKUP(B22,'Stap 2 Register'!$A$8:$A$107,'Stap 2 Register'!$C$8:$C$107),"") ->  | E22: =_xlfn.IFNA(_xlfn.XLOOKUP(B22,'Stap 2 Register'!$A$8:$A$107,'Stap 2 Register'!$E$8:$E$107),"") ->  | G22: 0 | R22: =VLOOKUP($B22,'Stap 2 Register'!$A$8:$AK$107,15,0) ->  | S22: 0 | T22: 0 | U22: 0 | V22: 0 | W22: 0 | X22: 0 | Y22: 0 | Z22: 0 | AA22: 0 | AB22: 0 | AC22: 0 | AD22: 0 | AE22: 0 | AF22: 0
A23: 16 | B23: =_xlfn.XLOOKUP(A23,'Stap 2 Register'!$AJ$8:$AJ$107,'Stap 2 Register'!$A$8:$A$107) ->  | C23: =_xlfn.IFNA(_xlfn.XLOOKUP(B23,'Stap 2 Register'!$A$8:$A$107,'Stap 2 Register'!$B$8:$B$107),"") ->  | D23: =_xlfn.IFNA(_xlfn.XLOOKUP(B23,'Stap 2 Register'!$A$8:$A$107,'Stap 2 Register'!$C$8:$C$107),"") ->  | E23: =_xlfn.IFNA(_xlfn.XLOOKUP(B23,'Stap 2 Register'!$A$8:$A$107,'Stap 2 Register'!$E$8:$E$107),"") ->  | G23: 0 | R23: =VLOOKUP($B23,'Stap 2 Register'!$A$8:$AK$107,15,0) ->  | S23: 0 | T23: 0 | U23: 0 | V23: 0 | W23: 0 | X23: 0 | Y23: 0 | Z23: 0 | AA23: 0 | AB23: 0 | AC23: 0 | AD23: 0 | AE23: 0 | AF23: 0
A24: 17 | B24: =_xlfn.XLOOKUP(A24,'Stap 2 Register'!$AJ$8:$AJ$107,'Stap 2 Register'!$A$8:$A$107) ->  | C24: =_xlfn.IFNA(_xlfn.XLOOKUP(B24,'Stap 2 Register'!$A$8:$A$107,'Stap 2 Register'!$B$8:$B$107),"") ->  | D24: =_xlfn.IFNA(_xlfn.XLOOKUP(B24,'Stap 2 Register'!$A$8:$A$107,'Stap 2 Register'!$C$8:$C$107),"") ->  | E24: =_xlfn.IFNA(_xlfn.XLOOKUP(B24,'Stap 2 Register'!$A$8:$A$107,'Stap 2 Register'!$E$8:$E$107),"") ->  | G24: 0 | R24: =VLOOKUP($B24,'Stap 2 Register'!$A$8:$AK$107,15,0) ->  | S24: 0 | T24: 0 | U24: 0 | V24: 0 | W24: 0 | X24: 0 | Y24: 0 | Z24: 0 | AA24: 0 | AB24: 0 | AC24: 0 | AD24: 0 | AE24: 0 | AF24: 0
A25: 18 | B25: =_xlfn.XLOOKUP(A25,'Stap 2 Register'!$AJ$8:$AJ$107,'Stap 2 Register'!$A$8:$A$107) ->  | C25: =_xlfn.IFNA(_xlfn.XLOOKUP(B25,'Stap 2 Register'!$A$8:$A$107,'Stap 2 Register'!$B$8:$B$107),"") ->  | D25: =_xlfn.IFNA(_xlfn.XLOOKUP(B25,'Stap 2 Register'!$A$8:$A$107,'Stap 2 Register'!$C$8:$C$107),"") ->  | E25: =_xlfn.IFNA(_xlfn.XLOOKUP(B25,'Stap 2 Register'!$A$8:$A$107,'Stap 2 Register'!$E$8:$E$107),"") ->  | G25: 0 | R25: =VLOOKUP($B25,'Stap 2 Register'!$A$8:$AK$107,15,0) ->  | S25: 0 | T25: 0 | U25: 0 | V25: 0 | W25: 0 | X25: 0 | Y25: 0 | Z25: 0 | AA25: 0 | AB25: 0 | AC25: 0 | AD25: 0 | AE25: 0 | AF25: 0
A26: 19 | B26: =_xlfn.XLOOKUP(A26,'Stap 2 Register'!$AJ$8:$AJ$107,'Stap 2 Register'!$A$8:$A$107) ->  | C26: =_xlfn.IFNA(_xlfn.XLOOKUP(B26,'Stap 2 Register'!$A$8:$A$107,'Stap 2 Register'!$B$8:$B$107),"") ->  | D26: =_xlfn.IFNA(_xlfn.XLOOKUP(B26,'Stap 2 Register'!$A$8:$A$107,'Stap 2 Register'!$C$8:$C$107),"") ->  | E26: =_xlfn.IFNA(_xlfn.XLOOKUP(B26,'Stap 2 Register'!$A$8:$A$107,'Stap 2 Register'!$E$8:$E$107),"") ->  | G26: 0 | R26: =VLOOKUP($B26,'Stap 2 Register'!$A$8:$AK$107,15,0) ->  | S26: 0 | T26: 0 | U26: 0 | V26: 0 | W26: 0 | X26: 0 | Y26: 0 | Z26: 0 | AA26: 0 | AB26: 0 | AC26: 0 | AD26: 0 | AE26: 0 | AF26: 0
A27: 20 | B27: =_xlfn.XLOOKUP(A27,'Stap 2 Register'!$AJ$8:$AJ$107,'Stap 2 Register'!$A$8:$A$107) ->  | C27: =_xlfn.IFNA(_xlfn.XLOOKUP(B27,'Stap 2 Register'!$A$8:$A$107,'Stap 2 Register'!$B$8:$B$107),"") ->  | D27: =_xlfn.IFNA(_xlfn.XLOOKUP(B27,'Stap 2 Register'!$A$8:$A$107,'Stap 2 Register'!$C$8:$C$107),"") ->  | E27: =_xlfn.IFNA(_xlfn.XLOOKUP(B27,'Stap 2 Register'!$A$8:$A$107,'Stap 2 Register'!$E$8:$E$107),"") ->  | G27: 0 | R27: =VLOOKUP($B27,'Stap 2 Register'!$A$8:$AK$107,15,0) ->  | S27: 0 | T27: 0 | U27: 0 | V27: 0 | W27: 0 | X27: 0 | Y27: 0 | Z27: 0 | AA27: 0 | AB27: 0 | AC27: 0 | AD27: 0 | AE27: 0 | AF27: 0
A28: 21 | B28: =_xlfn.XLOOKUP(A28,'Stap 2 Register'!$AJ$8:$AJ$107,'Stap 2 Register'!$A$8:$A$107) ->  | C28: =_xlfn.IFNA(_xlfn.XLOOKUP(B28,'Stap 2 Register'!$A$8:$A$107,'Stap 2 Register'!$B$8:$B$107),"") ->  | D28: =_xlfn.IFNA(_xlfn.XLOOKUP(B28,'Stap 2 Register'!$A$8:$A$107,'Stap 2 Register'!$C$8:$C$107),"") ->  | E28: =_xlfn.IFNA(_xlfn.XLOOKUP(B28,'Stap 2 Register'!$A$8:$A$107,'Stap 2 Register'!$E$8:$E$107),"") ->  | G28: 0 | R28: =VLOOKUP($B28,'Stap 2 Register'!$A$8:$AK$107,15,0) ->  | S28: 0 | T28: 0 | U28: 0 | V28: 0 | W28: 0 | X28: 0 | Y28: 0 | Z28: 0 | AA28: 0 | AB28: 0 | AC28: 0 | AD28: 0 | AE28: 0 | AF28: 0
A29: 22 | B29: =_xlfn.XLOOKUP(A29,'Stap 2 Register'!$AJ$8:$AJ$107,'Stap 2 Register'!$A$8:$A$107) ->  | C29: =_xlfn.IFNA(_xlfn.XLOOKUP(B29,'Stap 2 Register'!$A$8:$A$107,'Stap 2 Register'!$B$8:$B$107),"") ->  | D29: =_xlfn.IFNA(_xlfn.XLOOKUP(B29,'Stap 2 Register'!$A$8:$A$107,'Stap 2 Register'!$C$8:$C$107),"") ->  | E29: =_xlfn.IFNA(_xlfn.XLOOKUP(B29,'Stap 2 Register'!$A$8:$A$107,'Stap 2 Register'!$E$8:$E$107),"") ->  | G29: 0 | R29: =VLOOKUP($B29,'Stap 2 Register'!$A$8:$AK$107,15,0) ->  | S29: 0 | T29: 0 | U29: 0 | V29: 0 | W29: 0 | X29: 0 | Y29: 0 | Z29: 0 | AA29: 0 | AB29: 0 | AC29: 0 | AD29: 0 | AE29: 0 | AF29: 0
A30: 23 | B30: =_xlfn.XLOOKUP(A30,'Stap 2 Register'!$AJ$8:$AJ$107,'Stap 2 Register'!$A$8:$A$107) ->  | C30: =_xlfn.IFNA(_xlfn.XLOOKUP(B30,'Stap 2 Register'!$A$8:$A$107,'Stap 2 Register'!$B$8:$B$107),"") ->  | D30: =_xlfn.IFNA(_xlfn.XLOOKUP(B30,'Stap 2 Register'!$A$8:$A$107,'Stap 2 Register'!$C$8:$C$107),"") ->  | E30: =_xlfn.IFNA(_xlfn.XLOOKUP(B30,'Stap 2 Register'!$A$8:$A$107,'Stap 2 Register'!$E$8:$E$107),"") ->  | G30: 0 | R30: =VLOOKUP($B30,'Stap 2 Register'!$A$8:$AK$107,15,0) ->  | S30: 0 | T30: 0 | U30: 0 | V30: 0 | W30: 0 | X30: 0 | Y30: 0 | Z30: 0 | AA30: 0 | AB30: 0 | AC30: 0 | AD30: 0 | AE30: 0 | AF30: 0
A31: 24 | B31: =_xlfn.XLOOKUP(A31,'Stap 2 Register'!$AJ$8:$AJ$107,'Stap 2 Register'!$A$8:$A$107) ->  | C31: =_xlfn.IFNA(_xlfn.XLOOKUP(B31,'Stap 2 Register'!$A$8:$A$107,'Stap 2 Register'!$B$8:$B$107),"") ->  | D31: =_xlfn.IFNA(_xlfn.XLOOKUP(B31,'Stap 2 Register'!$A$8:$A$107,'Stap 2 Register'!$C$8:$C$107),"") ->  | E31: =_xlfn.IFNA(_xlfn.XLOOKUP(B31,'Stap 2 Register'!$A$8:$A$107,'Stap 2 Register'!$E$8:$E$107),"") ->  | G31: 0 | R31: =VLOOKUP($B31,'Stap 2 Register'!$A$8:$AK$107,15,0) ->  | S31: 0 | T31: 0 | U31: 0 | V31: 0 | W31: 0 | X31: 0 | Y31: 0 | Z31: 0 | AA31: 0 | AB31: 0 | AC31: 0 | AD31: 0 | AE31: 0 | AF31: 0
A32: 25 | B32: =_xlfn.XLOOKUP(A32,'Stap 2 Register'!$AJ$8:$AJ$107,'Stap 2 Register'!$A$8:$A$107) ->  | C32: =_xlfn.IFNA(_xlfn.XLOOKUP(B32,'Stap 2 Register'!$A$8:$A$107,'Stap 2 Register'!$B$8:$B$107),"") ->  | D32: =_xlfn.IFNA(_xlfn.XLOOKUP(B32,'Stap 2 Register'!$A$8:$A$107,'Stap 2 Register'!$C$8:$C$107),"") ->  | E32: =_xlfn.IFNA(_xlfn.XLOOKUP(B32,'Stap 2 Register'!$A$8:$A$107,'Stap 2 Register'!$E$8:$E$107),"") ->  | G32: 0 | R32: =VLOOKUP($B32,'Stap 2 Register'!$A$8:$AK$107,15,0) ->  | S32: 0 | T32: 0 | U32: 0 | V32: 0 | W32: 0 | X32: 0 | Y32: 0 | Z32: 0 | AA32: 0 | AB32: 0 | AC32: 0 | AD32: 0 | AE32: 0 | AF32: 0
A33: 26 | B33: =_xlfn.XLOOKUP(A33,'Stap 2 Register'!$AJ$8:$AJ$107,'Stap 2 Register'!$A$8:$A$107) ->  | C33: =_xlfn.IFNA(_xlfn.XLOOKUP(B33,'Stap 2 Register'!$A$8:$A$107,'Stap 2 Register'!$B$8:$B$107),"") ->  | D33: =_xlfn.IFNA(_xlfn.XLOOKUP(B33,'Stap 2 Register'!$A$8:$A$107,'Stap 2 Register'!$C$8:$C$107),"") ->  | E33: =_xlfn.IFNA(_xlfn.XLOOKUP(B33,'Stap 2 Register'!$A$8:$A$107,'Stap 2 Register'!$E$8:$E$107),"") ->  | G33: 0 | R33: =VLOOKUP($B33,'Stap 2 Register'!$A$8:$AK$107,15,0) ->  | S33: 0 | T33: 0 | U33: 0 | V33: 0 | W33: 0 | X33: 0 | Y33: 0 | Z33: 0 | AA33: 0 | AB33: 0 | AC33: 0 | AD33: 0 | AE33: 0 | AF33: 0
A34: 27 | B34: =_xlfn.XLOOKUP(A34,'Stap 2 Register'!$AJ$8:$AJ$107,'Stap 2 Register'!$A$8:$A$107) ->  | C34: =_xlfn.IFNA(_xlfn.XLOOKUP(B34,'Stap 2 Register'!$A$8:$A$107,'Stap 2 Register'!$B$8:$B$107),"") ->  | D34: =_xlfn.IFNA(_xlfn.XLOOKUP(B34,'Stap 2 Register'!$A$8:$A$107,'Stap 2 Register'!$C$8:$C$107),"") ->  | E34: =_xlfn.IFNA(_xlfn.XLOOKUP(B34,'Stap 2 Register'!$A$8:$A$107,'Stap 2 Register'!$E$8:$E$107),"") ->  | G34: 0 | R34: =VLOOKUP($B34,'Stap 2 Register'!$A$8:$AK$107,15,0) ->  | S34: 0 | T34: 0 | U34: 0 | V34: 0 | W34: 0 | X34: 0 | Y34: 0 | Z34: 0 | AA34: 0 | AB34: 0 | AC34: 0 | AD34: 0 | AE34: 0 | AF34: 0
A35: 28 | B35: =_xlfn.XLOOKUP(A35,'Stap 2 Register'!$AJ$8:$AJ$107,'Stap 2 Register'!$A$8:$A$107) ->  | C35: =_xlfn.IFNA(_xlfn.XLOOKUP(B35,'Stap 2 Register'!$A$8:$A$107,'Stap 2 Register'!$B$8:$B$107),"") ->  | D35: =_xlfn.IFNA(_xlfn.XLOOKUP(B35,'Stap 2 Register'!$A$8:$A$107,'Stap 2 Register'!$C$8:$C$107),"") ->  | E35: =_xlfn.IFNA(_xlfn.XLOOKUP(B35,'Stap 2 Register'!$A$8:$A$107,'Stap 2 Register'!$E$8:$E$107),"") ->  | G35: 0 | R35: =VLOOKUP($B35,'Stap 2 Register'!$A$8:$AK$107,15,0) ->  | S35: 0 | T35: 0 | U35: 0 | V35: 0 | W35: 0 | X35: 0 | Y35: 0 | Z35: 0 | AA35: 0 | AB35: 0 | AC35: 0 | AD35: 0 | AE35: 0 | AF35: 0
A36: 29 | B36: =_xlfn.XLOOKUP(A36,'Stap 2 Register'!$AJ$8:$AJ$107,'Stap 2 Register'!$A$8:$A$107) ->  | C36: =_xlfn.IFNA(_xlfn.XLOOKUP(B36,'Stap 2 Register'!$A$8:$A$107,'Stap 2 Register'!$B$8:$B$107),"") ->  | D36: =_xlfn.IFNA(_xlfn.XLOOKUP(B36,'Stap 2 Register'!$A$8:$A$107,'Stap 2 Register'!$C$8:$C$107),"") ->  | E36: =_xlfn.IFNA(_xlfn.XLOOKUP(B36,'Stap 2 Register'!$A$8:$A$107,'Stap 2 Register'!$E$8:$E$107),"") ->  | G36: 0 | R36: =VLOOKUP($B36,'Stap 2 Register'!$A$8:$AK$107,15,0) ->  | S36: 0 | T36: 0 | U36: 0 | V36: 0 | W36: 0 | X36: 0 | Y36: 0 | Z36: 0 | AA36: 0 | AB36: 0 | AC36: 0 | AD36: 0 | AE36: 0 | AF36: 0
A37: 30 | B37: =_xlfn.XLOOKUP(A37,'Stap 2 Register'!$AJ$8:$AJ$107,'Stap 2 Register'!$A$8:$A$107) ->  | C37: =_xlfn.IFNA(_xlfn.XLOOKUP(B37,'Stap 2 Register'!$A$8:$A$107,'Stap 2 Register'!$B$8:$B$107),"") ->  | D37: =_xlfn.IFNA(_xlfn.XLOOKUP(B37,'Stap 2 Register'!$A$8:$A$107,'Stap 2 Register'!$C$8:$C$107),"") ->  | E37: =_xlfn.IFNA(_xlfn.XLOOKUP(B37,'Stap 2 Register'!$A$8:$A$107,'Stap 2 Register'!$E$8:$E$107),"") ->  | G37: 0 | R37: =VLOOKUP($B37,'Stap 2 Register'!$A$8:$AK$107,15,0) ->  | S37: 0 | T37: 0 | U37: 0 | V37: 0 | W37: 0 | X37: 0 | Y37: 0 | Z37: 0 | AA37: 0 | AB37: 0 | AC37: 0 | AD37: 0 | AE37: 0 | AF37: 0
A38: 31 | B38: =_xlfn.XLOOKUP(A38,'Stap 2 Register'!$AJ$8:$AJ$107,'Stap 2 Register'!$A$8:$A$107) ->  | C38: =_xlfn.IFNA(_xlfn.XLOOKUP(B38,'Stap 2 Register'!$A$8:$A$107,'Stap 2 Register'!$B$8:$B$107),"") ->  | D38: =_xlfn.IFNA(_xlfn.XLOOKUP(B38,'Stap 2 Register'!$A$8:$A$107,'Stap 2 Register'!$C$8:$C$107),"") ->  | E38: =_xlfn.IFNA(_xlfn.XLOOKUP(B38,'Stap 2 Register'!$A$8:$A$107,'Stap 2 Register'!$E$8:$E$107),"") ->  | G38: 0 | R38: =VLOOKUP($B38,'Stap 2 Register'!$A$8:$AK$107,15,0) ->  | S38: 0 | T38: 0 | U38: 0 | V38: 0 | W38: 0 | X38: 0 | Y38: 0 | Z38: 0 | AA38: 0 | AB38: 0 | AC38: 0 | AD38: 0 | AE38: 0 | AF38: 0
A39: 32 | B39: =_xlfn.XLOOKUP(A39,'Stap 2 Register'!$AJ$8:$AJ$107,'Stap 2 Register'!$A$8:$A$107) ->  | C39: =_xlfn.IFNA(_xlfn.XLOOKUP(B39,'Stap 2 Register'!$A$8:$A$107,'Stap 2 Register'!$B$8:$B$107),"") ->  | D39: =_xlfn.IFNA(_xlfn.XLOOKUP(B39,'Stap 2 Register'!$A$8:$A$107,'Stap 2 Register'!$C$8:$C$107),"") ->  | E39: =_xlfn.IFNA(_xlfn.XLOOKUP(B39,'Stap 2 Register'!$A$8:$A$107,'Stap 2 Register'!$E$8:$E$107),"") ->  | G39: 0 | R39: =VLOOKUP($B39,'Stap 2 Register'!$A$8:$AK$107,15,0) ->  | S39: 0 | T39: 0 | U39: 0 | V39: 0 | W39: 0 | X39: 0 | Y39: 0 | Z39: 0 | AA39: 0 | AB39: 0 | AC39: 0 | AD39: 0 | AE39: 0 | AF39: 0
A40: 33 | B40: =_xlfn.XLOOKUP(A40,'Stap 2 Register'!$AJ$8:$AJ$107,'Stap 2 Register'!$A$8:$A$107) ->  | C40: =_xlfn.IFNA(_xlfn.XLOOKUP(B40,'Stap 2 Register'!$A$8:$A$107,'Stap 2 Register'!$B$8:$B$107),"") ->  | D40: =_xlfn.IFNA(_xlfn.XLOOKUP(B40,'Stap 2 Register'!$A$8:$A$107,'Stap 2 Register'!$C$8:$C$107),"") ->  | E40: =_xlfn.IFNA(_xlfn.XLOOKUP(B40,'Stap 2 Register'!$A$8:$A$107,'Stap 2 Register'!$E$8:$E$107),"") ->  | G40: 0 | H40: =IF(J40="","",VLOOKUP(J40,matrixtest,6,FALSE)) ->  | I40: =IF(J40="","",VLOOKUP(J40,matrixtest,5,FALSE)) ->  | R40: =VLOOKUP($B40,'Stap 2 Register'!$A$8:$AK$107,15,0) ->  | S40: 0 | T40: =IF(J40="",0,VLOOKUP(J40,matrixtest,4,FALSE)) -> 0 | U40: =IF(K40="",0,VLOOKUP(K40,matrixtest,4,FALSE)) -> 0 | V40: =IF(L40="",0,VLOOKUP(L40,matrixtest,4,FALSE)) -> 0 | W40: =IF(M40="",0,VLOOKUP(M40,matrixtest,4,FALSE)) -> 0 | X40: =IF(N40="",0,VLOOKUP(N40,matrixtest,4,FALSE)) -> 0 | Y40: =IF(O40="",0,VLOOKUP(O40,matrixtest,4,FALSE)) -> 0 | Z40: 0 | AA40: =IF(J40="",0,VLOOKUP(J40,matrixtest,2,FALSE)) -> 0 | AB40: =IF(K40="",0,VLOOKUP(K40,matrixtest,2,FALSE)) -> 0 | AC40: =IF(L40="",0,VLOOKUP(L40,matrixtest,2,FALSE)) -> 0 | AD40: =IF(M40="",0,VLOOKUP(M40,matrixtest,2,FALSE)) -> 0 | AE40: =IF(N40="",0,VLOOKUP(N40,matrixtest,2,FALSE)) -> 0 | AF40: =IF(O40="",0,VLOOKUP(O40,matrixtest,2,FALSE)) -> 0 | AG40: =IF(J40="","",VLOOKUP(J40,matrixtest,3,FALSE)) ->  | AH40: =IF(K40="","",VLOOKUP(K40,matrixtest,3,FALSE)) ->  | AI40: =IF(L40="","",VLOOKUP(L40,matrixtest,3,FALSE)) ->  | AJ40: =IF(M40="","",VLOOKUP(M40,matrixtest,3,FALSE)) ->  | AK40: =IF(N40="","",VLOOKUP(N40,matrixtest,3,FALSE)) ->  | AL40: =IF(O40="","",VLOOKUP(O40,matrixtest,3,FALSE)) -> 
A41: 34 | B41: =_xlfn.XLOOKUP(A41,'Stap 2 Register'!$AJ$8:$AJ$107,'Stap 2 Register'!$A$8:$A$107) ->  | C41: =_xlfn.IFNA(_xlfn.XLOOKUP(B41,'Stap 2 Register'!$A$8:$A$107,'Stap 2 Register'!$B$8:$B$107),"") ->  | D41: =_xlfn.IFNA(_xlfn.XLOOKUP(B41,'Stap 2 Register'!$A$8:$A$107,'Stap 2 Register'!$C$8:$C$107),"") ->  | E41: =_xlfn.IFNA(_xlfn.XLOOKUP(B41,'Stap 2 Register'!$A$8:$A$107,'Stap 2 Register'!$E$8:$E$107),"") ->  | G41: 0 | R41: =VLOOKUP($B41,'Stap 2 Register'!$A$8:$AK$107,15,0) ->  | S41: 0 | T41: 0 | U41: 0 | V41: 0 | W41: 0 | X41: 0 | Y41: 0 | Z41: 0 | AA41: 0 | AB41: 0 | AC41: 0 | AD41: 0 | AE41: 0 | AF41: 0
A42: 35 | B42: =_xlfn.XLOOKUP(A42,'Stap 2 Register'!$AJ$8:$AJ$107,'Stap 2 Register'!$A$8:$A$107) ->  | C42: =_xlfn.IFNA(_xlfn.XLOOKUP(B42,'Stap 2 Register'!$A$8:$A$107,'Stap 2 Register'!$B$8:$B$107),"") ->  | D42: =_xlfn.IFNA(_xlfn.XLOOKUP(B42,'Stap 2 Register'!$A$8:$A$107,'Stap 2 Register'!$C$8:$C$107),"") ->  | E42: =_xlfn.IFNA(_xlfn.XLOOKUP(B42,'Stap 2 Register'!$A$8:$A$107,'Stap 2 Register'!$E$8:$E$107),"") ->  | G42: 0 | R42: =VLOOKUP($B42,'Stap 2 Register'!$A$8:$AK$107,15,0) ->  | S42: 0 | T42: 0 | U42: 0 | V42: 0 | W42: 0 | X42: 0 | Y42: 0 | Z42: 0 | AA42: 0 | AB42: 0 | AC42: 0 | AD42: 0 | AE42: 0 | AF42: 0
A43: 36 | B43: =_xlfn.XLOOKUP(A43,'Stap 2 Register'!$AJ$8:$AJ$107,'Stap 2 Register'!$A$8:$A$107) ->  | C43: =_xlfn.IFNA(_xlfn.XLOOKUP(B43,'Stap 2 Register'!$A$8:$A$107,'Stap 2 Register'!$B$8:$B$107),"") ->  | D43: =_xlfn.IFNA(_xlfn.XLOOKUP(B43,'Stap 2 Register'!$A$8:$A$107,'Stap 2 Register'!$C$8:$C$107),"") ->  | E43: =_xlfn.IFNA(_xlfn.XLOOKUP(B43,'Stap 2 Register'!$A$8:$A$107,'Stap 2 Register'!$E$8:$E$107),"") ->  | G43: 0 | R43: =VLOOKUP($B43,'Stap 2 Register'!$A$8:$AK$107,15,0) ->  | S43: 0 | T43: 0 | U43: 0 | V43: 0 | W43: 0 | X43: 0 | Y43: 0 | Z43: 0 | AA43: 0 | AB43: 0 | AC43: 0 | AD43: 0 | AE43: 0 | AF43: 0
A44: 37 | B44: =_xlfn.XLOOKUP(A44,'Stap 2 Register'!$AJ$8:$AJ$107,'Stap 2 Register'!$A$8:$A$107) ->  | C44: =_xlfn.IFNA(_xlfn.XLOOKUP(B44,'Stap 2 Register'!$A$8:$A$107,'Stap 2 Register'!$B$8:$B$107),"") ->  | D44: =_xlfn.IFNA(_xlfn.XLOOKUP(B44,'Stap 2 Register'!$A$8:$A$107,'Stap 2 Register'!$C$8:$C$107),"") ->  | E44: =_xlfn.IFNA(_xlfn.XLOOKUP(B44,'Stap 2 Register'!$A$8:$A$107,'Stap 2 Register'!$E$8:$E$107),"") ->  | G44: 0 | R44: =VLOOKUP($B44,'Stap 2 Register'!$A$8:$AK$107,15,0) ->  | S44: 0 | T44: 0 | U44: 0 | V44: 0 | W44: 0 | X44: 0 | Y44: 0 | Z44: 0 | AA44: 0 | AB44: 0 | AC44: 0 | AD44: 0 | AE44: 0 | AF44: 0
A45: 38 | B45: =_xlfn.XLOOKUP(A45,'Stap 2 Register'!$AJ$8:$AJ$107,'Stap 2 Register'!$A$8:$A$107) ->  | C45: =_xlfn.IFNA(_xlfn.XLOOKUP(B45,'Stap 2 Register'!$A$8:$A$107,'Stap 2 Register'!$B$8:$B$107),"") ->  | D45: =_xlfn.IFNA(_xlfn.XLOOKUP(B45,'Stap 2 Register'!$A$8:$A$107,'Stap 2 Register'!$C$8:$C$107),"") ->  | E45: =_xlfn.IFNA(_xlfn.XLOOKUP(B45,'Stap 2 Register'!$A$8:$A$107,'Stap 2 Register'!$E$8:$E$107),"") ->  | G45: 0 | R45: =VLOOKUP($B45,'Stap 2 Register'!$A$8:$AK$107,15,0) ->  | S45: 0 | T45: 0 | U45: 0 | V45: 0 | W45: 0 | X45: 0 | Y45: 0 | Z45: 0 | AA45: 0 | AB45: 0 | AC45: 0 | AD45: 0 | AE45: 0 | AF45: 0
A46: 39 | B46: =_xlfn.XLOOKUP(A46,'Stap 2 Register'!$AJ$8:$AJ$107,'Stap 2 Register'!$A$8:$A$107) ->  | C46: =_xlfn.IFNA(_xlfn.XLOOKUP(B46,'Stap 2 Register'!$A$8:$A$107,'Stap 2 Register'!$B$8:$B$107),"") ->  | D46: =_xlfn.IFNA(_xlfn.XLOOKUP(B46,'Stap 2 Register'!$A$8:$A$107,'Stap 2 Register'!$C$8:$C$107),"") ->  | E46: =_xlfn.IFNA(_xlfn.XLOOKUP(B46,'Stap 2 Register'!$A$8:$A$107,'Stap 2 Register'!$E$8:$E$107),"") ->  | G46: 0 | R46: =VLOOKUP($B46,'Stap 2 Register'!$A$8:$AK$107,15,0) ->  | S46: 0 | T46: 0 | U46: 0 | V46: 0 | W46: 0 | X46: 0 | Y46: 0 | Z46: 0 | AA46: 0 | AB46: 0 | AC46: 0 | AD46: 0 | AE46: 0 | AF46: 0
A47: 40 | B47: =_xlfn.XLOOKUP(A47,'Stap 2 Register'!$AJ$8:$AJ$107,'Stap 2 Register'!$A$8:$A$107) ->  | C47: =_xlfn.IFNA(_xlfn.XLOOKUP(B47,'Stap 2 Register'!$A$8:$A$107,'Stap 2 Register'!$B$8:$B$107),"") ->  | D47: =_xlfn.IFNA(_xlfn.XLOOKUP(B47,'Stap 2 Register'!$A$8:$A$107,'Stap 2 Register'!$C$8:$C$107),"") ->  | E47: =_xlfn.IFNA(_xlfn.XLOOKUP(B47,'Stap 2 Register'!$A$8:$A$107,'Stap 2 Register'!$E$8:$E$107),"") ->  | G47: 0 | R47: =VLOOKUP($B47,'Stap 2 Register'!$A$8:$AK$107,15,0) ->  | S47: 0 | T47: 0 | U47: 0 | V47: 0 | W47: 0 | X47: 0 | Y47: 0 | Z47: 0 | AA47: 0 | AB47: 0 | AC47: 0 | AD47: 0 | AE47: 0 | AF47: 0
A48: 41 | B48: =_xlfn.XLOOKUP(A48,'Stap 2 Register'!$AJ$8:$AJ$107,'Stap 2 Register'!$A$8:$A$107) ->  | C48: =_xlfn.IFNA(_xlfn.XLOOKUP(B48,'Stap 2 Register'!$A$8:$A$107,'Stap 2 Register'!$B$8:$B$107),"") ->  | D48: =_xlfn.IFNA(_xlfn.XLOOKUP(B48,'Stap 2 Register'!$A$8:$A$107,'Stap 2 Register'!$C$8:$C$107),"") ->  | E48: =_xlfn.IFNA(_xlfn.XLOOKUP(B48,'Stap 2 Register'!$A$8:$A$107,'Stap 2 Register'!$E$8:$E$107),"") ->  | G48: 0 | R48: =VLOOKUP($B48,'Stap 2 Register'!$A$8:$AK$107,15,0) ->  | S48: 0 | T48: 0 | U48: 0 | V48: 0 | W48: 0 | X48: 0 | Y48: 0 | Z48: 0 | AA48: 0 | AB48: 0 | AC48: 0 | AD48: 0 | AE48: 0 | AF48: 0
A49: 42 | B49: =_xlfn.XLOOKUP(A49,'Stap 2 Register'!$AJ$8:$AJ$107,'Stap 2 Register'!$A$8:$A$107) ->  | C49: =_xlfn.IFNA(_xlfn.XLOOKUP(B49,'Stap 2 Register'!$A$8:$A$107,'Stap 2 Register'!$B$8:$B$107),"") ->  | D49: =_xlfn.IFNA(_xlfn.XLOOKUP(B49,'Stap 2 Register'!$A$8:$A$107,'Stap 2 Register'!$C$8:$C$107),"") ->  | E49: =_xlfn.IFNA(_xlfn.XLOOKUP(B49,'Stap 2 Register'!$A$8:$A$107,'Stap 2 Register'!$E$8:$E$107),"") ->  | G49: 0 | R49: =VLOOKUP($B49,'Stap 2 Register'!$A$8:$AK$107,15,0) ->  | S49: 0 | T49: 0 | U49: 0 | V49: 0 | W49: 0 | X49: 0 | Y49: 0 | Z49: 0 | AA49: 0 | AB49: 0 | AC49: 0 | AD49: 0 | AE49: 0 | AF49: 0
A50: 43 | B50: =_xlfn.XLOOKUP(A50,'Stap 2 Register'!$AJ$8:$AJ$107,'Stap 2 Register'!$A$8:$A$107) ->  | C50: =_xlfn.IFNA(_xlfn.XLOOKUP(B50,'Stap 2 Register'!$A$8:$A$107,'Stap 2 Register'!$B$8:$B$107),"") ->  | D50: =_xlfn.IFNA(_xlfn.XLOOKUP(B50,'Stap 2 Register'!$A$8:$A$107,'Stap 2 Register'!$C$8:$C$107),"") ->  | E50: =_xlfn.IFNA(_xlfn.XLOOKUP(B50,'Stap 2 Register'!$A$8:$A$107,'Stap 2 Register'!$E$8:$E$107),"") ->  | G50: 0 | R50: =VLOOKUP($B50,'Stap 2 Register'!$A$8:$AK$107,15,0) ->  | S50: 0 | T50: 0 | U50: 0 | V50: 0 | W50: 0 | X50: 0 | Y50: 0 | Z50: 0 | AA50: 0 | AB50: 0 | AC50: 0 | AD50: 0 | AE50: 0 | AF50: 0
A51: 44 | B51: =_xlfn.XLOOKUP(A51,'Stap 2 Register'!$AJ$8:$AJ$107,'Stap 2 Register'!$A$8:$A$107) ->  | C51: =_xlfn.IFNA(_xlfn.XLOOKUP(B51,'Stap 2 Register'!$A$8:$A$107,'Stap 2 Register'!$B$8:$B$107),"") ->  | D51: =_xlfn.IFNA(_xlfn.XLOOKUP(B51,'Stap 2 Register'!$A$8:$A$107,'Stap 2 Register'!$C$8:$C$107),"") ->  | E51: =_xlfn.IFNA(_xlfn.XLOOKUP(B51,'Stap 2 Register'!$A$8:$A$107,'Stap 2 Register'!$E$8:$E$107),"") ->  | G51: 0 | R51: =VLOOKUP($B51,'Stap 2 Register'!$A$8:$AK$107,15,0) ->  | S51: 0 | T51: 0 | U51: 0 | V51: 0 | W51: 0 | X51: 0 | Y51: 0 | Z51: 0 | AA51: 0 | AB51: 0 | AC51: 0 | AD51: 0 | AE51: 0 | AF51: 0
A52: 45 | B52: =_xlfn.XLOOKUP(A52,'Stap 2 Register'!$AJ$8:$AJ$107,'Stap 2 Register'!$A$8:$A$107) ->  | C52: =_xlfn.IFNA(_xlfn.XLOOKUP(B52,'Stap 2 Register'!$A$8:$A$107,'Stap 2 Register'!$B$8:$B$107),"") ->  | D52: =_xlfn.IFNA(_xlfn.XLOOKUP(B52,'Stap 2 Register'!$A$8:$A$107,'Stap 2 Register'!$C$8:$C$107),"") ->  | E52: =_xlfn.IFNA(_xlfn.XLOOKUP(B52,'Stap 2 Register'!$A$8:$A$107,'Stap 2 Register'!$E$8:$E$107),"") ->  | G52: 0 | R52: =VLOOKUP($B52,'Stap 2 Register'!$A$8:$AK$107,15,0) ->  | S52: 0 | T52: 0 | U52: 0 | V52: 0 | W52: 0 | X52: 0 | Y52: 0 | Z52: 0 | AA52: 0 | AB52: 0 | AC52: 0 | AD52: 0 | AE52: 0 | AF52: 0
A53: 46 | B53: =_xlfn.XLOOKUP(A53,'Stap 2 Register'!$AJ$8:$AJ$107,'Stap 2 Register'!$A$8:$A$107) ->  | C53: =_xlfn.IFNA(_xlfn.XLOOKUP(B53,'Stap 2 Register'!$A$8:$A$107,'Stap 2 Register'!$B$8:$B$107),"") ->  | D53: =_xlfn.IFNA(_xlfn.XLOOKUP(B53,'Stap 2 Register'!$A$8:$A$107,'Stap 2 Register'!$C$8:$C$107),"") ->  | E53: =_xlfn.IFNA(_xlfn.XLOOKUP(B53,'Stap 2 Register'!$A$8:$A$107,'Stap 2 Register'!$E$8:$E$107),"") ->  | G53: 0 | R53: =VLOOKUP($B53,'Stap 2 Register'!$A$8:$AK$107,15,0) ->  | S53: 0 | T53: 0 | U53: 0 | V53: 0 | W53: 0 | X53: 0 | Y53: 0 | Z53: 0 | AA53: 0 | AB53: 0 | AC53: 0 | AD53: 0 | AE53: 0 | AF53: 0
A54: 47 | B54: =_xlfn.XLOOKUP(A54,'Stap 2 Register'!$AJ$8:$AJ$107,'Stap 2 Register'!$A$8:$A$107) ->  | C54: =_xlfn.IFNA(_xlfn.XLOOKUP(B54,'Stap 2 Register'!$A$8:$A$107,'Stap 2 Register'!$B$8:$B$107),"") ->  | D54: =_xlfn.IFNA(_xlfn.XLOOKUP(B54,'Stap 2 Register'!$A$8:$A$107,'Stap 2 Register'!$C$8:$C$107),"") ->  | E54: =_xlfn.IFNA(_xlfn.XLOOKUP(B54,'Stap 2 Register'!$A$8:$A$107,'Stap 2 Register'!$E$8:$E$107),"") ->  | G54: 0 | R54: =VLOOKUP($B54,'Stap 2 Register'!$A$8:$AK$107,15,0) ->  | S54: 0 | T54: 0 | U54: 0 | V54: 0 | W54: 0 | X54: 0 | Y54: 0 | Z54: 0 | AA54: 0 | AB54: 0 | AC54: 0 | AD54: 0 | AE54: 0 | AF54: 0
A55: 48 | B55: =_xlfn.XLOOKUP(A55,'Stap 2 Register'!$AJ$8:$AJ$107,'Stap 2 Register'!$A$8:$A$107) ->  | C55: =_xlfn.IFNA(_xlfn.XLOOKUP(B55,'Stap 2 Register'!$A$8:$A$107,'Stap 2 Register'!$B$8:$B$107),"") ->  | D55: =_xlfn.IFNA(_xlfn.XLOOKUP(B55,'Stap 2 Register'!$A$8:$A$107,'Stap 2 Register'!$C$8:$C$107),"") ->  | E55: =_xlfn.IFNA(_xlfn.XLOOKUP(B55,'Stap 2 Register'!$A$8:$A$107,'Stap 2 Register'!$E$8:$E$107),"") ->  | G55: 0 | R55: =VLOOKUP($B55,'Stap 2 Register'!$A$8:$AK$107,15,0) ->  | S55: 0 | T55: 0 | U55: 0 | V55: 0 | W55: 0 | X55: 0 | Y55: 0 | Z55: 0 | AA55: 0 | AB55: 0 | AC55: 0 | AD55: 0 | AE55: 0 | AF55: 0
A56: 49 | B56: =_xlfn.XLOOKUP(A56,'Stap 2 Register'!$AJ$8:$AJ$107,'Stap 2 Register'!$A$8:$A$107) ->  | C56: =_xlfn.IFNA(_xlfn.XLOOKUP(B56,'Stap 2 Register'!$A$8:$A$107,'Stap 2 Register'!$B$8:$B$107),"") ->  | D56: =_xlfn.IFNA(_xlfn.XLOOKUP(B56,'Stap 2 Register'!$A$8:$A$107,'Stap 2 Register'!$C$8:$C$107),"") ->  | E56: =_xlfn.IFNA(_xlfn.XLOOKUP(B56,'Stap 2 Register'!$A$8:$A$107,'Stap 2 Register'!$E$8:$E$107),"") ->  | G56: 0 | R56: =VLOOKUP($B56,'Stap 2 Register'!$A$8:$AK$107,15,0) ->  | S56: 0 | T56: 0 | U56: 0 | V56: 0 | W56: 0 | X56: 0 | Y56: 0 | Z56: 0 | AA56: 0 | AB56: 0 | AC56: 0 | AD56: 0 | AE56: 0 | AF56: 0
A57: 50 | B57: =_xlfn.XLOOKUP(A57,'Stap 2 Register'!$AJ$8:$AJ$107,'Stap 2 Register'!$A$8:$A$107) ->  | C57: =_xlfn.IFNA(_xlfn.XLOOKUP(B57,'Stap 2 Register'!$A$8:$A$107,'Stap 2 Register'!$B$8:$B$107),"") ->  | D57: =_xlfn.IFNA(_xlfn.XLOOKUP(B57,'Stap 2 Register'!$A$8:$A$107,'Stap 2 Register'!$C$8:$C$107),"") ->  | E57: =_xlfn.IFNA(_xlfn.XLOOKUP(B57,'Stap 2 Register'!$A$8:$A$107,'Stap 2 Register'!$E$8:$E$107),"") ->  | G57: 0 | R57: =VLOOKUP($B57,'Stap 2 Register'!$A$8:$AK$107,15,0) ->  | S57: 0 | T57: 0 | U57: 0 | V57: 0 | W57: 0 | X57: 0 | Y57: 0 | Z57: 0 | AA57: 0 | AB57: 0 | AC57: 0 | AD57: 0 | AE57: 0 | AF57: 0
A58: 51 | B58: =_xlfn.XLOOKUP(A58,'Stap 2 Register'!$AJ$8:$AJ$107,'Stap 2 Register'!$A$8:$A$107) ->  | C58: =_xlfn.IFNA(_xlfn.XLOOKUP(B58,'Stap 2 Register'!$A$8:$A$107,'Stap 2 Register'!$B$8:$B$107),"") ->  | D58: =_xlfn.IFNA(_xlfn.XLOOKUP(B58,'Stap 2 Register'!$A$8:$A$107,'Stap 2 Register'!$C$8:$C$107),"") ->  | E58: =_xlfn.IFNA(_xlfn.XLOOKUP(B58,'Stap 2 Register'!$A$8:$A$107,'Stap 2 Register'!$E$8:$E$107),"") ->  | G58: 0 | R58: =VLOOKUP($B58,'Stap 2 Register'!$A$8:$AK$107,15,0) ->  | S58: 0 | T58: 0 | U58: 0 | V58: 0 | W58: 0 | X58: 0 | Y58: 0 | Z58: 0 | AA58: 0 | AB58: 0 | AC58: 0 | AD58: 0 | AE58: 0 | AF58: 0
A59: 52 | B59: =_xlfn.XLOOKUP(A59,'Stap 2 Register'!$AJ$8:$AJ$107,'Stap 2 Register'!$A$8:$A$107) ->  | C59: =_xlfn.IFNA(_xlfn.XLOOKUP(B59,'Stap 2 Register'!$A$8:$A$107,'Stap 2 Register'!$B$8:$B$107),"") ->  | D59: =_xlfn.IFNA(_xlfn.XLOOKUP(B59,'Stap 2 Register'!$A$8:$A$107,'Stap 2 Register'!$C$8:$C$107),"") ->  | E59: =_xlfn.IFNA(_xlfn.XLOOKUP(B59,'Stap 2 Register'!$A$8:$A$107,'Stap 2 Register'!$E$8:$E$107),"") ->  | G59: 0 | R59: =VLOOKUP($B59,'Stap 2 Register'!$A$8:$AK$107,15,0) ->  | S59: 0 | T59: 0 | U59: 0 | V59: 0 | W59: 0 | X59: 0 | Y59: 0 | Z59: 0 | AA59: 0 | AB59: 0 | AC59: 0 | AD59: 0 | AE59: 0 | AF59: 0
A60: 53 | B60: =_xlfn.XLOOKUP(A60,'Stap 2 Register'!$AJ$8:$AJ$107,'Stap 2 Register'!$A$8:$A$107) ->  | C60: =_xlfn.IFNA(_xlfn.XLOOKUP(B60,'Stap 2 Register'!$A$8:$A$107,'Stap 2 Register'!$B$8:$B$107),"") ->  | D60: =_xlfn.IFNA(_xlfn.XLOOKUP(B60,'Stap 2 Register'!$A$8:$A$107,'Stap 2 Register'!$C$8:$C$107),"") ->  | E60: =_xlfn.IFNA(_xlfn.XLOOKUP(B60,'Stap 2 Register'!$A$8:$A$107,'Stap 2 Register'!$E$8:$E$107),"") ->  | G60: 0 | R60: =VLOOKUP($B60,'Stap 2 Register'!$A$8:$AK$107,15,0) ->  | S60: 0 | T60: 0 | U60: 0 | V60: 0 | W60: 0 | X60: 0 | Y60: 0 | Z60: 0 | AA60: 0 | AB60: 0 | AC60: 0 | AD60: 0 | AE60: 0 | AF60: 0
A61: 54 | B61: =_xlfn.XLOOKUP(A61,'Stap 2 Register'!$AJ$8:$AJ$107,'Stap 2 Register'!$A$8:$A$107) ->  | C61: =_xlfn.IFNA(_xlfn.XLOOKUP(B61,'Stap 2 Register'!$A$8:$A$107,'Stap 2 Register'!$B$8:$B$107),"") ->  | D61: =_xlfn.IFNA(_xlfn.XLOOKUP(B61,'Stap 2 Register'!$A$8:$A$107,'Stap 2 Register'!$C$8:$C$107),"") ->  | E61: =_xlfn.IFNA(_xlfn.XLOOKUP(B61,'Stap 2 Register'!$A$8:$A$107,'Stap 2 Register'!$E$8:$E$107),"") ->  | G61: 0 | R61: =VLOOKUP($B61,'Stap 2 Register'!$A$8:$AK$107,15,0) ->  | S61: 0 | T61: 0 | U61: 0 | V61: 0 | W61: 0 | X61: 0 | Y61: 0 | Z61: 0 | AA61: 0 | AB61: 0 | AC61: 0 | AD61: 0 | AE61: 0 | AF61: 0
A62: 55 | B62: =_xlfn.XLOOKUP(A62,'Stap 2 Register'!$AJ$8:$AJ$107,'Stap 2 Register'!$A$8:$A$107) ->  | C62: =_xlfn.IFNA(_xlfn.XLOOKUP(B62,'Stap 2 Register'!$A$8:$A$107,'Stap 2 Register'!$B$8:$B$107),"") ->  | D62: =_xlfn.IFNA(_xlfn.XLOOKUP(B62,'Stap 2 Register'!$A$8:$A$107,'Stap 2 Register'!$C$8:$C$107),"") ->  | E62: =_xlfn.IFNA(_xlfn.XLOOKUP(B62,'Stap 2 Register'!$A$8:$A$107,'Stap 2 Register'!$E$8:$E$107),"") ->  | G62: 0 | R62: =VLOOKUP($B62,'Stap 2 Register'!$A$8:$AK$107,15,0) ->  | S62: 0 | T62: 0 | U62: 0 | V62: 0 | W62: 0 | X62: 0 | Y62: 0 | Z62: 0 | AA62: 0 | AB62: 0 | AC62: 0 | AD62: 0 | AE62: 0 | AF62: 0
A63: 56 | B63: =_xlfn.XLOOKUP(A63,'Stap 2 Register'!$AJ$8:$AJ$107,'Stap 2 Register'!$A$8:$A$107) ->  | C63: =_xlfn.IFNA(_xlfn.XLOOKUP(B63,'Stap 2 Register'!$A$8:$A$107,'Stap 2 Register'!$B$8:$B$107),"") ->  | D63: =_xlfn.IFNA(_xlfn.XLOOKUP(B63,'Stap 2 Register'!$A$8:$A$107,'Stap 2 Register'!$C$8:$C$107),"") ->  | E63: =_xlfn.IFNA(_xlfn.XLOOKUP(B63,'Stap 2 Register'!$A$8:$A$107,'Stap 2 Register'!$E$8:$E$107),"") ->  | G63: 0 | R63: =VLOOKUP($B63,'Stap 2 Register'!$A$8:$AK$107,15,0) ->  | S63: 0 | T63: 0 | U63: 0 | V63: 0 | W63: 0 | X63: 0 | Y63: 0 | Z63: 0 | AA63: 0 | AB63: 0 | AC63: 0 | AD63: 0 | AE63: 0 | AF63: 0
A64: 57 | B64: =_xlfn.XLOOKUP(A64,'Stap 2 Register'!$AJ$8:$AJ$107,'Stap 2 Register'!$A$8:$A$107) ->  | C64: =_xlfn.IFNA(_xlfn.XLOOKUP(B64,'Stap 2 Register'!$A$8:$A$107,'Stap 2 Register'!$B$8:$B$107),"") ->  | D64: =_xlfn.IFNA(_xlfn.XLOOKUP(B64,'Stap 2 Register'!$A$8:$A$107,'Stap 2 Register'!$C$8:$C$107),"") ->  | E64: =_xlfn.IFNA(_xlfn.XLOOKUP(B64,'Stap 2 Register'!$A$8:$A$107,'Stap 2 Register'!$E$8:$E$107),"") ->  | G64: 0 | R64: =VLOOKUP($B64,'Stap 2 Register'!$A$8:$AK$107,15,0) ->  | S64: 0 | T64: 0 | U64: 0 | V64: 0 | W64: 0 | X64: 0 | Y64: 0 | Z64: 0 | AA64: 0 | AB64: 0 | AC64: 0 | AD64: 0 | AE64: 0 | AF64: 0
A65: 58 | B65: =_xlfn.XLOOKUP(A65,'Stap 2 Register'!$AJ$8:$AJ$107,'Stap 2 Register'!$A$8:$A$107) ->  | C65: =_xlfn.IFNA(_xlfn.XLOOKUP(B65,'Stap 2 Register'!$A$8:$A$107,'Stap 2 Register'!$B$8:$B$107),"") ->  | D65: =_xlfn.IFNA(_xlfn.XLOOKUP(B65,'Stap 2 Register'!$A$8:$A$107,'Stap 2 Register'!$C$8:$C$107),"") ->  | E65: =_xlfn.IFNA(_xlfn.XLOOKUP(B65,'Stap 2 Register'!$A$8:$A$107,'Stap 2 Register'!$E$8:$E$107),"") ->  | G65: 0 | R65: =VLOOKUP($B65,'Stap 2 Register'!$A$8:$AK$107,15,0) ->  | S65: 0 | T65: 0 | U65: 0 | V65: 0 | W65: 0 | X65: 0 | Y65: 0 | Z65: 0 | AA65: 0 | AB65: 0 | AC65: 0 | AD65: 0 | AE65: 0 | AF65: 0
A66: 59 | B66: =_xlfn.XLOOKUP(A66,'Stap 2 Register'!$AJ$8:$AJ$107,'Stap 2 Register'!$A$8:$A$107) ->  | C66: =_xlfn.IFNA(_xlfn.XLOOKUP(B66,'Stap 2 Register'!$A$8:$A$107,'Stap 2 Register'!$B$8:$B$107),"") ->  | D66: =_xlfn.IFNA(_xlfn.XLOOKUP(B66,'Stap 2 Register'!$A$8:$A$107,'Stap 2 Register'!$C$8:$C$107),"") ->  | E66: =_xlfn.IFNA(_xlfn.XLOOKUP(B66,'Stap 2 Register'!$A$8:$A$107,'Stap 2 Register'!$E$8:$E$107),"") ->  | G66: 0 | R66: =VLOOKUP($B66,'Stap 2 Register'!$A$8:$AK$107,15,0) ->  | S66: 0 | T66: 0 | U66: 0 | V66: 0 | W66: 0 | X66: 0 | Y66: 0 | Z66: 0 | AA66: 0 | AB66: 0 | AC66: 0 | AD66: 0 | AE66: 0 | AF66: 0
A67: 60 | B67: =_xlfn.XLOOKUP(A67,'Stap 2 Register'!$AJ$8:$AJ$107,'Stap 2 Register'!$A$8:$A$107) ->  | C67: =_xlfn.IFNA(_xlfn.XLOOKUP(B67,'Stap 2 Register'!$A$8:$A$107,'Stap 2 Register'!$B$8:$B$107),"") ->  | D67: =_xlfn.IFNA(_xlfn.XLOOKUP(B67,'Stap 2 Register'!$A$8:$A$107,'Stap 2 Register'!$C$8:$C$107),"") ->  | E67: =_xlfn.IFNA(_xlfn.XLOOKUP(B67,'Stap 2 Register'!$A$8:$A$107,'Stap 2 Register'!$E$8:$E$107),"") ->  | G67: 0 | R67: =VLOOKUP($B67,'Stap 2 Register'!$A$8:$AK$107,15,0) ->  | S67: 0 | T67: 0 | U67: 0 | V67: 0 | W67: 0 | X67: 0 | Y67: 0 | Z67: 0 | AA67: 0 | AB67: 0 | AC67: 0 | AD67: 0 | AE67: 0 | AF67: 0
A68: 61 | B68: =_xlfn.XLOOKUP(A68,'Stap 2 Register'!$AJ$8:$AJ$107,'Stap 2 Register'!$A$8:$A$107) ->  | C68: =_xlfn.IFNA(_xlfn.XLOOKUP(B68,'Stap 2 Register'!$A$8:$A$107,'Stap 2 Register'!$B$8:$B$107),"") ->  | D68: =_xlfn.IFNA(_xlfn.XLOOKUP(B68,'Stap 2 Register'!$A$8:$A$107,'Stap 2 Register'!$C$8:$C$107),"") ->  | E68: =_xlfn.IFNA(_xlfn.XLOOKUP(B68,'Stap 2 Register'!$A$8:$A$107,'Stap 2 Register'!$E$8:$E$107),"") ->  | G68: 0 | R68: =VLOOKUP($B68,'Stap 2 Register'!$A$8:$AK$107,15,0) ->  | S68: 0 | T68: 0 | U68: 0 | V68: 0 | W68: 0 | X68: 0 | Y68: 0 | Z68: 0 | AA68: 0 | AB68: 0 | AC68: 0 | AD68: 0 | AE68: 0 | AF68: 0
A69: 62 | B69: =_xlfn.XLOOKUP(A69,'Stap 2 Register'!$AJ$8:$AJ$107,'Stap 2 Register'!$A$8:$A$107) ->  | C69: =_xlfn.IFNA(_xlfn.XLOOKUP(B69,'Stap 2 Register'!$A$8:$A$107,'Stap 2 Register'!$B$8:$B$107),"") ->  | D69: =_xlfn.IFNA(_xlfn.XLOOKUP(B69,'Stap 2 Register'!$A$8:$A$107,'Stap 2 Register'!$C$8:$C$107),"") ->  | E69: =_xlfn.IFNA(_xlfn.XLOOKUP(B69,'Stap 2 Register'!$A$8:$A$107,'Stap 2 Register'!$E$8:$E$107),"") ->  | G69: 0 | R69: =VLOOKUP($B69,'Stap 2 Register'!$A$8:$AK$107,15,0) ->  | S69: 0 | T69: 0 | U69: 0 | V69: 0 | W69: 0 | X69: 0 | Y69: 0 | Z69: 0 | AA69: 0 | AB69: 0 | AC69: 0 | AD69: 0 | AE69: 0 | AF69: 0
A70: 63 | B70: =_xlfn.XLOOKUP(A70,'Stap 2 Register'!$AJ$8:$AJ$107,'Stap 2 Register'!$A$8:$A$107) ->  | C70: =_xlfn.IFNA(_xlfn.XLOOKUP(B70,'Stap 2 Register'!$A$8:$A$107,'Stap 2 Register'!$B$8:$B$107),"") ->  | D70: =_xlfn.IFNA(_xlfn.XLOOKUP(B70,'Stap 2 Register'!$A$8:$A$107,'Stap 2 Register'!$C$8:$C$107),"") ->  | E70: =_xlfn.IFNA(_xlfn.XLOOKUP(B70,'Stap 2 Register'!$A$8:$A$107,'Stap 2 Register'!$E$8:$E$107),"") ->  | G70: 0 | R70: =VLOOKUP($B70,'Stap 2 Register'!$A$8:$AK$107,15,0) ->  | S70: 0 | T70: 0 | U70: 0 | V70: 0 | W70: 0 | X70: 0 | Y70: 0 | Z70: 0 | AA70: 0 | AB70: 0 | AC70: 0 | AD70: 0 | AE70: 0 | AF70: 0
A71: 64 | B71: =_xlfn.XLOOKUP(A71,'Stap 2 Register'!$AJ$8:$AJ$107,'Stap 2 Register'!$A$8:$A$107) ->  | C71: =_xlfn.IFNA(_xlfn.XLOOKUP(B71,'Stap 2 Register'!$A$8:$A$107,'Stap 2 Register'!$B$8:$B$107),"") ->  | D71: =_xlfn.IFNA(_xlfn.XLOOKUP(B71,'Stap 2 Register'!$A$8:$A$107,'Stap 2 Register'!$C$8:$C$107),"") ->  | E71: =_xlfn.IFNA(_xlfn.XLOOKUP(B71,'Stap 2 Register'!$A$8:$A$107,'Stap 2 Register'!$E$8:$E$107),"") ->  | G71: 0 | R71: =VLOOKUP($B71,'Stap 2 Register'!$A$8:$AK$107,15,0) ->  | S71: 0 | T71: 0 | U71: 0 | V71: 0 | W71: 0 | X71: 0 | Y71: 0 | Z71: 0 | AA71: 0 | AB71: 0 | AC71: 0 | AD71: 0 | AE71: 0 | AF71: 0
A72: 65 | B72: =_xlfn.XLOOKUP(A72,'Stap 2 Register'!$AJ$8:$AJ$107,'Stap 2 Register'!$A$8:$A$107) ->  | C72: =_xlfn.IFNA(_xlfn.XLOOKUP(B72,'Stap 2 Register'!$A$8:$A$107,'Stap 2 Register'!$B$8:$B$107),"") ->  | D72: =_xlfn.IFNA(_xlfn.XLOOKUP(B72,'Stap 2 Register'!$A$8:$A$107,'Stap 2 Register'!$C$8:$C$107),"") ->  | E72: =_xlfn.IFNA(_xlfn.XLOOKUP(B72,'Stap 2 Register'!$A$8:$A$107,'Stap 2 Register'!$E$8:$E$107),"") ->  | G72: 0 | H72: =IF(J72="","",VLOOKUP(J72,matrixtest,6,FALSE)) ->  | I72: =IF(J72="","",VLOOKUP(J72,matrixtest,5,FALSE)) ->  | P72: =IF(Z72=0,"",VLOOKUP(Z72,risico,2,FALSE)) ->  | R72: =VLOOKUP($B72,'Stap 2 Register'!$A$8:$AK$107,15,0) ->  | S72: 0 | T72: =IF(J72="",0,VLOOKUP(J72,matrixtest,4,FALSE)) -> 0 | U72: =IF(K72="",0,VLOOKUP(K72,matrixtest,4,FALSE)) -> 0 | V72: =IF(L72="",0,VLOOKUP(L72,matrixtest,4,FALSE)) -> 0 | W72: =IF(M72="",0,VLOOKUP(M72,matrixtest,4,FALSE)) -> 0 | X72: =IF(N72="",0,VLOOKUP(N72,matrixtest,4,FALSE)) -> 0 | Y72: =IF(O72="",0,VLOOKUP(O72,matrixtest,4,FALSE)) -> 0 | Z72: 0 | AA72: =IF(J72="",0,VLOOKUP(J72,matrixtest,2,FALSE)) -> 0 | AB72: =IF(K72="",0,VLOOKUP(K72,matrixtest,2,FALSE)) -> 0 | AC72: =IF(L72="",0,VLOOKUP(L72,matrixtest,2,FALSE)) -> 0 | AD72: =IF(M72="",0,VLOOKUP(M72,matrixtest,2,FALSE)) -> 0 | AE72: =IF(N72="",0,VLOOKUP(N72,matrixtest,2,FALSE)) -> 0 | AF72: =IF(O72="",0,VLOOKUP(O72,matrixtest,2,FALSE)) -> 0 | AG72: =IF(J72="","",VLOOKUP(J72,matrixtest,3,FALSE)) ->  | AH72: =IF(K72="","",VLOOKUP(K72,matrixtest,3,FALSE)) ->  | AI72: =IF(L72="","",VLOOKUP(L72,matrixtest,3,FALSE)) ->  | AJ72: =IF(M72="","",VLOOKUP(M72,matrixtest,3,FALSE)) ->  | AK72: =IF(N72="","",VLOOKUP(N72,matrixtest,3,FALSE)) ->  | AL72: =IF(O72="","",VLOOKUP(O72,matrixtest,3,FALSE)) -> 
A73: 66 | B73: =_xlfn.XLOOKUP(A73,'Stap 2 Register'!$AJ$8:$AJ$107,'Stap 2 Register'!$A$8:$A$107) ->  | C73: =_xlfn.IFNA(_xlfn.XLOOKUP(B73,'Stap 2 Register'!$A$8:$A$107,'Stap 2 Register'!$B$8:$B$107),"") ->  | D73: =_xlfn.IFNA(_xlfn.XLOOKUP(B73,'Stap 2 Register'!$A$8:$A$107,'Stap 2 Register'!$C$8:$C$107),"") ->  | E73: =_xlfn.IFNA(_xlfn.XLOOKUP(B73,'Stap 2 Register'!$A$8:$A$107,'Stap 2 Register'!$E$8:$E$107),"") ->  | G73: 0 | Q73: =IF(G73=0,"",IF((R73-S73)<0,(G73/(R73-S73)),((R73-S73)/G73))) ->  | R73: =VLOOKUP($B73,'Stap 2 Register'!$A$8:$AK$107,15,0) ->  | S73: =SUM(AA73:AF73) -> 0 | T73: 0 | U73: 0 | V73: 0 | W73: 0 | X73: 0 | Y73: 0 | Z73: =MAX(T73:Y73) -> 0 | AA73: 0 | AB73: 0 | AC73: 0 | AD73: 0 | AE73: 0 | AF73: 0 | AO73: =IF($P73=$AO$7,_xlfn.TEXTJOIN($AN$6,,$C73,$D73),"") ->  | AP73: =IF($P73=$AP$7,_xlfn.TEXTJOIN($AN$6,,$C73,$D73),"") ->  | AQ73: =IF($P73=$AQ$7,_xlfn.TEXTJOIN($AN$6,,$C73,$D73),"") ->  | AR73: =IF($P73=$AR$7,_xlfn.TEXTJOIN($AN$6,,$C73,$D73),"") ->  | AS73: =IF($P73=$AS$7,_xlfn.TEXTJOIN($AN$6,,$C73,$D73),"") ->  | AT73: =IF($P73=$AT$7,_xlfn.TEXTJOIN($AN$6,,$C73,$D73),"") -> 
A74: 67 | B74: =_xlfn.XLOOKUP(A74,'Stap 2 Register'!$AJ$8:$AJ$107,'Stap 2 Register'!$A$8:$A$107) ->  | C74: =_xlfn.IFNA(_xlfn.XLOOKUP(B74,'Stap 2 Register'!$A$8:$A$107,'Stap 2 Register'!$B$8:$B$107),"") ->  | D74: =_xlfn.IFNA(_xlfn.XLOOKUP(B74,'Stap 2 Register'!$A$8:$A$107,'Stap 2 Register'!$C$8:$C$107),"") ->  | E74: =_xlfn.IFNA(_xlfn.XLOOKUP(B74,'Stap 2 Register'!$A$8:$A$107,'Stap 2 Register'!$E$8:$E$107),"") ->  | G74: 0 | R74: =VLOOKUP($B74,'Stap 2 Register'!$A$8:$AK$107,15,0) ->  | S74: 0 | T74: 0 | U74: 0 | V74: 0 | W74: 0 | X74: 0 | Y74: 0 | Z74: 0 | AA74: 0 | AB74: 0 | AC74: 0 | AD74: 0 | AE74: 0 | AF74: 0
A75: 68 | B75: =_xlfn.XLOOKUP(A75,'Stap 2 Register'!$AJ$8:$AJ$107,'Stap 2 Register'!$A$8:$A$107) ->  | C75: =_xlfn.IFNA(_xlfn.XLOOKUP(B75,'Stap 2 Register'!$A$8:$A$107,'Stap 2 Register'!$B$8:$B$107),"") ->  | D75: =_xlfn.IFNA(_xlfn.XLOOKUP(B75,'Stap 2 Register'!$A$8:$A$107,'Stap 2 Register'!$C$8:$C$107),"") ->  | E75: =_xlfn.IFNA(_xlfn.XLOOKUP(B75,'Stap 2 Register'!$A$8:$A$107,'Stap 2 Register'!$E$8:$E$107),"") ->  | G75: 0 | R75: =VLOOKUP($B75,'Stap 2 Register'!$A$8:$AK$107,15,0) ->  | S75: 0 | T75: 0 | U75: 0 | V75: 0 | W75: 0 | X75: 0 | Y75: 0 | Z75: 0 | AA75: 0 | AB75: 0 | AC75: 0 | AD75: 0 | AE75: 0 | AF75: 0
A76: 69 | B76: =_xlfn.XLOOKUP(A76,'Stap 2 Register'!$AJ$8:$AJ$107,'Stap 2 Register'!$A$8:$A$107) ->  | C76: =_xlfn.IFNA(_xlfn.XLOOKUP(B76,'Stap 2 Register'!$A$8:$A$107,'Stap 2 Register'!$B$8:$B$107),"") ->  | D76: =_xlfn.IFNA(_xlfn.XLOOKUP(B76,'Stap 2 Register'!$A$8:$A$107,'Stap 2 Register'!$C$8:$C$107),"") ->  | E76: =_xlfn.IFNA(_xlfn.XLOOKUP(B76,'Stap 2 Register'!$A$8:$A$107,'Stap 2 Register'!$E$8:$E$107),"") ->  | G76: 0 | R76: =VLOOKUP($B76,'Stap 2 Register'!$A$8:$AK$107,15,0) ->  | S76: 0 | T76: 0 | U76: 0 | V76: 0 | W76: 0 | X76: 0 | Y76: 0 | Z76: 0 | AA76: 0 | AB76: 0 | AC76: 0 | AD76: 0 | AE76: 0 | AF76: 0
A77: 70 | B77: =_xlfn.XLOOKUP(A77,'Stap 2 Register'!$AJ$8:$AJ$107,'Stap 2 Register'!$A$8:$A$107) ->  | C77: =_xlfn.IFNA(_xlfn.XLOOKUP(B77,'Stap 2 Register'!$A$8:$A$107,'Stap 2 Register'!$B$8:$B$107),"") ->  | D77: =_xlfn.IFNA(_xlfn.XLOOKUP(B77,'Stap 2 Register'!$A$8:$A$107,'Stap 2 Register'!$C$8:$C$107),"") ->  | E77: =_xlfn.IFNA(_xlfn.XLOOKUP(B77,'Stap 2 Register'!$A$8:$A$107,'Stap 2 Register'!$E$8:$E$107),"") ->  | G77: 0 | R77: =VLOOKUP($B77,'Stap 2 Register'!$A$8:$AK$107,15,0) ->  | S77: 0 | T77: 0 | U77: 0 | V77: 0 | W77: 0 | X77: 0 | Y77: 0 | Z77: 0 | AA77: 0 | AB77: 0 | AC77: 0 | AD77: 0 | AE77: 0 | AF77: 0
A78: 71 | B78: =_xlfn.XLOOKUP(A78,'Stap 2 Register'!$AJ$8:$AJ$107,'Stap 2 Register'!$A$8:$A$107) ->  | C78: =_xlfn.IFNA(_xlfn.XLOOKUP(B78,'Stap 2 Register'!$A$8:$A$107,'Stap 2 Register'!$B$8:$B$107),"") ->  | D78: =_xlfn.IFNA(_xlfn.XLOOKUP(B78,'Stap 2 Register'!$A$8:$A$107,'Stap 2 Register'!$C$8:$C$107),"") ->  | E78: =_xlfn.IFNA(_xlfn.XLOOKUP(B78,'Stap 2 Register'!$A$8:$A$107,'Stap 2 Register'!$E$8:$E$107),"") ->  | G78: 0 | R78: =VLOOKUP($B78,'Stap 2 Register'!$A$8:$AK$107,15,0) ->  | S78: 0 | T78: 0 | U78: 0 | V78: 0 | W78: 0 | X78: 0 | Y78: 0 | Z78: 0 | AA78: 0 | AB78: 0 | AC78: 0 | AD78: 0 | AE78: 0 | AF78: 0
A79: 72 | B79: =_xlfn.XLOOKUP(A79,'Stap 2 Register'!$AJ$8:$AJ$107,'Stap 2 Register'!$A$8:$A$107) ->  | C79: =_xlfn.IFNA(_xlfn.XLOOKUP(B79,'Stap 2 Register'!$A$8:$A$107,'Stap 2 Register'!$B$8:$B$107),"") ->  | D79: =_xlfn.IFNA(_xlfn.XLOOKUP(B79,'Stap 2 Register'!$A$8:$A$107,'Stap 2 Register'!$C$8:$C$107),"") ->  | E79: =_xlfn.IFNA(_xlfn.XLOOKUP(B79,'Stap 2 Register'!$A$8:$A$107,'Stap 2 Register'!$E$8:$E$107),"") ->  | G79: 0 | R79: =VLOOKUP($B79,'Stap 2 Register'!$A$8:$AK$107,15,0) ->  | S79: 0 | T79: 0 | U79: 0 | V79: 0 | W79: 0 | X79: 0 | Y79: 0 | Z79: 0 | AA79: 0 | AB79: 0 | AC79: 0 | AD79: 0 | AE79: 0 | AF79: 0
A80: 73 | B80: =_xlfn.XLOOKUP(A80,'Stap 2 Register'!$AJ$8:$AJ$107,'Stap 2 Register'!$A$8:$A$107) ->  | C80: =_xlfn.IFNA(_xlfn.XLOOKUP(B80,'Stap 2 Register'!$A$8:$A$107,'Stap 2 Register'!$B$8:$B$107),"") ->  | D80: =_xlfn.IFNA(_xlfn.XLOOKUP(B80,'Stap 2 Register'!$A$8:$A$107,'Stap 2 Register'!$C$8:$C$107),"") ->  | E80: =_xlfn.IFNA(_xlfn.XLOOKUP(B80,'Stap 2 Register'!$A$8:$A$107,'Stap 2 Register'!$E$8:$E$107),"") ->  | G80: 0 | R80: =VLOOKUP($B80,'Stap 2 Register'!$A$8:$AK$107,15,0) ->  | S80: 0 | T80: 0 | U80: 0 | V80: 0 | W80: 0 | X80: 0 | Y80: 0 | Z80: 0 | AA80: 0 | AB80: 0 | AC80: 0 | AD80: 0 | AE80: 0 | AF80: 0
A81: 74 | B81: =_xlfn.XLOOKUP(A81,'Stap 2 Register'!$AJ$8:$AJ$107,'Stap 2 Register'!$A$8:$A$107) ->  | C81: =_xlfn.IFNA(_xlfn.XLOOKUP(B81,'Stap 2 Register'!$A$8:$A$107,'Stap 2 Register'!$B$8:$B$107),"") ->  | D81: =_xlfn.IFNA(_xlfn.XLOOKUP(B81,'Stap 2 Register'!$A$8:$A$107,'Stap 2 Register'!$C$8:$C$107),"") ->  | E81: =_xlfn.IFNA(_xlfn.XLOOKUP(B81,'Stap 2 Register'!$A$8:$A$107,'Stap 2 Register'!$E$8:$E$107),"") ->  | G81: 0 | R81: =VLOOKUP($B81,'Stap 2 Register'!$A$8:$AK$107,15,0) ->  | S81: 0 | T81: 0 | U81: 0 | V81: 0 | W81: 0 | X81: 0 | Y81: 0 | Z81: 0 | AA81: 0 | AB81: 0 | AC81: 0 | AD81: 0 | AE81: 0 | AF81: 0
A82: 75 | B82: =_xlfn.XLOOKUP(A82,'Stap 2 Register'!$AJ$8:$AJ$107,'Stap 2 Register'!$A$8:$A$107) ->  | C82: =_xlfn.IFNA(_xlfn.XLOOKUP(B82,'Stap 2 Register'!$A$8:$A$107,'Stap 2 Register'!$B$8:$B$107),"") ->  | D82: =_xlfn.IFNA(_xlfn.XLOOKUP(B82,'Stap 2 Register'!$A$8:$A$107,'Stap 2 Register'!$C$8:$C$107),"") ->  | E82: =_xlfn.IFNA(_xlfn.XLOOKUP(B82,'Stap 2 Register'!$A$8:$A$107,'Stap 2 Register'!$E$8:$E$107),"") ->  | G82: 0 | R82: =VLOOKUP($B82,'Stap 2 Register'!$A$8:$AK$107,15,0) ->  | S82: 0 | T82: 0 | U82: 0 | V82: 0 | W82: 0 | X82: 0 | Y82: 0 | Z82: 0 | AA82: 0 | AB82: 0 | AC82: 0 | AD82: 0 | AE82: 0 | AF82: 0
A83: 76 | B83: =_xlfn.XLOOKUP(A83,'Stap 2 Register'!$AJ$8:$AJ$107,'Stap 2 Register'!$A$8:$A$107) ->  | C83: =_xlfn.IFNA(_xlfn.XLOOKUP(B83,'Stap 2 Register'!$A$8:$A$107,'Stap 2 Register'!$B$8:$B$107),"") ->  | D83: =_xlfn.IFNA(_xlfn.XLOOKUP(B83,'Stap 2 Register'!$A$8:$A$107,'Stap 2 Register'!$C$8:$C$107),"") ->  | E83: =_xlfn.IFNA(_xlfn.XLOOKUP(B83,'Stap 2 Register'!$A$8:$A$107,'Stap 2 Register'!$E$8:$E$107),"") ->  | G83: 0 | R83: =VLOOKUP($B83,'Stap 2 Register'!$A$8:$AK$107,15,0) ->  | S83: 0 | T83: 0 | U83: 0 | V83: 0 | W83: 0 | X83: 0 | Y83: 0 | Z83: 0 | AA83: 0 | AB83: 0 | AC83: 0 | AD83: 0 | AE83: 0 | AF83: 0
A84: 77 | B84: =_xlfn.XLOOKUP(A84,'Stap 2 Register'!$AJ$8:$AJ$107,'Stap 2 Register'!$A$8:$A$107) ->  | C84: =_xlfn.IFNA(_xlfn.XLOOKUP(B84,'Stap 2 Register'!$A$8:$A$107,'Stap 2 Register'!$B$8:$B$107),"") ->  | D84: =_xlfn.IFNA(_xlfn.XLOOKUP(B84,'Stap 2 Register'!$A$8:$A$107,'Stap 2 Register'!$C$8:$C$107),"") ->  | E84: =_xlfn.IFNA(_xlfn.XLOOKUP(B84,'Stap 2 Register'!$A$8:$A$107,'Stap 2 Register'!$E$8:$E$107),"") ->  | G84: 0 | R84: =VLOOKUP($B84,'Stap 2 Register'!$A$8:$AK$107,15,0) ->  | S84: 0 | T84: 0 | U84: 0 | V84: 0 | W84: 0 | X84: 0 | Y84: 0 | Z84: 0 | AA84: 0 | AB84: 0 | AC84: 0 | AD84: 0 | AE84: 0 | AF84: 0
A85: 78 | B85: =_xlfn.XLOOKUP(A85,'Stap 2 Register'!$AJ$8:$AJ$107,'Stap 2 Register'!$A$8:$A$107) ->  | C85: =_xlfn.IFNA(_xlfn.XLOOKUP(B85,'Stap 2 Register'!$A$8:$A$107,'Stap 2 Register'!$B$8:$B$107),"") ->  | D85: =_xlfn.IFNA(_xlfn.XLOOKUP(B85,'Stap 2 Register'!$A$8:$A$107,'Stap 2 Register'!$C$8:$C$107),"") ->  | E85: =_xlfn.IFNA(_xlfn.XLOOKUP(B85,'Stap 2 Register'!$A$8:$A$107,'Stap 2 Register'!$E$8:$E$107),"") ->  | G85: 0 | R85: =VLOOKUP($B85,'Stap 2 Register'!$A$8:$AK$107,15,0) ->  | S85: 0 | T85: 0 | U85: 0 | V85: 0 | W85: 0 | X85: 0 | Y85: 0 | Z85: 0 | AA85: 0 | AB85: 0 | AC85: 0 | AD85: 0 | AE85: 0 | AF85: 0
A86: 79 | B86: =_xlfn.XLOOKUP(A86,'Stap 2 Register'!$AJ$8:$AJ$107,'Stap 2 Register'!$A$8:$A$107) ->  | C86: =_xlfn.IFNA(_xlfn.XLOOKUP(B86,'Stap 2 Register'!$A$8:$A$107,'Stap 2 Register'!$B$8:$B$107),"") ->  | D86: =_xlfn.IFNA(_xlfn.XLOOKUP(B86,'Stap 2 Register'!$A$8:$A$107,'Stap 2 Register'!$C$8:$C$107),"") ->  | E86: =_xlfn.IFNA(_xlfn.XLOOKUP(B86,'Stap 2 Register'!$A$8:$A$107,'Stap 2 Register'!$E$8:$E$107),"") ->  | G86: 0 | R86: =VLOOKUP($B86,'Stap 2 Register'!$A$8:$AK$107,15,0) ->  | S86: 0 | T86: 0 | U86: 0 | V86: 0 | W86: 0 | X86: 0 | Y86: 0 | Z86: 0 | AA86: 0 | AB86: 0 | AC86: 0 | AD86: 0 | AE86: 0 | AF86: 0
A87: 80 | B87: =_xlfn.XLOOKUP(A87,'Stap 2 Register'!$AJ$8:$AJ$107,'Stap 2 Register'!$A$8:$A$107) ->  | C87: =_xlfn.IFNA(_xlfn.XLOOKUP(B87,'Stap 2 Register'!$A$8:$A$107,'Stap 2 Register'!$B$8:$B$107),"") ->  | D87: =_xlfn.IFNA(_xlfn.XLOOKUP(B87,'Stap 2 Register'!$A$8:$A$107,'Stap 2 Register'!$C$8:$C$107),"") ->  | E87: =_xlfn.IFNA(_xlfn.XLOOKUP(B87,'Stap 2 Register'!$A$8:$A$107,'Stap 2 Register'!$E$8:$E$107),"") ->  | G87: 0 | R87: =VLOOKUP($B87,'Stap 2 Register'!$A$8:$AK$107,15,0) ->  | S87: 0 | T87: 0 | U87: 0 | V87: 0 | W87: 0 | X87: 0 | Y87: 0 | Z87: 0 | AA87: 0 | AB87: 0 | AC87: 0 | AD87: 0 | AE87: 0 | AF87: 0
A88: 81 | B88: =_xlfn.XLOOKUP(A88,'Stap 2 Register'!$AJ$8:$AJ$107,'Stap 2 Register'!$A$8:$A$107) ->  | C88: =_xlfn.IFNA(_xlfn.XLOOKUP(B88,'Stap 2 Register'!$A$8:$A$107,'Stap 2 Register'!$B$8:$B$107),"") ->  | D88: =_xlfn.IFNA(_xlfn.XLOOKUP(B88,'Stap 2 Register'!$A$8:$A$107,'Stap 2 Register'!$C$8:$C$107),"") ->  | E88: =_xlfn.IFNA(_xlfn.XLOOKUP(B88,'Stap 2 Register'!$A$8:$A$107,'Stap 2 Register'!$E$8:$E$107),"") ->  | G88: 0 | R88: =VLOOKUP($B88,'Stap 2 Register'!$A$8:$AK$107,15,0) ->  | S88: 0 | T88: 0 | U88: 0 | V88: 0 | W88: 0 | X88: 0 | Y88: 0 | Z88: 0 | AA88: 0 | AB88: 0 | AC88: 0 | AD88: 0 | AE88: 0 | AF88: 0
A89: 82 | B89: =_xlfn.XLOOKUP(A89,'Stap 2 Register'!$AJ$8:$AJ$107,'Stap 2 Register'!$A$8:$A$107) ->  | C89: =_xlfn.IFNA(_xlfn.XLOOKUP(B89,'Stap 2 Register'!$A$8:$A$107,'Stap 2 Register'!$B$8:$B$107),"") ->  | D89: =_xlfn.IFNA(_xlfn.XLOOKUP(B89,'Stap 2 Register'!$A$8:$A$107,'Stap 2 Register'!$C$8:$C$107),"") ->  | E89: =_xlfn.IFNA(_xlfn.XLOOKUP(B89,'Stap 2 Register'!$A$8:$A$107,'Stap 2 Register'!$E$8:$E$107),"") ->  | G89: 0 | R89: =VLOOKUP($B89,'Stap 2 Register'!$A$8:$AK$107,15,0) ->  | S89: 0 | T89: 0 | U89: 0 | V89: 0 | W89: 0 | X89: 0 | Y89: 0 | Z89: 0 | AA89: 0 | AB89: 0 | AC89: 0 | AD89: 0 | AE89: 0 | AF89: 0
A90: 83 | B90: =_xlfn.XLOOKUP(A90,'Stap 2 Register'!$AJ$8:$AJ$107,'Stap 2 Register'!$A$8:$A$107) ->  | C90: =_xlfn.IFNA(_xlfn.XLOOKUP(B90,'Stap 2 Register'!$A$8:$A$107,'Stap 2 Register'!$B$8:$B$107),"") ->  | D90: =_xlfn.IFNA(_xlfn.XLOOKUP(B90,'Stap 2 Register'!$A$8:$A$107,'Stap 2 Register'!$C$8:$C$107),"") ->  | E90: =_xlfn.IFNA(_xlfn.XLOOKUP(B90,'Stap 2 Register'!$A$8:$A$107,'Stap 2 Register'!$E$8:$E$107),"") ->  | G90: 0 | R90: =VLOOKUP($B90,'Stap 2 Register'!$A$8:$AK$107,15,0) ->  | S90: 0 | T90: 0 | U90: 0 | V90: 0 | W90: 0 | X90: 0 | Y90: 0 | Z90: 0 | AA90: 0 | AB90: 0 | AC90: 0 | AD90: 0 | AE90: 0 | AF90: 0
A91: 84 | B91: =_xlfn.XLOOKUP(A91,'Stap 2 Register'!$AJ$8:$AJ$107,'Stap 2 Register'!$A$8:$A$107) ->  | C91: =_xlfn.IFNA(_xlfn.XLOOKUP(B91,'Stap 2 Register'!$A$8:$A$107,'Stap 2 Register'!$B$8:$B$107),"") ->  | D91: =_xlfn.IFNA(_xlfn.XLOOKUP(B91,'Stap 2 Register'!$A$8:$A$107,'Stap 2 Register'!$C$8:$C$107),"") ->  | E91: =_xlfn.IFNA(_xlfn.XLOOKUP(B91,'Stap 2 Register'!$A$8:$A$107,'Stap 2 Register'!$E$8:$E$107),"") ->  | G91: 0 | R91: =VLOOKUP($B91,'Stap 2 Register'!$A$8:$AK$107,15,0) ->  | S91: 0 | T91: 0 | U91: 0 | V91: 0 | W91: 0 | X91: 0 | Y91: 0 | Z91: 0 | AA91: 0 | AB91: 0 | AC91: 0 | AD91: 0 | AE91: 0 | AF91: 0
A92: 85 | B92: =_xlfn.XLOOKUP(A92,'Stap 2 Register'!$AJ$8:$AJ$107,'Stap 2 Register'!$A$8:$A$107) ->  | C92: =_xlfn.IFNA(_xlfn.XLOOKUP(B92,'Stap 2 Register'!$A$8:$A$107,'Stap 2 Register'!$B$8:$B$107),"") ->  | D92: =_xlfn.IFNA(_xlfn.XLOOKUP(B92,'Stap 2 Register'!$A$8:$A$107,'Stap 2 Register'!$C$8:$C$107),"") ->  | E92: =_xlfn.IFNA(_xlfn.XLOOKUP(B92,'Stap 2 Register'!$A$8:$A$107,'Stap 2 Register'!$E$8:$E$107),"") ->  | G92: 0 | R92: =VLOOKUP($B92,'Stap 2 Register'!$A$8:$AK$107,15,0) ->  | S92: 0 | T92: 0 | U92: 0 | V92: 0 | W92: 0 | X92: 0 | Y92: 0 | Z92: 0 | AA92: 0 | AB92: 0 | AC92: 0 | AD92: 0 | AE92: 0 | AF92: 0
A93: 86 | B93: =_xlfn.XLOOKUP(A93,'Stap 2 Register'!$AJ$8:$AJ$107,'Stap 2 Register'!$A$8:$A$107) ->  | C93: =_xlfn.IFNA(_xlfn.XLOOKUP(B93,'Stap 2 Register'!$A$8:$A$107,'Stap 2 Register'!$B$8:$B$107),"") ->  | D93: =_xlfn.IFNA(_xlfn.XLOOKUP(B93,'Stap 2 Register'!$A$8:$A$107,'Stap 2 Register'!$C$8:$C$107),"") ->  | E93: =_xlfn.IFNA(_xlfn.XLOOKUP(B93,'Stap 2 Register'!$A$8:$A$107,'Stap 2 Register'!$E$8:$E$107),"") ->  | G93: 0 | R93: =VLOOKUP($B93,'Stap 2 Register'!$A$8:$AK$107,15,0) ->  | S93: 0 | T93: 0 | U93: 0 | V93: 0 | W93: 0 | X93: 0 | Y93: 0 | Z93: 0 | AA93: 0 | AB93: 0 | AC93: 0 | AD93: 0 | AE93: 0 | AF93: 0
A94: 87 | B94: =_xlfn.XLOOKUP(A94,'Stap 2 Register'!$AJ$8:$AJ$107,'Stap 2 Register'!$A$8:$A$107) ->  | C94: =_xlfn.IFNA(_xlfn.XLOOKUP(B94,'Stap 2 Register'!$A$8:$A$107,'Stap 2 Register'!$B$8:$B$107),"") ->  | D94: =_xlfn.IFNA(_xlfn.XLOOKUP(B94,'Stap 2 Register'!$A$8:$A$107,'Stap 2 Register'!$C$8:$C$107),"") ->  | E94: =_xlfn.IFNA(_xlfn.XLOOKUP(B94,'Stap 2 Register'!$A$8:$A$107,'Stap 2 Register'!$E$8:$E$107),"") ->  | G94: 0 | R94: =VLOOKUP($B94,'Stap 2 Register'!$A$8:$AK$107,15,0) ->  | S94: 0 | T94: 0 | U94: 0 | V94: 0 | W94: 0 | X94: 0 | Y94: 0 | Z94: 0 | AA94: 0 | AB94: 0 | AC94: 0 | AD94: 0 | AE94: 0 | AF94: 0
A95: 88 | B95: =_xlfn.XLOOKUP(A95,'Stap 2 Register'!$AJ$8:$AJ$107,'Stap 2 Register'!$A$8:$A$107) ->  | C95: =_xlfn.IFNA(_xlfn.XLOOKUP(B95,'Stap 2 Register'!$A$8:$A$107,'Stap 2 Register'!$B$8:$B$107),"") ->  | D95: =_xlfn.IFNA(_xlfn.XLOOKUP(B95,'Stap 2 Register'!$A$8:$A$107,'Stap 2 Register'!$C$8:$C$107),"") ->  | E95: =_xlfn.IFNA(_xlfn.XLOOKUP(B95,'Stap 2 Register'!$A$8:$A$107,'Stap 2 Register'!$E$8:$E$107),"") ->  | G95: 0 | R95: =VLOOKUP($B95,'Stap 2 Register'!$A$8:$AK$107,15,0) ->  | S95: 0 | T95: 0 | U95: 0 | V95: 0 | W95: 0 | X95: 0 | Y95: 0 | Z95: 0 | AA95: 0 | AB95: 0 | AC95: 0 | AD95: 0 | AE95: 0 | AF95: 0
A96: 89 | B96: =_xlfn.XLOOKUP(A96,'Stap 2 Register'!$AJ$8:$AJ$107,'Stap 2 Register'!$A$8:$A$107) ->  | C96: =_xlfn.IFNA(_xlfn.XLOOKUP(B96,'Stap 2 Register'!$A$8:$A$107,'Stap 2 Register'!$B$8:$B$107),"") ->  | D96: =_xlfn.IFNA(_xlfn.XLOOKUP(B96,'Stap 2 Register'!$A$8:$A$107,'Stap 2 Register'!$C$8:$C$107),"") ->  | E96: =_xlfn.IFNA(_xlfn.XLOOKUP(B96,'Stap 2 Register'!$A$8:$A$107,'Stap 2 Register'!$E$8:$E$107),"") ->  | G96: 0 | R96: =VLOOKUP($B96,'Stap 2 Register'!$A$8:$AK$107,15,0) ->  | S96: 0 | T96: 0 | U96: 0 | V96: 0 | W96: 0 | X96: 0 | Y96: 0 | Z96: 0 | AA96: 0 | AB96: 0 | AC96: 0 | AD96: 0 | AE96: 0 | AF96: 0
A97: 90 | B97: =_xlfn.XLOOKUP(A97,'Stap 2 Register'!$AJ$8:$AJ$107,'Stap 2 Register'!$A$8:$A$107) ->  | C97: =_xlfn.IFNA(_xlfn.XLOOKUP(B97,'Stap 2 Register'!$A$8:$A$107,'Stap 2 Register'!$B$8:$B$107),"") ->  | D97: =_xlfn.IFNA(_xlfn.XLOOKUP(B97,'Stap 2 Register'!$A$8:$A$107,'Stap 2 Register'!$C$8:$C$107),"") ->  | E97: =_xlfn.IFNA(_xlfn.XLOOKUP(B97,'Stap 2 Register'!$A$8:$A$107,'Stap 2 Register'!$E$8:$E$107),"") ->  | G97: 0 | R97: =VLOOKUP($B97,'Stap 2 Register'!$A$8:$AK$107,15,0) ->  | S97: 0 | T97: 0 | U97: 0 | V97: 0 | W97: 0 | X97: 0 | Y97: 0 | Z97: 0 | AA97: 0 | AB97: 0 | AC97: 0 | AD97: 0 | AE97: 0 | AF97: 0
A98: 91 | B98: =_xlfn.XLOOKUP(A98,'Stap 2 Register'!$AJ$8:$AJ$107,'Stap 2 Register'!$A$8:$A$107) ->  | C98: =_xlfn.IFNA(_xlfn.XLOOKUP(B98,'Stap 2 Register'!$A$8:$A$107,'Stap 2 Register'!$B$8:$B$107),"") ->  | D98: =_xlfn.IFNA(_xlfn.XLOOKUP(B98,'Stap 2 Register'!$A$8:$A$107,'Stap 2 Register'!$C$8:$C$107),"") ->  | E98: =_xlfn.IFNA(_xlfn.XLOOKUP(B98,'Stap 2 Register'!$A$8:$A$107,'Stap 2 Register'!$E$8:$E$107),"") ->  | G98: 0 | R98: =VLOOKUP($B98,'Stap 2 Register'!$A$8:$AK$107,15,0) ->  | S98: 0 | T98: 0 | U98: 0 | V98: 0 | W98: 0 | X98: 0 | Y98: 0 | Z98: 0 | AA98: 0 | AB98: 0 | AC98: 0 | AD98: 0 | AE98: 0 | AF98: 0
A99: 92 | B99: =_xlfn.XLOOKUP(A99,'Stap 2 Register'!$AJ$8:$AJ$107,'Stap 2 Register'!$A$8:$A$107) ->  | C99: =_xlfn.IFNA(_xlfn.XLOOKUP(B99,'Stap 2 Register'!$A$8:$A$107,'Stap 2 Register'!$B$8:$B$107),"") ->  | D99: =_xlfn.IFNA(_xlfn.XLOOKUP(B99,'Stap 2 Register'!$A$8:$A$107,'Stap 2 Register'!$C$8:$C$107),"") ->  | E99: =_xlfn.IFNA(_xlfn.XLOOKUP(B99,'Stap 2 Register'!$A$8:$A$107,'Stap 2 Register'!$E$8:$E$107),"") ->  | G99: 0 | R99: =VLOOKUP($B99,'Stap 2 Register'!$A$8:$AK$107,15,0) ->  | S99: 0 | T99: 0 | U99: 0 | V99: 0 | W99: 0 | X99: 0 | Y99: 0 | Z99: 0 | AA99: 0 | AB99: 0 | AC99: 0 | AD99: 0 | AE99: 0 | AF99: 0
A100: 93 | B100: =_xlfn.XLOOKUP(A100,'Stap 2 Register'!$AJ$8:$AJ$107,'Stap 2 Register'!$A$8:$A$107) ->  | C100: =_xlfn.IFNA(_xlfn.XLOOKUP(B100,'Stap 2 Register'!$A$8:$A$107,'Stap 2 Register'!$B$8:$B$107),"") ->  | D100: =_xlfn.IFNA(_xlfn.XLOOKUP(B100,'Stap 2 Register'!$A$8:$A$107,'Stap 2 Register'!$C$8:$C$107),"") ->  | E100: =_xlfn.IFNA(_xlfn.XLOOKUP(B100,'Stap 2 Register'!$A$8:$A$107,'Stap 2 Register'!$E$8:$E$107),"") ->  | G100: 0 | R100: =VLOOKUP($B100,'Stap 2 Register'!$A$8:$AK$107,15,0) ->  | S100: 0 | T100: 0 | U100: 0 | V100: 0 | W100: 0 | X100: 0 | Y100: 0 | Z100: 0 | AA100: 0 | AB100: 0 | AC100: 0 | AD100: 0 | AE100: 0 | AF100: 0
A101: 94 | B101: =_xlfn.XLOOKUP(A101,'Stap 2 Register'!$AJ$8:$AJ$107,'Stap 2 Register'!$A$8:$A$107) ->  | C101: =_xlfn.IFNA(_xlfn.XLOOKUP(B101,'Stap 2 Register'!$A$8:$A$107,'Stap 2 Register'!$B$8:$B$107),"") ->  | D101: =_xlfn.IFNA(_xlfn.XLOOKUP(B101,'Stap 2 Register'!$A$8:$A$107,'Stap 2 Register'!$C$8:$C$107),"") ->  | E101: =_xlfn.IFNA(_xlfn.XLOOKUP(B101,'Stap 2 Register'!$A$8:$A$107,'Stap 2 Register'!$E$8:$E$107),"") ->  | G101: 0 | R101: =VLOOKUP($B101,'Stap 2 Register'!$A$8:$AK$107,15,0) ->  | S101: 0 | T101: 0 | U101: 0 | V101: 0 | W101: 0 | X101: 0 | Y101: 0 | Z101: 0 | AA101: 0 | AB101: 0 | AC101: 0 | AD101: 0 | AE101: 0 | AF101: 0
A102: 95 | B102: =_xlfn.XLOOKUP(A102,'Stap 2 Register'!$AJ$8:$AJ$107,'Stap 2 Register'!$A$8:$A$107) ->  | C102: =_xlfn.IFNA(_xlfn.XLOOKUP(B102,'Stap 2 Register'!$A$8:$A$107,'Stap 2 Register'!$B$8:$B$107),"") ->  | D102: =_xlfn.IFNA(_xlfn.XLOOKUP(B102,'Stap 2 Register'!$A$8:$A$107,'Stap 2 Register'!$C$8:$C$107),"") ->  | E102: =_xlfn.IFNA(_xlfn.XLOOKUP(B102,'Stap 2 Register'!$A$8:$A$107,'Stap 2 Register'!$E$8:$E$107),"") ->  | G102: 0 | R102: =VLOOKUP($B102,'Stap 2 Register'!$A$8:$AK$107,15,0) ->  | S102: 0 | T102: 0 | U102: 0 | V102: 0 | W102: 0 | X102: 0 | Y102: 0 | Z102: 0 | AA102: 0 | AB102: 0 | AC102: 0 | AD102: 0 | AE102: 0 | AF102: 0
A103: 96 | B103: =_xlfn.XLOOKUP(A103,'Stap 2 Register'!$AJ$8:$AJ$107,'Stap 2 Register'!$A$8:$A$107) ->  | C103: =_xlfn.IFNA(_xlfn.XLOOKUP(B103,'Stap 2 Register'!$A$8:$A$107,'Stap 2 Register'!$B$8:$B$107),"") ->  | D103: =_xlfn.IFNA(_xlfn.XLOOKUP(B103,'Stap 2 Register'!$A$8:$A$107,'Stap 2 Register'!$C$8:$C$107),"") ->  | E103: =_xlfn.IFNA(_xlfn.XLOOKUP(B103,'Stap 2 Register'!$A$8:$A$107,'Stap 2 Register'!$E$8:$E$107),"") ->  | G103: 0 | R103: =VLOOKUP($B103,'Stap 2 Register'!$A$8:$AK$107,15,0) ->  | S103: 0 | T103: 0 | U103: 0 | V103: 0 | W103: 0 | X103: 0 | Y103: 0 | Z103: 0 | AA103: 0 | AB103: 0 | AC103: 0 | AD103: 0 | AE103: 0 | AF103: 0
A104: 97 | B104: =_xlfn.XLOOKUP(A104,'Stap 2 Register'!$AJ$8:$AJ$107,'Stap 2 Register'!$A$8:$A$107) ->  | C104: =_xlfn.IFNA(_xlfn.XLOOKUP(B104,'Stap 2 Register'!$A$8:$A$107,'Stap 2 Register'!$B$8:$B$107),"") ->  | D104: =_xlfn.IFNA(_xlfn.XLOOKUP(B104,'Stap 2 Register'!$A$8:$A$107,'Stap 2 Register'!$C$8:$C$107),"") ->  | E104: =_xlfn.IFNA(_xlfn.XLOOKUP(B104,'Stap 2 Register'!$A$8:$A$107,'Stap 2 Register'!$E$8:$E$107),"") ->  | G104: 0 | I104: =IF(J104="","",VLOOKUP(J104,matrixtest,5,FALSE)) ->  | R104: =VLOOKUP($B104,'Stap 2 Register'!$A$8:$AK$107,15,0) ->  | S104: 0 | T104: 0 | U104: 0 | V104: 0 | W104: 0 | X104: 0 | Y104: 0 | Z104: 0 | AA104: 0 | AB104: 0 | AC104: 0 | AD104: 0 | AE104: 0 | AF104: 0
A105: 98 | B105: =_xlfn.XLOOKUP(A105,'Stap 2 Register'!$AJ$8:$AJ$107,'Stap 2 Register'!$A$8:$A$107) ->  | C105: =_xlfn.IFNA(_xlfn.XLOOKUP(B105,'Stap 2 Register'!$A$8:$A$107,'Stap 2 Register'!$B$8:$B$107),"") ->  | D105: =_xlfn.IFNA(_xlfn.XLOOKUP(B105,'Stap 2 Register'!$A$8:$A$107,'Stap 2 Register'!$C$8:$C$107),"") ->  | E105: =_xlfn.IFNA(_xlfn.XLOOKUP(B105,'Stap 2 Register'!$A$8:$A$107,'Stap 2 Register'!$E$8:$E$107),"") ->  | G105: 0 | R105: =VLOOKUP($B105,'Stap 2 Register'!$A$8:$AK$107,15,0) ->  | S105: 0 | T105: 0 | U105: 0 | V105: 0 | W105: 0 | X105: 0 | Y105: 0 | Z105: 0 | AA105: 0 | AB105: 0 | AC105: 0 | AD105: 0 | AE105: 0 | AF105: 0
A106: 99 | B106: =_xlfn.XLOOKUP(A106,'Stap 2 Register'!$AJ$8:$AJ$107,'Stap 2 Register'!$A$8:$A$107) ->  | C106: =_xlfn.IFNA(_xlfn.XLOOKUP(B106,'Stap 2 Register'!$A$8:$A$107,'Stap 2 Register'!$B$8:$B$107),"") ->  | D106: =_xlfn.IFNA(_xlfn.XLOOKUP(B106,'Stap 2 Register'!$A$8:$A$107,'Stap 2 Register'!$C$8:$C$107),"") ->  | E106: =_xlfn.IFNA(_xlfn.XLOOKUP(B106,'Stap 2 Register'!$A$8:$A$107,'Stap 2 Register'!$E$8:$E$107),"") ->  | G106: 0 | R106: =VLOOKUP($B106,'Stap 2 Register'!$A$8:$AK$107,15,0) ->  | S106: 0 | T106: 0 | U106: 0 | V106: 0 | W106: 0 | X106: 0 | Y106: 0 | Z106: 0 | AA106: 0 | AB106: 0 | AC106: 0 | AD106: 0 | AE106: 0 | AF106: 0
A107: 100 | B107: =_xlfn.XLOOKUP(A107,'Stap 2 Register'!$AJ$8:$AJ$107,'Stap 2 Register'!$A$8:$A$107) ->  | C107: =_xlfn.IFNA(_xlfn.XLOOKUP(B107,'Stap 2 Register'!$A$8:$A$107,'Stap 2 Register'!$B$8:$B$107),"") ->  | D107: =_xlfn.IFNA(_xlfn.XLOOKUP(B107,'Stap 2 Register'!$A$8:$A$107,'Stap 2 Register'!$C$8:$C$107),"") ->  | E107: =_xlfn.IFNA(_xlfn.XLOOKUP(B107,'Stap 2 Register'!$A$8:$A$107,'Stap 2 Register'!$E$8:$E$107),"") ->  | G107: 0 | R107: =VLOOKUP($B107,'Stap 2 Register'!$A$8:$AK$107,15,0) ->  | S107: 0 | T107: 0 | U107: 0 | V107: 0 | W107: 0 | X107: 0 | Y107: 0 | Z107: 0 | AA107: 0 | AB107: 0 | AC107: 0 | AD107: 0 | AE107: 0 | AF107: 0
AM108: LEAM © 2024
Z109: menieuw | AA109: =SUM(AA8:AA107) -> 0 | AB109: 0 | AC109: 0 | AD109: 0 | AE109: 0 | AF109: 0 | AN109: aantal | AO109: =100-COUNTBLANK(AO8:AO107) -> 0 | AP109: 0 | AQ109: 0 | AR109: 0 | AS109: 0 | AT109: 0

Sheet Overgebleven risico (hidden)
C3: Overgebleven risico's
B6: Risico-nummer | C6: Omschrijving risico | D6: Risico | E6: monetair | J6: .
A7: mon equ | E7: ='Stap 2 Register'!AC7 -> Financieel | F7: ='Stap 2 Register'!AD7 -> Doelmatig | G7: ='Stap 2 Register'!AE7 -> Kwantiteit/Veilig | H7: ='Stap 2 Register'!AF7 -> Kwal leefomgeving | I7: ='Stap 2 Register'!AG7 -> Imago | J7: ='Stap 2 Register'!AH7 -> Circulair | K7: O | L7: ZH | M7: H | N7: M | O7: L | P7: V | Q7: O | R7: ZH | S7: H | T7: M | U7: L | V7: V
A8: =IF('1e berekening'!G3=0,'1e berekening'!B3,0) -> 100 | B8: =IF(A8=0,"",VLOOKUP($A8,'Stap 2 Register'!$A$8:$AK$107,2,0)) -> 100 | C8: =IF(A8=0,0,VLOOKUP($A8,'Stap 2 Register'!$A$8:$AK$107,3,0)) -> 0 | D8: =IF(A8=0,"",VLOOKUP($A8,'Stap 2 Register'!$A$8:$AK$107,14,0)) ->  | E8: =IF(A8=0,0,VLOOKUP($A8,'Stap 2 Register'!$A$8:$AK$107,23,0)) -> 0 | F8: =IF(A8=0,0,VLOOKUP($A8,'Stap 2 Register'!$A$8:$AK$107,24,0)) -> 0 | G8: =IF(A8=0,0,VLOOKUP($A8,'Stap 2 Register'!$A$8:$AK$107,25,0)) -> 0 | H8: =IF(A8=0,0,VLOOKUP($A8,'Stap 2 Register'!$A$8:$AK$107,26,0)) -> 0 | I8: =IF(A8=0,0,VLOOKUP($A8,'Stap 2 Register'!$A$8:$AK$107,27,0)) -> 0 | J8: =IF(A8=0,0,VLOOKUP($A8,'Stap 2 Register'!$A$8:$AK$107,28,0)) -> 0 | K8: =IF($D8=$K$7,_xlfn.TEXTJOIN($J$6,,$B8,$C8),"") ->  | L8: =IF($D8=$L$7,_xlfn.TEXTJOIN($J$6,,$B8,$C8),"") ->  | M8: =IF($D8=$M$7,_xlfn.TEXTJOIN($J$6,,$B8,$C8),"") ->  | N8: =IF($D8=$N$7,_xlfn.TEXTJOIN($J$6,,$B8,$C8),"") ->  | O8: =IF($D8=$O$7,_xlfn.TEXTJOIN($J$6,,$B8,$C8),"") ->  | P8: =IF($D8=$P$7,_xlfn.TEXTJOIN($J$6,,$B8,$C8),"") ->  | Q8: =SUMIF($D$8:$D$107,Q7,$A$8:$A$107) -> 0 | R8: 0 | S8: 0 | T8: 0 | U8: 0 | V8: 0
A9: =IF('1e berekening'!G4=0,'1e berekening'!B4,0) -> 99 | B9: =IF(A9=0,"",VLOOKUP($A9,'Stap 2 Register'!$A$8:$AK$107,2,0)) -> 99 | C9: =IF(A9=0,0,VLOOKUP($A9,'Stap 2 Register'!$A$8:$AK$107,3,0)) -> 0 | D9: =IF(A9=0,"",VLOOKUP($A9,'Stap 2 Register'!$A$8:$AK$107,14,0)) ->  | E9: =IF(A9=0,0,VLOOKUP($A9,'Stap 2 Register'!$A$8:$AK$107,23,0)) -> 0 | F9: =IF(A9=0,0,VLOOKUP($A9,'Stap 2 Register'!$A$8:$AK$107,24,0)) -> 0 | G9: =IF(A9=0,0,VLOOKUP($A9,'Stap 2 Register'!$A$8:$AK$107,25,0)) -> 0 | H9: =IF(A9=0,0,VLOOKUP($A9,'Stap 2 Register'!$A$8:$AK$107,26,0)) -> 0 | I9: =IF(A9=0,0,VLOOKUP($A9,'Stap 2 Register'!$A$8:$AK$107,27,0)) -> 0 | J9: =IF(A9=0,0,VLOOKUP($A9,'Stap 2 Register'!$A$8:$AK$107,28,0)) -> 0 | K9: =IF($D9=$K$7,_xlfn.TEXTJOIN($J$6,,$B9,$C9),"") ->  | L9: =IF($D9=$L$7,_xlfn.TEXTJOIN($J$6,,$B9,$C9),"") ->  | M9: =IF($D9=$M$7,_xlfn.TEXTJOIN($J$6,,$B9,$C9),"") ->  | N9: =IF($D9=$N$7,_xlfn.TEXTJOIN($J$6,,$B9,$C9),"") ->  | O9: =IF($D9=$O$7,_xlfn.TEXTJOIN($J$6,,$B9,$C9),"") ->  | P9: =IF($D9=$P$7,_xlfn.TEXTJOIN($J$6,,$B9,$C9),"") -> 
A10: =IF('1e berekening'!G5=0,'1e berekening'!B5,0) -> 98 | B10: =IF(A10=0,"",VLOOKUP($A10,'Stap 2 Register'!$A$8:$AK$107,2,0)) -> 98 | C10: =IF(A10=0,0,VLOOKUP($A10,'Stap 2 Register'!$A$8:$AK$107,3,0)) -> 0 | D10: =IF(A10=0,"",VLOOKUP($A10,'Stap 2 Register'!$A$8:$AK$107,14,0)) ->  | E10: =IF(A10=0,0,VLOOKUP($A10,'Stap 2 Register'!$A$8:$AK$107,23,0)) -> 0 | F10: =IF(A10=0,0,VLOOKUP($A10,'Stap 2 Register'!$A$8:$AK$107,24,0)) -> 0 | G10: =IF(A10=0,0,VLOOKUP($A10,'Stap 2 Register'!$A$8:$AK$107,25,0)) -> 0 | H10: =IF(A10=0,0,VLOOKUP($A10,'Stap 2 Register'!$A$8:$AK$107,26,0)) -> 0 | I10: =IF(A10=0,0,VLOOKUP($A10,'Stap 2 Register'!$A$8:$AK$107,27,0)) -> 0 | J10: =IF(A10=0,0,VLOOKUP($A10,'Stap 2 Register'!$A$8:$AK$107,28,0)) -> 0 | K10: =IF($D10=$K$7,_xlfn.TEXTJOIN($J$6,,$B10,$C10),"") ->  | L10: =IF($D10=$L$7,_xlfn.TEXTJOIN($J$6,,$B10,$C10),"") ->  | M10: =IF($D10=$M$7,_xlfn.TEXTJOIN($J$6,,$B10,$C10),"") ->  | N10: =IF($D10=$N$7,_xlfn.TEXTJOIN($J$6,,$B10,$C10),"") ->  | O10: =IF($D10=$O$7,_xlfn.TEXTJOIN($J$6,,$B10,$C10),"") -> 
A11: =IF('1e berekening'!G6=0,'1e berekening'!B6,0) -> 97 | B11: =IF(A11=0,"",VLOOKUP($A11,'Stap 2 Register'!$A$8:$AK$107,2,0)) -> 97 | C11: =IF(A11=0,0,VLOOKUP($A11,'Stap 2 Register'!$A$8:$AK$107,3,0)) -> 0 | D11: =IF(A11=0,"",VLOOKUP($A11,'Stap 2 Register'!$A$8:$AK$107,14,0)) ->  | E11: =IF(A11=0,0,VLOOKUP($A11,'Stap 2 Register'!$A$8:$AK$107,23,0)) -> 0 | F11: =IF(A11=0,0,VLOOKUP($A11,'Stap 2 Register'!$A$8:$AK$107,24,0)) -> 0 | G11: =IF(A11=0,0,VLOOKUP($A11,'Stap 2 Register'!$A$8:$AK$107,25,0)) -> 0 | H11: =IF(A11=0,0,VLOOKUP($A11,'Stap 2 Register'!$A$8:$AK$107,26,0)) -> 0 | I11: =IF(A11=0,0,VLOOKUP($A11,'Stap 2 Register'!$A$8:$AK$107,27,0)) -> 0 | J11: =IF(A11=0,0,VLOOKUP($A11,'Stap 2 Register'!$A$8:$AK$107,28,0)) -> 0 | K11: =IF($D11=$K$7,_xlfn.TEXTJOIN($J$6,,$B11,$C11),"") ->  | L11: =IF($D11=$L$7,_xlfn.TEXTJOIN($J$6,,$B11,$C11),"") ->  | M11: =IF($D11=$M$7,_xlfn.TEXTJOIN($J$6,,$B11,$C11),"") ->  | N11: =IF($D11=$N$7,_xlfn.TEXTJOIN($J$6,,$B11,$C11),"") ->  | O11: =IF($D11=$O$7,_xlfn.TEXTJOIN($J$6,,$B11,$C11),"") -> 
A12: =IF('1e berekening'!G7=0,'1e berekening'!B7,0) -> 96 | B12: =IF(A12=0,"",VLOOKUP($A12,'Stap 2 Register'!$A$8:$AK$107,2,0)) -> 96 | C12: =IF(A12=0,0,VLOOKUP($A12,'Stap 2 Register'!$A$8:$AK$107,3,0)) -> 0 | D12: =IF(A12=0,"",VLOOKUP($A12,'Stap 2 Register'!$A$8:$AK$107,14,0)) ->  | E12: =IF(A12=0,0,VLOOKUP($A12,'Stap 2 Register'!$A$8:$AK$107,23,0)) -> 0 | F12: =IF(A12=0,0,VLOOKUP($A12,'Stap 2 Register'!$A$8:$AK$107,24,0)) -> 0 | G12: =IF(A12=0,0,VLOOKUP($A12,'Stap 2 Register'!$A$8:$AK$107,25,0)) -> 0 | H12: =IF(A12=0,0,VLOOKUP($A12,'Stap 2 Register'!$A$8:$AK$107,26,0)) -> 0 | I12: =IF(A12=0,0,VLOOKUP($A12,'Stap 2 Register'!$A$8:$AK$107,27,0)) -> 0 | J12: =IF(A12=0,0,VLOOKUP($A12,'Stap 2 Register'!$A$8:$AK$107,28,0)) -> 0 | K12: =IF($D12=$K$7,_xlfn.TEXTJOIN($J$6,,$B12,$C12),"") ->  | L12: =IF($D12=$L$7,_xlfn.TEXTJOIN($J$6,,$B12,$C12),"") ->  | M12: =IF($D12=$M$7,_xlfn.TEXTJOIN($J$6,,$B12,$C12),"") ->  | N12: =IF($D12=$N$7,_xlfn.TEXTJOIN($J$6,,$B12,$C12),"") ->  | O12: =IF($D12=$O$7,_xlfn.TEXTJOIN($J$6,,$B12,$C12),"") -> 
A13: =IF('1e berekening'!G8=0,'1e berekening'!B8,0) -> 95 | B13: =IF(A13=0,"",VLOOKUP($A13,'Stap 2 Register'!$A$8:$AK$107,2,0)) -> 95 | C13: =IF(A13=0,0,VLOOKUP($A13,'Stap 2 Register'!$A$8:$AK$107,3,0)) -> 0 | D13: =IF(A13=0,"",VLOOKUP($A13,'Stap 2 Register'!$A$8:$AK$107,14,0)) ->  | E13: =IF(A13=0,0,VLOOKUP($A13,'Stap 2 Register'!$A$8:$AK$107,23,0)) -> 0 | F13: =IF(A13=0,0,VLOOKUP($A13,'Stap 2 Register'!$A$8:$AK$107,24,0)) -> 0 | G13: =IF(A13=0,0,VLOOKUP($A13,'Stap 2 Register'!$A$8:$AK$107,25,0)) -> 0 | H13: =IF(A13=0,0,VLOOKUP($A13,'Stap 2 Register'!$A$8:$AK$107,26,0)) -> 0 | I13: =IF(A13=0,0,VLOOKUP($A13,'Stap 2 Register'!$A$8:$AK$107,27,0)) -> 0 | J13: =IF(A13=0,0,VLOOKUP($A13,'Stap 2 Register'!$A$8:$AK$107,28,0)) -> 0 | K13: =IF($D13=$K$7,_xlfn.TEXTJOIN($J$6,,$B13,$C13),"") -> 
A14: =IF('1e berekening'!G9=0,'1e berekening'!B9,0) -> 94 | B14: =IF(A14=0,"",VLOOKUP($A14,'Stap 2 Register'!$A$8:$AK$107,2,0)) -> 94 | C14: =IF(A14=0,0,VLOOKUP($A14,'Stap 2 Register'!$A$8:$AK$107,3,0)) -> 0 | D14: =IF(A14=0,"",VLOOKUP($A14,'Stap 2 Register'!$A$8:$AK$107,14,0)) ->  | E14: =IF(A14=0,0,VLOOKUP($A14,'Stap 2 Register'!$A$8:$AK$107,23,0)) -> 0 | F14: =IF(A14=0,0,VLOOKUP($A14,'Stap 2 Register'!$A$8:$AK$107,24,0)) -> 0 | G14: =IF(A14=0,0,VLOOKUP($A14,'Stap 2 Register'!$A$8:$AK$107,25,0)) -> 0 | H14: =IF(A14=0,0,VLOOKUP($A14,'Stap 2 Register'!$A$8:$AK$107,26,0)) -> 0 | I14: =IF(A14=0,0,VLOOKUP($A14,'Stap 2 Register'!$A$8:$AK$107,27,0)) -> 0 | J14: =IF(A14=0,0,VLOOKUP($A14,'Stap 2 Register'!$A$8:$AK$107,28,0)) -> 0
A15: =IF('1e berekening'!G10=0,'1e berekening'!B10,0) -> 93 | B15: =IF(A15=0,"",VLOOKUP($A15,'Stap 2 Register'!$A$8:$AK$107,2,0)) -> 93 | C15: =IF(A15=0,0,VLOOKUP($A15,'Stap 2 Register'!$A$8:$AK$107,3,0)) -> 0 | D15: =IF(A15=0,"",VLOOKUP($A15,'Stap 2 Register'!$A$8:$AK$107,14,0)) ->  | E15: =IF(A15=0,0,VLOOKUP($A15,'Stap 2 Register'!$A$8:$AK$107,23,0)) -> 0 | F15: =IF(A15=0,0,VLOOKUP($A15,'Stap 2 Register'!$A$8:$AK$107,24,0)) -> 0 | G15: =IF(A15=0,0,VLOOKUP($A15,'Stap 2 Register'!$A$8:$AK$107,25,0)) -> 0 | H15: =IF(A15=0,0,VLOOKUP($A15,'Stap 2 Register'!$A$8:$AK$107,26,0)) -> 0 | I15: =IF(A15=0,0,VLOOKUP($A15,'Stap 2 Register'!$A$8:$AK$107,27,0)) -> 0 | J15: =IF(A15=0,0,VLOOKUP($A15,'Stap 2 Register'!$A$8:$AK$107,28,0)) -> 0
A16: =IF('1e berekening'!G11=0,'1e berekening'!B11,0) -> 92 | B16: =IF(A16=0,"",VLOOKUP($A16,'Stap 2 Register'!$A$8:$AK$107,2,0)) -> 92 | C16: =IF(A16=0,0,VLOOKUP($A16,'Stap 2 Register'!$A$8:$AK$107,3,0)) -> 0 | D16: =IF(A16=0,"",VLOOKUP($A16,'Stap 2 Register'!$A$8:$AK$107,14,0)) ->  | E16: =IF(A16=0,0,VLOOKUP($A16,'Stap 2 Register'!$A$8:$AK$107,23,0)) -> 0 | F16: =IF(A16=0,0,VLOOKUP($A16,'Stap 2 Register'!$A$8:$AK$107,24,0)) -> 0 | G16: =IF(A16=0,0,VLOOKUP($A16,'Stap 2 Register'!$A$8:$AK$107,25,0)) -> 0 | H16: =IF(A16=0,0,VLOOKUP($A16,'Stap 2 Register'!$A$8:$AK$107,26,0)) -> 0 | I16: =IF(A16=0,0,VLOOKUP($A16,'Stap 2 Register'!$A$8:$AK$107,27,0)) -> 0 | J16: =IF(A16=0,0,VLOOKUP($A16,'Stap 2 Register'!$A$8:$AK$107,28,0)) -> 0
A17: =IF('1e berekening'!G12=0,'1e berekening'!B12,0) -> 91 | B17: =IF(A17=0,"",VLOOKUP($A17,'Stap 2 Register'!$A$8:$AK$107,2,0)) -> 91 | C17: =IF(A17=0,0,VLOOKUP($A17,'Stap 2 Register'!$A$8:$AK$107,3,0)) -> 0 | D17: =IF(A17=0,"",VLOOKUP($A17,'Stap 2 Register'!$A$8:$AK$107,14,0)) ->  | E17: =IF(A17=0,0,VLOOKUP($A17,'Stap 2 Register'!$A$8:$AK$107,23,0)) -> 0 | F17: =IF(A17=0,0,VLOOKUP($A17,'Stap 2 Register'!$A$8:$AK$107,24,0)) -> 0 | G17: =IF(A17=0,0,VLOOKUP($A17,'Stap 2 Register'!$A$8:$AK$107,25,0)) -> 0 | H17: =IF(A17=0,0,VLOOKUP($A17,'Stap 2 Register'!$A$8:$AK$107,26,0)) -> 0 | I17: =IF(A17=0,0,VLOOKUP($A17,'Stap 2 Register'!$A$8:$AK$107,27,0)) -> 0 | J17: =IF(A17=0,0,VLOOKUP($A17,'Stap 2 Register'!$A$8:$AK$107,28,0)) -> 0
A18: =IF('1e berekening'!G13=0,'1e berekening'!B13,0) -> 90 | B18: =IF(A18=0,"",VLOOKUP($A18,'Stap 2 Register'!$A$8:$AK$107,2,0)) -> 90 | C18: =IF(A18=0,0,VLOOKUP($A18,'Stap 2 Register'!$A$8:$AK$107,3,0)) -> 0 | D18: =IF(A18=0,"",VLOOKUP($A18,'Stap 2 Register'!$A$8:$AK$107,14,0)) ->  | E18: =IF(A18=0,0,VLOOKUP($A18,'Stap 2 Register'!$A$8:$AK$107,23,0)) -> 0 | F18: =IF(A18=0,0,VLOOKUP($A18,'Stap 2 Register'!$A$8:$AK$107,24,0)) -> 0 | G18: =IF(A18=0,0,VLOOKUP($A18,'Stap 2 Register'!$A$8:$AK$107,25,0)) -> 0 | H18: =IF(A18=0,0,VLOOKUP($A18,'Stap 2 Register'!$A$8:$AK$107,26,0)) -> 0 | I18: =IF(A18=0,0,VLOOKUP($A18,'Stap 2 Register'!$A$8:$AK$107,27,0)) -> 0 | J18: =IF(A18=0,0,VLOOKUP($A18,'Stap 2 Register'!$A$8:$AK$107,28,0)) -> 0
A19: =IF('1e berekening'!G14=0,'1e berekening'!B14,0) -> 89 | B19: =IF(A19=0,"",VLOOKUP($A19,'Stap 2 Register'!$A$8:$AK$107,2,0)) -> 89 | C19: =IF(A19=0,0,VLOOKUP($A19,'Stap 2 Register'!$A$8:$AK$107,3,0)) -> 0 | D19: =IF(A19=0,"",VLOOKUP($A19,'Stap 2 Register'!$A$8:$AK$107,14,0)) ->  | E19: =IF(A19=0,0,VLOOKUP($A19,'Stap 2 Register'!$A$8:$AK$107,23,0)) -> 0 | F19: =IF(A19=0,0,VLOOKUP($A19,'Stap 2 Register'!$A$8:$AK$107,24,0)) -> 0 | G19: =IF(A19=0,0,VLOOKUP($A19,'Stap 2 Register'!$A$8:$AK$107,25,0)) -> 0 | H19: =IF(A19=0,0,VLOOKUP($A19,'Stap 2 Register'!$A$8:$AK$107,26,0)) -> 0 | I19: =IF(A19=0,0,VLOOKUP($A19,'Stap 2 Register'!$A$8:$AK$107,27,0)) -> 0 | J19: =IF(A19=0,0,VLOOKUP($A19,'Stap 2 Register'!$A$8:$AK$107,28,0)) -> 0
A20: =IF('1e berekening'!G15=0,'1e berekening'!B15,0) -> 88 | B20: =IF(A20=0,"",VLOOKUP($A20,'Stap 2 Register'!$A$8:$AK$107,2,0)) -> 88 | C20: =IF(A20=0,0,VLOOKUP($A20,'Stap 2 Register'!$A$8:$AK$107,3,0)) -> 0 | D20: =IF(A20=0,"",VLOOKUP($A20,'Stap 2 Register'!$A$8:$AK$107,14,0)) ->  | E20: =IF(A20=0,0,VLOOKUP($A20,'Stap 2 Register'!$A$8:$AK$107,23,0)) -> 0 | F20: =IF(A20=0,0,VLOOKUP($A20,'Stap 2 Register'!$A$8:$AK$107,24,0)) -> 0 | G20: =IF(A20=0,0,VLOOKUP($A20,'Stap 2 Register'!$A$8:$AK$107,25,0)) -> 0 | H20: =IF(A20=0,0,VLOOKUP($A20,'Stap 2 Register'!$A$8:$AK$107,26,0)) -> 0 | I20: =IF(A20=0,0,VLOOKUP($A20,'Stap 2 Register'!$A$8:$AK$107,27,0)) -> 0 | J20: =IF(A20=0,0,VLOOKUP($A20,'Stap 2 Register'!$A$8:$AK$107,28,0)) -> 0
A21: =IF('1e berekening'!G16=0,'1e berekening'!B16,0) -> 87 | B21: =IF(A21=0,"",VLOOKUP($A21,'Stap 2 Register'!$A$8:$AK$107,2,0)) -> 87 | C21: =IF(A21=0,0,VLOOKUP($A21,'Stap 2 Register'!$A$8:$AK$107,3,0)) -> 0 | D21: =IF(A21=0,"",VLOOKUP($A21,'Stap 2 Register'!$A$8:$AK$107,14,0)) ->  | E21: =IF(A21=0,0,VLOOKUP($A21,'Stap 2 Register'!$A$8:$AK$107,23,0)) -> 0 | F21: =IF(A21=0,0,VLOOKUP($A21,'Stap 2 Register'!$A$8:$AK$107,24,0)) -> 0 | G21: =IF(A21=0,0,VLOOKUP($A21,'Stap 2 Register'!$A$8:$AK$107,25,0)) -> 0 | H21: =IF(A21=0,0,VLOOKUP($A21,'Stap 2 Register'!$A$8:$AK$107,26,0)) -> 0 | I21: =IF(A21=0,0,VLOOKUP($A21,'Stap 2 Register'!$A$8:$AK$107,27,0)) -> 0 | J21: =IF(A21=0,0,VLOOKUP($A21,'Stap 2 Register'!$A$8:$AK$107,28,0)) -> 0
A22: =IF('1e berekening'!G17=0,'1e berekening'!B17,0) -> 86 | B22: =IF(A22=0,"",VLOOKUP($A22,'Stap 2 Register'!$A$8:$AK$107,2,0)) -> 86 | C22: =IF(A22=0,0,VLOOKUP($A22,'Stap 2 Register'!$A$8:$AK$107,3,0)) -> 0 | D22: =IF(A22=0,"",VLOOKUP($A22,'Stap 2 Register'!$A$8:$AK$107,14,0)) ->  | E22: =IF(A22=0,0,VLOOKUP($A22,'Stap 2 Register'!$A$8:$AK$107,23,0)) -> 0 | F22: =IF(A22=0,0,VLOOKUP($A22,'Stap 2 Register'!$A$8:$AK$107,24,0)) -> 0 | G22: =IF(A22=0,0,VLOOKUP($A22,'Stap 2 Register'!$A$8:$AK$107,25,0)) -> 0 | H22: =IF(A22=0,0,VLOOKUP($A22,'Stap 2 Register'!$A$8:$AK$107,26,0)) -> 0 | I22: =IF(A22=0,0,VLOOKUP($A22,'Stap 2 Register'!$A$8:$AK$107,27,0)) -> 0 | J22: =IF(A22=0,0,VLOOKUP($A22,'Stap 2 Register'!$A$8:$AK$107,28,0)) -> 0
A23: =IF('1e berekening'!G18=0,'1e berekening'!B18,0) -> 85 | B23: =IF(A23=0,"",VLOOKUP($A23,'Stap 2 Register'!$A$8:$AK$107,2,0)) -> 85 | C23: =IF(A23=0,0,VLOOKUP($A23,'Stap 2 Register'!$A$8:$AK$107,3,0)) -> 0 | D23: =IF(A23=0,"",VLOOKUP($A23,'Stap 2 Register'!$A$8:$AK$107,14,0)) ->  | E23: =IF(A23=0,0,VLOOKUP($A23,'Stap 2 Register'!$A$8:$AK$107,23,0)) -> 0 | F23: =IF(A23=0,0,VLOOKUP($A23,'Stap 2 Register'!$A$8:$AK$107,24,0)) -> 0 | G23: =IF(A23=0,0,VLOOKUP($A23,'Stap 2 Register'!$A$8:$AK$107,25,0)) -> 0 | H23: =IF(A23=0,0,VLOOKUP($A23,'Stap 2 Register'!$A$8:$AK$107,26,0)) -> 0 | I23: =IF(A23=0,0,VLOOKUP($A23,'Stap 2 Register'!$A$8:$AK$107,27,0)) -> 0 | J23: =IF(A23=0,0,VLOOKUP($A23,'Stap 2 Register'!$A$8:$AK$107,28,0)) -> 0
A24: =IF('1e berekening'!G19=0,'1e berekening'!B19,0) -> 84 | B24: =IF(A24=0,"",VLOOKUP($A24,'Stap 2 Register'!$A$8:$AK$107,2,0)) -> 84 | C24: =IF(A24=0,0,VLOOKUP($A24,'Stap 2 Register'!$A$8:$AK$107,3,0)) -> 0 | D24: =IF(A24=0,"",VLOOKUP($A24,'Stap 2 Register'!$A$8:$AK$107,14,0)) ->  | E24: =IF(A24=0,0,VLOOKUP($A24,'Stap 2 Register'!$A$8:$AK$107,23,0)) -> 0 | F24: =IF(A24=0,0,VLOOKUP($A24,'Stap 2 Register'!$A$8:$AK$107,24,0)) -> 0 | G24: =IF(A24=0,0,VLOOKUP($A24,'Stap 2 Register'!$A$8:$AK$107,25,0)) -> 0 | H24: =IF(A24=0,0,VLOOKUP($A24,'Stap 2 Register'!$A$8:$AK$107,26,0)) -> 0 | I24: =IF(A24=0,0,VLOOKUP($A24,'Stap 2 Register'!$A$8:$AK$107,27,0)) -> 0 | J24: =IF(A24=0,0,VLOOKUP($A24,'Stap 2 Register'!$A$8:$AK$107,28,0)) -> 0
A25: =IF('1e berekening'!G20=0,'1e berekening'!B20,0) -> 83 | B25: =IF(A25=0,"",VLOOKUP($A25,'Stap 2 Register'!$A$8:$AK$107,2,0)) -> 83 | C25: =IF(A25=0,0,VLOOKUP($A25,'Stap 2 Register'!$A$8:$AK$107,3,0)) -> 0 | D25: =IF(A25=0,"",VLOOKUP($A25,'Stap 2 Register'!$A$8:$AK$107,14,0)) ->  | E25: =IF(A25=0,0,VLOOKUP($A25,'Stap 2 Register'!$A$8:$AK$107,23,0)) -> 0 | F25: =IF(A25=0,0,VLOOKUP($A25,'Stap 2 Register'!$A$8:$AK$107,24,0)) -> 0 | G25: =IF(A25=0,0,VLOOKUP($A25,'Stap 2 Register'!$A$8:$AK$107,25,0)) -> 0 | H25: =IF(A25=0,0,VLOOKUP($A25,'Stap 2 Register'!$A$8:$AK$107,26,0)) -> 0 | I25: =IF(A25=0,0,VLOOKUP($A25,'Stap 2 Register'!$A$8:$AK$107,27,0)) -> 0 | J25: =IF(A25=0,0,VLOOKUP($A25,'Stap 2 Register'!$A$8:$AK$107,28,0)) -> 0
A26: =IF('1e berekening'!G21=0,'1e berekening'!B21,0) -> 82 | B26: =IF(A26=0,"",VLOOKUP($A26,'Stap 2 Register'!$A$8:$AK$107,2,0)) -> 82 | C26: =IF(A26=0,0,VLOOKUP($A26,'Stap 2 Register'!$A$8:$AK$107,3,0)) -> 0 | D26: =IF(A26=0,"",VLOOKUP($A26,'Stap 2 Register'!$A$8:$AK$107,14,0)) ->  | E26: =IF(A26=0,0,VLOOKUP($A26,'Stap 2 Register'!$A$8:$AK$107,23,0)) -> 0 | F26: =IF(A26=0,0,VLOOKUP($A26,'Stap 2 Register'!$A$8:$AK$107,24,0)) -> 0 | G26: =IF(A26=0,0,VLOOKUP($A26,'Stap 2 Register'!$A$8:$AK$107,25,0)) -> 0 | H26: =IF(A26=0,0,VLOOKUP($A26,'Stap 2 Register'!$A$8:$AK$107,26,0)) -> 0 | I26: =IF(A26=0,0,VLOOKUP($A26,'Stap 2 Register'!$A$8:$AK$107,27,0)) -> 0 | J26: =IF(A26=0,0,VLOOKUP($A26,'Stap 2 Register'!$A$8:$AK$107,28,0)) -> 0
A27: =IF('1e berekening'!G22=0,'1e berekening'!B22,0) -> 81 | B27: =IF(A27=0,"",VLOOKUP($A27,'Stap 2 Register'!$A$8:$AK$107,2,0)) -> 81 | C27: =IF(A27=0,0,VLOOKUP($A27,'Stap 2 Register'!$A$8:$AK$107,3,0)) -> 0 | D27: =IF(A27=0,"",VLOOKUP($A27,'Stap 2 Register'!$A$8:$AK$107,14,0)) ->  | E27: =IF(A27=0,0,VLOOKUP($A27,'Stap 2 Register'!$A$8:$AK$107,23,0)) -> 0 | F27: =IF(A27=0,0,VLOOKUP($A27,'Stap 2 Register'!$A$8:$AK$107,24,0)) -> 0 | G27: =IF(A27=0,0,VLOOKUP($A27,'Stap 2 Register'!$A$8:$AK$107,25,0)) -> 0 | H27: =IF(A27=0,0,VLOOKUP($A27,'Stap 2 Register'!$A$8:$AK$107,26,0)) -> 0 | I27: =IF(A27=0,0,VLOOKUP($A27,'Stap 2 Register'!$A$8:$AK$107,27,0)) -> 0 | J27: =IF(A27=0,0,VLOOKUP($A27,'Stap 2 Register'!$A$8:$AK$107,28,0)) -> 0
A28: =IF('1e berekening'!G23=0,'1e berekening'!B23,0) -> 80 | B28: =IF(A28=0,"",VLOOKUP($A28,'Stap 2 Register'!$A$8:$AK$107,2,0)) -> 80 | C28: =IF(A28=0,0,VLOOKUP($A28,'Stap 2 Register'!$A$8:$AK$107,3,0)) -> 0 | D28: =IF(A28=0,"",VLOOKUP($A28,'Stap 2 Register'!$A$8:$AK$107,14,0)) ->  | E28: =IF(A28=0,0,VLOOKUP($A28,'Stap 2 Register'!$A$8:$AK$107,23,0)) -> 0 | F28: =IF(A28=0,0,VLOOKUP($A28,'Stap 2 Register'!$A$8:$AK$107,24,0)) -> 0 | G28: =IF(A28=0,0,VLOOKUP($A28,'Stap 2 Register'!$A$8:$AK$107,25,0)) -> 0 | H28: =IF(A28=0,0,VLOOKUP($A28,'Stap 2 Register'!$A$8:$AK$107,26,0)) -> 0 | I28: =IF(A28=0,0,VLOOKUP($A28,'Stap 2 Register'!$A$8:$AK$107,27,0)) -> 0 | J28: =IF(A28=0,0,VLOOKUP($A28,'Stap 2 Register'!$A$8:$AK$107,28,0)) -> 0
A29: =IF('1e berekening'!G24=0,'1e berekening'!B24,0) -> 79 | B29: =IF(A29=0,"",VLOOKUP($A29,'Stap 2 Register'!$A$8:$AK$107,2,0)) -> 79 | C29: =IF(A29=0,0,VLOOKUP($A29,'Stap 2 Register'!$A$8:$AK$107,3,0)) -> 0 | D29: =IF(A29=0,"",VLOOKUP($A29,'Stap 2 Register'!$A$8:$AK$107,14,0)) ->  | E29: =IF(A29=0,0,VLOOKUP($A29,'Stap 2 Register'!$A$8:$AK$107,23,0)) -> 0 | F29: =IF(A29=0,0,VLOOKUP($A29,'Stap 2 Register'!$A$8:$AK$107,24,0)) -> 0 | G29: =IF(A29=0,0,VLOOKUP($A29,'Stap 2 Register'!$A$8:$AK$107,25,0)) -> 0 | H29: =IF(A29=0,0,VLOOKUP($A29,'Stap 2 Register'!$A$8:$AK$107,26,0)) -> 0 | I29: =IF(A29=0,0,VLOOKUP($A29,'Stap 2 Register'!$A$8:$AK$107,27,0)) -> 0 | J29: =IF(A29=0,0,VLOOKUP($A29,'Stap 2 Register'!$A$8:$AK$107,28,0)) -> 0
A30: =IF('1e berekening'!G25=0,'1e berekening'!B25,0) -> 78 | B30: =IF(A30=0,"",VLOOKUP($A30,'Stap 2 Register'!$A$8:$AK$107,2,0)) -> 78 | C30: =IF(A30=0,0,VLOOKUP($A30,'Stap 2 Register'!$A$8:$AK$107,3,0)) -> 0 | D30: =IF(A30=0,"",VLOOKUP($A30,'Stap 2 Register'!$A$8:$AK$107,14,0)) ->  | E30: =IF(A30=0,0,VLOOKUP($A30,'Stap 2 Register'!$A$8:$AK$107,23,0)) -> 0 | F30: =IF(A30=0,0,VLOOKUP($A30,'Stap 2 Register'!$A$8:$AK$107,24,0)) -> 0 | G30: =IF(A30=0,0,VLOOKUP($A30,'Stap 2 Register'!$A$8:$AK$107,25,0)) -> 0 | H30: =IF(A30=0,0,VLOOKUP($A30,'Stap 2 Register'!$A$8:$AK$107,26,0)) -> 0 | I30: =IF(A30=0,0,VLOOKUP($A30,'Stap 2 Register'!$A$8:$AK$107,27,0)) -> 0 | J30: =IF(A30=0,0,VLOOKUP($A30,'Stap 2 Register'!$A$8:$AK$107,28,0)) -> 0
A31: =IF('1e berekening'!G26=0,'1e berekening'!B26,0) -> 77 | B31: =IF(A31=0,"",VLOOKUP($A31,'Stap 2 Register'!$A$8:$AK$107,2,0)) -> 77 | C31: =IF(A31=0,0,VLOOKUP($A31,'Stap 2 Register'!$A$8:$AK$107,3,0)) -> 0 | D31: =IF(A31=0,"",VLOOKUP($A31,'Stap 2 Register'!$A$8:$AK$107,14,0)) ->  | E31: =IF(A31=0,0,VLOOKUP($A31,'Stap 2 Register'!$A$8:$AK$107,23,0)) -> 0 | F31: =IF(A31=0,0,VLOOKUP($A31,'Stap 2 Register'!$A$8:$AK$107,24,0)) -> 0 | G31: =IF(A31=0,0,VLOOKUP($A31,'Stap 2 Register'!$A$8:$AK$107,25,0)) -> 0 | H31: =IF(A31=0,0,VLOOKUP($A31,'Stap 2 Register'!$A$8:$AK$107,26,0)) -> 0 | I31: =IF(A31=0,0,VLOOKUP($A31,'Stap 2 Register'!$A$8:$AK$107,27,0)) -> 0 | J31: =IF(A31=0,0,VLOOKUP($A31,'Stap 2 Register'!$A$8:$AK$107,28,0)) -> 0
A32: =IF('1e berekening'!G27=0,'1e berekening'!B27,0) -> 76 | B32: =IF(A32=0,"",VLOOKUP($A32,'Stap 2 Register'!$A$8:$AK$107,2,0)) -> 76 | C32: =IF(A32=0,0,VLOOKUP($A32,'Stap 2 Register'!$A$8:$AK$107,3,0)) -> 0 | D32: =IF(A32=0,"",VLOOKUP($A32,'Stap 2 Register'!$A$8:$AK$107,14,0)) ->  | E32: =IF(A32=0,0,VLOOKUP($A32,'Stap 2 Register'!$A$8:$AK$107,23,0)) -> 0 | F32: =IF(A32=0,0,VLOOKUP($A32,'Stap 2 Register'!$A$8:$AK$107,24,0)) -> 0 | G32: =IF(A32=0,0,VLOOKUP($A32,'Stap 2 Register'!$A$8:$AK$107,25,0)) -> 0 | H32: =IF(A32=0,0,VLOOKUP($A32,'Stap 2 Register'!$A$8:$AK$107,26,0)) -> 0 | I32: =IF(A32=0,0,VLOOKUP($A32,'Stap 2 Register'!$A$8:$AK$107,27,0)) -> 0 | J32: =IF(A32=0,0,VLOOKUP($A32,'Stap 2 Register'!$A$8:$AK$107,28,0)) -> 0
A33: =IF('1e berekening'!G28=0,'1e berekening'!B28,0) -> 75 | B33: =IF(A33=0,"",VLOOKUP($A33,'Stap 2 Register'!$A$8:$AK$107,2,0)) -> 75 | C33: =IF(A33=0,0,VLOOKUP($A33,'Stap 2 Register'!$A$8:$AK$107,3,0)) -> 0 | D33: =IF(A33=0,"",VLOOKUP($A33,'Stap 2 Register'!$A$8:$AK$107,14,0)) ->  | E33: =IF(A33=0,0,VLOOKUP($A33,'Stap 2 Register'!$A$8:$AK$107,23,0)) -> 0 | F33: =IF(A33=0,0,VLOOKUP($A33,'Stap 2 Register'!$A$8:$AK$107,24,0)) -> 0 | G33: =IF(A33=0,0,VLOOKUP($A33,'Stap 2 Register'!$A$8:$AK$107,25,0)) -> 0 | H33: =IF(A33=0,0,VLOOKUP($A33,'Stap 2 Register'!$A$8:$AK$107,26,0)) -> 0 | I33: =IF(A33=0,0,VLOOKUP($A33,'Stap 2 Register'!$A$8:$AK$107,27,0)) -> 0 | J33: =IF(A33=0,0,VLOOKUP($A33,'Stap 2 Register'!$A$8:$AK$107,28,0)) -> 0
A34: =IF('1e berekening'!G29=0,'1e berekening'!B29,0) -> 74 | B34: =IF(A34=0,"",VLOOKUP($A34,'Stap 2 Register'!$A$8:$AK$107,2,0)) -> 74 | C34: =IF(A34=0,0,VLOOKUP($A34,'Stap 2 Register'!$A$8:$AK$107,3,0)) -> 0 | D34: =IF(A34=0,"",VLOOKUP($A34,'Stap 2 Register'!$A$8:$AK$107,14,0)) ->  | E34: =IF(A34=0,0,VLOOKUP($A34,'Stap 2 Register'!$A$8:$AK$107,23,0)) -> 0 | F34: =IF(A34=0,0,VLOOKUP($A34,'Stap 2 Register'!$A$8:$AK$107,24,0)) -> 0 | G34: =IF(A34=0,0,VLOOKUP($A34,'Stap 2 Register'!$A$8:$AK$107,25,0)) -> 0 | H34: =IF(A34=0,0,VLOOKUP($A34,'Stap 2 Register'!$A$8:$AK$107,26,0)) -> 0 | I34: =IF(A34=0,0,VLOOKUP($A34,'Stap 2 Register'!$A$8:$AK$107,27,0)) -> 0 | J34: =IF(A34=0,0,VLOOKUP($A34,'Stap 2 Register'!$A$8:$AK$107,28,0)) -> 0
A35: =IF('1e berekening'!G30=0,'1e berekening'!B30,0) -> 73 | B35: =IF(A35=0,"",VLOOKUP($A35,'Stap 2 Register'!$A$8:$AK$107,2,0)) -> 73 | C35: =IF(A35=0,0,VLOOKUP($A35,'Stap 2 Register'!$A$8:$AK$107,3,0)) -> 0 | D35: =IF(A35=0,"",VLOOKUP($A35,'Stap 2 Register'!$A$8:$AK$107,14,0)) ->  | E35: =IF(A35=0,0,VLOOKUP($A35,'Stap 2 Register'!$A$8:$AK$107,23,0)) -> 0 | F35: =IF(A35=0,0,VLOOKUP($A35,'Stap 2 Register'!$A$8:$AK$107,24,0)) -> 0 | G35: =IF(A35=0,0,VLOOKUP($A35,'Stap 2 Register'!$A$8:$AK$107,25,0)) -> 0 | H35: =IF(A35=0,0,VLOOKUP($A35,'Stap 2 Register'!$A$8:$AK$107,26,0)) -> 0 | I35: =IF(A35=0,0,VLOOKUP($A35,'Stap 2 Register'!$A$8:$AK$107,27,0)) -> 0 | J35: =IF(A35=0,0,VLOOKUP($A35,'Stap 2 Register'!$A$8:$AK$107,28,0)) -> 0
A36: =IF('1e berekening'!G31=0,'1e berekening'!B31,0) -> 72 | B36: =IF(A36=0,"",VLOOKUP($A36,'Stap 2 Register'!$A$8:$AK$107,2,0)) -> 72 | C36: =IF(A36=0,0,VLOOKUP($A36,'Stap 2 Register'!$A$8:$AK$107,3,0)) -> 0 | D36: =IF(A36=0,"",VLOOKUP($A36,'Stap 2 Register'!$A$8:$AK$107,14,0)) ->  | E36: =IF(A36=0,0,VLOOKUP($A36,'Stap 2 Register'!$A$8:$AK$107,23,0)) -> 0 | F36: =IF(A36=0,0,VLOOKUP($A36,'Stap 2 Register'!$A$8:$AK$107,24,0)) -> 0 | G36: =IF(A36=0,0,VLOOKUP($A36,'Stap 2 Register'!$A$8:$AK$107,25,0)) -> 0 | H36: =IF(A36=0,0,VLOOKUP($A36,'Stap 2 Register'!$A$8:$AK$107,26,0)) -> 0 | I36: =IF(A36=0,0,VLOOKUP($A36,'Stap 2 Register'!$A$8:$AK$107,27,0)) -> 0 | J36: =IF(A36=0,0,VLOOKUP($A36,'Stap 2 Register'!$A$8:$AK$107,28,0)) -> 0
A37: =IF('1e berekening'!G32=0,'1e berekening'!B32,0) -> 71 | B37: =IF(A37=0,"",VLOOKUP($A37,'Stap 2 Register'!$A$8:$AK$107,2,0)) -> 71 | C37: =IF(A37=0,0,VLOOKUP($A37,'Stap 2 Register'!$A$8:$AK$107,3,0)) -> 0 | D37: =IF(A37=0,"",VLOOKUP($A37,'Stap 2 Register'!$A$8:$AK$107,14,0)) ->  | E37: =IF(A37=0,0,VLOOKUP($A37,'Stap 2 Register'!$A$8:$AK$107,23,0)) -> 0 | F37: =IF(A37=0,0,VLOOKUP($A37,'Stap 2 Register'!$A$8:$AK$107,24,0)) -> 0 | G37: =IF(A37=0,0,VLOOKUP($A37,'Stap 2 Register'!$A$8:$AK$107,25,0)) -> 0 | H37: =IF(A37=0,0,VLOOKUP($A37,'Stap 2 Register'!$A$8:$AK$107,26,0)) -> 0 | I37: =IF(A37=0,0,VLOOKUP($A37,'Stap 2 Register'!$A$8:$AK$107,27,0)) -> 0 | J37: =IF(A37=0,0,VLOOKUP($A37,'Stap 2 Register'!$A$8:$AK$107,28,0)) -> 0
A38: =IF('1e berekening'!G33=0,'1e berekening'!B33,0) -> 70 | B38: =IF(A38=0,"",VLOOKUP($A38,'Stap 2 Register'!$A$8:$AK$107,2,0)) -> 70 | C38: =IF(A38=0,0,VLOOKUP($A38,'Stap 2 Register'!$A$8:$AK$107,3,0)) -> 0 | D38: =IF(A38=0,"",VLOOKUP($A38,'Stap 2 Register'!$A$8:$AK$107,14,0)) ->  | E38: =IF(A38=0,0,VLOOKUP($A38,'Stap 2 Register'!$A$8:$AK$107,23,0)) -> 0 | F38: =IF(A38=0,0,VLOOKUP($A38,'Stap 2 Register'!$A$8:$AK$107,24,0)) -> 0 | G38: =IF(A38=0,0,VLOOKUP($A38,'Stap 2 Register'!$A$8:$AK$107,25,0)) -> 0 | H38: =IF(A38=0,0,VLOOKUP($A38,'Stap 2 Register'!$A$8:$AK$107,26,0)) -> 0 | I38: =IF(A38=0,0,VLOOKUP($A38,'Stap 2 Register'!$A$8:$AK$107,27,0)) -> 0 | J38: =IF(A38=0,0,VLOOKUP($A38,'Stap 2 Register'!$A$8:$AK$107,28,0)) -> 0
A39: =IF('1e berekening'!G34=0,'1e berekening'!B34,0) -> 69 | B39: =IF(A39=0,"",VLOOKUP($A39,'Stap 2 Register'!$A$8:$AK$107,2,0)) -> 69 | C39: =IF(A39=0,0,VLOOKUP($A39,'Stap 2 Register'!$A$8:$AK$107,3,0)) -> 0 | D39: =IF(A39=0,"",VLOOKUP($A39,'Stap 2 Register'!$A$8:$AK$107,14,0)) ->  | E39: =IF(A39=0,0,VLOOKUP($A39,'Stap 2 Register'!$A$8:$AK$107,23,0)) -> 0 | F39: =IF(A39=0,0,VLOOKUP($A39,'Stap 2 Register'!$A$8:$AK$107,24,0)) -> 0 | G39: =IF(A39=0,0,VLOOKUP($A39,'Stap 2 Register'!$A$8:$AK$107,25,0)) -> 0 | H39: =IF(A39=0,0,VLOOKUP($A39,'Stap 2 Register'!$A$8:$AK$107,26,0)) -> 0 | I39: =IF(A39=0,0,VLOOKUP($A39,'Stap 2 Register'!$A$8:$AK$107,27,0)) -> 0 | J39: =IF(A39=0,0,VLOOKUP($A39,'Stap 2 Register'!$A$8:$AK$107,28,0)) -> 0
A40: =IF('1e berekening'!G35=0,'1e berekening'!B35,0) -> 68 | B40: =IF(A40=0,"",VLOOKUP($A40,'Stap 2 Register'!$A$8:$AK$107,2,0)) -> 68 | C40: =IF(A40=0,0,VLOOKUP($A40,'Stap 2 Register'!$A$8:$AK$107,3,0)) -> 0 | D40: =IF(A40=0,"",VLOOKUP($A40,'Stap 2 Register'!$A$8:$AK$107,14,0)) ->  | E40: =IF(A40=0,0,VLOOKUP($A40,'Stap 2 Register'!$A$8:$AK$107,23,0)) -> 0 | F40: =IF(A40=0,0,VLOOKUP($A40,'Stap 2 Register'!$A$8:$AK$107,24,0)) -> 0 | G40: =IF(A40=0,0,VLOOKUP($A40,'Stap 2 Register'!$A$8:$AK$107,25,0)) -> 0 | H40: =IF(A40=0,0,VLOOKUP($A40,'Stap 2 Register'!$A$8:$AK$107,26,0)) -> 0 | I40: =IF(A40=0,0,VLOOKUP($A40,'Stap 2 Register'!$A$8:$AK$107,27,0)) -> 0 | J40: =IF(A40=0,0,VLOOKUP($A40,'Stap 2 Register'!$A$8:$AK$107,28,0)) -> 0
A41: =IF('1e berekening'!G36=0,'1e berekening'!B36,0) -> 67 | B41: =IF(A41=0,"",VLOOKUP($A41,'Stap 2 Register'!$A$8:$AK$107,2,0)) -> 67 | C41: =IF(A41=0,0,VLOOKUP($A41,'Stap 2 Register'!$A$8:$AK$107,3,0)) -> 0 | D41: =IF(A41=0,"",VLOOKUP($A41,'Stap 2 Register'!$A$8:$AK$107,14,0)) ->  | E41: =IF(A41=0,0,VLOOKUP($A41,'Stap 2 Register'!$A$8:$AK$107,23,0)) -> 0 | F41: =IF(A41=0,0,VLOOKUP($A41,'Stap 2 Register'!$A$8:$AK$107,24,0)) -> 0 | G41: =IF(A41=0,0,VLOOKUP($A41,'Stap 2 Register'!$A$8:$AK$107,25,0)) -> 0 | H41: =IF(A41=0,0,VLOOKUP($A41,'Stap 2 Register'!$A$8:$AK$107,26,0)) -> 0 | I41: =IF(A41=0,0,VLOOKUP($A41,'Stap 2 Register'!$A$8:$AK$107,27,0)) -> 0 | J41: =IF(A41=0,0,VLOOKUP($A41,'Stap 2 Register'!$A$8:$AK$107,28,0)) -> 0
A42: =IF('1e berekening'!G37=0,'1e berekening'!B37,0) -> 66 | B42: =IF(A42=0,"",VLOOKUP($A42,'Stap 2 Register'!$A$8:$AK$107,2,0)) -> 66 | C42: =IF(A42=0,0,VLOOKUP($A42,'Stap 2 Register'!$A$8:$AK$107,3,0)) -> 0 | D42: =IF(A42=0,"",VLOOKUP($A42,'Stap 2 Register'!$A$8:$AK$107,14,0)) ->  | E42: =IF(A42=0,0,VLOOKUP($A42,'Stap 2 Register'!$A$8:$AK$107,23,0)) -> 0 | F42: =IF(A42=0,0,VLOOKUP($A42,'Stap 2 Register'!$A$8:$AK$107,24,0)) -> 0 | G42: =IF(A42=0,0,VLOOKUP($A42,'Stap 2 Register'!$A$8:$AK$107,25,0)) -> 0 | H42: =IF(A42=0,0,VLOOKUP($A42,'Stap 2 Register'!$A$8:$AK$107,26,0)) -> 0 | I42: =IF(A42=0,0,VLOOKUP($A42,'Stap 2 Register'!$A$8:$AK$107,27,0)) -> 0 | J42: =IF(A42=0,0,VLOOKUP($A42,'Stap 2 Register'!$A$8:$AK$107,28,0)) -> 0
A43: =IF('1e berekening'!G38=0,'1e berekening'!B38,0) -> 65 | B43: =IF(A43=0,"",VLOOKUP($A43,'Stap 2 Register'!$A$8:$AK$107,2,0)) -> 65 | C43: =IF(A43=0,0,VLOOKUP($A43,'Stap 2 Register'!$A$8:$AK$107,3,0)) -> 0 | D43: =IF(A43=0,"",VLOOKUP($A43,'Stap 2 Register'!$A$8:$AK$107,14,0)) ->  | E43: =IF(A43=0,0,VLOOKUP($A43,'Stap 2 Register'!$A$8:$AK$107,23,0)) -> 0 | F43: =IF(A43=0,0,VLOOKUP($A43,'Stap 2 Register'!$A$8:$AK$107,24,0)) -> 0 | G43: =IF(A43=0,0,VLOOKUP($A43,'Stap 2 Register'!$A$8:$AK$107,25,0)) -> 0 | H43: =IF(A43=0,0,VLOOKUP($A43,'Stap 2 Register'!$A$8:$AK$107,26,0)) -> 0 | I43: =IF(A43=0,0,VLOOKUP($A43,'Stap 2 Register'!$A$8:$AK$107,27,0)) -> 0 | J43: =IF(A43=0,0,VLOOKUP($A43,'Stap 2 Register'!$A$8:$AK$107,28,0)) -> 0
A44: =IF('1e berekening'!G39=0,'1e berekening'!B39,0) -> 64 | B44: =IF(A44=0,"",VLOOKUP($A44,'Stap 2 Register'!$A$8:$AK$107,2,0)) -> 64 | C44: =IF(A44=0,0,VLOOKUP($A44,'Stap 2 Register'!$A$8:$AK$107,3,0)) -> 0 | D44: =IF(A44=0,"",VLOOKUP($A44,'Stap 2 Register'!$A$8:$AK$107,14,0)) ->  | E44: =IF(A44=0,0,VLOOKUP($A44,'Stap 2 Register'!$A$8:$AK$107,23,0)) -> 0 | F44: =IF(A44=0,0,VLOOKUP($A44,'Stap 2 Register'!$A$8:$AK$107,24,0)) -> 0 | G44: =IF(A44=0,0,VLOOKUP($A44,'Stap 2 Register'!$A$8:$AK$107,25,0)) -> 0 | H44: =IF(A44=0,0,VLOOKUP($A44,'Stap 2 Register'!$A$8:$AK$107,26,0)) -> 0 | I44: =IF(A44=0,0,VLOOKUP($A44,'Stap 2 Register'!$A$8:$AK$107,27,0)) -> 0 | J44: =IF(A44=0,0,VLOOKUP($A44,'Stap 2 Register'!$A$8:$AK$107,28,0)) -> 0
A45: =IF('1e berekening'!G40=0,'1e berekening'!B40,0) -> 63 | B45: =IF(A45=0,"",VLOOKUP($A45,'Stap 2 Register'!$A$8:$AK$107,2,0)) -> 63 | C45: =IF(A45=0,0,VLOOKUP($A45,'Stap 2 Register'!$A$8:$AK$107,3,0)) -> 0 | D45: =IF(A45=0,"",VLOOKUP($A45,'Stap 2 Register'!$A$8:$AK$107,14,0)) ->  | E45: =IF(A45=0,0,VLOOKUP($A45,'Stap 2 Register'!$A$8:$AK$107,23,0)) -> 0 | F45: =IF(A45=0,0,VLOOKUP($A45,'Stap 2 Register'!$A$8:$AK$107,24,0)) -> 0 | G45: =IF(A45=0,0,VLOOKUP($A45,'Stap 2 Register'!$A$8:$AK$107,25,0)) -> 0 | H45: =IF(A45=0,0,VLOOKUP($A45,'Stap 2 Register'!$A$8:$AK$107,26,0)) -> 0 | I45: =IF(A45=0,0,VLOOKUP($A45,'Stap 2 Register'!$A$8:$AK$107,27,0)) -> 0 | J45: =IF(A45=0,0,VLOOKUP($A45,'Stap 2 Register'!$A$8:$AK$107,28,0)) -> 0
A46: =IF('1e berekening'!G41=0,'1e berekening'!B41,0) -> 62 | B46: =IF(A46=0,"",VLOOKUP($A46,'Stap 2 Register'!$A$8:$AK$107,2,0)) -> 62 | C46: =IF(A46=0,0,VLOOKUP($A46,'Stap 2 Register'!$A$8:$AK$107,3,0)) -> 0 | D46: =IF(A46=0,"",VLOOKUP($A46,'Stap 2 Register'!$A$8:$AK$107,14,0)) ->  | E46: =IF(A46=0,0,VLOOKUP($A46,'Stap 2 Register'!$A$8:$AK$107,23,0)) -> 0 | F46: =IF(A46=0,0,VLOOKUP($A46,'Stap 2 Register'!$A$8:$AK$107,24,0)) -> 0 | G46: =IF(A46=0,0,VLOOKUP($A46,'Stap 2 Register'!$A$8:$AK$107,25,0)) -> 0 | H46: =IF(A46=0,0,VLOOKUP($A46,'Stap 2 Register'!$A$8:$AK$107,26,0)) -> 0 | I46: =IF(A46=0,0,VLOOKUP($A46,'Stap 2 Register'!$A$8:$AK$107,27,0)) -> 0 | J46: =IF(A46=0,0,VLOOKUP($A46,'Stap 2 Register'!$A$8:$AK$107,28,0)) -> 0
A47: =IF('1e berekening'!G42=0,'1e berekening'!B42,0) -> 61 | B47: =IF(A47=0,"",VLOOKUP($A47,'Stap 2 Register'!$A$8:$AK$107,2,0)) -> 61 | C47: =IF(A47=0,0,VLOOKUP($A47,'Stap 2 Register'!$A$8:$AK$107,3,0)) -> 0 | D47: =IF(A47=0,"",VLOOKUP($A47,'Stap 2 Register'!$A$8:$AK$107,14,0)) ->  | E47: =IF(A47=0,0,VLOOKUP($A47,'Stap 2 Register'!$A$8:$AK$107,23,0)) -> 0 | F47: =IF(A47=0,0,VLOOKUP($A47,'Stap 2 Register'!$A$8:$AK$107,24,0)) -> 0 | G47: =IF(A47=0,0,VLOOKUP($A47,'Stap 2 Register'!$A$8:$AK$107,25,0)) -> 0 | H47: =IF(A47=0,0,VLOOKUP($A47,'Stap 2 Register'!$A$8:$AK$107,26,0)) -> 0 | I47: =IF(A47=0,0,VLOOKUP($A47,'Stap 2 Register'!$A$8:$AK$107,27,0)) -> 0 | J47: =IF(A47=0,0,VLOOKUP($A47,'Stap 2 Register'!$A$8:$AK$107,28,0)) -> 0
A48: =IF('1e berekening'!G43=0,'1e berekening'!B43,0) -> 60 | B48: =IF(A48=0,"",VLOOKUP($A48,'Stap 2 Register'!$A$8:$AK$107,2,0)) -> 60 | C48: =IF(A48=0,0,VLOOKUP($A48,'Stap 2 Register'!$A$8:$AK$107,3,0)) -> 0 | D48: =IF(A48=0,"",VLOOKUP($A48,'Stap 2 Register'!$A$8:$AK$107,14,0)) ->  | E48: =IF(A48=0,0,VLOOKUP($A48,'Stap 2 Register'!$A$8:$AK$107,23,0)) -> 0 | F48: =IF(A48=0,0,VLOOKUP($A48,'Stap 2 Register'!$A$8:$AK$107,24,0)) -> 0 | G48: =IF(A48=0,0,VLOOKUP($A48,'Stap 2 Register'!$A$8:$AK$107,25,0)) -> 0 | H48: =IF(A48=0,0,VLOOKUP($A48,'Stap 2 Register'!$A$8:$AK$107,26,0)) -> 0 | I48: =IF(A48=0,0,VLOOKUP($A48,'Stap 2 Register'!$A$8:$AK$107,27,0)) -> 0 | J48: =IF(A48=0,0,VLOOKUP($A48,'Stap 2 Register'!$A$8:$AK$107,28,0)) -> 0
A49: =IF('1e berekening'!G44=0,'1e berekening'!B44,0) -> 59 | B49: =IF(A49=0,"",VLOOKUP($A49,'Stap 2 Register'!$A$8:$AK$107,2,0)) -> 59 | C49: =IF(A49=0,0,VLOOKUP($A49,'Stap 2 Register'!$A$8:$AK$107,3,0)) -> 0 | D49: =IF(A49=0,"",VLOOKUP($A49,'Stap 2 Register'!$A$8:$AK$107,14,0)) ->  | E49: =IF(A49=0,0,VLOOKUP($A49,'Stap 2 Register'!$A$8:$AK$107,23,0)) -> 0 | F49: =IF(A49=0,0,VLOOKUP($A49,'Stap 2 Register'!$A$8:$AK$107,24,0)) -> 0 | G49: =IF(A49=0,0,VLOOKUP($A49,'Stap 2 Register'!$A$8:$AK$107,25,0)) -> 0 | H49: =IF(A49=0,0,VLOOKUP($A49,'Stap 2 Register'!$A$8:$AK$107,26,0)) -> 0 | I49: =IF(A49=0,0,VLOOKUP($A49,'Stap 2 Register'!$A$8:$AK$107,27,0)) -> 0 | J49: =IF(A49=0,0,VLOOKUP($A49,'Stap 2 Register'!$A$8:$AK$107,28,0)) -> 0
A50: =IF('1e berekening'!G45=0,'1e berekening'!B45,0) -> 58 | B50: =IF(A50=0,"",VLOOKUP($A50,'Stap 2 Register'!$A$8:$AK$107,2,0)) -> 58 | C50: =IF(A50=0,0,VLOOKUP($A50,'Stap 2 Register'!$A$8:$AK$107,3,0)) -> 0 | D50: =IF(A50=0,"",VLOOKUP($A50,'Stap 2 Register'!$A$8:$AK$107,14,0)) ->  | E50: =IF(A50=0,0,VLOOKUP($A50,'Stap 2 Register'!$A$8:$AK$107,23,0)) -> 0 | F50: =IF(A50=0,0,VLOOKUP($A50,'Stap 2 Register'!$A$8:$AK$107,24,0)) -> 0 | G50: =IF(A50=0,0,VLOOKUP($A50,'Stap 2 Register'!$A$8:$AK$107,25,0)) -> 0 | H50: =IF(A50=0,0,VLOOKUP($A50,'Stap 2 Register'!$A$8:$AK$107,26,0)) -> 0 | I50: =IF(A50=0,0,VLOOKUP($A50,'Stap 2 Register'!$A$8:$AK$107,27,0)) -> 0 | J50: =IF(A50=0,0,VLOOKUP($A50,'Stap 2 Register'!$A$8:$AK$107,28,0)) -> 0
A51: =IF('1e berekening'!G46=0,'1e berekening'!B46,0) -> 57 | B51: =IF(A51=0,"",VLOOKUP($A51,'Stap 2 Register'!$A$8:$AK$107,2,0)) -> 57 | C51: =IF(A51=0,0,VLOOKUP($A51,'Stap 2 Register'!$A$8:$AK$107,3,0)) -> 0 | D51: =IF(A51=0,"",VLOOKUP($A51,'Stap 2 Register'!$A$8:$AK$107,14,0)) ->  | E51: =IF(A51=0,0,VLOOKUP($A51,'Stap 2 Register'!$A$8:$AK$107,23,0)) -> 0 | F51: =IF(A51=0,0,VLOOKUP($A51,'Stap 2 Register'!$A$8:$AK$107,24,0)) -> 0 | G51: =IF(A51=0,0,VLOOKUP($A51,'Stap 2 Register'!$A$8:$AK$107,25,0)) -> 0 | H51: =IF(A51=0,0,VLOOKUP($A51,'Stap 2 Register'!$A$8:$AK$107,26,0)) -> 0 | I51: =IF(A51=0,0,VLOOKUP($A51,'Stap 2 Register'!$A$8:$AK$107,27,0)) -> 0 | J51: =IF(A51=0,0,VLOOKUP($A51,'Stap 2 Register'!$A$8:$AK$107,28,0)) -> 0
A52: =IF('1e berekening'!G47=0,'1e berekening'!B47,0) -> 56 | B52: =IF(A52=0,"",VLOOKUP($A52,'Stap 2 Register'!$A$8:$AK$107,2,0)) -> 56 | C52: =IF(A52=0,0,VLOOKUP($A52,'Stap 2 Register'!$A$8:$AK$107,3,0)) -> 0 | D52: =IF(A52=0,"",VLOOKUP($A52,'Stap 2 Register'!$A$8:$AK$107,14,0)) ->  | E52: =IF(A52=0,0,VLOOKUP($A52,'Stap 2 Register'!$A$8:$AK$107,23,0)) -> 0 | F52: =IF(A52=0,0,VLOOKUP($A52,'Stap 2 Register'!$A$8:$AK$107,24,0)) -> 0 | G52: =IF(A52=0,0,VLOOKUP($A52,'Stap 2 Register'!$A$8:$AK$107,25,0)) -> 0 | H52: =IF(A52=0,0,VLOOKUP($A52,'Stap 2 Register'!$A$8:$AK$107,26,0)) -> 0 | I52: =IF(A52=0,0,VLOOKUP($A52,'Stap 2 Register'!$A$8:$AK$107,27,0)) -> 0 | J52: =IF(A52=0,0,VLOOKUP($A52,'Stap 2 Register'!$A$8:$AK$107,28,0)) -> 0
A53: =IF('1e berekening'!G48=0,'1e berekening'!B48,0) -> 55 | B53: =IF(A53=0,"",VLOOKUP($A53,'Stap 2 Register'!$A$8:$AK$107,2,0)) -> 55 | C53: =IF(A53=0,0,VLOOKUP($A53,'Stap 2 Register'!$A$8:$AK$107,3,0)) -> 0 | D53: =IF(A53=0,"",VLOOKUP($A53,'Stap 2 Register'!$A$8:$AK$107,14,0)) ->  | E53: =IF(A53=0,0,VLOOKUP($A53,'Stap 2 Register'!$A$8:$AK$107,23,0)) -> 0 | F53: =IF(A53=0,0,VLOOKUP($A53,'Stap 2 Register'!$A$8:$AK$107,24,0)) -> 0 | G53: =IF(A53=0,0,VLOOKUP($A53,'Stap 2 Register'!$A$8:$AK$107,25,0)) -> 0 | H53: =IF(A53=0,0,VLOOKUP($A53,'Stap 2 Register'!$A$8:$AK$107,26,0)) -> 0 | I53: =IF(A53=0,0,VLOOKUP($A53,'Stap 2 Register'!$A$8:$AK$107,27,0)) -> 0 | J53: =IF(A53=0,0,VLOOKUP($A53,'Stap 2 Register'!$A$8:$AK$107,28,0)) -> 0
A54: =IF('1e berekening'!G49=0,'1e berekening'!B49,0) -> 54 | B54: =IF(A54=0,"",VLOOKUP($A54,'Stap 2 Register'!$A$8:$AK$107,2,0)) -> 54 | C54: =IF(A54=0,0,VLOOKUP($A54,'Stap 2 Register'!$A$8:$AK$107,3,0)) -> 0 | D54: =IF(A54=0,"",VLOOKUP($A54,'Stap 2 Register'!$A$8:$AK$107,14,0)) ->  | E54: =IF(A54=0,0,VLOOKUP($A54,'Stap 2 Register'!$A$8:$AK$107,23,0)) -> 0 | F54: =IF(A54=0,0,VLOOKUP($A54,'Stap 2 Register'!$A$8:$AK$107,24,0)) -> 0 | G54: =IF(A54=0,0,VLOOKUP($A54,'Stap 2 Register'!$A$8:$AK$107,25,0)) -> 0 | H54: =IF(A54=0,0,VLOOKUP($A54,'Stap 2 Register'!$A$8:$AK$107,26,0)) -> 0 | I54: =IF(A54=0,0,VLOOKUP($A54,'Stap 2 Register'!$A$8:$AK$107,27,0)) -> 0 | J54: =IF(A54=0,0,VLOOKUP($A54,'Stap 2 Register'!$A$8:$AK$107,28,0)) -> 0
A55: =IF('1e berekening'!G50=0,'1e berekening'!B50,0) -> 53 | B55: =IF(A55=0,"",VLOOKUP($A55,'Stap 2 Register'!$A$8:$AK$107,2,0)) -> 53 | C55: =IF(A55=0,0,VLOOKUP($A55,'Stap 2 Register'!$A$8:$AK$107,3,0)) -> 0 | D55: =IF(A55=0,"",VLOOKUP($A55,'Stap 2 Register'!$A$8:$AK$107,14,0)) ->  | E55: =IF(A55=0,0,VLOOKUP($A55,'Stap 2 Register'!$A$8:$AK$107,23,0)) -> 0 | F55: =IF(A55=0,0,VLOOKUP($A55,'Stap 2 Register'!$A$8:$AK$107,24,0)) -> 0 | G55: =IF(A55=0,0,VLOOKUP($A55,'Stap 2 Register'!$A$8:$AK$107,25,0)) -> 0 | H55: =IF(A55=0,0,VLOOKUP($A55,'Stap 2 Register'!$A$8:$AK$107,26,0)) -> 0 | I55: =IF(A55=0,0,VLOOKUP($A55,'Stap 2 Register'!$A$8:$AK$107,27,0)) -> 0 | J55: =IF(A55=0,0,VLOOKUP($A55,'Stap 2 Register'!$A$8:$AK$107,28,0)) -> 0
A56: =IF('1e berekening'!G51=0,'1e berekening'!B51,0) -> 52 | B56: =IF(A56=0,"",VLOOKUP($A56,'Stap 2 Register'!$A$8:$AK$107,2,0)) -> 52 | C56: =IF(A56=0,0,VLOOKUP($A56,'Stap 2 Register'!$A$8:$AK$107,3,0)) -> 0 | D56: =IF(A56=0,"",VLOOKUP($A56,'Stap 2 Register'!$A$8:$AK$107,14,0)) ->  | E56: =IF(A56=0,0,VLOOKUP($A56,'Stap 2 Register'!$A$8:$AK$107,23,0)) -> 0 | F56: =IF(A56=0,0,VLOOKUP($A56,'Stap 2 Register'!$A$8:$AK$107,24,0)) -> 0 | G56: =IF(A56=0,0,VLOOKUP($A56,'Stap 2 Register'!$A$8:$AK$107,25,0)) -> 0 | H56: =IF(A56=0,0,VLOOKUP($A56,'Stap 2 Register'!$A$8:$AK$107,26,0)) -> 0 | I56: =IF(A56=0,0,VLOOKUP($A56,'Stap 2 Register'!$A$8:$AK$107,27,0)) -> 0 | J56: =IF(A56=0,0,VLOOKUP($A56,'Stap 2 Register'!$A$8:$AK$107,28,0)) -> 0
A57: =IF('1e berekening'!G52=0,'1e berekening'!B52,0) -> 51 | B57: =IF(A57=0,"",VLOOKUP($A57,'Stap 2 Register'!$A$8:$AK$107,2,0)) -> 51 | C57: =IF(A57=0,0,VLOOKUP($A57,'Stap 2 Register'!$A$8:$AK$107,3,0)) -> 0 | D57: =IF(A57=0,"",VLOOKUP($A57,'Stap 2 Register'!$A$8:$AK$107,14,0)) ->  | E57: =IF(A57=0,0,VLOOKUP($A57,'Stap 2 Register'!$A$8:$AK$107,23,0)) -> 0 | F57: =IF(A57=0,0,VLOOKUP($A57,'Stap 2 Register'!$A$8:$AK$107,24,0)) -> 0 | G57: =IF(A57=0,0,VLOOKUP($A57,'Stap 2 Register'!$A$8:$AK$107,25,0)) -> 0 | H57: =IF(A57=0,0,VLOOKUP($A57,'Stap 2 Register'!$A$8:$AK$107,26,0)) -> 0 | I57: =IF(A57=0,0,VLOOKUP($A57,'Stap 2 Register'!$A$8:$AK$107,27,0)) -> 0 | J57: =IF(A57=0,0,VLOOKUP($A57,'Stap 2 Register'!$A$8:$AK$107,28,0)) -> 0
A58: =IF('1e berekening'!G53=0,'1e berekening'!B53,0) -> 50 | B58: =IF(A58=0,"",VLOOKUP($A58,'Stap 2 Register'!$A$8:$AK$107,2,0)) -> 50 | C58: =IF(A58=0,0,VLOOKUP($A58,'Stap 2 Register'!$A$8:$AK$107,3,0)) -> 0 | D58: =IF(A58=0,"",VLOOKUP($A58,'Stap 2 Register'!$A$8:$AK$107,14,0)) ->  | E58: =IF(A58=0,0,VLOOKUP($A58,'Stap 2 Register'!$A$8:$AK$107,23,0)) -> 0 | F58: =IF(A58=0,0,VLOOKUP($A58,'Stap 2 Register'!$A$8:$AK$107,24,0)) -> 0 | G58: =IF(A58=0,0,VLOOKUP($A58,'Stap 2 Register'!$A$8:$AK$107,25,0)) -> 0 | H58: =IF(A58=0,0,VLOOKUP($A58,'Stap 2 Register'!$A$8:$AK$107,26,0)) -> 0 | I58: =IF(A58=0,0,VLOOKUP($A58,'Stap 2 Register'!$A$8:$AK$107,27,0)) -> 0 | J58: =IF(A58=0,0,VLOOKUP($A58,'Stap 2 Register'!$A$8:$AK$107,28,0)) -> 0
A59: =IF('1e berekening'!G54=0,'1e berekening'!B54,0) -> 49 | B59: =IF(A59=0,"",VLOOKUP($A59,'Stap 2 Register'!$A$8:$AK$107,2,0)) -> 49 | C59: =IF(A59=0,0,VLOOKUP($A59,'Stap 2 Register'!$A$8:$AK$107,3,0)) -> 0 | D59: =IF(A59=0,"",VLOOKUP($A59,'Stap 2 Register'!$A$8:$AK$107,14,0)) ->  | E59: =IF(A59=0,0,VLOOKUP($A59,'Stap 2 Register'!$A$8:$AK$107,23,0)) -> 0 | F59: =IF(A59=0,0,VLOOKUP($A59,'Stap 2 Register'!$A$8:$AK$107,24,0)) -> 0 | G59: =IF(A59=0,0,VLOOKUP($A59,'Stap 2 Register'!$A$8:$AK$107,25,0)) -> 0 | H59: =IF(A59=0,0,VLOOKUP($A59,'Stap 2 Register'!$A$8:$AK$107,26,0)) -> 0 | I59: =IF(A59=0,0,VLOOKUP($A59,'Stap 2 Register'!$A$8:$AK$107,27,0)) -> 0 | J59: =IF(A59=0,0,VLOOKUP($A59,'Stap 2 Register'!$A$8:$AK$107,28,0)) -> 0
A60: =IF('1e berekening'!G55=0,'1e berekening'!B55,0) -> 48 | B60: =IF(A60=0,"",VLOOKUP($A60,'Stap 2 Register'!$A$8:$AK$107,2,0)) -> 48 | C60: =IF(A60=0,0,VLOOKUP($A60,'Stap 2 Register'!$A$8:$AK$107,3,0)) -> 0 | D60: =IF(A60=0,"",VLOOKUP($A60,'Stap 2 Register'!$A$8:$AK$107,14,0)) ->  | E60: =IF(A60=0,0,VLOOKUP($A60,'Stap 2 Register'!$A$8:$AK$107,23,0)) -> 0 | F60: =IF(A60=0,0,VLOOKUP($A60,'Stap 2 Register'!$A$8:$AK$107,24,0)) -> 0 | G60: =IF(A60=0,0,VLOOKUP($A60,'Stap 2 Register'!$A$8:$AK$107,25,0)) -> 0 | H60: =IF(A60=0,0,VLOOKUP($A60,'Stap 2 Register'!$A$8:$AK$107,26,0)) -> 0 | I60: =IF(A60=0,0,VLOOKUP($A60,'Stap 2 Register'!$A$8:$AK$107,27,0)) -> 0 | J60: =IF(A60=0,0,VLOOKUP($A60,'Stap 2 Register'!$A$8:$AK$107,28,0)) -> 0
A61: =IF('1e berekening'!G56=0,'1e berekening'!B56,0) -> 47 | B61: =IF(A61=0,"",VLOOKUP($A61,'Stap 2 Register'!$A$8:$AK$107,2,0)) -> 47 | C61: =IF(A61=0,0,VLOOKUP($A61,'Stap 2 Register'!$A$8:$AK$107,3,0)) -> 0 | D61: =IF(A61=0,"",VLOOKUP($A61,'Stap 2 Register'!$A$8:$AK$107,14,0)) ->  | E61: =IF(A61=0,0,VLOOKUP($A61,'Stap 2 Register'!$A$8:$AK$107,23,0)) -> 0 | F61: =IF(A61=0,0,VLOOKUP($A61,'Stap 2 Register'!$A$8:$AK$107,24,0)) -> 0 | G61: =IF(A61=0,0,VLOOKUP($A61,'Stap 2 Register'!$A$8:$AK$107,25,0)) -> 0 | H61: =IF(A61=0,0,VLOOKUP($A61,'Stap 2 Register'!$A$8:$AK$107,26,0)) -> 0 | I61: =IF(A61=0,0,VLOOKUP($A61,'Stap 2 Register'!$A$8:$AK$107,27,0)) -> 0 | J61: =IF(A61=0,0,VLOOKUP($A61,'Stap 2 Register'!$A$8:$AK$107,28,0)) -> 0
A62: =IF('1e berekening'!G57=0,'1e berekening'!B57,0) -> 46 | B62: =IF(A62=0,"",VLOOKUP($A62,'Stap 2 Register'!$A$8:$AK$107,2,0)) -> 46 | C62: =IF(A62=0,0,VLOOKUP($A62,'Stap 2 Register'!$A$8:$AK$107,3,0)) -> 0 | D62: =IF(A62=0,"",VLOOKUP($A62,'Stap 2 Register'!$A$8:$AK$107,14,0)) ->  | E62: =IF(A62=0,0,VLOOKUP($A62,'Stap 2 Register'!$A$8:$AK$107,23,0)) -> 0 | F62: =IF(A62=0,0,VLOOKUP($A62,'Stap 2 Register'!$A$8:$AK$107,24,0)) -> 0 | G62: =IF(A62=0,0,VLOOKUP($A62,'Stap 2 Register'!$A$8:$AK$107,25,0)) -> 0 | H62: =IF(A62=0,0,VLOOKUP($A62,'Stap 2 Register'!$A$8:$AK$107,26,0)) -> 0 | I62: =IF(A62=0,0,VLOOKUP($A62,'Stap 2 Register'!$A$8:$AK$107,27,0)) -> 0 | J62: =IF(A62=0,0,VLOOKUP($A62,'Stap 2 Register'!$A$8:$AK$107,28,0)) -> 0
A63: =IF('1e berekening'!G58=0,'1e berekening'!B58,0) -> 45 | B63: =IF(A63=0,"",VLOOKUP($A63,'Stap 2 Register'!$A$8:$AK$107,2,0)) -> 45 | C63: =IF(A63=0,0,VLOOKUP($A63,'Stap 2 Register'!$A$8:$AK$107,3,0)) -> 0 | D63: =IF(A63=0,"",VLOOKUP($A63,'Stap 2 Register'!$A$8:$AK$107,14,0)) ->  | E63: =IF(A63=0,0,VLOOKUP($A63,'Stap 2 Register'!$A$8:$AK$107,23,0)) -> 0 | F63: =IF(A63=0,0,VLOOKUP($A63,'Stap 2 Register'!$A$8:$AK$107,24,0)) -> 0 | G63: =IF(A63=0,0,VLOOKUP($A63,'Stap 2 Register'!$A$8:$AK$107,25,0)) -> 0 | H63: =IF(A63=0,0,VLOOKUP($A63,'Stap 2 Register'!$A$8:$AK$107,26,0)) -> 0 | I63: =IF(A63=0,0,VLOOKUP($A63,'Stap 2 Register'!$A$8:$AK$107,27,0)) -> 0 | J63: =IF(A63=0,0,VLOOKUP($A63,'Stap 2 Register'!$A$8:$AK$107,28,0)) -> 0
A64: =IF('1e berekening'!G59=0,'1e berekening'!B59,0) -> 44 | B64: =IF(A64=0,"",VLOOKUP($A64,'Stap 2 Register'!$A$8:$AK$107,2,0)) -> 44 | C64: =IF(A64=0,0,VLOOKUP($A64,'Stap 2 Register'!$A$8:$AK$107,3,0)) -> 0 | D64: =IF(A64=0,"",VLOOKUP($A64,'Stap 2 Register'!$A$8:$AK$107,14,0)) ->  | E64: =IF(A64=0,0,VLOOKUP($A64,'Stap 2 Register'!$A$8:$AK$107,23,0)) -> 0 | F64: =IF(A64=0,0,VLOOKUP($A64,'Stap 2 Register'!$A$8:$AK$107,24,0)) -> 0 | G64: =IF(A64=0,0,VLOOKUP($A64,'Stap 2 Register'!$A$8:$AK$107,25,0)) -> 0 | H64: =IF(A64=0,0,VLOOKUP($A64,'Stap 2 Register'!$A$8:$AK$107,26,0)) -> 0 | I64: =IF(A64=0,0,VLOOKUP($A64,'Stap 2 Register'!$A$8:$AK$107,27,0)) -> 0 | J64: =IF(A64=0,0,VLOOKUP($A64,'Stap 2 Register'!$A$8:$AK$107,28,0)) -> 0
A65: =IF('1e berekening'!G60=0,'1e berekening'!B60,0) -> 43 | B65: =IF(A65=0,"",VLOOKUP($A65,'Stap 2 Register'!$A$8:$AK$107,2,0)) -> 43 | C65: =IF(A65=0,0,VLOOKUP($A65,'Stap 2 Register'!$A$8:$AK$107,3,0)) -> 0 | D65: =IF(A65=0,"",VLOOKUP($A65,'Stap 2 Register'!$A$8:$AK$107,14,0)) ->  | E65: =IF(A65=0,0,VLOOKUP($A65,'Stap 2 Register'!$A$8:$AK$107,23,0)) -> 0 | F65: =IF(A65=0,0,VLOOKUP($A65,'Stap 2 Register'!$A$8:$AK$107,24,0)) -> 0 | G65: =IF(A65=0,0,VLOOKUP($A65,'Stap 2 Register'!$A$8:$AK$107,25,0)) -> 0 | H65: =IF(A65=0,0,VLOOKUP($A65,'Stap 2 Register'!$A$8:$AK$107,26,0)) -> 0 | I65: =IF(A65=0,0,VLOOKUP($A65,'Stap 2 Register'!$A$8:$AK$107,27,0)) -> 0 | J65: =IF(A65=0,0,VLOOKUP($A65,'Stap 2 Register'!$A$8:$AK$107,28,0)) -> 0
A66: =IF('1e berekening'!G61=0,'1e berekening'!B61,0) -> 42 | B66: =IF(A66=0,"",VLOOKUP($A66,'Stap 2 Register'!$A$8:$AK$107,2,0)) -> 42 | C66: =IF(A66=0,0,VLOOKUP($A66,'Stap 2 Register'!$A$8:$AK$107,3,0)) -> 0 | D66: =IF(A66=0,"",VLOOKUP($A66,'Stap 2 Register'!$A$8:$AK$107,14,0)) ->  | E66: =IF(A66=0,0,VLOOKUP($A66,'Stap 2 Register'!$A$8:$AK$107,23,0)) -> 0 | F66: =IF(A66=0,0,VLOOKUP($A66,'Stap 2 Register'!$A$8:$AK$107,24,0)) -> 0 | G66: =IF(A66=0,0,VLOOKUP($A66,'Stap 2 Register'!$A$8:$AK$107,25,0)) -> 0 | H66: =IF(A66=0,0,VLOOKUP($A66,'Stap 2 Register'!$A$8:$AK$107,26,0)) -> 0 | I66: =IF(A66=0,0,VLOOKUP($A66,'Stap 2 Register'!$A$8:$AK$107,27,0)) -> 0 | J66: =IF(A66=0,0,VLOOKUP($A66,'Stap 2 Register'!$A$8:$AK$107,28,0)) -> 0
A67: =IF('1e berekening'!G62=0,'1e berekening'!B62,0) -> 41 | B67: =IF(A67=0,"",VLOOKUP($A67,'Stap 2 Register'!$A$8:$AK$107,2,0)) -> 41 | C67: =IF(A67=0,0,VLOOKUP($A67,'Stap 2 Register'!$A$8:$AK$107,3,0)) -> 0 | D67: =IF(A67=0,"",VLOOKUP($A67,'Stap 2 Register'!$A$8:$AK$107,14,0)) ->  | E67: =IF(A67=0,0,VLOOKUP($A67,'Stap 2 Register'!$A$8:$AK$107,23,0)) -> 0 | F67: =IF(A67=0,0,VLOOKUP($A67,'Stap 2 Register'!$A$8:$AK$107,24,0)) -> 0 | G67: =IF(A67=0,0,VLOOKUP($A67,'Stap 2 Register'!$A$8:$AK$107,25,0)) -> 0 | H67: =IF(A67=0,0,VLOOKUP($A67,'Stap 2 Register'!$A$8:$AK$107,26,0)) -> 0 | I67: =IF(A67=0,0,VLOOKUP($A67,'Stap 2 Register'!$A$8:$AK$107,27,0)) -> 0 | J67: =IF(A67=0,0,VLOOKUP($A67,'Stap 2 Register'!$A$8:$AK$107,28,0)) -> 0
A68: =IF('1e berekening'!G63=0,'1e berekening'!B63,0) -> 40 | B68: =IF(A68=0,"",VLOOKUP($A68,'Stap 2 Register'!$A$8:$AK$107,2,0)) -> 40 | C68: =IF(A68=0,0,VLOOKUP($A68,'Stap 2 Register'!$A$8:$AK$107,3,0)) -> 0 | D68: =IF(A68=0,"",VLOOKUP($A68,'Stap 2 Register'!$A$8:$AK$107,14,0)) ->  | E68: =IF(A68=0,0,VLOOKUP($A68,'Stap 2 Register'!$A$8:$AK$107,23,0)) -> 0 | F68: =IF(A68=0,0,VLOOKUP($A68,'Stap 2 Register'!$A$8:$AK$107,24,0)) -> 0 | G68: =IF(A68=0,0,VLOOKUP($A68,'Stap 2 Register'!$A$8:$AK$107,25,0)) -> 0 | H68: =IF(A68=0,0,VLOOKUP($A68,'Stap 2 Register'!$A$8:$AK$107,26,0)) -> 0 | I68: =IF(A68=0,0,VLOOKUP($A68,'Stap 2 Register'!$A$8:$AK$107,27,0)) -> 0 | J68: =IF(A68=0,0,VLOOKUP($A68,'Stap 2 Register'!$A$8:$AK$107,28,0)) -> 0
A69: =IF('1e berekening'!G64=0,'1e berekening'!B64,0) -> 39 | B69: =IF(A69=0,"",VLOOKUP($A69,'Stap 2 Register'!$A$8:$AK$107,2,0)) -> 39 | C69: =IF(A69=0,0,VLOOKUP($A69,'Stap 2 Register'!$A$8:$AK$107,3,0)) -> 0 | D69: =IF(A69=0,"",VLOOKUP($A69,'Stap 2 Register'!$A$8:$AK$107,14,0)) ->  | E69: =IF(A69=0,0,VLOOKUP($A69,'Stap 2 Register'!$A$8:$AK$107,23,0)) -> 0 | F69: =IF(A69=0,0,VLOOKUP($A69,'Stap 2 Register'!$A$8:$AK$107,24,0)) -> 0 | G69: =IF(A69=0,0,VLOOKUP($A69,'Stap 2 Register'!$A$8:$AK$107,25,0)) -> 0 | H69: =IF(A69=0,0,VLOOKUP($A69,'Stap 2 Register'!$A$8:$AK$107,26,0)) -> 0 | I69: =IF(A69=0,0,VLOOKUP($A69,'Stap 2 Register'!$A$8:$AK$107,27,0)) -> 0 | J69: =IF(A69=0,0,VLOOKUP($A69,'Stap 2 Register'!$A$8:$AK$107,28,0)) -> 0
A70: =IF('1e berekening'!G65=0,'1e berekening'!B65,0) -> 38 | B70: =IF(A70=0,"",VLOOKUP($A70,'Stap 2 Register'!$A$8:$AK$107,2,0)) -> 38 | C70: =IF(A70=0,0,VLOOKUP($A70,'Stap 2 Register'!$A$8:$AK$107,3,0)) -> 0 | D70: =IF(A70=0,"",VLOOKUP($A70,'Stap 2 Register'!$A$8:$AK$107,14,0)) ->  | E70: =IF(A70=0,0,VLOOKUP($A70,'Stap 2 Register'!$A$8:$AK$107,23,0)) -> 0 | F70: =IF(A70=0,0,VLOOKUP($A70,'Stap 2 Register'!$A$8:$AK$107,24,0)) -> 0 | G70: =IF(A70=0,0,VLOOKUP($A70,'Stap 2 Register'!$A$8:$AK$107,25,0)) -> 0 | H70: =IF(A70=0,0,VLOOKUP($A70,'Stap 2 Register'!$A$8:$AK$107,26,0)) -> 0 | I70: =IF(A70=0,0,VLOOKUP($A70,'Stap 2 Register'!$A$8:$AK$107,27,0)) -> 0 | J70: =IF(A70=0,0,VLOOKUP($A70,'Stap 2 Register'!$A$8:$AK$107,28,0)) -> 0
A71: =IF('1e berekening'!G66=0,'1e berekening'!B66,0) -> 37 | B71: =IF(A71=0,"",VLOOKUP($A71,'Stap 2 Register'!$A$8:$AK$107,2,0)) -> 37 | C71: =IF(A71=0,0,VLOOKUP($A71,'Stap 2 Register'!$A$8:$AK$107,3,0)) -> 0 | D71: =IF(A71=0,"",VLOOKUP($A71,'Stap 2 Register'!$A$8:$AK$107,14,0)) ->  | E71: =IF(A71=0,0,VLOOKUP($A71,'Stap 2 Register'!$A$8:$AK$107,23,0)) -> 0 | F71: =IF(A71=0,0,VLOOKUP($A71,'Stap 2 Register'!$A$8:$AK$107,24,0)) -> 0 | G71: =IF(A71=0,0,VLOOKUP($A71,'Stap 2 Register'!$A$8:$AK$107,25,0)) -> 0 | H71: =IF(A71=0,0,VLOOKUP($A71,'Stap 2 Register'!$A$8:$AK$107,26,0)) -> 0 | I71: =IF(A71=0,0,VLOOKUP($A71,'Stap 2 Register'!$A$8:$AK$107,27,0)) -> 0 | J71: =IF(A71=0,0,VLOOKUP($A71,'Stap 2 Register'!$A$8:$AK$107,28,0)) -> 0
A72: =IF('1e berekening'!G67=0,'1e berekening'!B67,0) -> 36 | B72: =IF(A72=0,"",VLOOKUP($A72,'Stap 2 Register'!$A$8:$AK$107,2,0)) -> 36 | C72: =IF(A72=0,0,VLOOKUP($A72,'Stap 2 Register'!$A$8:$AK$107,3,0)) -> 0 | D72: =IF(A72=0,"",VLOOKUP($A72,'Stap 2 Register'!$A$8:$AK$107,14,0)) ->  | E72: =IF(A72=0,0,VLOOKUP($A72,'Stap 2 Register'!$A$8:$AK$107,23,0)) -> 0 | F72: =IF(A72=0,0,VLOOKUP($A72,'Stap 2 Register'!$A$8:$AK$107,24,0)) -> 0 | G72: =IF(A72=0,0,VLOOKUP($A72,'Stap 2 Register'!$A$8:$AK$107,25,0)) -> 0 | H72: =IF(A72=0,0,VLOOKUP($A72,'Stap 2 Register'!$A$8:$AK$107,26,0)) -> 0 | I72: =IF(A72=0,0,VLOOKUP($A72,'Stap 2 Register'!$A$8:$AK$107,27,0)) -> 0 | J72: =IF(A72=0,0,VLOOKUP($A72,'Stap 2 Register'!$A$8:$AK$107,28,0)) -> 0
A73: =IF('1e berekening'!G68=0,'1e berekening'!B68,0) -> 35 | B73: =IF(A73=0,"",VLOOKUP($A73,'Stap 2 Register'!$A$8:$AK$107,2,0)) -> 35 | C73: =IF(A73=0,0,VLOOKUP($A73,'Stap 2 Register'!$A$8:$AK$107,3,0)) -> 0 | D73: =IF(A73=0,"",VLOOKUP($A73,'Stap 2 Register'!$A$8:$AK$107,14,0)) ->  | E73: =IF(A73=0,0,VLOOKUP($A73,'Stap 2 Register'!$A$8:$AK$107,23,0)) -> 0 | F73: =IF(A73=0,0,VLOOKUP($A73,'Stap 2 Register'!$A$8:$AK$107,24,0)) -> 0 | G73: =IF(A73=0,0,VLOOKUP($A73,'Stap 2 Register'!$A$8:$AK$107,25,0)) -> 0 | H73: =IF(A73=0,0,VLOOKUP($A73,'Stap 2 Register'!$A$8:$AK$107,26,0)) -> 0 | I73: =IF(A73=0,0,VLOOKUP($A73,'Stap 2 Register'!$A$8:$AK$107,27,0)) -> 0 | J73: =IF(A73=0,0,VLOOKUP($A73,'Stap 2 Register'!$A$8:$AK$107,28,0)) -> 0 | P73: =IF($D73=$P$7,_xlfn.TEXTJOIN($J$6,,$B73,$C73),"") -> 
A74: =IF('1e berekening'!G69=0,'1e berekening'!B69,0) -> 34 | B74: =IF(A74=0,"",VLOOKUP($A74,'Stap 2 Register'!$A$8:$AK$107,2,0)) -> 34 | C74: =IF(A74=0,0,VLOOKUP($A74,'Stap 2 Register'!$A$8:$AK$107,3,0)) -> 0 | D74: =IF(A74=0,"",VLOOKUP($A74,'Stap 2 Register'!$A$8:$AK$107,14,0)) ->  | E74: =IF(A74=0,0,VLOOKUP($A74,'Stap 2 Register'!$A$8:$AK$107,23,0)) -> 0 | F74: =IF(A74=0,0,VLOOKUP($A74,'Stap 2 Register'!$A$8:$AK$107,24,0)) -> 0 | G74: =IF(A74=0,0,VLOOKUP($A74,'Stap 2 Register'!$A$8:$AK$107,25,0)) -> 0 | H74: =IF(A74=0,0,VLOOKUP($A74,'Stap 2 Register'!$A$8:$AK$107,26,0)) -> 0 | I74: =IF(A74=0,0,VLOOKUP($A74,'Stap 2 Register'!$A$8:$AK$107,27,0)) -> 0 | J74: =IF(A74=0,0,VLOOKUP($A74,'Stap 2 Register'!$A$8:$AK$107,28,0)) -> 0
A75: =IF('1e berekening'!G70=0,'1e berekening'!B70,0) -> 33 | B75: =IF(A75=0,"",VLOOKUP($A75,'Stap 2 Register'!$A$8:$AK$107,2,0)) -> 33 | C75: =IF(A75=0,0,VLOOKUP($A75,'Stap 2 Register'!$A$8:$AK$107,3,0)) -> 0 | D75: =IF(A75=0,"",VLOOKUP($A75,'Stap 2 Register'!$A$8:$AK$107,14,0)) ->  | E75: =IF(A75=0,0,VLOOKUP($A75,'Stap 2 Register'!$A$8:$AK$107,23,0)) -> 0 | F75: =IF(A75=0,0,VLOOKUP($A75,'Stap 2 Register'!$A$8:$AK$107,24,0)) -> 0 | G75: =IF(A75=0,0,VLOOKUP($A75,'Stap 2 Register'!$A$8:$AK$107,25,0)) -> 0 | H75: =IF(A75=0,0,VLOOKUP($A75,'Stap 2 Register'!$A$8:$AK$107,26,0)) -> 0 | I75: =IF(A75=0,0,VLOOKUP($A75,'Stap 2 Register'!$A$8:$AK$107,27,0)) -> 0 | J75: =IF(A75=0,0,VLOOKUP($A75,'Stap 2 Register'!$A$8:$AK$107,28,0)) -> 0
A76: =IF('1e berekening'!G71=0,'1e berekening'!B71,0) -> 32 | B76: =IF(A76=0,"",VLOOKUP($A76,'Stap 2 Register'!$A$8:$AK$107,2,0)) -> 32 | C76: =IF(A76=0,0,VLOOKUP($A76,'Stap 2 Register'!$A$8:$AK$107,3,0)) -> 0 | D76: =IF(A76=0,"",VLOOKUP($A76,'Stap 2 Register'!$A$8:$AK$107,14,0)) ->  | E76: =IF(A76=0,0,VLOOKUP($A76,'Stap 2 Register'!$A$8:$AK$107,23,0)) -> 0 | F76: =IF(A76=0,0,VLOOKUP($A76,'Stap 2 Register'!$A$8:$AK$107,24,0)) -> 0 | G76: =IF(A76=0,0,VLOOKUP($A76,'Stap 2 Register'!$A$8:$AK$107,25,0)) -> 0 | H76: =IF(A76=0,0,VLOOKUP($A76,'Stap 2 Register'!$A$8:$AK$107,26,0)) -> 0 | I76: =IF(A76=0,0,VLOOKUP($A76,'Stap 2 Register'!$A$8:$AK$107,27,0)) -> 0 | J76: =IF(A76=0,0,VLOOKUP($A76,'Stap 2 Register'!$A$8:$AK$107,28,0)) -> 0 | L76: =IF($D76=$L$7,_xlfn.TEXTJOIN($J$6,,$B76,$C76),"") ->  | M76: =IF($D76=$M$7,_xlfn.TEXTJOIN($J$6,,$B76,$C76),"") ->  | N76: =IF($D76=$N$7,_xlfn.TEXTJOIN($J$6,,$B76,$C76),"") ->  | O76: =IF($D76=$O$7,_xlfn.TEXTJOIN($J$6,,$B76,$C76),"") -> 
A77: =IF('1e berekening'!G72=0,'1e berekening'!B72,0) -> 31 | B77: =IF(A77=0,"",VLOOKUP($A77,'Stap 2 Register'!$A$8:$AK$107,2,0)) -> 31 | C77: =IF(A77=0,0,VLOOKUP($A77,'Stap 2 Register'!$A$8:$AK$107,3,0)) -> 0 | D77: =IF(A77=0,"",VLOOKUP($A77,'Stap 2 Register'!$A$8:$AK$107,14,0)) ->  | E77: =IF(A77=0,0,VLOOKUP($A77,'Stap 2 Register'!$A$8:$AK$107,23,0)) -> 0 | F77: =IF(A77=0,0,VLOOKUP($A77,'Stap 2 Register'!$A$8:$AK$107,24,0)) -> 0 | G77: =IF(A77=0,0,VLOOKUP($A77,'Stap 2 Register'!$A$8:$AK$107,25,0)) -> 0 | H77: =IF(A77=0,0,VLOOKUP($A77,'Stap 2 Register'!$A$8:$AK$107,26,0)) -> 0 | I77: =IF(A77=0,0,VLOOKUP($A77,'Stap 2 Register'!$A$8:$AK$107,27,0)) -> 0 | J77: =IF(A77=0,0,VLOOKUP($A77,'Stap 2 Register'!$A$8:$AK$107,28,0)) -> 0 | K77: =IF($D77=$K$7,_xlfn.TEXTJOIN($J$6,,$B77,$C77),"") -> 
A78: =IF('1e berekening'!G73=0,'1e berekening'!B73,0) -> 30 | B78: =IF(A78=0,"",VLOOKUP($A78,'Stap 2 Register'!$A$8:$AK$107,2,0)) -> 30 | C78: =IF(A78=0,0,VLOOKUP($A78,'Stap 2 Register'!$A$8:$AK$107,3,0)) -> 0 | D78: =IF(A78=0,"",VLOOKUP($A78,'Stap 2 Register'!$A$8:$AK$107,14,0)) ->  | E78: =IF(A78=0,0,VLOOKUP($A78,'Stap 2 Register'!$A$8:$AK$107,23,0)) -> 0 | F78: =IF(A78=0,0,VLOOKUP($A78,'Stap 2 Register'!$A$8:$AK$107,24,0)) -> 0 | G78: =IF(A78=0,0,VLOOKUP($A78,'Stap 2 Register'!$A$8:$AK$107,25,0)) -> 0 | H78: =IF(A78=0,0,VLOOKUP($A78,'Stap 2 Register'!$A$8:$AK$107,26,0)) -> 0 | I78: =IF(A78=0,0,VLOOKUP($A78,'Stap 2 Register'!$A$8:$AK$107,27,0)) -> 0 | J78: =IF(A78=0,0,VLOOKUP($A78,'Stap 2 Register'!$A$8:$AK$107,28,0)) -> 0
A79: =IF('1e berekening'!G74=0,'1e berekening'!B74,0) -> 29 | B79: =IF(A79=0,"",VLOOKUP($A79,'Stap 2 Register'!$A$8:$AK$107,2,0)) -> 29 | C79: =IF(A79=0,0,VLOOKUP($A79,'Stap 2 Register'!$A$8:$AK$107,3,0)) -> 0 | D79: =IF(A79=0,"",VLOOKUP($A79,'Stap 2 Register'!$A$8:$AK$107,14,0)) ->  | E79: =IF(A79=0,0,VLOOKUP($A79,'Stap 2 Register'!$A$8:$AK$107,23,0)) -> 0 | F79: =IF(A79=0,0,VLOOKUP($A79,'Stap 2 Register'!$A$8:$AK$107,24,0)) -> 0 | G79: =IF(A79=0,0,VLOOKUP($A79,'Stap 2 Register'!$A$8:$AK$107,25,0)) -> 0 | H79: =IF(A79=0,0,VLOOKUP($A79,'Stap 2 Register'!$A$8:$AK$107,26,0)) -> 0 | I79: =IF(A79=0,0,VLOOKUP($A79,'Stap 2 Register'!$A$8:$AK$107,27,0)) -> 0 | J79: =IF(A79=0,0,VLOOKUP($A79,'Stap 2 Register'!$A$8:$AK$107,28,0)) -> 0
A80: =IF('1e berekening'!G75=0,'1e berekening'!B75,0) -> 28 | B80: =IF(A80=0,"",VLOOKUP($A80,'Stap 2 Register'!$A$8:$AK$107,2,0)) -> 28 | C80: =IF(A80=0,0,VLOOKUP($A80,'Stap 2 Register'!$A$8:$AK$107,3,0)) -> 0 | D80: =IF(A80=0,"",VLOOKUP($A80,'Stap 2 Register'!$A$8:$AK$107,14,0)) ->  | E80: =IF(A80=0,0,VLOOKUP($A80,'Stap 2 Register'!$A$8:$AK$107,23,0)) -> 0 | F80: =IF(A80=0,0,VLOOKUP($A80,'Stap 2 Register'!$A$8:$AK$107,24,0)) -> 0 | G80: =IF(A80=0,0,VLOOKUP($A80,'Stap 2 Register'!$A$8:$AK$107,25,0)) -> 0 | H80: =IF(A80=0,0,VLOOKUP($A80,'Stap 2 Register'!$A$8:$AK$107,26,0)) -> 0 | I80: =IF(A80=0,0,VLOOKUP($A80,'Stap 2 Register'!$A$8:$AK$107,27,0)) -> 0 | J80: =IF(A80=0,0,VLOOKUP($A80,'Stap 2 Register'!$A$8:$AK$107,28,0)) -> 0
A81: =IF('1e berekening'!G76=0,'1e berekening'!B76,0) -> 27 | B81: =IF(A81=0,"",VLOOKUP($A81,'Stap 2 Register'!$A$8:$AK$107,2,0)) -> 27 | C81: =IF(A81=0,0,VLOOKUP($A81,'Stap 2 Register'!$A$8:$AK$107,3,0)) -> 0 | D81: =IF(A81=0,"",VLOOKUP($A81,'Stap 2 Register'!$A$8:$AK$107,14,0)) ->  | E81: =IF(A81=0,0,VLOOKUP($A81,'Stap 2 Register'!$A$8:$AK$107,23,0)) -> 0 | F81: =IF(A81=0,0,VLOOKUP($A81,'Stap 2 Register'!$A$8:$AK$107,24,0)) -> 0 | G81: =IF(A81=0,0,VLOOKUP($A81,'Stap 2 Register'!$A$8:$AK$107,25,0)) -> 0 | H81: =IF(A81=0,0,VLOOKUP($A81,'Stap 2 Register'!$A$8:$AK$107,26,0)) -> 0 | I81: =IF(A81=0,0,VLOOKUP($A81,'Stap 2 Register'!$A$8:$AK$107,27,0)) -> 0 | J81: =IF(A81=0,0,VLOOKUP($A81,'Stap 2 Register'!$A$8:$AK$107,28,0)) -> 0
A82: =IF('1e berekening'!G77=0,'1e berekening'!B77,0) -> 26 | B82: =IF(A82=0,"",VLOOKUP($A82,'Stap 2 Register'!$A$8:$AK$107,2,0)) -> 26 | C82: =IF(A82=0,0,VLOOKUP($A82,'Stap 2 Register'!$A$8:$AK$107,3,0)) -> 0 | D82: =IF(A82=0,"",VLOOKUP($A82,'Stap 2 Register'!$A$8:$AK$107,14,0)) ->  | E82: =IF(A82=0,0,VLOOKUP($A82,'Stap 2 Register'!$A$8:$AK$107,23,0)) -> 0 | F82: =IF(A82=0,0,VLOOKUP($A82,'Stap 2 Register'!$A$8:$AK$107,24,0)) -> 0 | G82: =IF(A82=0,0,VLOOKUP($A82,'Stap 2 Register'!$A$8:$AK$107,25,0)) -> 0 | H82: =IF(A82=0,0,VLOOKUP($A82,'Stap 2 Register'!$A$8:$AK$107,26,0)) -> 0 | I82: =IF(A82=0,0,VLOOKUP($A82,'Stap 2 Register'!$A$8:$AK$107,27,0)) -> 0 | J82: =IF(A82=0,0,VLOOKUP($A82,'Stap 2 Register'!$A$8:$AK$107,28,0)) -> 0
A83: =IF('1e berekening'!G78=0,'1e berekening'!B78,0) -> 25 | B83: =IF(A83=0,"",VLOOKUP($A83,'Stap 2 Register'!$A$8:$AK$107,2,0)) -> 25 | C83: =IF(A83=0,0,VLOOKUP($A83,'Stap 2 Register'!$A$8:$AK$107,3,0)) -> 0 | D83: =IF(A83=0,"",VLOOKUP($A83,'Stap 2 Register'!$A$8:$AK$107,14,0)) ->  | E83: =IF(A83=0,0,VLOOKUP($A83,'Stap 2 Register'!$A$8:$AK$107,23,0)) -> 0 | F83: =IF(A83=0,0,VLOOKUP($A83,'Stap 2 Register'!$A$8:$AK$107,24,0)) -> 0 | G83: =IF(A83=0,0,VLOOKUP($A83,'Stap 2 Register'!$A$8:$AK$107,25,0)) -> 0 | H83: =IF(A83=0,0,VLOOKUP($A83,'Stap 2 Register'!$A$8:$AK$107,26,0)) -> 0 | I83: =IF(A83=0,0,VLOOKUP($A83,'Stap 2 Register'!$A$8:$AK$107,27,0)) -> 0 | J83: =IF(A83=0,0,VLOOKUP($A83,'Stap 2 Register'!$A$8:$AK$107,28,0)) -> 0
A84: =IF('1e berekening'!G79=0,'1e berekening'!B79,0) -> 24 | B84: =IF(A84=0,"",VLOOKUP($A84,'Stap 2 Register'!$A$8:$AK$107,2,0)) -> 24 | C84: =IF(A84=0,0,VLOOKUP($A84,'Stap 2 Register'!$A$8:$AK$107,3,0)) -> 0 | D84: =IF(A84=0,"",VLOOKUP($A84,'Stap 2 Register'!$A$8:$AK$107,14,0)) ->  | E84: =IF(A84=0,0,VLOOKUP($A84,'Stap 2 Register'!$A$8:$AK$107,23,0)) -> 0 | F84: =IF(A84=0,0,VLOOKUP($A84,'Stap 2 Register'!$A$8:$AK$107,24,0)) -> 0 | G84: =IF(A84=0,0,VLOOKUP($A84,'Stap 2 Register'!$A$8:$AK$107,25,0)) -> 0 | H84: =IF(A84=0,0,VLOOKUP($A84,'Stap 2 Register'!$A$8:$AK$107,26,0)) -> 0 | I84: =IF(A84=0,0,VLOOKUP($A84,'Stap 2 Register'!$A$8:$AK$107,27,0)) -> 0 | J84: =IF(A84=0,0,VLOOKUP($A84,'Stap 2 Register'!$A$8:$AK$107,28,0)) -> 0
A85: =IF('1e berekening'!G80=0,'1e berekening'!B80,0) -> 23 | B85: =IF(A85=0,"",VLOOKUP($A85,'Stap 2 Register'!$A$8:$AK$107,2,0)) -> 23 | C85: =IF(A85=0,0,VLOOKUP($A85,'Stap 2 Register'!$A$8:$AK$107,3,0)) -> 0 | D85: =IF(A85=0,"",VLOOKUP($A85,'Stap 2 Register'!$A$8:$AK$107,14,0)) ->  | E85: =IF(A85=0,0,VLOOKUP($A85,'Stap 2 Register'!$A$8:$AK$107,23,0)) -> 0 | F85: =IF(A85=0,0,VLOOKUP($A85,'Stap 2 Register'!$A$8:$AK$107,24,0)) -> 0 | G85: =IF(A85=0,0,VLOOKUP($A85,'Stap 2 Register'!$A$8:$AK$107,25,0)) -> 0 | H85: =IF(A85=0,0,VLOOKUP($A85,'Stap 2 Register'!$A$8:$AK$107,26,0)) -> 0 | I85: =IF(A85=0,0,VLOOKUP($A85,'Stap 2 Register'!$A$8:$AK$107,27,0)) -> 0 | J85: =IF(A85=0,0,VLOOKUP($A85,'Stap 2 Register'!$A$8:$AK$107,28,0)) -> 0
A86: =IF('1e berekening'!G81=0,'1e berekening'!B81,0) -> 22 | B86: =IF(A86=0,"",VLOOKUP($A86,'Stap 2 Register'!$A$8:$AK$107,2,0)) -> 22 | C86: =IF(A86=0,0,VLOOKUP($A86,'Stap 2 Register'!$A$8:$AK$107,3,0)) -> 0 | D86: =IF(A86=0,"",VLOOKUP($A86,'Stap 2 Register'!$A$8:$AK$107,14,0)) ->  | E86: =IF(A86=0,0,VLOOKUP($A86,'Stap 2 Register'!$A$8:$AK$107,23,0)) -> 0 | F86: =IF(A86=0,0,VLOOKUP($A86,'Stap 2 Register'!$A$8:$AK$107,24,0)) -> 0 | G86: =IF(A86=0,0,VLOOKUP($A86,'Stap 2 Register'!$A$8:$AK$107,25,0)) -> 0 | H86: =IF(A86=0,0,VLOOKUP($A86,'Stap 2 Register'!$A$8:$AK$107,26,0)) -> 0 | I86: =IF(A86=0,0,VLOOKUP($A86,'Stap 2 Register'!$A$8:$AK$107,27,0)) -> 0 | J86: =IF(A86=0,0,VLOOKUP($A86,'Stap 2 Register'!$A$8:$AK$107,28,0)) -> 0
A87: =IF('1e berekening'!G82=0,'1e berekening'!B82,0) -> 21 | B87: =IF(A87=0,"",VLOOKUP($A87,'Stap 2 Register'!$A$8:$AK$107,2,0)) -> 21 | C87: =IF(A87=0,0,VLOOKUP($A87,'Stap 2 Register'!$A$8:$AK$107,3,0)) -> 0 | D87: =IF(A87=0,"",VLOOKUP($A87,'Stap 2 Register'!$A$8:$AK$107,14,0)) ->  | E87: =IF(A87=0,0,VLOOKUP($A87,'Stap 2 Register'!$A$8:$AK$107,23,0)) -> 0 | F87: =IF(A87=0,0,VLOOKUP($A87,'Stap 2 Register'!$A$8:$AK$107,24,0)) -> 0 | G87: =IF(A87=0,0,VLOOKUP($A87,'Stap 2 Register'!$A$8:$AK$107,25,0)) -> 0 | H87: =IF(A87=0,0,VLOOKUP($A87,'Stap 2 Register'!$A$8:$AK$107,26,0)) -> 0 | I87: =IF(A87=0,0,VLOOKUP($A87,'Stap 2 Register'!$A$8:$AK$107,27,0)) -> 0 | J87: =IF(A87=0,0,VLOOKUP($A87,'Stap 2 Register'!$A$8:$AK$107,28,0)) -> 0
A88: =IF('1e berekening'!G83=0,'1e berekening'!B83,0) -> 20 | B88: =IF(A88=0,"",VLOOKUP($A88,'Stap 2 Register'!$A$8:$AK$107,2,0)) -> 20 | C88: =IF(A88=0,0,VLOOKUP($A88,'Stap 2 Register'!$A$8:$AK$107,3,0)) -> 0 | D88: =IF(A88=0,"",VLOOKUP($A88,'Stap 2 Register'!$A$8:$AK$107,14,0)) ->  | E88: =IF(A88=0,0,VLOOKUP($A88,'Stap 2 Register'!$A$8:$AK$107,23,0)) -> 0 | F88: =IF(A88=0,0,VLOOKUP($A88,'Stap 2 Register'!$A$8:$AK$107,24,0)) -> 0 | G88: =IF(A88=0,0,VLOOKUP($A88,'Stap 2 Register'!$A$8:$AK$107,25,0)) -> 0 | H88: =IF(A88=0,0,VLOOKUP($A88,'Stap 2 Register'!$A$8:$AK$107,26,0)) -> 0 | I88: =IF(A88=0,0,VLOOKUP($A88,'Stap 2 Register'!$A$8:$AK$107,27,0)) -> 0 | J88: =IF(A88=0,0,VLOOKUP($A88,'Stap 2 Register'!$A$8:$AK$107,28,0)) -> 0
A89: =IF('1e berekening'!G84=0,'1e berekening'!B84,0) -> 19 | B89: =IF(A89=0,"",VLOOKUP($A89,'Stap 2 Register'!$A$8:$AK$107,2,0)) -> 19 | C89: =IF(A89=0,0,VLOOKUP($A89,'Stap 2 Register'!$A$8:$AK$107,3,0)) -> 0 | D89: =IF(A89=0,"",VLOOKUP($A89,'Stap 2 Register'!$A$8:$AK$107,14,0)) ->  | E89: =IF(A89=0,0,VLOOKUP($A89,'Stap 2 Register'!$A$8:$AK$107,23,0)) -> 0 | F89: =IF(A89=0,0,VLOOKUP($A89,'Stap 2 Register'!$A$8:$AK$107,24,0)) -> 0 | G89: =IF(A89=0,0,VLOOKUP($A89,'Stap 2 Register'!$A$8:$AK$107,25,0)) -> 0 | H89: =IF(A89=0,0,VLOOKUP($A89,'Stap 2 Register'!$A$8:$AK$107,26,0)) -> 0 | I89: =IF(A89=0,0,VLOOKUP($A89,'Stap 2 Register'!$A$8:$AK$107,27,0)) -> 0 | J89: =IF(A89=0,0,VLOOKUP($A89,'Stap 2 Register'!$A$8:$AK$107,28,0)) -> 0
A90: =IF('1e berekening'!G85=0,'1e berekening'!B85,0) -> 18 | B90: =IF(A90=0,"",VLOOKUP($A90,'Stap 2 Register'!$A$8:$AK$107,2,0)) -> 18 | C90: =IF(A90=0,0,VLOOKUP($A90,'Stap 2 Register'!$A$8:$AK$107,3,0)) -> 0 | D90: =IF(A90=0,"",VLOOKUP($A90,'Stap 2 Register'!$A$8:$AK$107,14,0)) ->  | E90: =IF(A90=0,0,VLOOKUP($A90,'Stap 2 Register'!$A$8:$AK$107,23,0)) -> 0 | F90: =IF(A90=0,0,VLOOKUP($A90,'Stap 2 Register'!$A$8:$AK$107,24,0)) -> 0 | G90: =IF(A90=0,0,VLOOKUP($A90,'Stap 2 Register'!$A$8:$AK$107,25,0)) -> 0 | H90: =IF(A90=0,0,VLOOKUP($A90,'Stap 2 Register'!$A$8:$AK$107,26,0)) -> 0 | I90: =IF(A90=0,0,VLOOKUP($A90,'Stap 2 Register'!$A$8:$AK$107,27,0)) -> 0 | J90: =IF(A90=0,0,VLOOKUP($A90,'Stap 2 Register'!$A$8:$AK$107,28,0)) -> 0
A91: =IF('1e berekening'!G86=0,'1e berekening'!B86,0) -> 17 | B91: =IF(A91=0,"",VLOOKUP($A91,'Stap 2 Register'!$A$8:$AK$107,2,0)) -> 17 | C91: =IF(A91=0,0,VLOOKUP($A91,'Stap 2 Register'!$A$8:$AK$107,3,0)) -> 0 | D91: =IF(A91=0,"",VLOOKUP($A91,'Stap 2 Register'!$A$8:$AK$107,14,0)) ->  | E91: =IF(A91=0,0,VLOOKUP($A91,'Stap 2 Register'!$A$8:$AK$107,23,0)) -> 0 | F91: =IF(A91=0,0,VLOOKUP($A91,'Stap 2 Register'!$A$8:$AK$107,24,0)) -> 0 | G91: =IF(A91=0,0,VLOOKUP($A91,'Stap 2 Register'!$A$8:$AK$107,25,0)) -> 0 | H91: =IF(A91=0,0,VLOOKUP($A91,'Stap 2 Register'!$A$8:$AK$107,26,0)) -> 0 | I91: =IF(A91=0,0,VLOOKUP($A91,'Stap 2 Register'!$A$8:$AK$107,27,0)) -> 0 | J91: =IF(A91=0,0,VLOOKUP($A91,'Stap 2 Register'!$A$8:$AK$107,28,0)) -> 0
A92: =IF('1e berekening'!G87=0,'1e berekening'!B87,0) -> 16 | B92: =IF(A92=0,"",VLOOKUP($A92,'Stap 2 Register'!$A$8:$AK$107,2,0)) -> 16 | C92: =IF(A92=0,0,VLOOKUP($A92,'Stap 2 Register'!$A$8:$AK$107,3,0)) -> 0 | D92: =IF(A92=0,"",VLOOKUP($A92,'Stap 2 Register'!$A$8:$AK$107,14,0)) ->  | E92: =IF(A92=0,0,VLOOKUP($A92,'Stap 2 Register'!$A$8:$AK$107,23,0)) -> 0 | F92: =IF(A92=0,0,VLOOKUP($A92,'Stap 2 Register'!$A$8:$AK$107,24,0)) -> 0 | G92: =IF(A92=0,0,VLOOKUP($A92,'Stap 2 Register'!$A$8:$AK$107,25,0)) -> 0 | H92: =IF(A92=0,0,VLOOKUP($A92,'Stap 2 Register'!$A$8:$AK$107,26,0)) -> 0 | I92: =IF(A92=0,0,VLOOKUP($A92,'Stap 2 Register'!$A$8:$AK$107,27,0)) -> 0 | J92: =IF(A92=0,0,VLOOKUP($A92,'Stap 2 Register'!$A$8:$AK$107,28,0)) -> 0
A93: =IF('1e berekening'!G88=0,'1e berekening'!B88,0) -> 15 | B93: =IF(A93=0,"",VLOOKUP($A93,'Stap 2 Register'!$A$8:$AK$107,2,0)) -> 15 | C93: =IF(A93=0,0,VLOOKUP($A93,'Stap 2 Register'!$A$8:$AK$107,3,0)) -> 0 | D93: =IF(A93=0,"",VLOOKUP($A93,'Stap 2 Register'!$A$8:$AK$107,14,0)) ->  | E93: =IF(A93=0,0,VLOOKUP($A93,'Stap 2 Register'!$A$8:$AK$107,23,0)) -> 0 | F93: =IF(A93=0,0,VLOOKUP($A93,'Stap 2 Register'!$A$8:$AK$107,24,0)) -> 0 | G93: =IF(A93=0,0,VLOOKUP($A93,'Stap 2 Register'!$A$8:$AK$107,25,0)) -> 0 | H93: =IF(A93=0,0,VLOOKUP($A93,'Stap 2 Register'!$A$8:$AK$107,26,0)) -> 0 | I93: =IF(A93=0,0,VLOOKUP($A93,'Stap 2 Register'!$A$8:$AK$107,27,0)) -> 0 | J93: =IF(A93=0,0,VLOOKUP($A93,'Stap 2 Register'!$A$8:$AK$107,28,0)) -> 0
A94: =IF('1e berekening'!G89=0,'1e berekening'!B89,0) -> 14 | B94: =IF(A94=0,"",VLOOKUP($A94,'Stap 2 Register'!$A$8:$AK$107,2,0)) -> 14 | C94: =IF(A94=0,0,VLOOKUP($A94,'Stap 2 Register'!$A$8:$AK$107,3,0)) -> 0 | D94: =IF(A94=0,"",VLOOKUP($A94,'Stap 2 Register'!$A$8:$AK$107,14,0)) ->  | E94: =IF(A94=0,0,VLOOKUP($A94,'Stap 2 Register'!$A$8:$AK$107,23,0)) -> 0 | F94: =IF(A94=0,0,VLOOKUP($A94,'Stap 2 Register'!$A$8:$AK$107,24,0)) -> 0 | G94: =IF(A94=0,0,VLOOKUP($A94,'Stap 2 Register'!$A$8:$AK$107,25,0)) -> 0 | H94: =IF(A94=0,0,VLOOKUP($A94,'Stap 2 Register'!$A$8:$AK$107,26,0)) -> 0 | I94: =IF(A94=0,0,VLOOKUP($A94,'Stap 2 Register'!$A$8:$AK$107,27,0)) -> 0 | J94: =IF(A94=0,0,VLOOKUP($A94,'Stap 2 Register'!$A$8:$AK$107,28,0)) -> 0
A95: =IF('1e berekening'!G90=0,'1e berekening'!B90,0) -> 13 | B95: =IF(A95=0,"",VLOOKUP($A95,'Stap 2 Register'!$A$8:$AK$107,2,0)) -> 13 | C95: =IF(A95=0,0,VLOOKUP($A95,'Stap 2 Register'!$A$8:$AK$107,3,0)) -> 0 | D95: =IF(A95=0,"",VLOOKUP($A95,'Stap 2 Register'!$A$8:$AK$107,14,0)) ->  | E95: =IF(A95=0,0,VLOOKUP($A95,'Stap 2 Register'!$A$8:$AK$107,23,0)) -> 0 | F95: =IF(A95=0,0,VLOOKUP($A95,'Stap 2 Register'!$A$8:$AK$107,24,0)) -> 0 | G95: =IF(A95=0,0,VLOOKUP($A95,'Stap 2 Register'!$A$8:$AK$107,25,0)) -> 0 | H95: =IF(A95=0,0,VLOOKUP($A95,'Stap 2 Register'!$A$8:$AK$107,26,0)) -> 0 | I95: =IF(A95=0,0,VLOOKUP($A95,'Stap 2 Register'!$A$8:$AK$107,27,0)) -> 0 | J95: =IF(A95=0,0,VLOOKUP($A95,'Stap 2 Register'!$A$8:$AK$107,28,0)) -> 0
A96: =IF('1e berekening'!G91=0,'1e berekening'!B91,0) -> 12 | B96: =IF(A96=0,"",VLOOKUP($A96,'Stap 2 Register'!$A$8:$AK$107,2,0)) -> 12 | C96: =IF(A96=0,0,VLOOKUP($A96,'Stap 2 Register'!$A$8:$AK$107,3,0)) -> 0 | D96: =IF(A96=0,"",VLOOKUP($A96,'Stap 2 Register'!$A$8:$AK$107,14,0)) ->  | E96: =IF(A96=0,0,VLOOKUP($A96,'Stap 2 Register'!$A$8:$AK$107,23,0)) -> 0 | F96: =IF(A96=0,0,VLOOKUP($A96,'Stap 2 Register'!$A$8:$AK$107,24,0)) -> 0 | G96: =IF(A96=0,0,VLOOKUP($A96,'Stap 2 Register'!$A$8:$AK$107,25,0)) -> 0 | H96: =IF(A96=0,0,VLOOKUP($A96,'Stap 2 Register'!$A$8:$AK$107,26,0)) -> 0 | I96: =IF(A96=0,0,VLOOKUP($A96,'Stap 2 Register'!$A$8:$AK$107,27,0)) -> 0 | J96: =IF(A96=0,0,VLOOKUP($A96,'Stap 2 Register'!$A$8:$AK$107,28,0)) -> 0
A97: =IF('1e berekening'!G92=0,'1e berekening'!B92,0) -> 11 | B97: =IF(A97=0,"",VLOOKUP($A97,'Stap 2 Register'!$A$8:$AK$107,2,0)) -> 11 | C97: =IF(A97=0,0,VLOOKUP($A97,'Stap 2 Register'!$A$8:$AK$107,3,0)) -> 0 | D97: =IF(A97=0,"",VLOOKUP($A97,'Stap 2 Register'!$A$8:$AK$107,14,0)) ->  | E97: =IF(A97=0,0,VLOOKUP($A97,'Stap 2 Register'!$A$8:$AK$107,23,0)) -> 0 | F97: =IF(A97=0,0,VLOOKUP($A97,'Stap 2 Register'!$A$8:$AK$107,24,0)) -> 0 | G97: =IF(A97=0,0,VLOOKUP($A97,'Stap 2 Register'!$A$8:$AK$107,25,0)) -> 0 | H97: =IF(A97=0,0,VLOOKUP($A97,'Stap 2 Register'!$A$8:$AK$107,26,0)) -> 0 | I97: =IF(A97=0,0,VLOOKUP($A97,'Stap 2 Register'!$A$8:$AK$107,27,0)) -> 0 | J97: =IF(A97=0,0,VLOOKUP($A97,'Stap 2 Register'!$A$8:$AK$107,28,0)) -> 0
A98: =IF('1e berekening'!G93=0,'1e berekening'!B93,0) -> 10 | B98: =IF(A98=0,"",VLOOKUP($A98,'Stap 2 Register'!$A$8:$AK$107,2,0)) -> 10 | C98: =IF(A98=0,0,VLOOKUP($A98,'Stap 2 Register'!$A$8:$AK$107,3,0)) -> 0 | D98: =IF(A98=0,"",VLOOKUP($A98,'Stap 2 Register'!$A$8:$AK$107,14,0)) ->  | E98: =IF(A98=0,0,VLOOKUP($A98,'Stap 2 Register'!$A$8:$AK$107,23,0)) -> 0 | F98: =IF(A98=0,0,VLOOKUP($A98,'Stap 2 Register'!$A$8:$AK$107,24,0)) -> 0 | G98: =IF(A98=0,0,VLOOKUP($A98,'Stap 2 Register'!$A$8:$AK$107,25,0)) -> 0 | H98: =IF(A98=0,0,VLOOKUP($A98,'Stap 2 Register'!$A$8:$AK$107,26,0)) -> 0 | I98: =IF(A98=0,0,VLOOKUP($A98,'Stap 2 Register'!$A$8:$AK$107,27,0)) -> 0 | J98: =IF(A98=0,0,VLOOKUP($A98,'Stap 2 Register'!$A$8:$AK$107,28,0)) -> 0
A99: =IF('1e berekening'!G94=0,'1e berekening'!B94,0) -> 9 | B99: =IF(A99=0,"",VLOOKUP($A99,'Stap 2 Register'!$A$8:$AK$107,2,0)) -> 9 | C99: =IF(A99=0,0,VLOOKUP($A99,'Stap 2 Register'!$A$8:$AK$107,3,0)) -> 0 | D99: =IF(A99=0,"",VLOOKUP($A99,'Stap 2 Register'!$A$8:$AK$107,14,0)) ->  | E99: =IF(A99=0,0,VLOOKUP($A99,'Stap 2 Register'!$A$8:$AK$107,23,0)) -> 0 | F99: =IF(A99=0,0,VLOOKUP($A99,'Stap 2 Register'!$A$8:$AK$107,24,0)) -> 0 | G99: =IF(A99=0,0,VLOOKUP($A99,'Stap 2 Register'!$A$8:$AK$107,25,0)) -> 0 | H99: =IF(A99=0,0,VLOOKUP($A99,'Stap 2 Register'!$A$8:$AK$107,26,0)) -> 0 | I99: =IF(A99=0,0,VLOOKUP($A99,'Stap 2 Register'!$A$8:$AK$107,27,0)) -> 0 | J99: =IF(A99=0,0,VLOOKUP($A99,'Stap 2 Register'!$A$8:$AK$107,28,0)) -> 0
A100: =IF('1e berekening'!G95=0,'1e berekening'!B95,0) -> 8 | B100: =IF(A100=0,"",VLOOKUP($A100,'Stap 2 Register'!$A$8:$AK$107,2,0)) -> 8 | C100: =IF(A100=0,0,VLOOKUP($A100,'Stap 2 Register'!$A$8:$AK$107,3,0)) -> 0 | D100: =IF(A100=0,"",VLOOKUP($A100,'Stap 2 Register'!$A$8:$AK$107,14,0)) ->  | E100: =IF(A100=0,0,VLOOKUP($A100,'Stap 2 Register'!$A$8:$AK$107,23,0)) -> 0 | F100: =IF(A100=0,0,VLOOKUP($A100,'Stap 2 Register'!$A$8:$AK$107,24,0)) -> 0 | G100: =IF(A100=0,0,VLOOKUP($A100,'Stap 2 Register'!$A$8:$AK$107,25,0)) -> 0 | H100: =IF(A100=0,0,VLOOKUP($A100,'Stap 2 Register'!$A$8:$AK$107,26,0)) -> 0 | I100: =IF(A100=0,0,VLOOKUP($A100,'Stap 2 Register'!$A$8:$AK$107,27,0)) -> 0 | J100: =IF(A100=0,0,VLOOKUP($A100,'Stap 2 Register'!$A$8:$AK$107,28,0)) -> 0
A101: =IF('1e berekening'!G96=0,'1e berekening'!B96,0) -> 7 | B101: =IF(A101=0,"",VLOOKUP($A101,'Stap 2 Register'!$A$8:$AK$107,2,0)) -> 7 | C101: =IF(A101=0,0,VLOOKUP($A101,'Stap 2 Register'!$A$8:$AK$107,3,0)) -> 0 | D101: =IF(A101=0,"",VLOOKUP($A101,'Stap 2 Register'!$A$8:$AK$107,14,0)) ->  | E101: =IF(A101=0,0,VLOOKUP($A101,'Stap 2 Register'!$A$8:$AK$107,23,0)) -> 0 | F101: =IF(A101=0,0,VLOOKUP($A101,'Stap 2 Register'!$A$8:$AK$107,24,0)) -> 0 | G101: =IF(A101=0,0,VLOOKUP($A101,'Stap 2 Register'!$A$8:$AK$107,25,0)) -> 0 | H101: =IF(A101=0,0,VLOOKUP($A101,'Stap 2 Register'!$A$8:$AK$107,26,0)) -> 0 | I101: =IF(A101=0,0,VLOOKUP($A101,'Stap 2 Register'!$A$8:$AK$107,27,0)) -> 0 | J101: =IF(A101=0,0,VLOOKUP($A101,'Stap 2 Register'!$A$8:$AK$107,28,0)) -> 0
A102: =IF('1e berekening'!G97=0,'1e berekening'!B97,0) -> 6 | B102: =IF(A102=0,"",VLOOKUP($A102,'Stap 2 Register'!$A$8:$AK$107,2,0)) -> 6 | C102: =IF(A102=0,0,VLOOKUP($A102,'Stap 2 Register'!$A$8:$AK$107,3,0)) -> 0 | D102: =IF(A102=0,"",VLOOKUP($A102,'Stap 2 Register'!$A$8:$AK$107,14,0)) ->  | E102: =IF(A102=0,0,VLOOKUP($A102,'Stap 2 Register'!$A$8:$AK$107,23,0)) -> 0 | F102: =IF(A102=0,0,VLOOKUP($A102,'Stap 2 Register'!$A$8:$AK$107,24,0)) -> 0 | G102: =IF(A102=0,0,VLOOKUP($A102,'Stap 2 Register'!$A$8:$AK$107,25,0)) -> 0 | H102: =IF(A102=0,0,VLOOKUP($A102,'Stap 2 Register'!$A$8:$AK$107,26,0)) -> 0 | I102: =IF(A102=0,0,VLOOKUP($A102,'Stap 2 Register'!$A$8:$AK$107,27,0)) -> 0 | J102: =IF(A102=0,0,VLOOKUP($A102,'Stap 2 Register'!$A$8:$AK$107,28,0)) -> 0
A103: =IF('1e berekening'!G98=0,'1e berekening'!B98,0) -> 5 | B103: =IF(A103=0,"",VLOOKUP($A103,'Stap 2 Register'!$A$8:$AK$107,2,0)) -> 5 | C103: =IF(A103=0,0,VLOOKUP($A103,'Stap 2 Register'!$A$8:$AK$107,3,0)) -> 0 | D103: =IF(A103=0,"",VLOOKUP($A103,'Stap 2 Register'!$A$8:$AK$107,14,0)) ->  | E103: =IF(A103=0,0,VLOOKUP($A103,'Stap 2 Register'!$A$8:$AK$107,23,0)) -> 0 | F103: =IF(A103=0,0,VLOOKUP($A103,'Stap 2 Register'!$A$8:$AK$107,24,0)) -> 0 | G103: =IF(A103=0,0,VLOOKUP($A103,'Stap 2 Register'!$A$8:$AK$107,25,0)) -> 0 | H103: =IF(A103=0,0,VLOOKUP($A103,'Stap 2 Register'!$A$8:$AK$107,26,0)) -> 0 | I103: =IF(A103=0,0,VLOOKUP($A103,'Stap 2 Register'!$A$8:$AK$107,27,0)) -> 0 | J103: =IF(A103=0,0,VLOOKUP($A103,'Stap 2 Register'!$A$8:$AK$107,28,0)) -> 0
A104: =IF('1e berekening'!G99=0,'1e berekening'!B99,0) -> 4 | B104: =IF(A104=0,"",VLOOKUP($A104,'Stap 2 Register'!$A$8:$AK$107,2,0)) -> 4 | C104: =IF(A104=0,0,VLOOKUP($A104,'Stap 2 Register'!$A$8:$AK$107,3,0)) -> 0 | D104: =IF(A104=0,"",VLOOKUP($A104,'Stap 2 Register'!$A$8:$AK$107,14,0)) ->  | E104: =IF(A104=0,0,VLOOKUP($A104,'Stap 2 Register'!$A$8:$AK$107,23,0)) -> 0 | F104: =IF(A104=0,0,VLOOKUP($A104,'Stap 2 Register'!$A$8:$AK$107,24,0)) -> 0 | G104: =IF(A104=0,0,VLOOKUP($A104,'Stap 2 Register'!$A$8:$AK$107,25,0)) -> 0 | H104: =IF(A104=0,0,VLOOKUP($A104,'Stap 2 Register'!$A$8:$AK$107,26,0)) -> 0 | I104: =IF(A104=0,0,VLOOKUP($A104,'Stap 2 Register'!$A$8:$AK$107,27,0)) -> 0 | J104: =IF(A104=0,0,VLOOKUP($A104,'Stap 2 Register'!$A$8:$AK$107,28,0)) -> 0
A105: =IF('1e berekening'!G100=0,'1e berekening'!B100,0) -> 3 | B105: =IF(A105=0,"",VLOOKUP($A105,'Stap 2 Register'!$A$8:$AK$107,2,0)) -> 3 | C105: =IF(A105=0,0,VLOOKUP($A105,'Stap 2 Register'!$A$8:$AK$107,3,0)) -> 0 | D105: =IF(A105=0,"",VLOOKUP($A105,'Stap 2 Register'!$A$8:$AK$107,14,0)) ->  | E105: =IF(A105=0,0,VLOOKUP($A105,'Stap 2 Register'!$A$8:$AK$107,23,0)) -> 0 | F105: =IF(A105=0,0,VLOOKUP($A105,'Stap 2 Register'!$A$8:$AK$107,24,0)) -> 0 | G105: =IF(A105=0,0,VLOOKUP($A105,'Stap 2 Register'!$A$8:$AK$107,25,0)) -> 0 | H105: =IF(A105=0,0,VLOOKUP($A105,'Stap 2 Register'!$A$8:$AK$107,26,0)) -> 0 | I105: =IF(A105=0,0,VLOOKUP($A105,'Stap 2 Register'!$A$8:$AK$107,27,0)) -> 0 | J105: =IF(A105=0,0,VLOOKUP($A105,'Stap 2 Register'!$A$8:$AK$107,28,0)) -> 0
A106: =IF('1e berekening'!G101=0,'1e berekening'!B101,0) -> 2 | B106: =IF(A106=0,"",VLOOKUP($A106,'Stap 2 Register'!$A$8:$AK$107,2,0)) -> 2 | C106: =IF(A106=0,0,VLOOKUP($A106,'Stap 2 Register'!$A$8:$AK$107,3,0)) -> 0 | D106: =IF(A106=0,"",VLOOKUP($A106,'Stap 2 Register'!$A$8:$AK$107,14,0)) ->  | E106: =IF(A106=0,0,VLOOKUP($A106,'Stap 2 Register'!$A$8:$AK$107,23,0)) -> 0 | F106: =IF(A106=0,0,VLOOKUP($A106,'Stap 2 Register'!$A$8:$AK$107,24,0)) -> 0 | G106: =IF(A106=0,0,VLOOKUP($A106,'Stap 2 Register'!$A$8:$AK$107,25,0)) -> 0 | H106: =IF(A106=0,0,VLOOKUP($A106,'Stap 2 Register'!$A$8:$AK$107,26,0)) -> 0 | I106: =IF(A106=0,0,VLOOKUP($A106,'Stap 2 Register'!$A$8:$AK$107,27,0)) -> 0 | J106: =IF(A106=0,0,VLOOKUP($A106,'Stap 2 Register'!$A$8:$AK$107,28,0)) -> 0
A107: =IF('1e berekening'!G102=0,'1e berekening'!B102,0) -> 1 | B107: =IF(A107=0,"",VLOOKUP($A107,'Stap 2 Register'!$A$8:$AK$107,2,0)) -> 1 | C107: =IF(A107=0,0,VLOOKUP($A107,'Stap 2 Register'!$A$8:$AK$107,3,0)) -> 0 | D107: =IF(A107=0,"",VLOOKUP($A107,'Stap 2 Register'!$A$8:$AK$107,14,0)) ->  | E107: =IF(A107=0,0,VLOOKUP($A107,'Stap 2 Register'!$A$8:$AK$107,23,0)) -> 0 | F107: =IF(A107=0,0,VLOOKUP($A107,'Stap 2 Register'!$A$8:$AK$107,24,0)) -> 0 | G107: =IF(A107=0,0,VLOOKUP($A107,'Stap 2 Register'!$A$8:$AK$107,25,0)) -> 0 | H107: =IF(A107=0,0,VLOOKUP($A107,'Stap 2 Register'!$A$8:$AK$107,26,0)) -> 0 | I107: =IF(A107=0,0,VLOOKUP($A107,'Stap 2 Register'!$A$8:$AK$107,27,0)) -> 0 | J107: =IF(A107=0,0,VLOOKUP($A107,'Stap 2 Register'!$A$8:$AK$107,28,0)) -> 0
E109: =SUM(E8:E107) -> 0 | F109: 0 | G109: 0 | H109: 0 | I109: 0 | J109: 0 | K109: =100-COUNTBLANK(K8:K107) -> 0 | L109: 0 | M109: 0 | N109: 0 | O109: 0 | P109: 0

Sheet 1e berekening (hidden)
J1: risico | K1: .
A2: Mon eq | B2: monetair op volgorde | C2: risiconummer | D2: risico beschrijving | E2: Effect | F2: risico | G2: selectie | J2: O | K2: ZH | L2: H | M2: M | N2: L | O2: V
A3: =IF(G3=1,B3,0) -> 0 | B3: =LARGE('Stap 2 Register'!$A$8:$A$107,'Stap 2 Register'!B8) -> 100 | C3: =VLOOKUP($B3,'Stap 2 Register'!$A$8:$AK$107,2,0) -> 100 | D3: =VLOOKUP($B3,'Stap 2 Register'!$A$8:$AK$107,3,0) -> 0 | E3: =VLOOKUP($B3,'Stap 2 Register'!$A$8:$AK$107,5,0) -> 0 | F3: =VLOOKUP($B3,'Stap 2 Register'!$A$8:$AK$107,14,0) ->  | G3: =VLOOKUP($B3,'Stap 2 Register'!$A$8:$AK$107,35,0) -> 0 | J3: =IF($F3=$J$2,_xlfn.TEXTJOIN($K$1,,$C3:$D3),"") ->  | K3: =IF($F3=$K$2,_xlfn.TEXTJOIN($K$1,,$C3:$D3),"") ->  | L3: =IF($F3=$L$2,_xlfn.TEXTJOIN($K$1,,$C3:$D3),"") ->  | M3: =IF($F3=$M$2,_xlfn.TEXTJOIN($K$1,,$C3:$D3),"") ->  | N3: =IF($F3=$N$2,_xlfn.TEXTJOIN($K$1,,$C3:$D3),"") ->  | O3: =IF($F3=$O$2,_xlfn.TEXTJOIN($K$1,,$C3:$D3),"") -> 
A4: =IF(G4=1,B4,0) -> 0 | B4: =LARGE('Stap 2 Register'!$A$8:$A$107,'Stap 2 Register'!B9) -> 99 | C4: =VLOOKUP($B4,'Stap 2 Register'!$A$8:$AK$107,2,0) -> 99 | D4: =VLOOKUP($B4,'Stap 2 Register'!$A$8:$AK$107,3,0) -> 0 | E4: =VLOOKUP($B4,'Stap 2 Register'!$A$8:$AK$107,5,0) -> 0 | F4: =VLOOKUP($B4,'Stap 2 Register'!$A$8:$AK$107,14,0) ->  | G4: =VLOOKUP($B4,'Stap 2 Register'!$A$8:$AK$107,35,0) -> 0
A5: 0 | B5: =LARGE('Stap 2 Register'!$A$8:$A$107,'Stap 2 Register'!B10) -> 98 | C5: =VLOOKUP($B5,'Stap 2 Register'!$A$8:$AK$107,2,0) -> 98 | D5: =VLOOKUP($B5,'Stap 2 Register'!$A$8:$AK$107,3,0) -> 0 | E5: =VLOOKUP($B5,'Stap 2 Register'!$A$8:$AK$107,5,0) -> 0 | F5: =VLOOKUP($B5,'Stap 2 Register'!$A$8:$AK$107,14,0) ->  | G5: =VLOOKUP($B5,'Stap 2 Register'!$A$8:$AK$107,35,0) -> 0
A6: 0 | B6: =LARGE('Stap 2 Register'!$A$8:$A$107,'Stap 2 Register'!B11) -> 97 | C6: =VLOOKUP($B6,'Stap 2 Register'!$A$8:$AK$107,2,0) -> 97 | D6: =VLOOKUP($B6,'Stap 2 Register'!$A$8:$AK$107,3,0) -> 0 | E6: =VLOOKUP($B6,'Stap 2 Register'!$A$8:$AK$107,5,0) -> 0 | F6: =VLOOKUP($B6,'Stap 2 Register'!$A$8:$AK$107,14,0) ->  | G6: =VLOOKUP($B6,'Stap 2 Register'!$A$8:$AK$107,35,0) -> 0
A7: 0 | B7: =LARGE('Stap 2 Register'!$A$8:$A$107,'Stap 2 Register'!B12) -> 96 | C7: =VLOOKUP($B7,'Stap 2 Register'!$A$8:$AK$107,2,0) -> 96 | D7: =VLOOKUP($B7,'Stap 2 Register'!$A$8:$AK$107,3,0) -> 0 | E7: =VLOOKUP($B7,'Stap 2 Register'!$A$8:$AK$107,5,0) -> 0 | F7: =VLOOKUP($B7,'Stap 2 Register'!$A$8:$AK$107,14,0) ->  | G7: =VLOOKUP($B7,'Stap 2 Register'!$A$8:$AK$107,35,0) -> 0
A8: 0 | B8: =LARGE('Stap 2 Register'!$A$8:$A$107,'Stap 2 Register'!B13) -> 95 | C8: =VLOOKUP($B8,'Stap 2 Register'!$A$8:$AK$107,2,0) -> 95 | D8: =VLOOKUP($B8,'Stap 2 Register'!$A$8:$AK$107,3,0) -> 0 | E8: =VLOOKUP($B8,'Stap 2 Register'!$A$8:$AK$107,5,0) -> 0 | F8: =VLOOKUP($B8,'Stap 2 Register'!$A$8:$AK$107,14,0) ->  | G8: =VLOOKUP($B8,'Stap 2 Register'!$A$8:$AK$107,35,0) -> 0
A9: 0 | B9: =LARGE('Stap 2 Register'!$A$8:$A$107,'Stap 2 Register'!B14) -> 94 | C9: =VLOOKUP($B9,'Stap 2 Register'!$A$8:$AK$107,2,0) -> 94 | D9: =VLOOKUP($B9,'Stap 2 Register'!$A$8:$AK$107,3,0) -> 0 | E9: =VLOOKUP($B9,'Stap 2 Register'!$A$8:$AK$107,5,0) -> 0 | F9: =VLOOKUP($B9,'Stap 2 Register'!$A$8:$AK$107,14,0) ->  | G9: =VLOOKUP($B9,'Stap 2 Register'!$A$8:$AK$107,35,0) -> 0
A10: 0 | B10: =LARGE('Stap 2 Register'!$A$8:$A$107,'Stap 2 Register'!B15) -> 93 | C10: =VLOOKUP($B10,'Stap 2 Register'!$A$8:$AK$107,2,0) -> 93 | D10: =VLOOKUP($B10,'Stap 2 Register'!$A$8:$AK$107,3,0) -> 0 | E10: =VLOOKUP($B10,'Stap 2 Register'!$A$8:$AK$107,5,0) -> 0 | F10: =VLOOKUP($B10,'Stap 2 Register'!$A$8:$AK$107,14,0) ->  | G10: =VLOOKUP($B10,'Stap 2 Register'!$A$8:$AK$107,35,0) -> 0
A11: 0 | B11: =LARGE('Stap 2 Register'!$A$8:$A$107,'Stap 2 Register'!B16) -> 92 | C11: =VLOOKUP($B11,'Stap 2 Register'!$A$8:$AK$107,2,0) -> 92 | D11: =VLOOKUP($B11,'Stap 2 Register'!$A$8:$AK$107,3,0) -> 0 | E11: =VLOOKUP($B11,'Stap 2 Register'!$A$8:$AK$107,5,0) -> 0 | F11: =VLOOKUP($B11,'Stap 2 Register'!$A$8:$AK$107,14,0) ->  | G11: =VLOOKUP($B11,'Stap 2 Register'!$A$8:$AK$107,35,0) -> 0
A12: 0 | B12: =LARGE('Stap 2 Register'!$A$8:$A$107,'Stap 2 Register'!B17) -> 91 | C12: =VLOOKUP($B12,'Stap 2 Register'!$A$8:$AK$107,2,0) -> 91 | D12: =VLOOKUP($B12,'Stap 2 Register'!$A$8:$AK$107,3,0) -> 0 | E12: =VLOOKUP($B12,'Stap 2 Register'!$A$8:$AK$107,5,0) -> 0 | F12: =VLOOKUP($B12,'Stap 2 Register'!$A$8:$AK$107,14,0) ->  | G12: =VLOOKUP($B12,'Stap 2 Register'!$A$8:$AK$107,35,0) -> 0
A13: 0 | B13: =LARGE('Stap 2 Register'!$A$8:$A$107,'Stap 2 Register'!B18) -> 90 | C13: =VLOOKUP($B13,'Stap 2 Register'!$A$8:$AK$107,2,0) -> 90 | D13: =VLOOKUP($B13,'Stap 2 Register'!$A$8:$AK$107,3,0) -> 0 | E13: =VLOOKUP($B13,'Stap 2 Register'!$A$8:$AK$107,5,0) -> 0 | F13: =VLOOKUP($B13,'Stap 2 Register'!$A$8:$AK$107,14,0) ->  | G13: =VLOOKUP($B13,'Stap 2 Register'!$A$8:$AK$107,35,0) -> 0
A14: 0 | B14: =LARGE('Stap 2 Register'!$A$8:$A$107,'Stap 2 Register'!B19) -> 89 | C14: =VLOOKUP($B14,'Stap 2 Register'!$A$8:$AK$107,2,0) -> 89 | D14: =VLOOKUP($B14,'Stap 2 Register'!$A$8:$AK$107,3,0) -> 0 | E14: =VLOOKUP($B14,'Stap 2 Register'!$A$8:$AK$107,5,0) -> 0 | F14: =VLOOKUP($B14,'Stap 2 Register'!$A$8:$AK$107,14,0) ->  | G14: =VLOOKUP($B14,'Stap 2 Register'!$A$8:$AK$107,35,0) -> 0
A15: 0 | B15: =LARGE('Stap 2 Register'!$A$8:$A$107,'Stap 2 Register'!B20) -> 88 | C15: =VLOOKUP($B15,'Stap 2 Register'!$A$8:$AK$107,2,0) -> 88 | D15: =VLOOKUP($B15,'Stap 2 Register'!$A$8:$AK$107,3,0) -> 0 | E15: =VLOOKUP($B15,'Stap 2 Register'!$A$8:$AK$107,5,0) -> 0 | F15: =VLOOKUP($B15,'Stap 2 Register'!$A$8:$AK$107,14,0) ->  | G15: =VLOOKUP($B15,'Stap 2 Register'!$A$8:$AK$107,35,0) -> 0
A16: 0 | B16: =LARGE('Stap 2 Register'!$A$8:$A$107,'Stap 2 Register'!B21) -> 87 | C16: =VLOOKUP($B16,'Stap 2 Register'!$A$8:$AK$107,2,0) -> 87 | D16: =VLOOKUP($B16,'Stap 2 Register'!$A$8:$AK$107,3,0) -> 0 | E16: =VLOOKUP($B16,'Stap 2 Register'!$A$8:$AK$107,5,0) -> 0 | F16: =VLOOKUP($B16,'Stap 2 Register'!$A$8:$AK$107,14,0) ->  | G16: =VLOOKUP($B16,'Stap 2 Register'!$A$8:$AK$107,35,0) -> 0
A17: 0 | B17: =LARGE('Stap 2 Register'!$A$8:$A$107,'Stap 2 Register'!B22) -> 86 | C17: =VLOOKUP($B17,'Stap 2 Register'!$A$8:$AK$107,2,0) -> 86 | D17: =VLOOKUP($B17,'Stap 2 Register'!$A$8:$AK$107,3,0) -> 0 | E17: =VLOOKUP($B17,'Stap 2 Register'!$A$8:$AK$107,5,0) -> 0 | F17: =VLOOKUP($B17,'Stap 2 Register'!$A$8:$AK$107,14,0) ->  | G17: =VLOOKUP($B17,'Stap 2 Register'!$A$8:$AK$107,35,0) -> 0
A18: 0 | B18: =LARGE('Stap 2 Register'!$A$8:$A$107,'Stap 2 Register'!B23) -> 85 | C18: =VLOOKUP($B18,'Stap 2 Register'!$A$8:$AK$107,2,0) -> 85 | D18: =VLOOKUP($B18,'Stap 2 Register'!$A$8:$AK$107,3,0) -> 0 | E18: =VLOOKUP($B18,'Stap 2 Register'!$A$8:$AK$107,5,0) -> 0 | F18: =VLOOKUP($B18,'Stap 2 Register'!$A$8:$AK$107,14,0) ->  | G18: =VLOOKUP($B18,'Stap 2 Register'!$A$8:$AK$107,35,0) -> 0
A19: 0 | B19: =LARGE('Stap 2 Register'!$A$8:$A$107,'Stap 2 Register'!B24) -> 84 | C19: =VLOOKUP($B19,'Stap 2 Register'!$A$8:$AK$107,2,0) -> 84 | D19: =VLOOKUP($B19,'Stap 2 Register'!$A$8:$AK$107,3,0) -> 0 | E19: =VLOOKUP($B19,'Stap 2 Register'!$A$8:$AK$107,5,0) -> 0 | F19: =VLOOKUP($B19,'Stap 2 Register'!$A$8:$AK$107,14,0) ->  | G19: =VLOOKUP($B19,'Stap 2 Register'!$A$8:$AK$107,35,0) -> 0
A20: 0 | B20: =LARGE('Stap 2 Register'!$A$8:$A$107,'Stap 2 Register'!B25) -> 83 | C20: =VLOOKUP($B20,'Stap 2 Register'!$A$8:$AK$107,2,0) -> 83 | D20: =VLOOKUP($B20,'Stap 2 Register'!$A$8:$AK$107,3,0) -> 0 | E20: =VLOOKUP($B20,'Stap 2 Register'!$A$8:$AK$107,5,0) -> 0 | F20: =VLOOKUP($B20,'Stap 2 Register'!$A$8:$AK$107,14,0) ->  | G20: =VLOOKUP($B20,'Stap 2 Register'!$A$8:$AK$107,35,0) -> 0
A21: 0 | B21: =LARGE('Stap 2 Register'!$A$8:$A$107,'Stap 2 Register'!B26) -> 82 | C21: =VLOOKUP($B21,'Stap 2 Register'!$A$8:$AK$107,2,0) -> 82 | D21: =VLOOKUP($B21,'Stap 2 Register'!$A$8:$AK$107,3,0) -> 0 | E21: =VLOOKUP($B21,'Stap 2 Register'!$A$8:$AK$107,5,0) -> 0 | F21: =VLOOKUP($B21,'Stap 2 Register'!$A$8:$AK$107,14,0) ->  | G21: =VLOOKUP($B21,'Stap 2 Register'!$A$8:$AK$107,35,0) -> 0
A22: 0 | B22: =LARGE('Stap 2 Register'!$A$8:$A$107,'Stap 2 Register'!B27) -> 81 | C22: =VLOOKUP($B22,'Stap 2 Register'!$A$8:$AK$107,2,0) -> 81 | D22: =VLOOKUP($B22,'Stap 2 Register'!$A$8:$AK$107,3,0) -> 0 | E22: =VLOOKUP($B22,'Stap 2 Register'!$A$8:$AK$107,5,0) -> 0 | F22: =VLOOKUP($B22,'Stap 2 Register'!$A$8:$AK$107,14,0) ->  | G22: =VLOOKUP($B22,'Stap 2 Register'!$A$8:$AK$107,35,0) -> 0
A23: 0 | B23: =LARGE('Stap 2 Register'!$A$8:$A$107,'Stap 2 Register'!B28) -> 80 | C23: =VLOOKUP($B23,'Stap 2 Register'!$A$8:$AK$107,2,0) -> 80 | D23: =VLOOKUP($B23,'Stap 2 Register'!$A$8:$AK$107,3,0) -> 0 | E23: =VLOOKUP($B23,'Stap 2 Register'!$A$8:$AK$107,5,0) -> 0 | F23: =VLOOKUP($B23,'Stap 2 Register'!$A$8:$AK$107,14,0) ->  | G23: =VLOOKUP($B23,'Stap 2 Register'!$A$8:$AK$107,35,0) -> 0
A24: 0 | B24: =LARGE('Stap 2 Register'!$A$8:$A$107,'Stap 2 Register'!B29) -> 79 | C24: =VLOOKUP($B24,'Stap 2 Register'!$A$8:$AK$107,2,0) -> 79 | D24: =VLOOKUP($B24,'Stap 2 Register'!$A$8:$AK$107,3,0) -> 0 | E24: =VLOOKUP($B24,'Stap 2 Register'!$A$8:$AK$107,5,0) -> 0 | F24: =VLOOKUP($B24,'Stap 2 Register'!$A$8:$AK$107,14,0) ->  | G24: =VLOOKUP($B24,'Stap 2 Register'!$A$8:$AK$107,35,0) -> 0
A25: 0 | B25: =LARGE('Stap 2 Register'!$A$8:$A$107,'Stap 2 Register'!B30) -> 78 | C25: =VLOOKUP($B25,'Stap 2 Register'!$A$8:$AK$107,2,0) -> 78 | D25: =VLOOKUP($B25,'Stap 2 Register'!$A$8:$AK$107,3,0) -> 0 | E25: =VLOOKUP($B25,'Stap 2 Register'!$A$8:$AK$107,5,0) -> 0 | F25: =VLOOKUP($B25,'Stap 2 Register'!$A$8:$AK$107,14,0) ->  | G25: =VLOOKUP($B25,'Stap 2 Register'!$A$8:$AK$107,35,0) -> 0
A26: 0 | B26: =LARGE('Stap 2 Register'!$A$8:$A$107,'Stap 2 Register'!B31) -> 77 | C26: =VLOOKUP($B26,'Stap 2 Register'!$A$8:$AK$107,2,0) -> 77 | D26: =VLOOKUP($B26,'Stap 2 Register'!$A$8:$AK$107,3,0) -> 0 | E26: =VLOOKUP($B26,'Stap 2 Register'!$A$8:$AK$107,5,0) -> 0 | F26: =VLOOKUP($B26,'Stap 2 Register'!$A$8:$AK$107,14,0) ->  | G26: =VLOOKUP($B26,'Stap 2 Register'!$A$8:$AK$107,35,0) -> 0
A27: 0 | B27: =LARGE('Stap 2 Register'!$A$8:$A$107,'Stap 2 Register'!B32) -> 76 | C27: =VLOOKUP($B27,'Stap 2 Register'!$A$8:$AK$107,2,0) -> 76 | D27: =VLOOKUP($B27,'Stap 2 Register'!$A$8:$AK$107,3,0) -> 0 | E27: =VLOOKUP($B27,'Stap 2 Register'!$A$8:$AK$107,5,0) -> 0 | F27: =VLOOKUP($B27,'Stap 2 Register'!$A$8:$AK$107,14,0) ->  | G27: =VLOOKUP($B27,'Stap 2 Register'!$A$8:$AK$107,35,0) -> 0
A28: 0 | B28: =LARGE('Stap 2 Register'!$A$8:$A$107,'Stap 2 Register'!B33) -> 75 | C28: =VLOOKUP($B28,'Stap 2 Register'!$A$8:$AK$107,2,0) -> 75 | D28: =VLOOKUP($B28,'Stap 2 Register'!$A$8:$AK$107,3,0) -> 0 | E28: =VLOOKUP($B28,'Stap 2 Register'!$A$8:$AK$107,5,0) -> 0 | F28: =VLOOKUP($B28,'Stap 2 Register'!$A$8:$AK$107,14,0) ->  | G28: =VLOOKUP($B28,'Stap 2 Register'!$A$8:$AK$107,35,0) -> 0
A29: 0 | B29: =LARGE('Stap 2 Register'!$A$8:$A$107,'Stap 2 Register'!B34) -> 74 | C29: =VLOOKUP($B29,'Stap 2 Register'!$A$8:$AK$107,2,0) -> 74 | D29: =VLOOKUP($B29,'Stap 2 Register'!$A$8:$AK$107,3,0) -> 0 | E29: =VLOOKUP($B29,'Stap 2 Register'!$A$8:$AK$107,5,0) -> 0 | F29: =VLOOKUP($B29,'Stap 2 Register'!$A$8:$AK$107,14,0) ->  | G29: =VLOOKUP($B29,'Stap 2 Register'!$A$8:$AK$107,35,0) -> 0
A30: 0 | B30: =LARGE('Stap 2 Register'!$A$8:$A$107,'Stap 2 Register'!B35) -> 73 | C30: =VLOOKUP($B30,'Stap 2 Register'!$A$8:$AK$107,2,0) -> 73 | D30: =VLOOKUP($B30,'Stap 2 Register'!$A$8:$AK$107,3,0) -> 0 | E30: =VLOOKUP($B30,'Stap 2 Register'!$A$8:$AK$107,5,0) -> 0 | F30: =VLOOKUP($B30,'Stap 2 Register'!$A$8:$AK$107,14,0) ->  | G30: =VLOOKUP($B30,'Stap 2 Register'!$A$8:$AK$107,35,0) -> 0
A31: 0 | B31: =LARGE('Stap 2 Register'!$A$8:$A$107,'Stap 2 Register'!B36) -> 72 | C31: =VLOOKUP($B31,'Stap 2 Register'!$A$8:$AK$107,2,0) -> 72 | D31: =VLOOKUP($B31,'Stap 2 Register'!$A$8:$AK$107,3,0) -> 0 | E31: =VLOOKUP($B31,'Stap 2 Register'!$A$8:$AK$107,5,0) -> 0 | F31: =VLOOKUP($B31,'Stap 2 Register'!$A$8:$AK$107,14,0) ->  | G31: =VLOOKUP($B31,'Stap 2 Register'!$A$8:$AK$107,35,0) -> 0
A32: 0 | B32: =LARGE('Stap 2 Register'!$A$8:$A$107,'Stap 2 Register'!B37) -> 71 | C32: =VLOOKUP($B32,'Stap 2 Register'!$A$8:$AK$107,2,0) -> 71 | D32: =VLOOKUP($B32,'Stap 2 Register'!$A$8:$AK$107,3,0) -> 0 | E32: =VLOOKUP($B32,'Stap 2 Register'!$A$8:$AK$107,5,0) -> 0 | F32: =VLOOKUP($B32,'Stap 2 Register'!$A$8:$AK$107,14,0) ->  | G32: =VLOOKUP($B32,'Stap 2 Register'!$A$8:$AK$107,35,0) -> 0
A33: 0 | B33: =LARGE('Stap 2 Register'!$A$8:$A$107,'Stap 2 Register'!B38) -> 70 | C33: =VLOOKUP($B33,'Stap 2 Register'!$A$8:$AK$107,2,0) -> 70 | D33: =VLOOKUP($B33,'Stap 2 Register'!$A$8:$AK$107,3,0) -> 0 | E33: =VLOOKUP($B33,'Stap 2 Register'!$A$8:$AK$107,5,0) -> 0 | F33: =VLOOKUP($B33,'Stap 2 Register'!$A$8:$AK$107,14,0) ->  | G33: =VLOOKUP($B33,'Stap 2 Register'!$A$8:$AK$107,35,0) -> 0
A34: 0 | B34: =LARGE('Stap 2 Register'!$A$8:$A$107,'Stap 2 Register'!B39) -> 69 | C34: =VLOOKUP($B34,'Stap 2 Register'!$A$8:$AK$107,2,0) -> 69 | D34: =VLOOKUP($B34,'Stap 2 Register'!$A$8:$AK$107,3,0) -> 0 | E34: =VLOOKUP($B34,'Stap 2 Register'!$A$8:$AK$107,5,0) -> 0 | F34: =VLOOKUP($B34,'Stap 2 Register'!$A$8:$AK$107,14,0) ->  | G34: =VLOOKUP($B34,'Stap 2 Register'!$A$8:$AK$107,35,0) -> 0
A35: 0 | B35: =LARGE('Stap 2 Register'!$A$8:$A$107,'Stap 2 Register'!B40) -> 68 | C35: =VLOOKUP($B35,'Stap 2 Register'!$A$8:$AK$107,2,0) -> 68 | D35: =VLOOKUP($B35,'Stap 2 Register'!$A$8:$AK$107,3,0) -> 0 | E35: =VLOOKUP($B35,'Stap 2 Register'!$A$8:$AK$107,5,0) -> 0 | F35: =VLOOKUP($B35,'Stap 2 Register'!$A$8:$AK$107,14,0) ->  | G35: =VLOOKUP($B35,'Stap 2 Register'!$A$8:$AK$107,35,0) -> 0 | J35: =IF($F35=$J$2,_xlfn.TEXTJOIN($K$1,,$C35:$D35),"") ->  | K35: =IF($F35=$K$2,_xlfn.TEXTJOIN($K$1,,$C35:$D35),"") ->  | L35: =IF($F35=$L$2,_xlfn.TEXTJOIN($K$1,,$C35:$D35),"") ->  | M35: =IF($F35=$M$2,_xlfn.TEXTJOIN($K$1,,$C35:$D35),"") ->  | N35: =IF($F35=$N$2,_xlfn.TEXTJOIN($K$1,,$C35:$D35),"") ->  | O35: =IF($F35=$O$2,_xlfn.TEXTJOIN($K$1,,$C35:$D35),"") -> 
A36: 0 | B36: =LARGE('Stap 2 Register'!$A$8:$A$107,'Stap 2 Register'!B41) -> 67 | C36: =VLOOKUP($B36,'Stap 2 Register'!$A$8:$AK$107,2,0) -> 67 | D36: =VLOOKUP($B36,'Stap 2 Register'!$A$8:$AK$107,3,0) -> 0 | E36: =VLOOKUP($B36,'Stap 2 Register'!$A$8:$AK$107,5,0) -> 0 | F36: =VLOOKUP($B36,'Stap 2 Register'!$A$8:$AK$107,14,0) ->  | G36: =VLOOKUP($B36,'Stap 2 Register'!$A$8:$AK$107,35,0) -> 0
A37: 0 | B37: =LARGE('Stap 2 Register'!$A$8:$A$107,'Stap 2 Register'!B42) -> 66 | C37: =VLOOKUP($B37,'Stap 2 Register'!$A$8:$AK$107,2,0) -> 66 | D37: =VLOOKUP($B37,'Stap 2 Register'!$A$8:$AK$107,3,0) -> 0 | E37: =VLOOKUP($B37,'Stap 2 Register'!$A$8:$AK$107,5,0) -> 0 | F37: =VLOOKUP($B37,'Stap 2 Register'!$A$8:$AK$107,14,0) ->  | G37: =VLOOKUP($B37,'Stap 2 Register'!$A$8:$AK$107,35,0) -> 0
A38: 0 | B38: =LARGE('Stap 2 Register'!$A$8:$A$107,'Stap 2 Register'!B43) -> 65 | C38: =VLOOKUP($B38,'Stap 2 Register'!$A$8:$AK$107,2,0) -> 65 | D38: =VLOOKUP($B38,'Stap 2 Register'!$A$8:$AK$107,3,0) -> 0 | E38: =VLOOKUP($B38,'Stap 2 Register'!$A$8:$AK$107,5,0) -> 0 | F38: =VLOOKUP($B38,'Stap 2 Register'!$A$8:$AK$107,14,0) ->  | G38: =VLOOKUP($B38,'Stap 2 Register'!$A$8:$AK$107,35,0) -> 0
A39: 0 | B39: =LARGE('Stap 2 Register'!$A$8:$A$107,'Stap 2 Register'!B44) -> 64 | C39: =VLOOKUP($B39,'Stap 2 Register'!$A$8:$AK$107,2,0) -> 64 | D39: =VLOOKUP($B39,'Stap 2 Register'!$A$8:$AK$107,3,0) -> 0 | E39: =VLOOKUP($B39,'Stap 2 Register'!$A$8:$AK$107,5,0) -> 0 | F39: =VLOOKUP($B39,'Stap 2 Register'!$A$8:$AK$107,14,0) ->  | G39: =VLOOKUP($B39,'Stap 2 Register'!$A$8:$AK$107,35,0) -> 0
A40: 0 | B40: =LARGE('Stap 2 Register'!$A$8:$A$107,'Stap 2 Register'!B45) -> 63 | C40: =VLOOKUP($B40,'Stap 2 Register'!$A$8:$AK$107,2,0) -> 63 | D40: =VLOOKUP($B40,'Stap 2 Register'!$A$8:$AK$107,3,0) -> 0 | E40: =VLOOKUP($B40,'Stap 2 Register'!$A$8:$AK$107,5,0) -> 0 | F40: =VLOOKUP($B40,'Stap 2 Register'!$A$8:$AK$107,14,0) ->  | G40: =VLOOKUP($B40,'Stap 2 Register'!$A$8:$AK$107,35,0) -> 0
A41: 0 | B41: =LARGE('Stap 2 Register'!$A$8:$A$107,'Stap 2 Register'!B46) -> 62 | C41: =VLOOKUP($B41,'Stap 2 Register'!$A$8:$AK$107,2,0) -> 62 | D41: =VLOOKUP($B41,'Stap 2 Register'!$A$8:$AK$107,3,0) -> 0 | E41: =VLOOKUP($B41,'Stap 2 Register'!$A$8:$AK$107,5,0) -> 0 | F41: =VLOOKUP($B41,'Stap 2 Register'!$A$8:$AK$107,14,0) ->  | G41: =VLOOKUP($B41,'Stap 2 Register'!$A$8:$AK$107,35,0) -> 0
A42: 0 | B42: =LARGE('Stap 2 Register'!$A$8:$A$107,'Stap 2 Register'!B47) -> 61 | C42: =VLOOKUP($B42,'Stap 2 Register'!$A$8:$AK$107,2,0) -> 61 | D42: =VLOOKUP($B42,'Stap 2 Register'!$A$8:$AK$107,3,0) -> 0 | E42: =VLOOKUP($B42,'Stap 2 Register'!$A$8:$AK$107,5,0) -> 0 | F42: =VLOOKUP($B42,'Stap 2 Register'!$A$8:$AK$107,14,0) ->  | G42: =VLOOKUP($B42,'Stap 2 Register'!$A$8:$AK$107,35,0) -> 0
A43: 0 | B43: =LARGE('Stap 2 Register'!$A$8:$A$107,'Stap 2 Register'!B48) -> 60 | C43: =VLOOKUP($B43,'Stap 2 Register'!$A$8:$AK$107,2,0) -> 60 | D43: =VLOOKUP($B43,'Stap 2 Register'!$A$8:$AK$107,3,0) -> 0 | E43: =VLOOKUP($B43,'Stap 2 Register'!$A$8:$AK$107,5,0) -> 0 | F43: =VLOOKUP($B43,'Stap 2 Register'!$A$8:$AK$107,14,0) ->  | G43: =VLOOKUP($B43,'Stap 2 Register'!$A$8:$AK$107,35,0) -> 0
A44: 0 | B44: =LARGE('Stap 2 Register'!$A$8:$A$107,'Stap 2 Register'!B49) -> 59 | C44: =VLOOKUP($B44,'Stap 2 Register'!$A$8:$AK$107,2,0) -> 59 | D44: =VLOOKUP($B44,'Stap 2 Register'!$A$8:$AK$107,3,0) -> 0 | E44: =VLOOKUP($B44,'Stap 2 Register'!$A$8:$AK$107,5,0) -> 0 | F44: =VLOOKUP($B44,'Stap 2 Register'!$A$8:$AK$107,14,0) ->  | G44: =VLOOKUP($B44,'Stap 2 Register'!$A$8:$AK$107,35,0) -> 0
A45: 0 | B45: =LARGE('Stap 2 Register'!$A$8:$A$107,'Stap 2 Register'!B50) -> 58 | C45: =VLOOKUP($B45,'Stap 2 Register'!$A$8:$AK$107,2,0) -> 58 | D45: =VLOOKUP($B45,'Stap 2 Register'!$A$8:$AK$107,3,0) -> 0 | E45: =VLOOKUP($B45,'Stap 2 Register'!$A$8:$AK$107,5,0) -> 0 | F45: =VLOOKUP($B45,'Stap 2 Register'!$A$8:$AK$107,14,0) ->  | G45: =VLOOKUP($B45,'Stap 2 Register'!$A$8:$AK$107,35,0) -> 0
A46: 0 | B46: =LARGE('Stap 2 Register'!$A$8:$A$107,'Stap 2 Register'!B51) -> 57 | C46: =VLOOKUP($B46,'Stap 2 Register'!$A$8:$AK$107,2,0) -> 57 | D46: =VLOOKUP($B46,'Stap 2 Register'!$A$8:$AK$107,3,0) -> 0 | E46: =VLOOKUP($B46,'Stap 2 Register'!$A$8:$AK$107,5,0) -> 0 | F46: =VLOOKUP($B46,'Stap 2 Register'!$A$8:$AK$107,14,0) ->  | G46: =VLOOKUP($B46,'Stap 2 Register'!$A$8:$AK$107,35,0) -> 0
A47: 0 | B47: =LARGE('Stap 2 Register'!$A$8:$A$107,'Stap 2 Register'!B52) -> 56 | C47: =VLOOKUP($B47,'Stap 2 Register'!$A$8:$AK$107,2,0) -> 56 | D47: =VLOOKUP($B47,'Stap 2 Register'!$A$8:$AK$107,3,0) -> 0 | E47: =VLOOKUP($B47,'Stap 2 Register'!$A$8:$AK$107,5,0) -> 0 | F47: =VLOOKUP($B47,'Stap 2 Register'!$A$8:$AK$107,14,0) ->  | G47: =VLOOKUP($B47,'Stap 2 Register'!$A$8:$AK$107,35,0) -> 0
A48: 0 | B48: =LARGE('Stap 2 Register'!$A$8:$A$107,'Stap 2 Register'!B53) -> 55 | C48: =VLOOKUP($B48,'Stap 2 Register'!$A$8:$AK$107,2,0) -> 55 | D48: =VLOOKUP($B48,'Stap 2 Register'!$A$8:$AK$107,3,0) -> 0 | E48: =VLOOKUP($B48,'Stap 2 Register'!$A$8:$AK$107,5,0) -> 0 | F48: =VLOOKUP($B48,'Stap 2 Register'!$A$8:$AK$107,14,0) ->  | G48: =VLOOKUP($B48,'Stap 2 Register'!$A$8:$AK$107,35,0) -> 0
A49: 0 | B49: =LARGE('Stap 2 Register'!$A$8:$A$107,'Stap 2 Register'!B54) -> 54 | C49: =VLOOKUP($B49,'Stap 2 Register'!$A$8:$AK$107,2,0) -> 54 | D49: =VLOOKUP($B49,'Stap 2 Register'!$A$8:$AK$107,3,0) -> 0 | E49: =VLOOKUP($B49,'Stap 2 Register'!$A$8:$AK$107,5,0) -> 0 | F49: =VLOOKUP($B49,'Stap 2 Register'!$A$8:$AK$107,14,0) ->  | G49: =VLOOKUP($B49,'Stap 2 Register'!$A$8:$AK$107,35,0) -> 0
A50: 0 | B50: =LARGE('Stap 2 Register'!$A$8:$A$107,'Stap 2 Register'!B55) -> 53 | C50: =VLOOKUP($B50,'Stap 2 Register'!$A$8:$AK$107,2,0) -> 53 | D50: =VLOOKUP($B50,'Stap 2 Register'!$A$8:$AK$107,3,0) -> 0 | E50: =VLOOKUP($B50,'Stap 2 Register'!$A$8:$AK$107,5,0) -> 0 | F50: =VLOOKUP($B50,'Stap 2 Register'!$A$8:$AK$107,14,0) ->  | G50: =VLOOKUP($B50,'Stap 2 Register'!$A$8:$AK$107,35,0) -> 0
A51: 0 | B51: =LARGE('Stap 2 Register'!$A$8:$A$107,'Stap 2 Register'!B56) -> 52 | C51: =VLOOKUP($B51,'Stap 2 Register'!$A$8:$AK$107,2,0) -> 52 | D51: =VLOOKUP($B51,'Stap 2 Register'!$A$8:$AK$107,3,0) -> 0 | E51: =VLOOKUP($B51,'Stap 2 Register'!$A$8:$AK$107,5,0) -> 0 | F51: =VLOOKUP($B51,'Stap 2 Register'!$A$8:$AK$107,14,0) ->  | G51: =VLOOKUP($B51,'Stap 2 Register'!$A$8:$AK$107,35,0) -> 0
A52: 0 | B52: =LARGE('Stap 2 Register'!$A$8:$A$107,'Stap 2 Register'!B57) -> 51 | C52: =VLOOKUP($B52,'Stap 2 Register'!$A$8:$AK$107,2,0) -> 51 | D52: =VLOOKUP($B52,'Stap 2 Register'!$A$8:$AK$107,3,0) -> 0 | E52: =VLOOKUP($B52,'Stap 2 Register'!$A$8:$AK$107,5,0) -> 0 | F52: =VLOOKUP($B52,'Stap 2 Register'!$A$8:$AK$107,14,0) ->  | G52: =VLOOKUP($B52,'Stap 2 Register'!$A$8:$AK$107,35,0) -> 0
A53: 0 | B53: =LARGE('Stap 2 Register'!$A$8:$A$107,'Stap 2 Register'!B58) -> 50 | C53: =VLOOKUP($B53,'Stap 2 Register'!$A$8:$AK$107,2,0) -> 50 | D53: =VLOOKUP($B53,'Stap 2 Register'!$A$8:$AK$107,3,0) -> 0 | E53: =VLOOKUP($B53,'Stap 2 Register'!$A$8:$AK$107,5,0) -> 0 | F53: =VLOOKUP($B53,'Stap 2 Register'!$A$8:$AK$107,14,0) ->  | G53: =VLOOKUP($B53,'Stap 2 Register'!$A$8:$AK$107,35,0) -> 0
A54: 0 | B54: =LARGE('Stap 2 Register'!$A$8:$A$107,'Stap 2 Register'!B59) -> 49 | C54: =VLOOKUP($B54,'Stap 2 Register'!$A$8:$AK$107,2,0) -> 49 | D54: =VLOOKUP($B54,'Stap 2 Register'!$A$8:$AK$107,3,0) -> 0 | E54: =VLOOKUP($B54,'Stap 2 Register'!$A$8:$AK$107,5,0) -> 0 | F54: =VLOOKUP($B54,'Stap 2 Register'!$A$8:$AK$107,14,0) ->  | G54: =VLOOKUP($B54,'Stap 2 Register'!$A$8:$AK$107,35,0) -> 0
A55: 0 | B55: =LARGE('Stap 2 Register'!$A$8:$A$107,'Stap 2 Register'!B60) -> 48 | C55: =VLOOKUP($B55,'Stap 2 Register'!$A$8:$AK$107,2,0) -> 48 | D55: =VLOOKUP($B55,'Stap 2 Register'!$A$8:$AK$107,3,0) -> 0 | E55: =VLOOKUP($B55,'Stap 2 Register'!$A$8:$AK$107,5,0) -> 0 | F55: =VLOOKUP($B55,'Stap 2 Register'!$A$8:$AK$107,14,0) ->  | G55: =VLOOKUP($B55,'Stap 2 Register'!$A$8:$AK$107,35,0) -> 0
A56: 0 | B56: =LARGE('Stap 2 Register'!$A$8:$A$107,'Stap 2 Register'!B61) -> 47 | C56: =VLOOKUP($B56,'Stap 2 Register'!$A$8:$AK$107,2,0) -> 47 | D56: =VLOOKUP($B56,'Stap 2 Register'!$A$8:$AK$107,3,0) -> 0 | E56: =VLOOKUP($B56,'Stap 2 Register'!$A$8:$AK$107,5,0) -> 0 | F56: =VLOOKUP($B56,'Stap 2 Register'!$A$8:$AK$107,14,0) ->  | G56: =VLOOKUP($B56,'Stap 2 Register'!$A$8:$AK$107,35,0) -> 0
A57: 0 | B57: =LARGE('Stap 2 Register'!$A$8:$A$107,'Stap 2 Register'!B62) -> 46 | C57: =VLOOKUP($B57,'Stap 2 Register'!$A$8:$AK$107,2,0) -> 46 | D57: =VLOOKUP($B57,'Stap 2 Register'!$A$8:$AK$107,3,0) -> 0 | E57: =VLOOKUP($B57,'Stap 2 Register'!$A$8:$AK$107,5,0) -> 0 | F57: =VLOOKUP($B57,'Stap 2 Register'!$A$8:$AK$107,14,0) ->  | G57: =VLOOKUP($B57,'Stap 2 Register'!$A$8:$AK$107,35,0) -> 0
A58: 0 | B58: =LARGE('Stap 2 Register'!$A$8:$A$107,'Stap 2 Register'!B63) -> 45 | C58: =VLOOKUP($B58,'Stap 2 Register'!$A$8:$AK$107,2,0) -> 45 | D58: =VLOOKUP($B58,'Stap 2 Register'!$A$8:$AK$107,3,0) -> 0 | E58: =VLOOKUP($B58,'Stap 2 Register'!$A$8:$AK$107,5,0) -> 0 | F58: =VLOOKUP($B58,'Stap 2 Register'!$A$8:$AK$107,14,0) ->  | G58: =VLOOKUP($B58,'Stap 2 Register'!$A$8:$AK$107,35,0) -> 0
A59: 0 | B59: =LARGE('Stap 2 Register'!$A$8:$A$107,'Stap 2 Register'!B64) -> 44 | C59: =VLOOKUP($B59,'Stap 2 Register'!$A$8:$AK$107,2,0) -> 44 | D59: =VLOOKUP($B59,'Stap 2 Register'!$A$8:$AK$107,3,0) -> 0 | E59: =VLOOKUP($B59,'Stap 2 Register'!$A$8:$AK$107,5,0) -> 0 | F59: =VLOOKUP($B59,'Stap 2 Register'!$A$8:$AK$107,14,0) ->  | G59: =VLOOKUP($B59,'Stap 2 Register'!$A$8:$AK$107,35,0) -> 0
A60: 0 | B60: =LARGE('Stap 2 Register'!$A$8:$A$107,'Stap 2 Register'!B65) -> 43 | C60: =VLOOKUP($B60,'Stap 2 Register'!$A$8:$AK$107,2,0) -> 43 | D60: =VLOOKUP($B60,'Stap 2 Register'!$A$8:$AK$107,3,0) -> 0 | E60: =VLOOKUP($B60,'Stap 2 Register'!$A$8:$AK$107,5,0) -> 0 | F60: =VLOOKUP($B60,'Stap 2 Register'!$A$8:$AK$107,14,0) ->  | G60: =VLOOKUP($B60,'Stap 2 Register'!$A$8:$AK$107,35,0) -> 0
A61: 0 | B61: =LARGE('Stap 2 Register'!$A$8:$A$107,'Stap 2 Register'!B66) -> 42 | C61: =VLOOKUP($B61,'Stap 2 Register'!$A$8:$AK$107,2,0) -> 42 | D61: =VLOOKUP($B61,'Stap 2 Register'!$A$8:$AK$107,3,0) -> 0 | E61: =VLOOKUP($B61,'Stap 2 Register'!$A$8:$AK$107,5,0) -> 0 | F61: =VLOOKUP($B61,'Stap 2 Register'!$A$8:$AK$107,14,0) ->  | G61: =VLOOKUP($B61,'Stap 2 Register'!$A$8:$AK$107,35,0) -> 0
A62: 0 | B62: =LARGE('Stap 2 Register'!$A$8:$A$107,'Stap 2 Register'!B67) -> 41 | C62: =VLOOKUP($B62,'Stap 2 Register'!$A$8:$AK$107,2,0) -> 41 | D62: =VLOOKUP($B62,'Stap 2 Register'!$A$8:$AK$107,3,0) -> 0 | E62: =VLOOKUP($B62,'Stap 2 Register'!$A$8:$AK$107,5,0) -> 0 | F62: =VLOOKUP($B62,'Stap 2 Register'!$A$8:$AK$107,14,0) ->  | G62: =VLOOKUP($B62,'Stap 2 Register'!$A$8:$AK$107,35,0) -> 0
A63: 0 | B63: =LARGE('Stap 2 Register'!$A$8:$A$107,'Stap 2 Register'!B68) -> 40 | C63: =VLOOKUP($B63,'Stap 2 Register'!$A$8:$AK$107,2,0) -> 40 | D63: =VLOOKUP($B63,'Stap 2 Register'!$A$8:$AK$107,3,0) -> 0 | E63: =VLOOKUP($B63,'Stap 2 Register'!$A$8:$AK$107,5,0) -> 0 | F63: =VLOOKUP($B63,'Stap 2 Register'!$A$8:$AK$107,14,0) ->  | G63: =VLOOKUP($B63,'Stap 2 Register'!$A$8:$AK$107,35,0) -> 0
A64: 0 | B64: =LARGE('Stap 2 Register'!$A$8:$A$107,'Stap 2 Register'!B69) -> 39 | C64: =VLOOKUP($B64,'Stap 2 Register'!$A$8:$AK$107,2,0) -> 39 | D64: =VLOOKUP($B64,'Stap 2 Register'!$A$8:$AK$107,3,0) -> 0 | E64: =VLOOKUP($B64,'Stap 2 Register'!$A$8:$AK$107,5,0) -> 0 | F64: =VLOOKUP($B64,'Stap 2 Register'!$A$8:$AK$107,14,0) ->  | G64: =VLOOKUP($B64,'Stap 2 Register'!$A$8:$AK$107,35,0) -> 0
A65: 0 | B65: =LARGE('Stap 2 Register'!$A$8:$A$107,'Stap 2 Register'!B70) -> 38 | C65: =VLOOKUP($B65,'Stap 2 Register'!$A$8:$AK$107,2,0) -> 38 | D65: =VLOOKUP($B65,'Stap 2 Register'!$A$8:$AK$107,3,0) -> 0 | E65: =VLOOKUP($B65,'Stap 2 Register'!$A$8:$AK$107,5,0) -> 0 | F65: =VLOOKUP($B65,'Stap 2 Register'!$A$8:$AK$107,14,0) ->  | G65: =VLOOKUP($B65,'Stap 2 Register'!$A$8:$AK$107,35,0) -> 0
A66: 0 | B66: =LARGE('Stap 2 Register'!$A$8:$A$107,'Stap 2 Register'!B71) -> 37 | C66: =VLOOKUP($B66,'Stap 2 Register'!$A$8:$AK$107,2,0) -> 37 | D66: =VLOOKUP($B66,'Stap 2 Register'!$A$8:$AK$107,3,0) -> 0 | E66: =VLOOKUP($B66,'Stap 2 Register'!$A$8:$AK$107,5,0) -> 0 | F66: =VLOOKUP($B66,'Stap 2 Register'!$A$8:$AK$107,14,0) ->  | G66: =VLOOKUP($B66,'Stap 2 Register'!$A$8:$AK$107,35,0) -> 0
A67: 0 | B67: =LARGE('Stap 2 Register'!$A$8:$A$107,'Stap 2 Register'!B72) -> 36 | C67: =VLOOKUP($B67,'Stap 2 Register'!$A$8:$AK$107,2,0) -> 36 | D67: =VLOOKUP($B67,'Stap 2 Register'!$A$8:$AK$107,3,0) -> 0 | E67: =VLOOKUP($B67,'Stap 2 Register'!$A$8:$AK$107,5,0) -> 0 | F67: =VLOOKUP($B67,'Stap 2 Register'!$A$8:$AK$107,14,0) ->  | G67: =VLOOKUP($B67,'Stap 2 Register'!$A$8:$AK$107,35,0) -> 0 | J67: =IF($F67=$J$2,_xlfn.TEXTJOIN($K$1,,$C67:$D67),"") ->  | K67: =IF($F67=$K$2,_xlfn.TEXTJOIN($K$1,,$C67:$D67),"") ->  | L67: =IF($F67=$L$2,_xlfn.TEXTJOIN($K$1,,$C67:$D67),"") ->  | M67: =IF($F67=$M$2,_xlfn.TEXTJOIN($K$1,,$C67:$D67),"") ->  | N67: =IF($F67=$N$2,_xlfn.TEXTJOIN($K$1,,$C67:$D67),"") ->  | O67: =IF($F67=$O$2,_xlfn.TEXTJOIN($K$1,,$C67:$D67),"") -> 
A68: =IF(G68=1,B68,0) -> 0 | B68: =LARGE('Stap 2 Register'!$A$8:$A$107,'Stap 2 Register'!B73) -> 35 | C68: =VLOOKUP($B68,'Stap 2 Register'!$A$8:$AK$107,2,0) -> 35 | D68: =VLOOKUP($B68,'Stap 2 Register'!$A$8:$AK$107,3,0) -> 0 | E68: =VLOOKUP($B68,'Stap 2 Register'!$A$8:$AK$107,5,0) -> 0 | F68: =VLOOKUP($B68,'Stap 2 Register'!$A$8:$AK$107,14,0) ->  | G68: =VLOOKUP($B68,'Stap 2 Register'!$A$8:$AK$107,35,0) -> 0
A69: 0 | B69: =LARGE('Stap 2 Register'!$A$8:$A$107,'Stap 2 Register'!B74) -> 34 | C69: =VLOOKUP($B69,'Stap 2 Register'!$A$8:$AK$107,2,0) -> 34 | D69: =VLOOKUP($B69,'Stap 2 Register'!$A$8:$AK$107,3,0) -> 0 | E69: =VLOOKUP($B69,'Stap 2 Register'!$A$8:$AK$107,5,0) -> 0 | F69: =VLOOKUP($B69,'Stap 2 Register'!$A$8:$AK$107,14,0) ->  | G69: =VLOOKUP($B69,'Stap 2 Register'!$A$8:$AK$107,35,0) -> 0
A70: 0 | B70: =LARGE('Stap 2 Register'!$A$8:$A$107,'Stap 2 Register'!B75) -> 33 | C70: =VLOOKUP($B70,'Stap 2 Register'!$A$8:$AK$107,2,0) -> 33 | D70: =VLOOKUP($B70,'Stap 2 Register'!$A$8:$AK$107,3,0) -> 0 | E70: =VLOOKUP($B70,'Stap 2 Register'!$A$8:$AK$107,5,0) -> 0 | F70: =VLOOKUP($B70,'Stap 2 Register'!$A$8:$AK$107,14,0) ->  | G70: =VLOOKUP($B70,'Stap 2 Register'!$A$8:$AK$107,35,0) -> 0
A71: 0 | B71: =LARGE('Stap 2 Register'!$A$8:$A$107,'Stap 2 Register'!B76) -> 32 | C71: =VLOOKUP($B71,'Stap 2 Register'!$A$8:$AK$107,2,0) -> 32 | D71: =VLOOKUP($B71,'Stap 2 Register'!$A$8:$AK$107,3,0) -> 0 | E71: =VLOOKUP($B71,'Stap 2 Register'!$A$8:$AK$107,5,0) -> 0 | F71: =VLOOKUP($B71,'Stap 2 Register'!$A$8:$AK$107,14,0) ->  | G71: =VLOOKUP($B71,'Stap 2 Register'!$A$8:$AK$107,35,0) -> 0
A72: 0 | B72: =LARGE('Stap 2 Register'!$A$8:$A$107,'Stap 2 Register'!B77) -> 31 | C72: =VLOOKUP($B72,'Stap 2 Register'!$A$8:$AK$107,2,0) -> 31 | D72: =VLOOKUP($B72,'Stap 2 Register'!$A$8:$AK$107,3,0) -> 0 | E72: =VLOOKUP($B72,'Stap 2 Register'!$A$8:$AK$107,5,0) -> 0 | F72: =VLOOKUP($B72,'Stap 2 Register'!$A$8:$AK$107,14,0) ->  | G72: =VLOOKUP($B72,'Stap 2 Register'!$A$8:$AK$107,35,0) -> 0
A73: 0 | B73: =LARGE('Stap 2 Register'!$A$8:$A$107,'Stap 2 Register'!B78) -> 30 | C73: =VLOOKUP($B73,'Stap 2 Register'!$A$8:$AK$107,2,0) -> 30 | D73: =VLOOKUP($B73,'Stap 2 Register'!$A$8:$AK$107,3,0) -> 0 | E73: =VLOOKUP($B73,'Stap 2 Register'!$A$8:$AK$107,5,0) -> 0 | F73: =VLOOKUP($B73,'Stap 2 Register'!$A$8:$AK$107,14,0) ->  | G73: =VLOOKUP($B73,'Stap 2 Register'!$A$8:$AK$107,35,0) -> 0
A74: 0 | B74: =LARGE('Stap 2 Register'!$A$8:$A$107,'Stap 2 Register'!B79) -> 29 | C74: =VLOOKUP($B74,'Stap 2 Register'!$A$8:$AK$107,2,0) -> 29 | D74: =VLOOKUP($B74,'Stap 2 Register'!$A$8:$AK$107,3,0) -> 0 | E74: =VLOOKUP($B74,'Stap 2 Register'!$A$8:$AK$107,5,0) -> 0 | F74: =VLOOKUP($B74,'Stap 2 Register'!$A$8:$AK$107,14,0) ->  | G74: =VLOOKUP($B74,'Stap 2 Register'!$A$8:$AK$107,35,0) -> 0
A75: 0 | B75: =LARGE('Stap 2 Register'!$A$8:$A$107,'Stap 2 Register'!B80) -> 28 | C75: =VLOOKUP($B75,'Stap 2 Register'!$A$8:$AK$107,2,0) -> 28 | D75: =VLOOKUP($B75,'Stap 2 Register'!$A$8:$AK$107,3,0) -> 0 | E75: =VLOOKUP($B75,'Stap 2 Register'!$A$8:$AK$107,5,0) -> 0 | F75: =VLOOKUP($B75,'Stap 2 Register'!$A$8:$AK$107,14,0) ->  | G75: =VLOOKUP($B75,'Stap 2 Register'!$A$8:$AK$107,35,0) -> 0
A76: 0 | B76: =LARGE('Stap 2 Register'!$A$8:$A$107,'Stap 2 Register'!B81) -> 27 | C76: =VLOOKUP($B76,'Stap 2 Register'!$A$8:$AK$107,2,0) -> 27 | D76: =VLOOKUP($B76,'Stap 2 Register'!$A$8:$AK$107,3,0) -> 0 | E76: =VLOOKUP($B76,'Stap 2 Register'!$A$8:$AK$107,5,0) -> 0 | F76: =VLOOKUP($B76,'Stap 2 Register'!$A$8:$AK$107,14,0) ->  | G76: =VLOOKUP($B76,'Stap 2 Register'!$A$8:$AK$107,35,0) -> 0
A77: 0 | B77: =LARGE('Stap 2 Register'!$A$8:$A$107,'Stap 2 Register'!B82) -> 26 | C77: =VLOOKUP($B77,'Stap 2 Register'!$A$8:$AK$107,2,0) -> 26 | D77: =VLOOKUP($B77,'Stap 2 Register'!$A$8:$AK$107,3,0) -> 0 | E77: =VLOOKUP($B77,'Stap 2 Register'!$A$8:$AK$107,5,0) -> 0 | F77: =VLOOKUP($B77,'Stap 2 Register'!$A$8:$AK$107,14,0) ->  | G77: =VLOOKUP($B77,'Stap 2 Register'!$A$8:$AK$107,35,0) -> 0
A78: 0 | B78: =LARGE('Stap 2 Register'!$A$8:$A$107,'Stap 2 Register'!B83) -> 25 | C78: =VLOOKUP($B78,'Stap 2 Register'!$A$8:$AK$107,2,0) -> 25 | D78: =VLOOKUP($B78,'Stap 2 Register'!$A$8:$AK$107,3,0) -> 0 | E78: =VLOOKUP($B78,'Stap 2 Register'!$A$8:$AK$107,5,0) -> 0 | F78: =VLOOKUP($B78,'Stap 2 Register'!$A$8:$AK$107,14,0) ->  | G78: =VLOOKUP($B78,'Stap 2 Register'!$A$8:$AK$107,35,0) -> 0
A79: 0 | B79: =LARGE('Stap 2 Register'!$A$8:$A$107,'Stap 2 Register'!B84) -> 24 | C79: =VLOOKUP($B79,'Stap 2 Register'!$A$8:$AK$107,2,0) -> 24 | D79: =VLOOKUP($B79,'Stap 2 Register'!$A$8:$AK$107,3,0) -> 0 | E79: =VLOOKUP($B79,'Stap 2 Register'!$A$8:$AK$107,5,0) -> 0 | F79: =VLOOKUP($B79,'Stap 2 Register'!$A$8:$AK$107,14,0) ->  | G79: =VLOOKUP($B79,'Stap 2 Register'!$A$8:$AK$107,35,0) -> 0
A80: 0 | B80: =LARGE('Stap 2 Register'!$A$8:$A$107,'Stap 2 Register'!B85) -> 23 | C80: =VLOOKUP($B80,'Stap 2 Register'!$A$8:$AK$107,2,0) -> 23 | D80: =VLOOKUP($B80,'Stap 2 Register'!$A$8:$AK$107,3,0) -> 0 | E80: =VLOOKUP($B80,'Stap 2 Register'!$A$8:$AK$107,5,0) -> 0 | F80: =VLOOKUP($B80,'Stap 2 Register'!$A$8:$AK$107,14,0) ->  | G80: =VLOOKUP($B80,'Stap 2 Register'!$A$8:$AK$107,35,0) -> 0
A81: 0 | B81: =LARGE('Stap 2 Register'!$A$8:$A$107,'Stap 2 Register'!B86) -> 22 | C81: =VLOOKUP($B81,'Stap 2 Register'!$A$8:$AK$107,2,0) -> 22 | D81: =VLOOKUP($B81,'Stap 2 Register'!$A$8:$AK$107,3,0) -> 0 | E81: =VLOOKUP($B81,'Stap 2 Register'!$A$8:$AK$107,5,0) -> 0 | F81: =VLOOKUP($B81,'Stap 2 Register'!$A$8:$AK$107,14,0) ->  | G81: =VLOOKUP($B81,'Stap 2 Register'!$A$8:$AK$107,35,0) -> 0
A82: 0 | B82: =LARGE('Stap 2 Register'!$A$8:$A$107,'Stap 2 Register'!B87) -> 21 | C82: =VLOOKUP($B82,'Stap 2 Register'!$A$8:$AK$107,2,0) -> 21 | D82: =VLOOKUP($B82,'Stap 2 Register'!$A$8:$AK$107,3,0) -> 0 | E82: =VLOOKUP($B82,'Stap 2 Register'!$A$8:$AK$107,5,0) -> 0 | F82: =VLOOKUP($B82,'Stap 2 Register'!$A$8:$AK$107,14,0) ->  | G82: =VLOOKUP($B82,'Stap 2 Register'!$A$8:$AK$107,35,0) -> 0
A83: 0 | B83: =LARGE('Stap 2 Register'!$A$8:$A$107,'Stap 2 Register'!B88) -> 20 | C83: =VLOOKUP($B83,'Stap 2 Register'!$A$8:$AK$107,2,0) -> 20 | D83: =VLOOKUP($B83,'Stap 2 Register'!$A$8:$AK$107,3,0) -> 0 | E83: =VLOOKUP($B83,'Stap 2 Register'!$A$8:$AK$107,5,0) -> 0 | F83: =VLOOKUP($B83,'Stap 2 Register'!$A$8:$AK$107,14,0) ->  | G83: =VLOOKUP($B83,'Stap 2 Register'!$A$8:$AK$107,35,0) -> 0
A84: 0 | B84: =LARGE('Stap 2 Register'!$A$8:$A$107,'Stap 2 Register'!B89) -> 19 | C84: =VLOOKUP($B84,'Stap 2 Register'!$A$8:$AK$107,2,0) -> 19 | D84: =VLOOKUP($B84,'Stap 2 Register'!$A$8:$AK$107,3,0) -> 0 | E84: =VLOOKUP($B84,'Stap 2 Register'!$A$8:$AK$107,5,0) -> 0 | F84: =VLOOKUP($B84,'Stap 2 Register'!$A$8:$AK$107,14,0) ->  | G84: =VLOOKUP($B84,'Stap 2 Register'!$A$8:$AK$107,35,0) -> 0
A85: 0 | B85: =LARGE('Stap 2 Register'!$A$8:$A$107,'Stap 2 Register'!B90) -> 18 | C85: =VLOOKUP($B85,'Stap 2 Register'!$A$8:$AK$107,2,0) -> 18 | D85: =VLOOKUP($B85,'Stap 2 Register'!$A$8:$AK$107,3,0) -> 0 | E85: =VLOOKUP($B85,'Stap 2 Register'!$A$8:$AK$107,5,0) -> 0 | F85: =VLOOKUP($B85,'Stap 2 Register'!$A$8:$AK$107,14,0) ->  | G85: =VLOOKUP($B85,'Stap 2 Register'!$A$8:$AK$107,35,0) -> 0
A86: 0 | B86: =LARGE('Stap 2 Register'!$A$8:$A$107,'Stap 2 Register'!B91) -> 17 | C86: =VLOOKUP($B86,'Stap 2 Register'!$A$8:$AK$107,2,0) -> 17 | D86: =VLOOKUP($B86,'Stap 2 Register'!$A$8:$AK$107,3,0) -> 0 | E86: =VLOOKUP($B86,'Stap 2 Register'!$A$8:$AK$107,5,0) -> 0 | F86: =VLOOKUP($B86,'Stap 2 Register'!$A$8:$AK$107,14,0) ->  | G86: =VLOOKUP($B86,'Stap 2 Register'!$A$8:$AK$107,35,0) -> 0
A87: 0 | B87: =LARGE('Stap 2 Register'!$A$8:$A$107,'Stap 2 Register'!B92) -> 16 | C87: =VLOOKUP($B87,'Stap 2 Register'!$A$8:$AK$107,2,0) -> 16 | D87: =VLOOKUP($B87,'Stap 2 Register'!$A$8:$AK$107,3,0) -> 0 | E87: =VLOOKUP($B87,'Stap 2 Register'!$A$8:$AK$107,5,0) -> 0 | F87: =VLOOKUP($B87,'Stap 2 Register'!$A$8:$AK$107,14,0) ->  | G87: =VLOOKUP($B87,'Stap 2 Register'!$A$8:$AK$107,35,0) -> 0
A88: 0 | B88: =LARGE('Stap 2 Register'!$A$8:$A$107,'Stap 2 Register'!B93) -> 15 | C88: =VLOOKUP($B88,'Stap 2 Register'!$A$8:$AK$107,2,0) -> 15 | D88: =VLOOKUP($B88,'Stap 2 Register'!$A$8:$AK$107,3,0) -> 0 | E88: =VLOOKUP($B88,'Stap 2 Register'!$A$8:$AK$107,5,0) -> 0 | F88: =VLOOKUP($B88,'Stap 2 Register'!$A$8:$AK$107,14,0) ->  | G88: =VLOOKUP($B88,'Stap 2 Register'!$A$8:$AK$107,35,0) -> 0
A89: 0 | B89: =LARGE('Stap 2 Register'!$A$8:$A$107,'Stap 2 Register'!B94) -> 14 | C89: =VLOOKUP($B89,'Stap 2 Register'!$A$8:$AK$107,2,0) -> 14 | D89: =VLOOKUP($B89,'Stap 2 Register'!$A$8:$AK$107,3,0) -> 0 | E89: =VLOOKUP($B89,'Stap 2 Register'!$A$8:$AK$107,5,0) -> 0 | F89: =VLOOKUP($B89,'Stap 2 Register'!$A$8:$AK$107,14,0) ->  | G89: =VLOOKUP($B89,'Stap 2 Register'!$A$8:$AK$107,35,0) -> 0
A90: 0 | B90: =LARGE('Stap 2 Register'!$A$8:$A$107,'Stap 2 Register'!B95) -> 13 | C90: =VLOOKUP($B90,'Stap 2 Register'!$A$8:$AK$107,2,0) -> 13 | D90: =VLOOKUP($B90,'Stap 2 Register'!$A$8:$AK$107,3,0) -> 0 | E90: =VLOOKUP($B90,'Stap 2 Register'!$A$8:$AK$107,5,0) -> 0 | F90: =VLOOKUP($B90,'Stap 2 Register'!$A$8:$AK$107,14,0) ->  | G90: =VLOOKUP($B90,'Stap 2 Register'!$A$8:$AK$107,35,0) -> 0
A91: 0 | B91: =LARGE('Stap 2 Register'!$A$8:$A$107,'Stap 2 Register'!B96) -> 12 | C91: =VLOOKUP($B91,'Stap 2 Register'!$A$8:$AK$107,2,0) -> 12 | D91: =VLOOKUP($B91,'Stap 2 Register'!$A$8:$AK$107,3,0) -> 0 | E91: =VLOOKUP($B91,'Stap 2 Register'!$A$8:$AK$107,5,0) -> 0 | F91: =VLOOKUP($B91,'Stap 2 Register'!$A$8:$AK$107,14,0) ->  | G91: =VLOOKUP($B91,'Stap 2 Register'!$A$8:$AK$107,35,0) -> 0
A92: 0 | B92: =LARGE('Stap 2 Register'!$A$8:$A$107,'Stap 2 Register'!B97) -> 11 | C92: =VLOOKUP($B92,'Stap 2 Register'!$A$8:$AK$107,2,0) -> 11 | D92: =VLOOKUP($B92,'Stap 2 Register'!$A$8:$AK$107,3,0) -> 0 | E92: =VLOOKUP($B92,'Stap 2 Register'!$A$8:$AK$107,5,0) -> 0 | F92: =VLOOKUP($B92,'Stap 2 Register'!$A$8:$AK$107,14,0) ->  | G92: =VLOOKUP($B92,'Stap 2 Register'!$A$8:$AK$107,35,0) -> 0
A93: 0 | B93: =LARGE('Stap 2 Register'!$A$8:$A$107,'Stap 2 Register'!B98) -> 10 | C93: =VLOOKUP($B93,'Stap 2 Register'!$A$8:$AK$107,2,0) -> 10 | D93: =VLOOKUP($B93,'Stap 2 Register'!$A$8:$AK$107,3,0) -> 0 | E93: =VLOOKUP($B93,'Stap 2 Register'!$A$8:$AK$107,5,0) -> 0 | F93: =VLOOKUP($B93,'Stap 2 Register'!$A$8:$AK$107,14,0) ->  | G93: =VLOOKUP($B93,'Stap 2 Register'!$A$8:$AK$107,35,0) -> 0
A94: 0 | B94: =LARGE('Stap 2 Register'!$A$8:$A$107,'Stap 2 Register'!B99) -> 9 | C94: =VLOOKUP($B94,'Stap 2 Register'!$A$8:$AK$107,2,0) -> 9 | D94: =VLOOKUP($B94,'Stap 2 Register'!$A$8:$AK$107,3,0) -> 0 | E94: =VLOOKUP($B94,'Stap 2 Register'!$A$8:$AK$107,5,0) -> 0 | F94: =VLOOKUP($B94,'Stap 2 Register'!$A$8:$AK$107,14,0) ->  | G94: =VLOOKUP($B94,'Stap 2 Register'!$A$8:$AK$107,35,0) -> 0
A95: 0 | B95: =LARGE('Stap 2 Register'!$A$8:$A$107,'Stap 2 Register'!B100) -> 8 | C95: =VLOOKUP($B95,'Stap 2 Register'!$A$8:$AK$107,2,0) -> 8 | D95: =VLOOKUP($B95,'Stap 2 Register'!$A$8:$AK$107,3,0) -> 0 | E95: =VLOOKUP($B95,'Stap 2 Register'!$A$8:$AK$107,5,0) -> 0 | F95: =VLOOKUP($B95,'Stap 2 Register'!$A$8:$AK$107,14,0) ->  | G95: =VLOOKUP($B95,'Stap 2 Register'!$A$8:$AK$107,35,0) -> 0
A96: 0 | B96: =LARGE('Stap 2 Register'!$A$8:$A$107,'Stap 2 Register'!B101) -> 7 | C96: =VLOOKUP($B96,'Stap 2 Register'!$A$8:$AK$107,2,0) -> 7 | D96: =VLOOKUP($B96,'Stap 2 Register'!$A$8:$AK$107,3,0) -> 0 | E96: =VLOOKUP($B96,'Stap 2 Register'!$A$8:$AK$107,5,0) -> 0 | F96: =VLOOKUP($B96,'Stap 2 Register'!$A$8:$AK$107,14,0) ->  | G96: =VLOOKUP($B96,'Stap 2 Register'!$A$8:$AK$107,35,0) -> 0
A97: 0 | B97: =LARGE('Stap 2 Register'!$A$8:$A$107,'Stap 2 Register'!B102) -> 6 | C97: =VLOOKUP($B97,'Stap 2 Register'!$A$8:$AK$107,2,0) -> 6 | D97: =VLOOKUP($B97,'Stap 2 Register'!$A$8:$AK$107,3,0) -> 0 | E97: =VLOOKUP($B97,'Stap 2 Register'!$A$8:$AK$107,5,0) -> 0 | F97: =VLOOKUP($B97,'Stap 2 Register'!$A$8:$AK$107,14,0) ->  | G97: =VLOOKUP($B97,'Stap 2 Register'!$A$8:$AK$107,35,0) -> 0
A98: 0 | B98: =LARGE('Stap 2 Register'!$A$8:$A$107,'Stap 2 Register'!B103) -> 5 | C98: =VLOOKUP($B98,'Stap 2 Register'!$A$8:$AK$107,2,0) -> 5 | D98: =VLOOKUP($B98,'Stap 2 Register'!$A$8:$AK$107,3,0) -> 0 | E98: =VLOOKUP($B98,'Stap 2 Register'!$A$8:$AK$107,5,0) -> 0 | F98: =VLOOKUP($B98,'Stap 2 Register'!$A$8:$AK$107,14,0) ->  | G98: =VLOOKUP($B98,'Stap 2 Register'!$A$8:$AK$107,35,0) -> 0
A99: 0 | B99: =LARGE('Stap 2 Register'!$A$8:$A$107,'Stap 2 Register'!B104) -> 4 | C99: =VLOOKUP($B99,'Stap 2 Register'!$A$8:$AK$107,2,0) -> 4 | D99: =VLOOKUP($B99,'Stap 2 Register'!$A$8:$AK$107,3,0) -> 0 | E99: =VLOOKUP($B99,'Stap 2 Register'!$A$8:$AK$107,5,0) -> 0 | F99: =VLOOKUP($B99,'Stap 2 Register'!$A$8:$AK$107,14,0) ->  | G99: =VLOOKUP($B99,'Stap 2 Register'!$A$8:$AK$107,35,0) -> 0 | J99: =IF($F99=$J$2,_xlfn.TEXTJOIN($K$1,,$C99:$D99),"") ->  | K99: =IF($F99=$K$2,_xlfn.TEXTJOIN($K$1,,$C99:$D99),"") ->  | L99: =IF($F99=$L$2,_xlfn.TEXTJOIN($K$1,,$C99:$D99),"") ->  | M99: =IF($F99=$M$2,_xlfn.TEXTJOIN($K$1,,$C99:$D99),"") ->  | N99: =IF($F99=$N$2,_xlfn.TEXTJOIN($K$1,,$C99:$D99),"") ->  | O99: =IF($F99=$O$2,_xlfn.TEXTJOIN($K$1,,$C99:$D99),"") -> 
A100: 0 | B100: =LARGE('Stap 2 Register'!$A$8:$A$107,'Stap 2 Register'!B105) -> 3 | C100: =VLOOKUP($B100,'Stap 2 Register'!$A$8:$AK$107,2,0) -> 3 | D100: =VLOOKUP($B100,'Stap 2 Register'!$A$8:$AK$107,3,0) -> 0 | E100: =VLOOKUP($B100,'Stap 2 Register'!$A$8:$AK$107,5,0) -> 0 | F100: =VLOOKUP($B100,'Stap 2 Register'!$A$8:$AK$107,14,0) ->  | G100: =VLOOKUP($B100,'Stap 2 Register'!$A$8:$AK$107,35,0) -> 0
A101: 0 | B101: =LARGE('Stap 2 Register'!$A$8:$A$107,'Stap 2 Register'!B106) -> 2 | C101: =VLOOKUP($B101,'Stap 2 Register'!$A$8:$AK$107,2,0) -> 2 | D101: =VLOOKUP($B101,'Stap 2 Register'!$A$8:$AK$107,3,0) -> 0 | E101: =VLOOKUP($B101,'Stap 2 Register'!$A$8:$AK$107,5,0) -> 0 | F101: =VLOOKUP($B101,'Stap 2 Register'!$A$8:$AK$107,14,0) ->  | G101: =VLOOKUP($B101,'Stap 2 Register'!$A$8:$AK$107,35,0) -> 0
A102: 0 | B102: =LARGE('Stap 2 Register'!$A$8:$A$107,'Stap 2 Register'!B107) -> 1 | C102: =VLOOKUP($B102,'Stap 2 Register'!$A$8:$AK$107,2,0) -> 1 | D102: =VLOOKUP($B102,'Stap 2 Register'!$A$8:$AK$107,3,0) -> 0 | E102: =VLOOKUP($B102,'Stap 2 Register'!$A$8:$AK$107,5,0) -> 0 | F102: =VLOOKUP($B102,'Stap 2 Register'!$A$8:$AK$107,14,0) ->  | G102: =VLOOKUP($B102,'Stap 2 Register'!$A$8:$AK$107,35,0) -> 0

Sheet Dashboard
C3: Dashboard
E7: Ontoelaatbaar | G7: Zeer Hoog | I7: Hoog | K7: Middelmatig | M7: Laag | O7: Verwaarloosbaar
E8: O | G8: ZH | I8: H | K8: M | M8: L | O8: V
E10: =IF(C13=0,_xlfn.TEXTJOIN($G$6,,'1e berekening'!J3:J102),_xlfn.TEXTJOIN($G$6,,'Stap 3 Maatregelen'!AO8:AO107,'Overgebleven risico'!K8:K107)) ->  | G10: =IF(C13=0,_xlfn.TEXTJOIN($G$6,,'1e berekening'!K3:K102),_xlfn.TEXTJOIN($G$6,,'Stap 3 Maatregelen'!AP8:AP107,'Overgebleven risico'!L8:L107)) ->  | I10: =IF(C13=0,_xlfn.TEXTJOIN($G$6,,'1e berekening'!L3:L102),_xlfn.TEXTJOIN($G$6,,'Stap 3 Maatregelen'!AQ8:AQ107,'Overgebleven risico'!M8:M107)) ->  | K10: =IF(C13=0,_xlfn.TEXTJOIN($G$6,,'1e berekening'!M3:M102),_xlfn.TEXTJOIN($G$6,,'Stap 3 Maatregelen'!AR8:AR107,'Overgebleven risico'!N8:N107)) ->  | M10: =IF(C13=0,_xlfn.TEXTJOIN($G$6,,'1e berekening'!N3:N102),_xlfn.TEXTJOIN($G$6,,'Stap 3 Maatregelen'!AS8:AS107,'Overgebleven risico'!O8:O107)) ->  | O10: =IF(C13=0,_xlfn.TEXTJOIN($G$6,,'1e berekening'!O3:O102),_xlfn.TEXTJOIN($G$6,,'Stap 3 Maatregelen'!AT8:AT107,'Overgebleven risico'!P8:P107)) -> 
B11: Voor maatregelen | C11: Na maatregelen
C13: 0
C29: Aantal risico's | E29: =IF(C13=0,'Stap 2 Register'!AM109,'Stap 3 Maatregelen'!AO109+'Overgebleven risico'!K109) -> 0 | G29: =IF(C13=0,'Stap 2 Register'!AN109,'Stap 3 Maatregelen'!AP109+'Overgebleven risico'!L109) -> 0 | I29: =IF(C13=0,'Stap 2 Register'!AO109,'Stap 3 Maatregelen'!AQ109+'Overgebleven risico'!M109) -> 0 | K29: =IF(C13=0,'Stap 2 Register'!AP109,'Stap 3 Maatregelen'!AR109+'Overgebleven risico'!N109) -> 0 | M29: =IF(C13=0,'Stap 2 Register'!AQ109,'Stap 3 Maatregelen'!AS109+'Overgebleven risico'!O109) -> 0 | O29: =IF(C13=0,'Stap 2 Register'!AR109,'Stap 3 Maatregelen'!AT109+'Overgebleven risico'!P109) -> 0
C30: Monetair Equivalent | E30: =IF(C13=0,'Stap 2 Register'!AS8,'Stap 3 Maatregelen'!AU8+'Overgebleven risico'!Q8) -> 0 | G30: =IF(C13=0,'Stap 2 Register'!AT8,'Stap 3 Maatregelen'!AV8+'Overgebleven risico'!R8) -> 0 | I30: =IF(C13=0,'Stap 2 Register'!AU8,'Stap 3 Maatregelen'!AW8+'Overgebleven risico'!S8) -> 0 | K30: =IF(C13=0,'Stap 2 Register'!AV8,'Stap 3 Maatregelen'!AX8+'Overgebleven risico'!T8) -> 0 | M30: =IF(C13=0,'Stap 2 Register'!AW8,'Stap 3 Maatregelen'!AY8+'Overgebleven risico'!U8) -> 0 | O30: =IF(C13=0,'Stap 2 Register'!AX8,'Stap 3 Maatregelen'!AZ8+'Overgebleven risico'!V8) -> 0
E32: Totaal | G32: Met maatregel | I32: Accepteren | K32: Totaal Monetair equivalent | O32: Totaal aan kosten
C33: Aantal risico's | E33: =SUM(E29:O29) -> 0 | G33: ='Stap 2 Register'!AI109 -> 0 | I33: =E33-G33 -> 0 | K33: =SUM(E30:O30) -> 0 | O33: =IF(C13=1,SUM('Stap 3 Maatregelen'!G8:G107),0) -> 0
B35: Bedrijfswaarden | E35: ='Stap 2 Register'!H7 -> Financieel | G35: ='Stap 2 Register'!I7 -> Doelmatig | I35: ='Stap 2 Register'!J7 -> Kwantiteit/Veilig | K35: ='Stap 2 Register'!K7 -> Kwal leefomgeving | M35: ='Stap 2 Register'!L7 -> Imago | O35: ='Stap 2 Register'!M7 -> Circulair
C37: Monetair Equivalent | E37: =IF(C13=0,'Stap 2 Register'!W109,'Stap 3 Maatregelen'!AA109+'Overgebleven risico'!E109) -> 0 | G37: =IF(C13=0,'Stap 2 Register'!X109,'Stap 3 Maatregelen'!AB109+'Overgebleven risico'!F109) -> 0 | I37: =IF(C13=0,'Stap 2 Register'!Y109,'Stap 3 Maatregelen'!AC109+'Overgebleven risico'!G109) -> 0 | K37: =IF(C13=0,'Stap 2 Register'!Z109,'Stap 3 Maatregelen'!AD109+'Overgebleven risico'!H109) -> 0 | M37: =IF(C13=0,'Stap 2 Register'!AA109,'Stap 3 Maatregelen'!AE109+'Overgebleven risico'!I109) -> 0 | O37: =IF(C13=0,'Stap 2 Register'!AB109,'Stap 3 Maatregelen'!AF109+'Overgebleven risico'!J109) -> 0
C61: Met welk budget wordt er gerekend? | G61: 3500000
P94: LEAM © 2024

Sheet Verantwoording
B2: Verantwoording
B5: De risicomatrix
B6: Voor een goede werking van dit model is uitgegaan van een 6x6 risicomatrix. Dit kan niet worden aangepast in deze versie. Indien u dat wenst, neem dan contact op. Enkel de financiële kolom kan worden aangepast door de "kosten" in het geel gekleurde veld aan te passen aan uw eigen model. (Vuistregel daarbij: 1% van uw jaarlijkse begroting op de plek waar de kosten ingevuld kunnen worden, bijvoorbeeld bij een totale begroting van 100 miljoen vult u 1.000.000 in). U heeft voor het gebruik een eigen risicomatrix nodig. Zonder eigen matrix is het niet mogelijk om het risicoregister zinvol in te vullen. Heeft u nog geen eigen matrix, maar wilt u deze wel hebben, dan kan LEAM u ondersteunen. U kunt de overige bedrijfswaarden veranderen in uw eigen bedrijfswaarden. De risicomatrix is logaritmisch opgebouwd. Zowel de kans als het effect wordt bij iedere stap 10x zo groot of klein. Ook is uitgegaan dat alle bedrijfswaarden per effectniveau een zelfde "gewicht" of "zwaarte" hebben. Dit maakt de matrix om meerdere redenen goed bruikbaar en als bijkomend voordeel is het dan mogelijk om het Monetair Equivalent (het risico uitgedrukt in kosten) zichtbaar te maken. Legenda van de risico's: O = Ontoelaatbaar ZH = Zeer Hoog H = Hoog M = Middelmatig L = Laag V = Verwaarloosbaar
B15: Register
B16: Hierin vult u de gegevens van het risico. Te beginnen bij Asset + Faalmode. Denk bijvoorbeeld aan leiding + lekkage. De leiding is de asset en lekkage is de faalmode. Vervolgens kunt u de oorzaak invullen en daarna het effect. Wanneer u dit heeft gedaan vult u de bedrijfswaarden in. Dit door per bedrijfswaarde de coördinaten uit de risicomatrix in te vullen. Bijvoorbeeld C4 of B3 of E3. C5 geeft als resultaat (met de gehanteerde risicomatrix) een Hoog risico. De eerste letter geeft meteen ook de kans aan. C staat voor Beperkt, etc. Risico is kans x effect. Het coördinaat combineert beide. (Let op: indien u meerdere letters gebruikt gebeurd er iets raars. Namelijk dat er meerdere kansen voor hetzelfde risico zijn. Het model negeert dit en gaat uit van de eerste waarde voor de kansbepaling). Wanneer een risico zich op meerdere manieren kan manifesteren (hiervoor ontwikkeld u risico-analyses) en ook andere effecten geeft kan het dus zijn dat u vaker een zelfde Asset + Faalmode invult. De risico's die u invult krijgen een eigen nummer waardoor u ze uit elkaar kunt houden. Voorkom het mengen van verschillende uitkomsten in één risico. Verder kunt u aangeven of u voor een risico een beheermaatregel wilt definiëren. Vul dan op de betreffende regel een "1" in of laat het veld leeg. Bij opmerkingen kunt u verdere informatie kwijt.
B27: Maatregelen
B28: Wanneer u bij stap 2 (Register) heeft aangegeven dat u maatregelen wilt nemen voor een risico dan kunt u bij maatregelen dit verder specificeren. U geeft een omschrijving van de maatregel en een indicatie van de kosten van de maatregel. Ook vult u opnieuw de risico-coördinaten per bedrijfswaarde in, maar nu met de verwachtte situatie nadat de maatregelen zijn genomen. Toegevoegde waarde per euro: De waarde die hier wordt weeregegeven is het resultaat van het huidige monetaire equivalent minus het nieuwe. Dit wordt gedeeld door de kosten van de maatregel en er rolt een getal uit. Een negatieve waarde kan zijn omdat er geen risico gereduceerd wordt of omdat de kosten voor het nemen van de maatregel hoger zijn dan de toegevoegde waarde. (vermindering van het risico). Er wordt niet gewerkt met een terugverdientijd. Het zou niets veranderen in de diverse waarden t.o.v. elkaar, tenzij er gewerkt wordt met verschillende terugverdientijden. Voor het gemak is uitgegaan voor de kosten van de maatregel. Indien u van alle maatregelen de kosten over de levenscyclus weet, dan heeft dat de voorkeur. Tot slot kunt u nog aangeven wat de maatregel verandert aan het huidige risico.
B39: Dashboard
B40: Het dashboard geeft het resultaat weer van uw inspanningen in één overzicht op hoofdlijnen. Het register en de maatregelen kunt u printen. Maar uw management wilt weten welke risico's er zijn en welke acceptabel zijn en welke niet, wat u er gaat doen en wat dat oplevert. Daarom vind u hier de huidige sitiuatie en kan u de nieuwe situatie in beeld brengen door de "schakelaar" over te halen. Het risicoveld zal verschuiven, net als de risicopositie (monetair equivalent). De totale kosten van alle maatregelen worden ook getoond. Tot slot kan de budgetgrens worden ingegeven en met de knop "verversen grafiek" worden de ingegeven risico's en maatregelen tegenover elkaar gezet. Daar waar de budgetgrens de maatregelen snijdt, is alles rechts daarvan overgebleven risico's
L50: LEAM© 2024

Sheet BW tabel (hidden)
B2: Risico-coördinaat | C2: Mon. Eq. | D2: Risico | E2: Risicogetal | F2: kans | G2: kans2 | H2: Letter | I2: Getal | K2: Monetaire waarde kolom D6 | L2: Kans D6
B3: A6 | C3: =C24 -> 31622.7766 | D3: M | E3: =E24 -> 32 | F3: =F21/1000 -> 0.00316227766 | G3: Zeer laag | H3: A | I3: 6 | K3: ='Stap 1 Risicomatrix'!C9 -> 10000000 | L3: 10
B4: A5 | C4: =C25 -> 3162.27766 | D4: L | E4: =E25 -> 16 | F4: 0.00316227766 | G4: Zeer laag | H4: A | I4: 5
B5: A4 | C5: =C26 -> 316.227766 | D5: V | E5: =E26 -> 8 | F5: 0.00316227766 | G5: Zeer laag | H5: A | I5: 4
B6: A3 | C6: =C26/10 -> 31.6227766 | D6: V | E6: =E13 -> 4 | F6: 0.00316227766 | G6: Zeer laag | H6: A | I6: 3
B7: A2 | C7: =C26/100 -> 3.16227766 | D7: V | E7: =E14 -> 2 | F7: 0.00316227766 | G7: Zeer laag | H7: A | I7: 2
B8: A1 | C8: =C26/1000 -> 0.316227766 | D8: V | E8: 1 | F8: 0.00316227766 | G8: Zeer laag | H8: A | I8: 1 | L8: A | M8: B | N8: C | O8: D | P8: E | Q8: F
B9: B6 | C9: =C23 -> 316227.766 | D9: H | E9: =E23 -> 64 | F9: =F21/100 -> 0.0316227766 | G9: Laag | H9: B | I9: 6 | K9: CATASTROFAAL | L9: M | M9: H | N9: ZH | O9: O | P9: O | Q9: O
B10: B5 | C10: =C24 -> 31622.7766 | D10: M | E10: =E24 -> 32 | F10: =F9 -> 0.0316227766 | G10: Laag | H10: B | I10: 5 | K10: ERNSTIG | L10: L | M10: M | N10: H | O10: ZH | P10: O | Q10: O
B11: B4 | C11: =C25 -> 3162.27766 | D11: L | E11: =E25 -> 16 | F11: =F10 -> 0.0316227766 | G11: Laag | H11: B | I11: 4 | K11: GROOT | L11: V | M11: L | N11: M | O11: H | P11: ZH | Q11: O
B12: B3 | C12: =C26 -> 316.227766 | D12: V | E12: =E26 -> 8 | F12: =F11 -> 0.0316227766 | G12: Laag | H12: B | I12: 3 | K12: MIDDELMATIG | L12: V | M12: V | N12: L | O12: M | P12: H | Q12: ZH
B13: B2 | C13: =C26/10 -> 31.6227766 | D13: V | E13: =E20 -> 4 | F13: =F12 -> 0.0316227766 | G13: Laag | H13: B | I13: 2 | K13: KLEIN | L13: V | M13: V | N13: V | O13: L | P13: M | Q13: H
B14: B1 | C14: =C26/100 -> 3.16227766 | D14: V | E14: 2 | F14: =F13 -> 0.0316227766 | G14: Laag | H14: B | I14: 1 | K14: VERWAARLOOSBAAR | L14: V | M14: V | N14: V | O14: V | P14: L | Q14: M
B15: C6 | C15: =C22 -> 3162277.66 | D15: ZH | E15: =E22 -> 128 | F15: =F21/10 -> 0.316227766 | G15: Beperkt | H15: C | I15: 6
B16: C5 | C16: =C23 -> 316227.766 | D16: H | E16: =E23 -> 64 | F16: =F15 -> 0.316227766 | G16: Beperkt | H16: C | I16: 5 | L16: 1 | M16: 2 | N16: 4 | O16: 8 | P16: 16 | Q16: 32
B17: C4 | C17: =C24 -> 31622.7766 | D17: M | E17: =E24 -> 32 | F17: =F16 -> 0.316227766 | G17: Beperkt | H17: C | I17: 4 | K17: 32 | L17: =K17*$L$16 -> 32 | M17: =L17*2 -> 64 | N17: 128 | O17: 256 | P17: 512 | Q17: 1024
B18: C3 | C18: =C25 -> 3162.27766 | D18: L | E18: =E25 -> 16 | F18: =F17 -> 0.316227766 | G18: Beperkt | H18: C | I18: 3 | K18: 16 | L18: =K18*$L$16 -> 16 | M18: 32 | N18: 64 | O18: 128 | P18: 256 | Q18: 512
B19: C2 | C19: =C26 -> 316.227766 | D19: V | E19: =E26 -> 8 | F19: =F18 -> 0.316227766 | G19: Beperkt | H19: C | I19: 2 | K19: 8 | L19: 8 | M19: =L19*2 -> 16 | N19: 32 | O19: 64 | P19: 128 | Q19: 256
B20: C1 | C20: =C26/10 -> 31.6227766 | D20: V | E20: =E19/2 -> 4 | F20: =F19 -> 0.316227766 | G20: Beperkt | H20: C | I20: 1 | K20: 4 | L20: 4 | M20: =L20*2 -> 8 | N20: 16 | O20: 32 | P20: 64 | Q20: 128
B21: D6 | C21: =SQRT(10)*K3 -> 31622776.6 | D21: O | E21: 256 | F21: =IF(L3=1,3.16228,SQRT(L3)) -> 3.16227766 | G21: Geregeld | H21: D | I21: 6 | K21: 2 | L21: 2 | M21: =L21*2 -> 4 | N21: 8 | O21: 16 | P21: 32 | Q21: 64
B22: D5 | C22: =C21/10 -> 3162277.66 | D22: ZH | E22: 128 | F22: =F21 -> 3.16227766 | G22: Geregeld | H22: D | I22: 5 | K22: 1 | L22: 1 | M22: =L22*2 -> 2 | N22: 4 | O22: 8 | P22: 16 | Q22: 32
B23: D4 | C23: =C22/10 -> 316227.766 | D23: H | E23: 64 | F23: =F22 -> 3.16227766 | G23: Geregeld | H23: D | I23: 4
B24: D3 | C24: =C23/10 -> 31622.7766 | D24: M | E24: 32 | F24: =F23 -> 3.16227766 | G24: Geregeld | H24: D | I24: 3 | K24: 1 | L24: V
B25: D2 | C25: =C24/10 -> 3162.27766 | D25: L | E25: 16 | F25: =F24 -> 3.16227766 | G25: Geregeld | H25: D | I25: 2 | K25: 2 | L25: V
B26: D1 | C26: =C25/10 -> 316.227766 | D26: V | E26: 8 | F26: =F25 -> 3.16227766 | G26: Geregeld | H26: D | I26: 1 | K26: 4 | L26: V
B27: E6 | C27: =C21*10 -> 316227766 | D27: O | E27: =E21*2 -> 512 | F27: =F21*10 -> 31.6227766 | G27: Vaak | H27: E | I27: 6 | K27: 8 | L27: V
B28: E5 | C28: =C21 -> 31622776.6 | D28: O | E28: =E21 -> 256 | F28: 31.6227766 | G28: Vaak | H28: E | I28: 5 | K28: 16 | L28: L
B29: E4 | C29: =C22 -> 3162277.66 | D29: ZH | E29: =E22 -> 128 | F29: 31.6227766 | G29: Vaak | H29: E | I29: 4 | K29: 32 | L29: M
B30: E3 | C30: =C23 -> 316227.766 | D30: H | E30: =E23 -> 64 | F30: 31.6227766 | G30: Vaak | H30: E | I30: 3 | K30: 64 | L30: H
B31: E2 | C31: =C24 -> 31622.7766 | D31: M | E31: =E24 -> 32 | F31: 31.6227766 | G31: Vaak | H31: E | I31: 2 | K31: 128 | L31: ZH
B32: E1 | C32: =C25 -> 3162.27766 | D32: L | E32: =E25 -> 16 | F32: 31.6227766 | G32: Vaak | H32: E | I32: 1 | K32: 256 | L32: O
B33: F6 | C33: =C27*10 -> 3162277660 | D33: O | E33: =E27*2 -> 1024 | F33: =F21*100 -> 316.227766 | G33: Zeer vaak | H33: F | I33: 6 | K33: 512 | L33: O
B34: F5 | C34: =C27 -> 316227766 | D34: O | E34: =E27 -> 512 | F34: 316.227766 | G34: Zeer vaak | H34: F | I34: 5 | K34: 1024 | L34: O
B35: F4 | C35: =C21 -> 31622776.6 | D35: O | E35: =E28 -> 256 | F35: 316.227766 | G35: Zeer vaak | H35: F | I35: 4
B36: F3 | C36: =C22 -> 3162277.66 | D36: ZH | E36: =E29 -> 128 | F36: 316.227766 | G36: Zeer vaak | H36: F | I36: 3
B37: F2 | C37: =C23 -> 316227.766 | D37: H | E37: =E30 -> 64 | F37: 316.227766 | G37: Zeer vaak | H37: F | I37: 2
B38: F1 | C38: =C24 -> 31622.7766 | D38: M | E38: =E31 -> 32 | F38: 316.227766 | G38: Zeer vaak | H38: F | I38: 1

Sheet Grafiek (hidden)
B1: ='Stap 1 Risicomatrix'!C7 -> Financieel | C1: ='Stap 1 Risicomatrix'!D7 -> Doelmatig | D1: ='Stap 1 Risicomatrix'!E7 -> Kwantiteit/Veilig | E1: ='Stap 1 Risicomatrix'!F7 -> Kwal leefomgeving | F1: ='Stap 1 Risicomatrix'!G7 -> Imago | G1: ='Stap 1 Risicomatrix'!H7 -> Circulair
A2: Huidig risico | B2: ='Stap 2 Register'!W109 -> 0 | C2: ='Stap 2 Register'!X109 -> 0 | D2: ='Stap 2 Register'!Y109 -> 0 | E2: ='Stap 2 Register'!Z109 -> 0 | F2: ='Stap 2 Register'!AA109 -> 0 | G2: ='Stap 2 Register'!AB109 -> 0
A3: Verwacht risico | B3: =IF(Dashboard!$C$13=1,'Stap 3 Maatregelen'!AA109+'Overgebleven risico'!E109,0) -> 0 | C3: =IF(Dashboard!$C$13=1,'Stap 3 Maatregelen'!AB109+'Overgebleven risico'!F109,0) -> 0 | D3: =IF(Dashboard!$C$13=1,'Stap 3 Maatregelen'!AC109+'Overgebleven risico'!G109,0) -> 0 | E3: =IF(Dashboard!$C$13=1,'Stap 3 Maatregelen'!AD109+'Overgebleven risico'!H109,0) -> 0 | F3: =IF(Dashboard!$C$13=1,'Stap 3 Maatregelen'!AE109+'Overgebleven risico'!I109,0) -> 0 | G3: =IF(Dashboard!$C$13=1,'Stap 3 Maatregelen'!AF109+'Overgebleven risico'!J109,0) -> 0
A10: risiconr | B10: risico | C10: mon equ | D10: maatregel | E10: budgetgrens
A11: 1 | B11: =_xlfn.XLOOKUP(A11,'Stap 2 Register'!$B$8:$B$107,'Stap 2 Register'!$C$8:$C$107,0) -> 0 | C11: =_xlfn.XLOOKUP(A11,'Stap 2 Register'!$B$8:$B$107,'Stap 2 Register'!$O$8:$O$107,0) -> 0 | D11: =_xlfn.XLOOKUP(A11,'Stap 3 Maatregelen'!$C$8:$C$107,'Stap 3 Maatregelen'!$G$8:$G$107,0) -> 0 | E11: =Dashboard!G61 -> 3500000 | G11: Rijlabels | H11: Risicosom | I11: Maatregelen opgeteld | J11: Budgetgrens (opgave)
A12: 2 | B12: =_xlfn.XLOOKUP(A12,'Stap 2 Register'!$B$8:$B$107,'Stap 2 Register'!$C$8:$C$107,0) -> 0 | C12: =_xlfn.XLOOKUP(A12,'Stap 2 Register'!$B$8:$B$107,'Stap 2 Register'!$O$8:$O$107,0) -> 0 | D12: =_xlfn.XLOOKUP(A12,'Stap 3 Maatregelen'!$C$8:$C$107,'Stap 3 Maatregelen'!$G$8:$G$107,0) -> 0 | E12: =$E$11 -> 3500000 | G12: Eindtotaal
A13: 3 | B13: =_xlfn.XLOOKUP(A13,'Stap 2 Register'!$B$8:$B$107,'Stap 2 Register'!$C$8:$C$107,0) -> 0 | C13: =_xlfn.XLOOKUP(A13,'Stap 2 Register'!$B$8:$B$107,'Stap 2 Register'!$O$8:$O$107,0) -> 0 | D13: =_xlfn.XLOOKUP(A13,'Stap 3 Maatregelen'!$C$8:$C$107,'Stap 3 Maatregelen'!$G$8:$G$107,0) -> 0 | E13: =$E$11 -> 3500000
A14: 4 | B14: =_xlfn.XLOOKUP(A14,'Stap 2 Register'!$B$8:$B$107,'Stap 2 Register'!$C$8:$C$107,0) -> 0 | C14: =_xlfn.XLOOKUP(A14,'Stap 2 Register'!$B$8:$B$107,'Stap 2 Register'!$O$8:$O$107,0) -> 0 | D14: =_xlfn.XLOOKUP(A14,'Stap 3 Maatregelen'!$C$8:$C$107,'Stap 3 Maatregelen'!$G$8:$G$107,0) -> 0 | E14: 3500000
A15: 5 | B15: =_xlfn.XLOOKUP(A15,'Stap 2 Register'!$B$8:$B$107,'Stap 2 Register'!$C$8:$C$107,0) -> 0 | C15: =_xlfn.XLOOKUP(A15,'Stap 2 Register'!$B$8:$B$107,'Stap 2 Register'!$O$8:$O$107,0) -> 0 | D15: =_xlfn.XLOOKUP(A15,'Stap 3 Maatregelen'!$C$8:$C$107,'Stap 3 Maatregelen'!$G$8:$G$107,0) -> 0 | E15: 3500000
A16: 6 | B16: =_xlfn.XLOOKUP(A16,'Stap 2 Register'!$B$8:$B$107,'Stap 2 Register'!$C$8:$C$107,0) -> 0 | C16: =_xlfn.XLOOKUP(A16,'Stap 2 Register'!$B$8:$B$107,'Stap 2 Register'!$O$8:$O$107,0) -> 0 | D16: =_xlfn.XLOOKUP(A16,'Stap 3 Maatregelen'!$C$8:$C$107,'Stap 3 Maatregelen'!$G$8:$G$107,0) -> 0 | E16: 3500000
A17: 7 | B17: =_xlfn.XLOOKUP(A17,'Stap 2 Register'!$B$8:$B$107,'Stap 2 Register'!$C$8:$C$107,0) -> 0 | C17: =_xlfn.XLOOKUP(A17,'Stap 2 Register'!$B$8:$B$107,'Stap 2 Register'!$O$8:$O$107,0) -> 0 | D17: =_xlfn.XLOOKUP(A17,'Stap 3 Maatregelen'!$C$8:$C$107,'Stap 3 Maatregelen'!$G$8:$G$107,0) -> 0 | E17: 3500000
A18: 8 | B18: =_xlfn.XLOOKUP(A18,'Stap 2 Register'!$B$8:$B$107,'Stap 2 Register'!$C$8:$C$107,0) -> 0 | C18: =_xlfn.XLOOKUP(A18,'Stap 2 Register'!$B$8:$B$107,'Stap 2 Register'!$O$8:$O$107,0) -> 0 | D18: =_xlfn.XLOOKUP(A18,'Stap 3 Maatregelen'!$C$8:$C$107,'Stap 3 Maatregelen'!$G$8:$G$107,0) -> 0 | E18: 3500000
A19: 9 | B19: =_xlfn.XLOOKUP(A19,'Stap 2 Register'!$B$8:$B$107,'Stap 2 Register'!$C$8:$C$107,0) -> 0 | C19: =_xlfn.XLOOKUP(A19,'Stap 2 Register'!$B$8:$B$107,'Stap 2 Register'!$O$8:$O$107,0) -> 0 | D19: =_xlfn.XLOOKUP(A19,'Stap 3 Maatregelen'!$C$8:$C$107,'Stap 3 Maatregelen'!$G$8:$G$107,0) -> 0 | E19: 3500000
A20: 10 | B20: =_xlfn.XLOOKUP(A20,'Stap 2 Register'!$B$8:$B$107,'Stap 2 Register'!$C$8:$C$107,0) -> 0 | C20: =_xlfn.XLOOKUP(A20,'Stap 2 Register'!$B$8:$B$107,'Stap 2 Register'!$O$8:$O$107,0) -> 0 | D20: =_xlfn.XLOOKUP(A20,'Stap 3 Maatregelen'!$C$8:$C$107,'Stap 3 Maatregelen'!$G$8:$G$107,0) -> 0 | E20: 3500000
A21: 11 | B21: =_xlfn.XLOOKUP(A21,'Stap 2 Register'!$B$8:$B$107,'Stap 2 Register'!$C$8:$C$107,0) -> 0 | C21: =_xlfn.XLOOKUP(A21,'Stap 2 Register'!$B$8:$B$107,'Stap 2 Register'!$O$8:$O$107,0) -> 0 | D21: =_xlfn.XLOOKUP(A21,'Stap 3 Maatregelen'!$C$8:$C$107,'Stap 3 Maatregelen'!$G$8:$G$107,0) -> 0 | E21: 3500000
A22: 12 | B22: =_xlfn.XLOOKUP(A22,'Stap 2 Register'!$B$8:$B$107,'Stap 2 Register'!$C$8:$C$107,0) -> 0 | C22: =_xlfn.XLOOKUP(A22,'Stap 2 Register'!$B$8:$B$107,'Stap 2 Register'!$O$8:$O$107,0) -> 0 | D22: =_xlfn.XLOOKUP(A22,'Stap 3 Maatregelen'!$C$8:$C$107,'Stap 3 Maatregelen'!$G$8:$G$107,0) -> 0 | E22: 3500000
A23: 13 | B23: =_xlfn.XLOOKUP(A23,'Stap 2 Register'!$B$8:$B$107,'Stap 2 Register'!$C$8:$C$107,0) -> 0 | C23: =_xlfn.XLOOKUP(A23,'Stap 2 Register'!$B$8:$B$107,'Stap 2 Register'!$O$8:$O$107,0) -> 0 | D23: =_xlfn.XLOOKUP(A23,'Stap 3 Maatregelen'!$C$8:$C$107,'Stap 3 Maatregelen'!$G$8:$G$107,0) -> 0 | E23: 3500000
A24: 14 | B24: =_xlfn.XLOOKUP(A24,'Stap 2 Register'!$B$8:$B$107,'Stap 2 Register'!$C$8:$C$107,0) -> 0 | C24: =_xlfn.XLOOKUP(A24,'Stap 2 Register'!$B$8:$B$107,'Stap 2 Register'!$O$8:$O$107,0) -> 0 | D24: =_xlfn.XLOOKUP(A24,'Stap 3 Maatregelen'!$C$8:$C$107,'Stap 3 Maatregelen'!$G$8:$G$107,0) -> 0 | E24: 3500000
A25: 15 | B25: =_xlfn.XLOOKUP(A25,'Stap 2 Register'!$B$8:$B$107,'Stap 2 Register'!$C$8:$C$107,0) -> 0 | C25: =_xlfn.XLOOKUP(A25,'Stap 2 Register'!$B$8:$B$107,'Stap 2 Register'!$O$8:$O$107,0) -> 0 | D25: =_xlfn.XLOOKUP(A25,'Stap 3 Maatregelen'!$C$8:$C$107,'Stap 3 Maatregelen'!$G$8:$G$107,0) -> 0 | E25: 3500000
A26: 16 | B26: =_xlfn.XLOOKUP(A26,'Stap 2 Register'!$B$8:$B$107,'Stap 2 Register'!$C$8:$C$107,0) -> 0 | C26: =_xlfn.XLOOKUP(A26,'Stap 2 Register'!$B$8:$B$107,'Stap 2 Register'!$O$8:$O$107,0) -> 0 | D26: =_xlfn.XLOOKUP(A26,'Stap 3 Maatregelen'!$C$8:$C$107,'Stap 3 Maatregelen'!$G$8:$G$107,0) -> 0 | E26: 3500000
A27: 17 | B27: =_xlfn.XLOOKUP(A27,'Stap 2 Register'!$B$8:$B$107,'Stap 2 Register'!$C$8:$C$107,0) -> 0 | C27: =_xlfn.XLOOKUP(A27,'Stap 2 Register'!$B$8:$B$107,'Stap 2 Register'!$O$8:$O$107,0) -> 0 | D27: =_xlfn.XLOOKUP(A27,'Stap 3 Maatregelen'!$C$8:$C$107,'Stap 3 Maatregelen'!$G$8:$G$107,0) -> 0 | E27: 3500000
A28: 18 | B28: =_xlfn.XLOOKUP(A28,'Stap 2 Register'!$B$8:$B$107,'Stap 2 Register'!$C$8:$C$107,0) -> 0 | C28: =_xlfn.XLOOKUP(A28,'Stap 2 Register'!$B$8:$B$107,'Stap 2 Register'!$O$8:$O$107,0) -> 0 | D28: =_xlfn.XLOOKUP(A28,'Stap 3 Maatregelen'!$C$8:$C$107,'Stap 3 Maatregelen'!$G$8:$G$107,0) -> 0 | E28: 3500000
A29: 19 | B29: =_xlfn.XLOOKUP(A29,'Stap 2 Register'!$B$8:$B$107,'Stap 2 Register'!$C$8:$C$107,0) -> 0 | C29: =_xlfn.XLOOKUP(A29,'Stap 2 Register'!$B$8:$B$107,'Stap 2 Register'!$O$8:$O$107,0) -> 0 | D29: =_xlfn.XLOOKUP(A29,'Stap 3 Maatregelen'!$C$8:$C$107,'Stap 3 Maatregelen'!$G$8:$G$107,0) -> 0 | E29: 3500000
A30: 20 | B30: =_xlfn.XLOOKUP(A30,'Stap 2 Register'!$B$8:$B$107,'Stap 2 Register'!$C$8:$C$107,0) -> 0 | C30: =_xlfn.XLOOKUP(A30,'Stap 2 Register'!$B$8:$B$107,'Stap 2 Register'!$O$8:$O$107,0) -> 0 | D30: =_xlfn.XLOOKUP(A30,'Stap 3 Maatregelen'!$C$8:$C$107,'Stap 3 Maatregelen'!$G$8:$G$107,0) -> 0 | E30: 3500000
A31: 21 | B31: =_xlfn.XLOOKUP(A31,'Stap 2 Register'!$B$8:$B$107,'Stap 2 Register'!$C$8:$C$107,0) -> 0 | C31: =_xlfn.XLOOKUP(A31,'Stap 2 Register'!$B$8:$B$107,'Stap 2 Register'!$O$8:$O$107,0) -> 0 | D31: =_xlfn.XLOOKUP(A31,'Stap 3 Maatregelen'!$C$8:$C$107,'Stap 3 Maatregelen'!$G$8:$G$107,0) -> 0 | E31: 3500000
A32: 22 | B32: =_xlfn.XLOOKUP(A32,'Stap 2 Register'!$B$8:$B$107,'Stap 2 Register'!$C$8:$C$107,0) -> 0 | C32: =_xlfn.XLOOKUP(A32,'Stap 2 Register'!$B$8:$B$107,'Stap 2 Register'!$O$8:$O$107,0) -> 0 | D32: =_xlfn.XLOOKUP(A32,'Stap 3 Maatregelen'!$C$8:$C$107,'Stap 3 Maatregelen'!$G$8:$G$107,0) -> 0 | E32: 3500000
A33: 23 | B33: =_xlfn.XLOOKUP(A33,'Stap 2 Register'!$B$8:$B$107,'Stap 2 Register'!$C$8:$C$107,0) -> 0 | C33: =_xlfn.XLOOKUP(A33,'Stap 2 Register'!$B$8:$B$107,'Stap 2 Register'!$O$8:$O$107,0) -> 0 | D33: =_xlfn.XLOOKUP(A33,'Stap 3 Maatregelen'!$C$8:$C$107,'Stap 3 Maatregelen'!$G$8:$G$107,0) -> 0 | E33: 3500000
A34: 24 | B34: =_xlfn.XLOOKUP(A34,'Stap 2 Register'!$B$8:$B$107,'Stap 2 Register'!$C$8:$C$107,0) -> 0 | C34: =_xlfn.XLOOKUP(A34,'Stap 2 Register'!$B$8:$B$107,'Stap 2 Register'!$O$8:$O$107,0) -> 0 | D34: =_xlfn.XLOOKUP(A34,'Stap 3 Maatregelen'!$C$8:$C$107,'Stap 3 Maatregelen'!$G$8:$G$107,0) -> 0 | E34: 3500000
A35: 25 | B35: =_xlfn.XLOOKUP(A35,'Stap 2 Register'!$B$8:$B$107,'Stap 2 Register'!$C$8:$C$107,0) -> 0 | C35: =_xlfn.XLOOKUP(A35,'Stap 2 Register'!$B$8:$B$107,'Stap 2 Register'!$O$8:$O$107,0) -> 0 | D35: =_xlfn.XLOOKUP(A35,'Stap 3 Maatregelen'!$C$8:$C$107,'Stap 3 Maatregelen'!$G$8:$G$107,0) -> 0 | E35: 3500000
A36: 26 | B36: =_xlfn.XLOOKUP(A36,'Stap 2 Register'!$B$8:$B$107,'Stap 2 Register'!$C$8:$C$107,0) -> 0 | C36: =_xlfn.XLOOKUP(A36,'Stap 2 Register'!$B$8:$B$107,'Stap 2 Register'!$O$8:$O$107,0) -> 0 | D36: =_xlfn.XLOOKUP(A36,'Stap 3 Maatregelen'!$C$8:$C$107,'Stap 3 Maatregelen'!$G$8:$G$107,0) -> 0 | E36: 3500000
A37: 27 | B37: =_xlfn.XLOOKUP(A37,'Stap 2 Register'!$B$8:$B$107,'Stap 2 Register'!$C$8:$C$107,0) -> 0 | C37: =_xlfn.XLOOKUP(A37,'Stap 2 Register'!$B$8:$B$107,'Stap 2 Register'!$O$8:$O$107,0) -> 0 | D37: =_xlfn.XLOOKUP(A37,'Stap 3 Maatregelen'!$C$8:$C$107,'Stap 3 Maatregelen'!$G$8:$G$107,0) -> 0 | E37: 3500000
A38: 28 | B38: =_xlfn.XLOOKUP(A38,'Stap 2 Register'!$B$8:$B$107,'Stap 2 Register'!$C$8:$C$107,0) -> 0 | C38: =_xlfn.XLOOKUP(A38,'Stap 2 Register'!$B$8:$B$107,'Stap 2 Register'!$O$8:$O$107,0) -> 0 | D38: =_xlfn.XLOOKUP(A38,'Stap 3 Maatregelen'!$C$8:$C$107,'Stap 3 Maatregelen'!$G$8:$G$107,0) -> 0 | E38: 3500000
A39: 29 | B39: =_xlfn.XLOOKUP(A39,'Stap 2 Register'!$B$8:$B$107,'Stap 2 Register'!$C$8:$C$107,0) -> 0 | C39: =_xlfn.XLOOKUP(A39,'Stap 2 Register'!$B$8:$B$107,'Stap 2 Register'!$O$8:$O$107,0) -> 0 | D39: =_xlfn.XLOOKUP(A39,'Stap 3 Maatregelen'!$C$8:$C$107,'Stap 3 Maatregelen'!$G$8:$G$107,0) -> 0 | E39: 3500000
A40: 30 | B40: =_xlfn.XLOOKUP(A40,'Stap 2 Register'!$B$8:$B$107,'Stap 2 Register'!$C$8:$C$107,0) -> 0 | C40: =_xlfn.XLOOKUP(A40,'Stap 2 Register'!$B$8:$B$107,'Stap 2 Register'!$O$8:$O$107,0) -> 0 | D40: =_xlfn.XLOOKUP(A40,'Stap 3 Maatregelen'!$C$8:$C$107,'Stap 3 Maatregelen'!$G$8:$G$107,0) -> 0 | E40: 3500000
A41: 31 | B41: =_xlfn.XLOOKUP(A41,'Stap 2 Register'!$B$8:$B$107,'Stap 2 Register'!$C$8:$C$107,0) -> 0 | C41: =_xlfn.XLOOKUP(A41,'Stap 2 Register'!$B$8:$B$107,'Stap 2 Register'!$O$8:$O$107,0) -> 0 | D41: =_xlfn.XLOOKUP(A41,'Stap 3 Maatregelen'!$C$8:$C$107,'Stap 3 Maatregelen'!$G$8:$G$107,0) -> 0 | E41: 3500000
A42: 32 | B42: =_xlfn.XLOOKUP(A42,'Stap 2 Register'!$B$8:$B$107,'Stap 2 Register'!$C$8:$C$107,0) -> 0 | C42: =_xlfn.XLOOKUP(A42,'Stap 2 Register'!$B$8:$B$107,'Stap 2 Register'!$O$8:$O$107,0) -> 0 | D42: =_xlfn.XLOOKUP(A42,'Stap 3 Maatregelen'!$C$8:$C$107,'Stap 3 Maatregelen'!$G$8:$G$107,0) -> 0 | E42: 3500000
A43: 33 | B43: =_xlfn.XLOOKUP(A43,'Stap 2 Register'!$B$8:$B$107,'Stap 2 Register'!$C$8:$C$107,0) -> 0 | C43: =_xlfn.XLOOKUP(A43,'Stap 2 Register'!$B$8:$B$107,'Stap 2 Register'!$O$8:$O$107,0) -> 0 | D43: =_xlfn.XLOOKUP(A43,'Stap 3 Maatregelen'!$C$8:$C$107,'Stap 3 Maatregelen'!$G$8:$G$107,0) -> 0 | E43: 3500000
A44: 34 | B44: =_xlfn.XLOOKUP(A44,'Stap 2 Register'!$B$8:$B$107,'Stap 2 Register'!$C$8:$C$107,0) -> 0 | C44: =_xlfn.XLOOKUP(A44,'Stap 2 Register'!$B$8:$B$107,'Stap 2 Register'!$O$8:$O$107,0) -> 0 | D44: =_xlfn.XLOOKUP(A44,'Stap 3 Maatregelen'!$C$8:$C$107,'Stap 3 Maatregelen'!$G$8:$G$107,0) -> 0 | E44: 3500000
A45: 35 | B45: =_xlfn.XLOOKUP(A45,'Stap 2 Register'!$B$8:$B$107,'Stap 2 Register'!$C$8:$C$107,0) -> 0 | C45: =_xlfn.XLOOKUP(A45,'Stap 2 Register'!$B$8:$B$107,'Stap 2 Register'!$O$8:$O$107,0) -> 0 | D45: =_xlfn.XLOOKUP(A45,'Stap 3 Maatregelen'!$C$8:$C$107,'Stap 3 Maatregelen'!$G$8:$G$107,0) -> 0 | E45: 3500000
A46: 36 | B46: =_xlfn.XLOOKUP(A46,'Stap 2 Register'!$B$8:$B$107,'Stap 2 Register'!$C$8:$C$107,0) -> 0 | C46: =_xlfn.XLOOKUP(A46,'Stap 2 Register'!$B$8:$B$107,'Stap 2 Register'!$O$8:$O$107,0) -> 0 | D46: =_xlfn.XLOOKUP(A46,'Stap 3 Maatregelen'!$C$8:$C$107,'Stap 3 Maatregelen'!$G$8:$G$107,0) -> 0 | E46: 3500000
A47: 37 | B47: =_xlfn.XLOOKUP(A47,'Stap 2 Register'!$B$8:$B$107,'Stap 2 Register'!$C$8:$C$107,0) -> 0 | C47: =_xlfn.XLOOKUP(A47,'Stap 2 Register'!$B$8:$B$107,'Stap 2 Register'!$O$8:$O$107,0) -> 0 | D47: =_xlfn.XLOOKUP(A47,'Stap 3 Maatregelen'!$C$8:$C$107,'Stap 3 Maatregelen'!$G$8:$G$107,0) -> 0 | E47: 3500000
A48: 38 | B48: =_xlfn.XLOOKUP(A48,'Stap 2 Register'!$B$8:$B$107,'Stap 2 Register'!$C$8:$C$107,0) -> 0 | C48: =_xlfn.XLOOKUP(A48,'Stap 2 Register'!$B$8:$B$107,'Stap 2 Register'!$O$8:$O$107,0) -> 0 | D48: =_xlfn.XLOOKUP(A48,'Stap 3 Maatregelen'!$C$8:$C$107,'Stap 3 Maatregelen'!$G$8:$G$107,0) -> 0 | E48: 3500000
A49: 39 | B49: =_xlfn.XLOOKUP(A49,'Stap 2 Register'!$B$8:$B$107,'Stap 2 Register'!$C$8:$C$107,0) -> 0 | C49: =_xlfn.XLOOKUP(A49,'Stap 2 Register'!$B$8:$B$107,'Stap 2 Register'!$O$8:$O$107,0) -> 0 | D49: =_xlfn.XLOOKUP(A49,'Stap 3 Maatregelen'!$C$8:$C$107,'Stap 3 Maatregelen'!$G$8:$G$107,0) -> 0 | E49: 3500000
A50: 40 | B50: =_xlfn.XLOOKUP(A50,'Stap 2 Register'!$B$8:$B$107,'Stap 2 Register'!$C$8:$C$107,0) -> 0 | C50: =_xlfn.XLOOKUP(A50,'Stap 2 Register'!$B$8:$B$107,'Stap 2 Register'!$O$8:$O$107,0) -> 0 | D50: =_xlfn.XLOOKUP(A50,'Stap 3 Maatregelen'!$C$8:$C$107,'Stap 3 Maatregelen'!$G$8:$G$107,0) -> 0 | E50: 3500000
A51: 41 | B51: =_xlfn.XLOOKUP(A51,'Stap 2 Register'!$B$8:$B$107,'Stap 2 Register'!$C$8:$C$107,0) -> 0 | C51: =_xlfn.XLOOKUP(A51,'Stap 2 Register'!$B$8:$B$107,'Stap 2 Register'!$O$8:$O$107,0) -> 0 | D51: =_xlfn.XLOOKUP(A51,'Stap 3 Maatregelen'!$C$8:$C$107,'Stap 3 Maatregelen'!$G$8:$G$107,0) -> 0 | E51: 3500000
A52: 42 | B52: =_xlfn.XLOOKUP(A52,'Stap 2 Register'!$B$8:$B$107,'Stap 2 Register'!$C$8:$C$107,0) -> 0 | C52: =_xlfn.XLOOKUP(A52,'Stap 2 Register'!$B$8:$B$107,'Stap 2 Register'!$O$8:$O$107,0) -> 0 | D52: =_xlfn.XLOOKUP(A52,'Stap 3 Maatregelen'!$C$8:$C$107,'Stap 3 Maatregelen'!$G$8:$G$107,0) -> 0 | E52: 3500000
A53: 43 | B53: =_xlfn.XLOOKUP(A53,'Stap 2 Register'!$B$8:$B$107,'Stap 2 Register'!$C$8:$C$107,0) -> 0 | C53: =_xlfn.XLOOKUP(A53,'Stap 2 Register'!$B$8:$B$107,'Stap 2 Register'!$O$8:$O$107,0) -> 0 | D53: =_xlfn.XLOOKUP(A53,'Stap 3 Maatregelen'!$C$8:$C$107,'Stap 3 Maatregelen'!$G$8:$G$107,0) -> 0 | E53: 3500000
A54: 44 | B54: =_xlfn.XLOOKUP(A54,'Stap 2 Register'!$B$8:$B$107,'Stap 2 Register'!$C$8:$C$107,0) -> 0 | C54: =_xlfn.XLOOKUP(A54,'Stap 2 Register'!$B$8:$B$107,'Stap 2 Register'!$O$8:$O$107,0) -> 0 | D54: =_xlfn.XLOOKUP(A54,'Stap 3 Maatregelen'!$C$8:$C$107,'Stap 3 Maatregelen'!$G$8:$G$107,0) -> 0 | E54: 3500000
A55: 45 | B55: =_xlfn.XLOOKUP(A55,'Stap 2 Register'!$B$8:$B$107,'Stap 2 Register'!$C$8:$C$107,0) -> 0 | C55: =_xlfn.XLOOKUP(A55,'Stap 2 Register'!$B$8:$B$107,'Stap 2 Register'!$O$8:$O$107,0) -> 0 | D55: =_xlfn.XLOOKUP(A55,'Stap 3 Maatregelen'!$C$8:$C$107,'Stap 3 Maatregelen'!$G$8:$G$107,0) -> 0 | E55: 3500000
A56: 46 | B56: =_xlfn.XLOOKUP(A56,'Stap 2 Register'!$B$8:$B$107,'Stap 2 Register'!$C$8:$C$107,0) -> 0 | C56: =_xlfn.XLOOKUP(A56,'Stap 2 Register'!$B$8:$B$107,'Stap 2 Register'!$O$8:$O$107,0) -> 0 | D56: =_xlfn.XLOOKUP(A56,'Stap 3 Maatregelen'!$C$8:$C$107,'Stap 3 Maatregelen'!$G$8:$G$107,0) -> 0 | E56: 3500000
A57: 47 | B57: =_xlfn.XLOOKUP(A57,'Stap 2 Register'!$B$8:$B$107,'Stap 2 Register'!$C$8:$C$107,0) -> 0 | C57: =_xlfn.XLOOKUP(A57,'Stap 2 Register'!$B$8:$B$107,'Stap 2 Register'!$O$8:$O$107,0) -> 0 | D57: =_xlfn.XLOOKUP(A57,'Stap 3 Maatregelen'!$C$8:$C$107,'Stap 3 Maatregelen'!$G$8:$G$107,0) -> 0 | E57: 3500000
A58: 48 | B58: =_xlfn.XLOOKUP(A58,'Stap 2 Register'!$B$8:$B$107,'Stap 2 Register'!$C$8:$C$107,0) -> 0 | C58: =_xlfn.XLOOKUP(A58,'Stap 2 Register'!$B$8:$B$107,'Stap 2 Register'!$O$8:$O$107,0) -> 0 | D58: =_xlfn.XLOOKUP(A58,'Stap 3 Maatregelen'!$C$8:$C$107,'Stap 3 Maatregelen'!$G$8:$G$107,0) -> 0 | E58: 3500000
A59: 49 | B59: =_xlfn.XLOOKUP(A59,'Stap 2 Register'!$B$8:$B$107,'Stap 2 Register'!$C$8:$C$107,0) -> 0 | C59: =_xlfn.XLOOKUP(A59,'Stap 2 Register'!$B$8:$B$107,'Stap 2 Register'!$O$8:$O$107,0) -> 0 | D59: =_xlfn.XLOOKUP(A59,'Stap 3 Maatregelen'!$C$8:$C$107,'Stap 3 Maatregelen'!$G$8:$G$107,0) -> 0 | E59: 3500000
A60: 50 | B60: =_xlfn.XLOOKUP(A60,'Stap 2 Register'!$B$8:$B$107,'Stap 2 Register'!$C$8:$C$107,0) -> 0 | C60: =_xlfn.XLOOKUP(A60,'Stap 2 Register'!$B$8:$B$107,'Stap 2 Register'!$O$8:$O$107,0) -> 0 | D60: =_xlfn.XLOOKUP(A60,'Stap 3 Maatregelen'!$C$8:$C$107,'Stap 3 Maatregelen'!$G$8:$G$107,0) -> 0 | E60: 3500000
A61: 51 | B61: =_xlfn.XLOOKUP(A61,'Stap 2 Register'!$B$8:$B$107,'Stap 2 Register'!$C$8:$C$107,0) -> 0 | C61: =_xlfn.XLOOKUP(A61,'Stap 2 Register'!$B$8:$B$107,'Stap 2 Register'!$O$8:$O$107,0) -> 0 | D61: =_xlfn.XLOOKUP(A61,'Stap 3 Maatregelen'!$C$8:$C$107,'Stap 3 Maatregelen'!$G$8:$G$107,0) -> 0 | E61: 3500000
A62: 52 | B62: =_xlfn.XLOOKUP(A62,'Stap 2 Register'!$B$8:$B$107,'Stap 2 Register'!$C$8:$C$107,0) -> 0 | C62: =_xlfn.XLOOKUP(A62,'Stap 2 Register'!$B$8:$B$107,'Stap 2 Register'!$O$8:$O$107,0) -> 0 | D62: =_xlfn.XLOOKUP(A62,'Stap 3 Maatregelen'!$C$8:$C$107,'Stap 3 Maatregelen'!$G$8:$G$107,0) -> 0 | E62: 3500000
A63: 53 | B63: =_xlfn.XLOOKUP(A63,'Stap 2 Register'!$B$8:$B$107,'Stap 2 Register'!$C$8:$C$107,0) -> 0 | C63: =_xlfn.XLOOKUP(A63,'Stap 2 Register'!$B$8:$B$107,'Stap 2 Register'!$O$8:$O$107,0) -> 0 | D63: =_xlfn.XLOOKUP(A63,'Stap 3 Maatregelen'!$C$8:$C$107,'Stap 3 Maatregelen'!$G$8:$G$107,0) -> 0 | E63: 3500000
A64: 54 | B64: =_xlfn.XLOOKUP(A64,'Stap 2 Register'!$B$8:$B$107,'Stap 2 Register'!$C$8:$C$107,0) -> 0 | C64: =_xlfn.XLOOKUP(A64,'Stap 2 Register'!$B$8:$B$107,'Stap 2 Register'!$O$8:$O$107,0) -> 0 | D64: =_xlfn.XLOOKUP(A64,'Stap 3 Maatregelen'!$C$8:$C$107,'Stap 3 Maatregelen'!$G$8:$G$107,0) -> 0 | E64: 3500000
A65: 55 | B65: =_xlfn.XLOOKUP(A65,'Stap 2 Register'!$B$8:$B$107,'Stap 2 Register'!$C$8:$C$107,0) -> 0 | C65: =_xlfn.XLOOKUP(A65,'Stap 2 Register'!$B$8:$B$107,'Stap 2 Register'!$O$8:$O$107,0) -> 0 | D65: =_xlfn.XLOOKUP(A65,'Stap 3 Maatregelen'!$C$8:$C$107,'Stap 3 Maatregelen'!$G$8:$G$107,0) -> 0 | E65: 3500000
A66: 56 | B66: =_xlfn.XLOOKUP(A66,'Stap 2 Register'!$B$8:$B$107,'Stap 2 Register'!$C$8:$C$107,0) -> 0 | C66: =_xlfn.XLOOKUP(A66,'Stap 2 Register'!$B$8:$B$107,'Stap 2 Register'!$O$8:$O$107,0) -> 0 | D66: =_xlfn.XLOOKUP(A66,'Stap 3 Maatregelen'!$C$8:$C$107,'Stap 3 Maatregelen'!$G$8:$G$107,0) -> 0 | E66: 3500000
A67: 57 | B67: =_xlfn.XLOOKUP(A67,'Stap 2 Register'!$B$8:$B$107,'Stap 2 Register'!$C$8:$C$107,0) -> 0 | C67: =_xlfn.XLOOKUP(A67,'Stap 2 Register'!$B$8:$B$107,'Stap 2 Register'!$O$8:$O$107,0) -> 0 | D67: =_xlfn.XLOOKUP(A67,'Stap 3 Maatregelen'!$C$8:$C$107,'Stap 3 Maatregelen'!$G$8:$G$107,0) -> 0 | E67: 3500000
A68: 58 | B68: =_xlfn.XLOOKUP(A68,'Stap 2 Register'!$B$8:$B$107,'Stap 2 Register'!$C$8:$C$107,0) -> 0 | C68: =_xlfn.XLOOKUP(A68,'Stap 2 Register'!$B$8:$B$107,'Stap 2 Register'!$O$8:$O$107,0) -> 0 | D68: =_xlfn.XLOOKUP(A68,'Stap 3 Maatregelen'!$C$8:$C$107,'Stap 3 Maatregelen'!$G$8:$G$107,0) -> 0 | E68: 3500000
A69: 59 | B69: =_xlfn.XLOOKUP(A69,'Stap 2 Register'!$B$8:$B$107,'Stap 2 Register'!$C$8:$C$107,0) -> 0 | C69: =_xlfn.XLOOKUP(A69,'Stap 2 Register'!$B$8:$B$107,'Stap 2 Register'!$O$8:$O$107,0) -> 0 | D69: =_xlfn.XLOOKUP(A69,'Stap 3 Maatregelen'!$C$8:$C$107,'Stap 3 Maatregelen'!$G$8:$G$107,0) -> 0 | E69: 3500000
A70: 60 | B70: =_xlfn.XLOOKUP(A70,'Stap 2 Register'!$B$8:$B$107,'Stap 2 Register'!$C$8:$C$107,0) -> 0 | C70: =_xlfn.XLOOKUP(A70,'Stap 2 Register'!$B$8:$B$107,'Stap 2 Register'!$O$8:$O$107,0) -> 0 | D70: =_xlfn.XLOOKUP(A70,'Stap 3 Maatregelen'!$C$8:$C$107,'Stap 3 Maatregelen'!$G$8:$G$107,0) -> 0 | E70: 3500000
A71: 61 | B71: =_xlfn.XLOOKUP(A71,'Stap 2 Register'!$B$8:$B$107,'Stap 2 Register'!$C$8:$C$107,0) -> 0 | C71: =_xlfn.XLOOKUP(A71,'Stap 2 Register'!$B$8:$B$107,'Stap 2 Register'!$O$8:$O$107,0) -> 0 | D71: =_xlfn.XLOOKUP(A71,'Stap 3 Maatregelen'!$C$8:$C$107,'Stap 3 Maatregelen'!$G$8:$G$107,0) -> 0 | E71: 3500000
A72: 62 | B72: =_xlfn.XLOOKUP(A72,'Stap 2 Register'!$B$8:$B$107,'Stap 2 Register'!$C$8:$C$107,0) -> 0 | C72: =_xlfn.XLOOKUP(A72,'Stap 2 Register'!$B$8:$B$107,'Stap 2 Register'!$O$8:$O$107,0) -> 0 | D72: =_xlfn.XLOOKUP(A72,'Stap 3 Maatregelen'!$C$8:$C$107,'Stap 3 Maatregelen'!$G$8:$G$107,0) -> 0 | E72: 3500000
A73: 63 | B73: =_xlfn.XLOOKUP(A73,'Stap 2 Register'!$B$8:$B$107,'Stap 2 Register'!$C$8:$C$107,0) -> 0 | C73: =_xlfn.XLOOKUP(A73,'Stap 2 Register'!$B$8:$B$107,'Stap 2 Register'!$O$8:$O$107,0) -> 0 | D73: =_xlfn.XLOOKUP(A73,'Stap 3 Maatregelen'!$C$8:$C$107,'Stap 3 Maatregelen'!$G$8:$G$107,0) -> 0 | E73: 3500000
A74: 64 | B74: =_xlfn.XLOOKUP(A74,'Stap 2 Register'!$B$8:$B$107,'Stap 2 Register'!$C$8:$C$107,0) -> 0 | C74: =_xlfn.XLOOKUP(A74,'Stap 2 Register'!$B$8:$B$107,'Stap 2 Register'!$O$8:$O$107,0) -> 0 | D74: =_xlfn.XLOOKUP(A74,'Stap 3 Maatregelen'!$C$8:$C$107,'Stap 3 Maatregelen'!$G$8:$G$107,0) -> 0 | E74: 3500000
A75: 65 | B75: =_xlfn.XLOOKUP(A75,'Stap 2 Register'!$B$8:$B$107,'Stap 2 Register'!$C$8:$C$107,0) -> 0 | C75: =_xlfn.XLOOKUP(A75,'Stap 2 Register'!$B$8:$B$107,'Stap 2 Register'!$O$8:$O$107,0) -> 0 | D75: =_xlfn.XLOOKUP(A75,'Stap 3 Maatregelen'!$C$8:$C$107,'Stap 3 Maatregelen'!$G$8:$G$107,0) -> 0 | E75: 3500000
A76: 66 | B76: =_xlfn.XLOOKUP(A76,'Stap 2 Register'!$B$8:$B$107,'Stap 2 Register'!$C$8:$C$107,0) -> 0 | C76: =_xlfn.XLOOKUP(A76,'Stap 2 Register'!$B$8:$B$107,'Stap 2 Register'!$O$8:$O$107,0) -> 0 | D76: =_xlfn.XLOOKUP(A76,'Stap 3 Maatregelen'!$C$8:$C$107,'Stap 3 Maatregelen'!$G$8:$G$107,0) -> 0 | E76: 3500000
A77: 67 | B77: =_xlfn.XLOOKUP(A77,'Stap 2 Register'!$B$8:$B$107,'Stap 2 Register'!$C$8:$C$107,0) -> 0 | C77: =_xlfn.XLOOKUP(A77,'Stap 2 Register'!$B$8:$B$107,'Stap 2 Register'!$O$8:$O$107,0) -> 0 | D77: =_xlfn.XLOOKUP(A77,'Stap 3 Maatregelen'!$C$8:$C$107,'Stap 3 Maatregelen'!$G$8:$G$107,0) -> 0 | E77: =$E$11 -> 3500000
A78: 68 | B78: =_xlfn.XLOOKUP(A78,'Stap 2 Register'!$B$8:$B$107,'Stap 2 Register'!$C$8:$C$107,0) -> 0 | C78: =_xlfn.XLOOKUP(A78,'Stap 2 Register'!$B$8:$B$107,'Stap 2 Register'!$O$8:$O$107,0) -> 0 | D78: =_xlfn.XLOOKUP(A78,'Stap 3 Maatregelen'!$C$8:$C$107,'Stap 3 Maatregelen'!$G$8:$G$107,0) -> 0 | E78: 3500000
A79: 69 | B79: =_xlfn.XLOOKUP(A79,'Stap 2 Register'!$B$8:$B$107,'Stap 2 Register'!$C$8:$C$107,0) -> 0 | C79: =_xlfn.XLOOKUP(A79,'Stap 2 Register'!$B$8:$B$107,'Stap 2 Register'!$O$8:$O$107,0) -> 0 | D79: =_xlfn.XLOOKUP(A79,'Stap 3 Maatregelen'!$C$8:$C$107,'Stap 3 Maatregelen'!$G$8:$G$107,0) -> 0 | E79: 3500000
A80: 70 | B80: =_xlfn.XLOOKUP(A80,'Stap 2 Register'!$B$8:$B$107,'Stap 2 Register'!$C$8:$C$107,0) -> 0 | C80: =_xlfn.XLOOKUP(A80,'Stap 2 Register'!$B$8:$B$107,'Stap 2 Register'!$O$8:$O$107,0) -> 0 | D80: =_xlfn.XLOOKUP(A80,'Stap 3 Maatregelen'!$C$8:$C$107,'Stap 3 Maatregelen'!$G$8:$G$107,0) -> 0 | E80: 3500000
A81: 71 | B81: =_xlfn.XLOOKUP(A81,'Stap 2 Register'!$B$8:$B$107,'Stap 2 Register'!$C$8:$C$107,0) -> 0 | C81: =_xlfn.XLOOKUP(A81,'Stap 2 Register'!$B$8:$B$107,'Stap 2 Register'!$O$8:$O$107,0) -> 0 | D81: =_xlfn.XLOOKUP(A81,'Stap 3 Maatregelen'!$C$8:$C$107,'Stap 3 Maatregelen'!$G$8:$G$107,0) -> 0 | E81: 3500000
A82: 72 | B82: =_xlfn.XLOOKUP(A82,'Stap 2 Register'!$B$8:$B$107,'Stap 2 Register'!$C$8:$C$107,0) -> 0 | C82: =_xlfn.XLOOKUP(A82,'Stap 2 Register'!$B$8:$B$107,'Stap 2 Register'!$O$8:$O$107,0) -> 0 | D82: =_xlfn.XLOOKUP(A82,'Stap 3 Maatregelen'!$C$8:$C$107,'Stap 3 Maatregelen'!$G$8:$G$107,0) -> 0 | E82: 3500000
A83: 73 | B83: =_xlfn.XLOOKUP(A83,'Stap 2 Register'!$B$8:$B$107,'Stap 2 Register'!$C$8:$C$107,0) -> 0 | C83: =_xlfn.XLOOKUP(A83,'Stap 2 Register'!$B$8:$B$107,'Stap 2 Register'!$O$8:$O$107,0) -> 0 | D83: =_xlfn.XLOOKUP(A83,'Stap 3 Maatregelen'!$C$8:$C$107,'Stap 3 Maatregelen'!$G$8:$G$107,0) -> 0 | E83: 3500000
A84: 74 | B84: =_xlfn.XLOOKUP(A84,'Stap 2 Register'!$B$8:$B$107,'Stap 2 Register'!$C$8:$C$107,0) -> 0 | C84: =_xlfn.XLOOKUP(A84,'Stap 2 Register'!$B$8:$B$107,'Stap 2 Register'!$O$8:$O$107,0) -> 0 | D84: =_xlfn.XLOOKUP(A84,'Stap 3 Maatregelen'!$C$8:$C$107,'Stap 3 Maatregelen'!$G$8:$G$107,0) -> 0 | E84: 3500000
A85: 75 | B85: =_xlfn.XLOOKUP(A85,'Stap 2 Register'!$B$8:$B$107,'Stap 2 Register'!$C$8:$C$107,0) -> 0 | C85: =_xlfn.XLOOKUP(A85,'Stap 2 Register'!$B$8:$B$107,'Stap 2 Register'!$O$8:$O$107,0) -> 0 | D85: =_xlfn.XLOOKUP(A85,'Stap 3 Maatregelen'!$C$8:$C$107,'Stap 3 Maatregelen'!$G$8:$G$107,0) -> 0 | E85: 3500000
A86: 76 | B86: =_xlfn.XLOOKUP(A86,'Stap 2 Register'!$B$8:$B$107,'Stap 2 Register'!$C$8:$C$107,0) -> 0 | C86: =_xlfn.XLOOKUP(A86,'Stap 2 Register'!$B$8:$B$107,'Stap 2 Register'!$O$8:$O$107,0) -> 0 | D86: =_xlfn.XLOOKUP(A86,'Stap 3 Maatregelen'!$C$8:$C$107,'Stap 3 Maatregelen'!$G$8:$G$107,0) -> 0 | E86: 3500000
A87: 77 | B87: =_xlfn.XLOOKUP(A87,'Stap 2 Register'!$B$8:$B$107,'Stap 2 Register'!$C$8:$C$107,0) -> 0 | C87: =_xlfn.XLOOKUP(A87,'Stap 2 Register'!$B$8:$B$107,'Stap 2 Register'!$O$8:$O$107,0) -> 0 | D87: =_xlfn.XLOOKUP(A87,'Stap 3 Maatregelen'!$C$8:$C$107,'Stap 3 Maatregelen'!$G$8:$G$107,0) -> 0 | E87: 3500000
A88: 78 | B88: =_xlfn.XLOOKUP(A88,'Stap 2 Register'!$B$8:$B$107,'Stap 2 Register'!$C$8:$C$107,0) -> 0 | C88: =_xlfn.XLOOKUP(A88,'Stap 2 Register'!$B$8:$B$107,'Stap 2 Register'!$O$8:$O$107,0) -> 0 | D88: =_xlfn.XLOOKUP(A88,'Stap 3 Maatregelen'!$C$8:$C$107,'Stap 3 Maatregelen'!$G$8:$G$107,0) -> 0 | E88: 3500000
A89: 79 | B89: =_xlfn.XLOOKUP(A89,'Stap 2 Register'!$B$8:$B$107,'Stap 2 Register'!$C$8:$C$107,0) -> 0 | C89: =_xlfn.XLOOKUP(A89,'Stap 2 Register'!$B$8:$B$107,'Stap 2 Register'!$O$8:$O$107,0) -> 0 | D89: =_xlfn.XLOOKUP(A89,'Stap 3 Maatregelen'!$C$8:$C$107,'Stap 3 Maatregelen'!$G$8:$G$107,0) -> 0 | E89: 3500000
A90: 80 | B90: =_xlfn.XLOOKUP(A90,'Stap 2 Register'!$B$8:$B$107,'Stap 2 Register'!$C$8:$C$107,0) -> 0 | C90: =_xlfn.XLOOKUP(A90,'Stap 2 Register'!$B$8:$B$107,'Stap 2 Register'!$O$8:$O$107,0) -> 0 | D90: =_xlfn.XLOOKUP(A90,'Stap 3 Maatregelen'!$C$8:$C$107,'Stap 3 Maatregelen'!$G$8:$G$107,0) -> 0 | E90: 3500000
A91: 81 | B91: =_xlfn.XLOOKUP(A91,'Stap 2 Register'!$B$8:$B$107,'Stap 2 Register'!$C$8:$C$107,0) -> 0 | C91: =_xlfn.XLOOKUP(A91,'Stap 2 Register'!$B$8:$B$107,'Stap 2 Register'!$O$8:$O$107,0) -> 0 | D91: =_xlfn.XLOOKUP(A91,'Stap 3 Maatregelen'!$C$8:$C$107,'Stap 3 Maatregelen'!$G$8:$G$107,0) -> 0 | E91: 3500000
A92: 82 | B92: =_xlfn.XLOOKUP(A92,'Stap 2 Register'!$B$8:$B$107,'Stap 2 Register'!$C$8:$C$107,0) -> 0 | C92: =_xlfn.XLOOKUP(A92,'Stap 2 Register'!$B$8:$B$107,'Stap 2 Register'!$O$8:$O$107,0) -> 0 | D92: =_xlfn.XLOOKUP(A92,'Stap 3 Maatregelen'!$C$8:$C$107,'Stap 3 Maatregelen'!$G$8:$G$107,0) -> 0 | E92: 3500000
A93: 83 | B93: =_xlfn.XLOOKUP(A93,'Stap 2 Register'!$B$8:$B$107,'Stap 2 Register'!$C$8:$C$107,0) -> 0 | C93: =_xlfn.XLOOKUP(A93,'Stap 2 Register'!$B$8:$B$107,'Stap 2 Register'!$O$8:$O$107,0) -> 0 | D93: =_xlfn.XLOOKUP(A93,'Stap 3 Maatregelen'!$C$8:$C$107,'Stap 3 Maatregelen'!$G$8:$G$107,0) -> 0 | E93: 3500000
A94: 84 | B94: =_xlfn.XLOOKUP(A94,'Stap 2 Register'!$B$8:$B$107,'Stap 2 Register'!$C$8:$C$107,0) -> 0 | C94: =_xlfn.XLOOKUP(A94,'Stap 2 Register'!$B$8:$B$107,'Stap 2 Register'!$O$8:$O$107,0) -> 0 | D94: =_xlfn.XLOOKUP(A94,'Stap 3 Maatregelen'!$C$8:$C$107,'Stap 3 Maatregelen'!$G$8:$G$107,0) -> 0 | E94: 3500000
A95: 85 | B95: =_xlfn.XLOOKUP(A95,'Stap 2 Register'!$B$8:$B$107,'Stap 2 Register'!$C$8:$C$107,0) -> 0 | C95: =_xlfn.XLOOKUP(A95,'Stap 2 Register'!$B$8:$B$107,'Stap 2 Register'!$O$8:$O$107,0) -> 0 | D95: =_xlfn.XLOOKUP(A95,'Stap 3 Maatregelen'!$C$8:$C$107,'Stap 3 Maatregelen'!$G$8:$G$107,0) -> 0 | E95: 3500000
A96: 86 | B96: =_xlfn.XLOOKUP(A96,'Stap 2 Register'!$B$8:$B$107,'Stap 2 Register'!$C$8:$C$107,0) -> 0 | C96: =_xlfn.XLOOKUP(A96,'Stap 2 Register'!$B$8:$B$107,'Stap 2 Register'!$O$8:$O$107,0) -> 0 | D96: =_xlfn.XLOOKUP(A96,'Stap 3 Maatregelen'!$C$8:$C$107,'Stap 3 Maatregelen'!$G$8:$G$107,0) -> 0 | E96: 3500000
A97: 87 | B97: =_xlfn.XLOOKUP(A97,'Stap 2 Register'!$B$8:$B$107,'Stap 2 Register'!$C$8:$C$107,0) -> 0 | C97: =_xlfn.XLOOKUP(A97,'Stap 2 Register'!$B$8:$B$107,'Stap 2 Register'!$O$8:$O$107,0) -> 0 | D97: =_xlfn.XLOOKUP(A97,'Stap 3 Maatregelen'!$C$8:$C$107,'Stap 3 Maatregelen'!$G$8:$G$107,0) -> 0 | E97: 3500000
A98: 88 | B98: =_xlfn.XLOOKUP(A98,'Stap 2 Register'!$B$8:$B$107,'Stap 2 Register'!$C$8:$C$107,0) -> 0 | C98: =_xlfn.XLOOKUP(A98,'Stap 2 Register'!$B$8:$B$107,'Stap 2 Register'!$O$8:$O$107,0) -> 0 | D98: =_xlfn.XLOOKUP(A98,'Stap 3 Maatregelen'!$C$8:$C$107,'Stap 3 Maatregelen'!$G$8:$G$107,0) -> 0 | E98: 3500000
A99: 89 | B99: =_xlfn.XLOOKUP(A99,'Stap 2 Register'!$B$8:$B$107,'Stap 2 Register'!$C$8:$C$107,0) -> 0 | C99: =_xlfn.XLOOKUP(A99,'Stap 2 Register'!$B$8:$B$107,'Stap 2 Register'!$O$8:$O$107,0) -> 0 | D99: =_xlfn.XLOOKUP(A99,'Stap 3 Maatregelen'!$C$8:$C$107,'Stap 3 Maatregelen'!$G$8:$G$107,0) -> 0 | E99: 3500000
A100: 90 | B100: =_xlfn.XLOOKUP(A100,'Stap 2 Register'!$B$8:$B$107,'Stap 2 Register'!$C$8:$C$107,0) -> 0 | C100: =_xlfn.XLOOKUP(A100,'Stap 2 Register'!$B$8:$B$107,'Stap 2 Register'!$O$8:$O$107,0) -> 0 | D100: =_xlfn.XLOOKUP(A100,'Stap 3 Maatregelen'!$C$8:$C$107,'Stap 3 Maatregelen'!$G$8:$G$107,0) -> 0 | E100: 3500000
A101: 91 | B101: =_xlfn.XLOOKUP(A101,'Stap 2 Register'!$B$8:$B$107,'Stap 2 Register'!$C$8:$C$107,0) -> 0 | C101: =_xlfn.XLOOKUP(A101,'Stap 2 Register'!$B$8:$B$107,'Stap 2 Register'!$O$8:$O$107,0) -> 0 | D101: =_xlfn.XLOOKUP(A101,'Stap 3 Maatregelen'!$C$8:$C$107,'Stap 3 Maatregelen'!$G$8:$G$107,0) -> 0 | E101: 3500000
A102: 92 | B102: =_xlfn.XLOOKUP(A102,'Stap 2 Register'!$B$8:$B$107,'Stap 2 Register'!$C$8:$C$107,0) -> 0 | C102: =_xlfn.XLOOKUP(A102,'Stap 2 Register'!$B$8:$B$107,'Stap 2 Register'!$O$8:$O$107,0) -> 0 | D102: =_xlfn.XLOOKUP(A102,'Stap 3 Maatregelen'!$C$8:$C$107,'Stap 3 Maatregelen'!$G$8:$G$107,0) -> 0 | E102: 3500000
A103: 93 | B103: =_xlfn.XLOOKUP(A103,'Stap 2 Register'!$B$8:$B$107,'Stap 2 Register'!$C$8:$C$107,0) -> 0 | C103: =_xlfn.XLOOKUP(A103,'Stap 2 Register'!$B$8:$B$107,'Stap 2 Register'!$O$8:$O$107,0) -> 0 | D103: =_xlfn.XLOOKUP(A103,'Stap 3 Maatregelen'!$C$8:$C$107,'Stap 3 Maatregelen'!$G$8:$G$107,0) -> 0 | E103: 3500000
A104: 94 | B104: =_xlfn.XLOOKUP(A104,'Stap 2 Register'!$B$8:$B$107,'Stap 2 Register'!$C$8:$C$107,0) -> 0 | C104: =_xlfn.XLOOKUP(A104,'Stap 2 Register'!$B$8:$B$107,'Stap 2 Register'!$O$8:$O$107,0) -> 0 | D104: =_xlfn.XLOOKUP(A104,'Stap 3 Maatregelen'!$C$8:$C$107,'Stap 3 Maatregelen'!$G$8:$G$107,0) -> 0 | E104: 3500000
A105: 95 | B105: =_xlfn.XLOOKUP(A105,'Stap 2 Register'!$B$8:$B$107,'Stap 2 Register'!$C$8:$C$107,0) -> 0 | C105: =_xlfn.XLOOKUP(A105,'Stap 2 Register'!$B$8:$B$107,'Stap 2 Register'!$O$8:$O$107,0) -> 0 | D105: =_xlfn.XLOOKUP(A105,'Stap 3 Maatregelen'!$C$8:$C$107,'Stap 3 Maatregelen'!$G$8:$G$107,0) -> 0 | E105: 3500000
A106: 96 | B106: =_xlfn.XLOOKUP(A106,'Stap 2 Register'!$B$8:$B$107,'Stap 2 Register'!$C$8:$C$107,0) -> 0 | C106: =_xlfn.XLOOKUP(A106,'Stap 2 Register'!$B$8:$B$107,'Stap 2 Register'!$O$8:$O$107,0) -> 0 | D106: =_xlfn.XLOOKUP(A106,'Stap 3 Maatregelen'!$C$8:$C$107,'Stap 3 Maatregelen'!$G$8:$G$107,0) -> 0 | E106: 3500000
A107: 97 | B107: =_xlfn.XLOOKUP(A107,'Stap 2 Register'!$B$8:$B$107,'Stap 2 Register'!$C$8:$C$107,0) -> 0 | C107: =_xlfn.XLOOKUP(A107,'Stap 2 Register'!$B$8:$B$107,'Stap 2 Register'!$O$8:$O$107,0) -> 0 | D107: =_xlfn.XLOOKUP(A107,'Stap 3 Maatregelen'!$C$8:$C$107,'Stap 3 Maatregelen'!$G$8:$G$107,0) -> 0 | E107: 3500000
A108: 98 | B108: =_xlfn.XLOOKUP(A108,'Stap 2 Register'!$B$8:$B$107,'Stap 2 Register'!$C$8:$C$107,0) -> 0 | C108: =_xlfn.XLOOKUP(A108,'Stap 2 Register'!$B$8:$B$107,'Stap 2 Register'!$O$8:$O$107,0) -> 0 | D108: =_xlfn.XLOOKUP(A108,'Stap 3 Maatregelen'!$C$8:$C$107,'Stap 3 Maatregelen'!$G$8:$G$107,0) -> 0 | E108: 3500000
A109: 99 | B109: =_xlfn.XLOOKUP(A109,'Stap 2 Register'!$B$8:$B$107,'Stap 2 Register'!$C$8:$C$107,0) -> 0 | C109: =_xlfn.XLOOKUP(A109,'Stap 2 Register'!$B$8:$B$107,'Stap 2 Register'!$O$8:$O$107,0) -> 0 | D109: =_xlfn.XLOOKUP(A109,'Stap 3 Maatregelen'!$C$8:$C$107,'Stap 3 Maatregelen'!$G$8:$G$107,0) -> 0 | E109: 3500000
A110: 100 | B110: =_xlfn.XLOOKUP(A110,'Stap 2 Register'!$B$8:$B$107,'Stap 2 Register'!$C$8:$C$107,0) -> 0 | C110: =_xlfn.XLOOKUP(A110,'Stap 2 Register'!$B$8:$B$107,'Stap 2 Register'!$O$8:$O$107,0) -> 0 | D110: =_xlfn.XLOOKUP(A110,'Stap 3 Maatregelen'!$C$8:$C$107,'Stap 3 Maatregelen'!$G$8:$G$107,0) -> 0 | E110: 3500000
